Workbook

Sheet Instructivo
B2: Tablero de control de vacunas del Programa Ampliado de Inmunizaciones -PAI- Período 2020
B4: Acerca de la versión
B5: 1. CELDAS BLOQUEADAS: Todas las celdas están bloqueadas con excepción de las celdas donde se digitan las dosis aplicadas de cada mes, es decir, las columnas de la F a la Q. Es responsabilidad de la Coordinadora o Coordinador PAI de cada localidad la calidad y seguridad de la información allí registrada. Los datos de las dosis mensuales deben ser auditables y confiables.
B6: 2. PARA AGREGAR O RETITAR IPS: Debe reportar los datos por medio de correo electrónico a la SDS (sdspai@saludcapital.gov.co)
B7: 3. MEJORAS O MODIFICACIONES: Esta versión del tablero de control está totalmente estandarizada, por lo tanto no está autorizado a personalizar, adaptar, o modificar el Tablero de Control, en ningún aspecto, fórmulas, escenario, columnas, títulos, distribución, etc. Si requiere alguna adaptación o mejora para el tablero de control, escriba su sugerencia a la SDS (sdspai@saludcapital.gov.co)
B8: 4. VERSIÓN DE OFFICE: Este tablero fue creado con la versión Microsoft Office 2007.
B9: 5. FILTRO: Para hacer uso eficiente del tablero de control, en el filtro de las columnas: - "Localidad " realice la selección de su predilección. Ejemplo: en la columna "Localidad", en el filtro seleccionó "01-USAQUEN". Resultado: Despliega la información de las IPS públicas y privadas de la localidad de Usaquén. - "EAPB o ESE" realice la selección de su predilección. Ejemplo: en la columna "EAPB o ESE", en el filtro seleccionó "COMPENSAR". Resultado: Despliega la información de las IPS de esta aseguradora
B11: Acerca del diligenciamiento por biológico
B12: 1. BCG: Del informe mensual SIS 151 tome el total de dosis aplicadas por IPS y localidad, regístrelas y súmelas así: POS: BCG en niño o niña recién nacido (de 0 hasta 28 días)
B13: 2. HEPATITIS B: Del informe mensual SIS 151 tome el total de dosis aplicadas por IPS y localidad, regístrelas y súmelas así: POS: HB en niño o niña Recién nacido (hasta las primeras 12 horas) y Recién nacido (Entre 12 horas y 28 dias)
B14: 3. PENTA1: Del informe mensual tome el total de dosis aplicadas y súmelas, así: - POS: PENTAVALENTE (DPT - HB - Hib) - < DE 1 AÑO - primera dosis; DTP - < DE 1 AÑO - primera dosis; DTPa acelular pediatrica - < DE 1 AÑO - primera dosis; TOXOIDE TETANICO-DIFTERICO PEDIATRICO (TD) - < DE 1 AÑO - primera dosis - NO POS: PENTAVALENTE (DPTa -HiB-VPI) - < DE 1 AÑO - primera dosis; HEXAVALENTE (DPTa -HB-HiB-VIP) - < DE 1 AÑO primera dosis - TETRAVALENTE (DPTa - VPI) - < DE 1 AÑO primera dosis; DPTaceluar pediátrica (DPTa) - < DE 1 AÑO primera dosis y TOXOIDE TETÁNICO-DIFTERICO DE NIÑOS (TD) - MENOR DE 1 AÑO - primera dosis
B15: 4. PENTA2: Del informe mensual tome el total de dosis aplicadas y súmelas, así: - POS: PENTAVALENTE (DPT - HB - Hib) - < DE 1 AÑO - segunda dosis; DTP - < DE 1 AÑO - segunda dosis; DTPa acelular pediatrica - < DE 1 AÑO - segunda dosis; TOXOIDE TETANICO-DIFTERICO PEDIATRICO (TD) - < DE 1 AÑO - segunda dosis - NO POS: PENTAVALENTE (DPTa -HiB-VPI) - < DE 1 AÑO - segunda dosis; HEXAVALENTE (DPTa -HB-HiB-VIP) - < DE 1 AÑO segunda dosis - TETRAVALENTE (DPTa - VPI) - < DE 1 AÑO segunda dosis; DPTaceluar pediátrica (DPTa) - < DE 1 AÑO segunda dosis y TOXOIDE TETÁNICO-DIFTERICO DE NIÑOS (TD) - MENOR DE 1 AÑO - segunda dosis
B16: 5. PENTA3: Del informe mensual tome el total de dosis aplicadas y súmelas, así: - POS: PENTAVALENTE (DPT - HB - Hib) - < DE 1 AÑO - tercera dosis; DTP - < DE 1 AÑO - tercera dosis; DTPa acelular pediatrica - < DE 1 AÑO - tercera dosis; TOXOIDE TETANICO-DIFTERICO PEDIATRICO (TD) - < DE 1 AÑO - tercera dosis - NO POS: PENTAVALENTE (DPTa -HiB-VPI) - < DE 1 AÑO - tercera dosis; HEXAVALENTE (DPTa -HB-HiB-VIP) - < DE 1 AÑO tercera dosis - TETRAVALENTE (DPTa - VPI) - < DE 1 AÑO tercera dosis; DPTaceluar pediátrica (DPTa) - < DE 1 AÑO tercera dosis y TOXOIDE TETÁNICO-DIFTERICO DE NIÑOS (TD) - MENOR DE 1 AÑO - tercera dosis
B17: 6. ROTAVIRUS1: Del informe mensual tome el total de dosis aplicadas y súmelas, así: - POS: ROTAVIRUS - DE 2 MESES A 3 MESES y 21 DIAS - Primera dosis - NO POS: ROTAVIRUS - < DE 1 AÑO - Primera dosis
B18: 7. ROTAVIRUS2: Del informe mensual tome el total de dosis aplicadas y súmelas, así: - POS: ROTAVIRUS - DE 4 MESES A 11 MESES y 29 DIAS - Segundas dosis - NO POS: ROTAVIRUS - < DE 1 AÑO - Terceras dosis
B19: 8. NEUMOCOCO1: Del informe mensual tome el total de dosis aplicadas y súmelas, así: - POS: NEUMOCOCO CONJUGADA - DE 2 MESES A 11 MESES 29 DIAS - Primera dosis - NO POS: NEUMOCOCO CONJUGADA-DE 2 MESES A 11 MESES 29 DIAS - Primera dosis
B20: 9. NEUMOCOCO2: Del informe mensual tome el total de dosis aplicadas y súmelas, así: - POS: NEUMOCOCO CONJUGADA - DE 2 MESES A 11 MESES 29 DIAS - Segundas dosis - NO POS: NEUMOCOCO CONJUGADA-DE 2 MESES A 11 MESES 29 DIAS - Segundas dosis
B21: 10. TRIPLE VIRAL: Del informe mensual tome el total de dosis aplicadas y súmelas , así: - POS: SRP (TRIPLE VIRAL) - Primera dosis - De 1 año - NO POS: SRP (TRIPLE VIRAL) - Dosis única - Un año de edad; y TRIPLE VIRAL + VARICELA - Un año - Dosis única
B22: 11. VARICELA: Del informe mensual tome el total de dosis aplicadas y súmelas , así: - POS: VARICELA - DE 1 AÑO - Primera Dosis - NO POS: VARICELA - DE 1 AÑO - Primera Dosis; y TRIPLE VIRAL + VARICELA - Un año - Primera dosis
B23: 12. HEPATITIS A: Del informe mensual tome el total de dosis aplicadas y súmelas , así: - POS: HEPATITIS A - DOSIS ÚNICA - DE 1 AÑO - NO POS: HEPATITIS A - DE 1 AÑO - Primera Dosis
B24: 13. R. NEUMOCOCO CONJUGADA: Del informe mensual tome el total de dosis aplicadas y súmelas , así: - POS: NEUMOCOCO CONJUGADA - DE 12 MESES A 23 MESES - DE 1 AÑO - Refuerzo. - NO POS: NEUMOCOCO CONJUGADA - DE 12 MESES A 23 MESES - Refuerzo
B25: 14. R1 DPT: Del informe mensual tome el total de dosis aplicadas y súmelas , así: - POS: PENTAVALENTE DPT - HB - Hib (CUANDO EL MINISTERIO LA AUTORICE) - 1er REF; DPT - AL AÑO DE LA 3ra DOSIS (De 18 a 23 meses) - 1er REF; DTPa acelular pediátrica - AL AÑO DE LA 3ra DOSIS (De 18 a 23 meses) - 1er REF; TOXOIDE TETANICO-DIFTERICO PEDIATRICO (TD) - AL AÑO DE LA 3ra DOSIS (De 18 a 23 meses) - 1er REF. - NO POS: PENTAVALENTE (DPTa -HiB-VPI) - AL AÑO DE LA 3ra DOSIS (De 18 a 23 meses) - 1er REF; HEXAVALENTE (DPTa -HB-HiB-VIP) - AL AÑO DE LA 3ra DOSIS (De 18 a 23 meses) - 1er REF - TETRAVALENTE (DPTa - VPI) - AL AÑO DE LA 3ra DOSIS (De 18 a 23 meses) - 1er REF; DPTaceluar pediátrica (DPTa) - AL AÑO DE LA 3ra DOSIS (De 18 a 23 meses) - 1er REF.; TOXOIDE TETÁNICO-DIFTERICO DE NIÑOS (TD) - DE 1 A 4 AÑOS - REF. 1;
B26: 15. F.AMARILLA: Del informe mensual tome el total de dosis aplicadas y súmelas , así: - POS: FIEBRE AMARILLA - DE 1 AÑO - NO POS: FIEBRE AMARILLA - DE 1 AÑO
B27: 16. R2. TRIPLE VIRAL: Del informe mensual tome el total de dosis aplicadas y súmelas , así: - POS: SRP (TRIPLE VIRAL) - REFUERZO DE 5 AÑOS - NO POS: SRP (TRIPLE VIRAL) - REFUERZO DE 5 AÑOS; Y TRIPLE VIRAL + VARICELA - REFUERZO DE 5 AÑOS

Sheet METAS 2020
A1: Metas de población PAI por localidad. Año 2020
A2: Localidad | B2: Menor de un año | C2: Un año | D2: Cinco años
A3: 01-USAQUEN | B3: 8,126 | C3: 7,777 | D3: 7,262
A4: 02-CHAPINERO | B4: 6,147 | C4: 5,477 | D4: 4,846
A5: 03-SANTA FE | B5: 881 | C5: 993 | D5: 814
A6: 04-SAN CRISTOBAL | B6: 3,776 | C6: 3,865 | D6: 3,369
A7: 05-USME | B7: 4,928 | C7: 5,014 | D7: 4,698
A8: 06-TUNJUELITO | B8: 2,568 | C8: 2,618 | D8: 2,609
A9: 07-BOSA | B9: 8,949 | C9: 9,693 | D9: 9,047
A10: 08-KENNEDY | B10: 12,334 | C10: 12,690 | D10: 12,781
A11: 09-FONTIBON | B11: 4,076 | C11: 4,267 | D11: 4,026
A12: 10-ENGATIVA | B12: 6,290 | C12: 6,839 | D12: 6,800
A13: 11-SUBA | B13: 10,787 | C13: 10,905 | D13: 10,886
A14: 12-BARRIOS UNIDOS | B14: 3,230 | C14: 2,676 | D14: 2,354
A15: 13-TEUSAQUILLO | B15: 3,285 | C15: 3,025 | D15: 3,442
A16: 14-MARTIRES | B16: 769 | C16: 1,039 | D16: 689
A17: 15-ANTONIO NARIÑO | B17: 3,008 | C17: 3,016 | D17: 4,179
A18: 16-PUENTE ARANDA | B18: 5,153 | C18: 4,531 | D18: 4,718
A19: 17-CANDELARIA | B19: 154 | C19: 130 | D19: 179
A20: 18-RAFAEL URIBE URIBE | B20: 5,460 | C20: 5,653 | D20: 5,967
A21: 19-CIUDAD BOLIVAR | B21: 9,595 | C21: 9,172 | D21: 8,436
A22: 20-SUMAPAZ | B22: 34 | C22: 45 | D22: 37
A23: Bogotá | B23: =SUM(B3:B22) -> 99,552 | C23: =SUM(C3:C22) -> 99,424 | D23: =SUM(D3:D22) -> 97,140
A25: Metas de población PAI por Subred. Año 2020
A26: Localidad | B26: Menor de un año | C26: Un año | D26: Cinco años
A27: 01-USAQUEN | B27: =B3 -> 8,126 | C27: 7,777 | D27: 7,262
A28: 02-CHAPINERO | B28: 6,147 | C28: 5,477 | D28: 4,846
A29: 10-ENGATIVA | B29: =B12 -> 6,290 | C29: 6,839 | D29: 6,800
A30: 11-SUBA | B30: 10,787 | C30: 10,905 | D30: 10,886
A31: 12-BARRIOS UNIDOS | B31: 3,230 | C31: 2,676 | D31: 2,354
A32: 13-TEUSAQUILLO | B32: 3,285 | C32: 3,025 | D32: 3,442
A33: SUBRED NORTE | B33: =SUM(B27:B32) -> 37,866 | C33: =SUM(C27:C32) -> 36,699 | D33: =SUM(D27:D32) -> 35,591
A34: 03-SANTA FE | B34: =B5 -> 881 | C34: 993 | D34: 814
A35: 04-SAN CRISTOBAL | B35: 3,776 | C35: 3,865 | D35: 3,369
A36: 14-MARTIRES | B36: =B16 -> 769 | C36: 1,039 | D36: 689
A37: 15-ANTONIO NARIÑO | B37: 3,008 | C37: 3,016 | D37: 4,179
A38: 17-CANDELARIA | B38: =B19 -> 154 | C38: 130 | D38: 179
A39: 18-RAFAEL URIBE URIBE | B39: 5,460 | C39: 5,653 | D39: 5,967
A40: SUBRED CENTRO ORIENTE | B40: =SUM(B34:B39) -> 14,049 | C40: =SUM(C34:C39) -> 14,696 | D40: =SUM(D34:D39) -> 15,197
A41: 05-USME | B41: =B7 -> 4,928 | C41: 5,014 | D41: 4,698
A42: 06-TUNJUELITO | B42: 2,568 | C42: 2,618 | D42: 2,609
A43: 19-CIUDAD BOLIVAR | B43: =B21 -> 9,595 | C43: 9,172 | D43: 8,436
A44: 20-SUMAPAZ | B44: 34 | C44: 45 | D44: 37
A45: SUBRED SUR | B45: =SUM(B41:B44) -> 17,125 | C45: =SUM(C41:C44) -> 16,849 | D45: =SUM(D41:D44) -> 15,781
A46: 07-BOSA | B46: =B9 -> 8,949 | C46: 9,693 | D46: 9,047
A47: 08-KENNEDY | B47: 12,334 | C47: 12,690 | D47: 12,781
A48: 09-FONTIBON | B48: 4,076 | C48: 4,267 | D48: 4,026
A49: 16-PUENTE ARANDA | B49: =B18 -> 5,153 | C49: =C18 -> 4,531 | D49: =D18 -> 4,718
A50: SUBRED SUR OCCIDENTE | B50: =SUM(B46:B49) -> 30,512 | C50: =SUM(C46:C49) -> 31,181 | D50: =SUM(D46:D49) -> 30,571
A51: Bogotá | B51: =B33+B40+B45+B50 -> 99,552 | C51: =C33+C40+C45+C50 -> 99,424 | D51: =D33+D40+D45+D50 -> 97,140
A54: Metas de población PAI por aseguradora / subred. Año 2020
A55: Aeguradora/ subred | B55: Menor de un año | C55: Un año | D55: Cinco años
A56: Aliansalud | B56: 1,665 | C56: 2,013 | D56: 2,326
A57: Medimás | B57: 1,721 | C57: 1,991 | D57: 2,192
A58: Compensar | B58: 12,896 | C58: 14,515 | D58: 15,820
A59: Coomeva | B59: 814 | C59: 862 | D59: 923
A60: Famisanar | B60: 13,333 | C60: 14,847 | D60: 16,783
A61: Fuerzas Militares | B61: 974 | C61: 1,240 | D61: 1,629
A62: Policía Nacional | B62: 1,156 | C62: 1,037 | D62: 1,106
A63: Nueva EPS | B63: 3,722 | C63: 3,700 | D63: 4,105
A64: Sanitas | B64: 12,048 | C64: 13,636 | D64: 14,738
A65: Salud Total | B65: 8,782 | C65: 9,391 | D65: 10,369
A66: Sura | B66: 3,934 | C66: 4,406 | D66: 4,777
A67: Ecopetrol | B67: 87 | C67: 93 | D67: 180
A68: Magisterio | B68: 270 | C68: 302 | D68: 502
A69: SOS** | B69: 37 | C69: 38 | D69: 53
A70: Unisalud | B70: 16 | C70: 26 | D70: 56
A71: Ferrocarriles Nales | B71: 1 | C71: 5 | D71: 1
A72: Coosalud | B72: 60 | C72: 102 | D72: 135
A73: Unicajas | B73: 1,637 | C73: 1,670 | D73: 1,833
A74: Capital Salud | B74: 11,424 | C74: 12,234 | D74: 11,130
A75: Sub red Centro oriente | B75: 3,880 | C75: 2,544 | D75: 1,344
A76: Sub red Norte | B76: =8412-B72 -> 8,352 | C76: =6388-C72 -> 6,286 | D76: =3154-D72 -> 3,019
A77: Sub red Sur | B77: 5,057 | C77: 2,925 | D77: 1,409
A78: Sub red Sur occidente | B78: 7,686 | C78: 5,561 | D78: 2,710
A79: Bogotá | B79: =SUM(B56:B78) -> 99,552 | C79: =SUM(C56:C78) -> 99,424 | D79: =SUM(D56:D78) -> 97,140

Sheet BCG
A1: EPS O ESE | B1: IPS | C1: Localidad | D1: Meta Anual Menor de 1 Año | E1: Meta Mensual | F1: Enero | G1: Febrero | H1: Marzo | I1: Abril | J1: Mayo | K1: Junio | L1: Julio | M1: Agosto | N1: Septiembre | O1: Octubre | P1: Noviembre | Q1: Diciembre | R1: Total | S1: % Cobertura | T1: Deficit
A2: COMPENSAR | B2: CLINICA LOS COBOS | C2: 01-USAQUEN | D2: 0 | E2: 0 | F2: 87 | G2: 102 | H2: 126 | I2: 118 | J2: 108 | R2: =SUM(F2:Q2) -> 541 | S2: =IF(D2=0,0,+R2/D2) -> 0.0% | T2: =IF(COUNT(F2:Q2)*(D2/12)-R2<0,"",COUNT(F2:Q2)*(D2/12)-R2) -> 
A3: SANITAS | B3: CLINICA REINA SOFIA | C3: 01-USAQUEN | D3: 0 | E3: 0 | F3: 96 | G3: 78 | H3: 86 | I3: 92 | J3: 76 | R3: 428 | S3: 0.0%
A4: PARTICULAR | B4: FUNDACION SANTA FE | C4: 01-USAQUEN | D4: 0 | E4: 0 | F4: 107 | G4: 108 | H4: 113 | I4: 92 | J4: 100 | R4: 520 | S4: 0.0%
A5: 01-USAQUEN | B5: HOSPITAL SIMON BOLIVAR | C5: 01-USAQUEN | D5: 0 | E5: 0 | F5: 136 | G5: 95 | H5: 98 | I5: 51 | J5: 47 | R5: 427 | S5: 0.0%
A6: PARTICULAR | B6: CLINICA DE LA MUJER | C6: 02-CHAPINERO | D6: 0 | E6: 0 | F6: 169 | G6: 151 | H6: 171 | I6: 173 | J6: 173 | R6: 837 | S6: 0.0%
A7: PARTICULAR | B7: CLINICA DE MARLY S.A | C7: 02-CHAPINERO | D7: 0 | E7: 0 | F7: 55 | G7: 51 | H7: 56 | I7: 60 | J7: 68 | R7: 290 | S7: 0.0%
A8: PARTICULAR | B8: CLINICA DEL COUNTRY | C8: 02-CHAPINERO | D8: 0 | E8: 0 | F8: 218 | G8: 218 | H8: 228 | I8: 182 | J8: 194 | R8: 1040 | S8: 0.0%
A9: MILITAR | B9: HOSPITAL MILITAR CENTRAL | C9: 02-CHAPINERO | D9: 0 | E9: 0 | F9: 50 | G9: 62 | H9: 69 | I9: 45 | J9: 58 | R9: 284 | S9: 0.0%
A10: PARTICULAR | B10: HOSPITAL SAN IGNACIO | C10: 02-CHAPINERO | D10: 0 | E10: 0 | F10: 89 | G10: 88 | H10: 141 | I10: 172 | J10: 173 | R10: 663 | S10: 0.0%
A11: UNICAJAS | B11: EXTRAMURAL SANTA FE | C11: 03-SANTA FE | D11: 0 | E11: 0 | F11: 0 | G11: 0 | H11: 0 | I11: 0 | J11: 0 | R11: =SUM(F11:Q11) -> 0 | S11: =IF(D11=0,0,+R11/D11) -> 0.0% | T11: =IF(COUNT(F11:Q11)*(D11/12)-R11<0,"",COUNT(F11:Q11)*(D11/12)-R11) -> 0.0
A12: 04-SAN CRISTOBAL | B12: CAMI ALTAMIRA | C12: 04-SAN CRISTOBAL | D12: 0 | E12: 0 | F12: 0 | G12: 1 | H12: 0 | I12: 0 | J12: 0 | R12: 1 | S12: 0.0%
A13: PARTICULAR | B13: CLINICA SAN RAFAEL | C13: 04-SAN CRISTOBAL | D13: 1216 | E13: 101 | F13: 449 | G13: 406 | H13: 439 | I13: 411 | J13: 472 | R13: 2177 | S13: 179.0%
A14: 04-SAN CRISTOBAL | B14: HOSPITAL LA VICTORIA | C14: 04-SAN CRISTOBAL | D14: 1216 | E14: 101 | F14: 225 | G14: 161 | H14: 153 | I14: 120 | J14: 115 | R14: 774 | S14: 63.7%
A15: 04-SAN CRISTOBAL | B15: INSTITUTO MATERNO INFANTIL LA VICTORIA SEDE II | C15: 04-SAN CRISTOBAL | D15: 1216 | E15: 101 | F15: 359 | G15: 408 | H15: 418 | I15: 433 | J15: 517 | R15: 2135 | S15: 175.6%
A16: 07-BOSA | B16: CAMI PABLO VI BOSA | C16: 07-BOSA | D16: 0 | E16: 0 | F16: 0 | G16: 0 | H16: 0 | I16: 0 | J16: 1 | R16: 1 | S16: 0.0%
A17: 07-BOSA | B17: HOSPITAL DE BOSA II NIVEL | C17: 07-BOSA | D17: 0 | E17: 0 | F17: 174 | G17: 154 | H17: 176 | I17: 220 | J17: 207 | R17: 931 | S17: 0.0%
A18: 08-KENNEDY | B18: CAFAM KENNEDY | C18: 08-KENNEDY | E18: 0 | F18: 0 | G18: 0 | H18: 0 | I18: 0 | J18: 0 | R18: 0 | S18: 0.0% | T18: 0.0
A19: 08-KENNEDY | B19: CAPS PATIO BONITO | C19: 08-KENNEDY | E19: 0 | F19: 0 | G19: 0 | H19: 0 | I19: 0 | J19: 0 | R19: 0 | S19: 0.0% | T19: 0.0
A20: 08-KENNEDY | B20: CLINICA COLSUBSIDIO ROMA | C20: 08-KENNEDY | E20: 0 | F20: 0 | G20: 0 | H20: 0 | I20: 0 | J20: 1 | R20: 1 | S20: 0.0%
A21: 08-KENNEDY | B21: CLINICA DEL OCCIDENTE LTDA | C21: 08-KENNEDY | D21: 0 | E21: 0 | F21: 92 | G21: 82 | H21: 76 | I21: 96 | J21: 77 | R21: 423 | S21: 0.0%
A22: 08-KENNEDY | B22: COMPENSAR KENNEDY | C22: 08-KENNEDY | D22: 0 | E22: 0 | F22: 0 | G22: 0 | H22: 0 | I22: 0 | J22: 0 | R22: 0 | S22: 0.0% | T22: 0.0
A23: 08-KENNEDY | B23: HOSPITAL OCCIDENTE DE KENNEDY | C23: 08-KENNEDY | D23: 0 | E23: 0 | F23: 406 | G23: 349 | H23: 352 | I23: 329 | J23: 315 | R23: 1751 | S23: 0.0%
A24: 08-KENNEDY | B24: USS TINTAL PATIO BONITO | C24: 08-KENNEDY | F24: 0 | G24: 0 | H24: 0 | I24: 0 | J24: 10 | R24: 10 | S24: 0.0%
A25: 09-FONTIBON | B25: CAMI II CENTRO DE ESPECIALISTAS | C25: 09-FONTIBON | D25: 0 | E25: 0 | F25: 86 | G25: 91 | H25: 75 | I25: 48 | J25: 0 | R25: 300 | S25: 0.0%
A26: 09-FONTIBON | B26: CENTRO DIA | C26: 09-FONTIBON | F26: 0 | G26: 0 | H26: 0 | I26: 0 | J26: 17 | R26: 17 | S26: 0.0%
A27: 10-ENGATIVA | B27: HOSPITAL ENGATIVA II SEDE PRINCIPAL CALLE 80 | C27: 10-ENGATIVA | D27: 0 | E27: 0 | F27: 176 | G27: 161 | H27: 156 | I27: 121 | J27: 174 | R27: 788 | S27: 0.0%
A28: 11-SUBA | B28: CENTRO DE SERVICIOS ESPECIALIZADOS | C28: 11-SUBA | D28: 0 | E28: 0 | F28: 214 | G28: 213 | H28: 193 | I28: 254 | J28: 249 | R28: 1123 | S28: 0.0%
A29: PARTICULAR | B29: CLINICA COLINA | C29: 11-SUBA | D29: 0 | E29: 0 | F29: 65 | G29: 51 | H29: 53 | I29: 415 | J29: 51 | R29: 635 | S29: 0.0%
A30: PARTICULAR | B30: FUNDACION CLINICA CORPAS | C30: 11-SUBA | D30: 0 | E30: 0 | F30: 350 | G30: 390 | H30: 379 | I30: 52 | J30: 369 | R30: 1540 | S30: 0.0%
A31: PARTICULAR | B31: CLINICA COLSUBSIDIO CALLE 94 | C31: 12-BARRIOS UNIDOS | D31: 0 | E31: 0 | F31: 302 | G31: 290 | H31: 343 | I31: 308 | J31: 426 | R31: 1669 | S31: 0.0%
A32: CRUZ BLANCA | B32: HOSPITAL UNIVERSITARIO INFANTIL SAN JOSE | C32: 12-BARRIOS UNIDOS | D32: 0 | E32: 0 | F32: 369 | G32: 348 | H32: 389 | I32: 422 | J32: 477 | R32: 2005 | S32: 0.0%
A33: FAMI- CAFAM | B33: CLINICA CAFAM CALLE 51 | C33: 13-TEUSAQUILLO | D33: 0 | E33: 0 | F33: 472 | G33: 398 | H33: 456 | I33: 423 | J33: 459 | R33: 2208 | S33: 0.0%
A34: PARTICULAR | B34: CLINICA EUSALUD | C34: 13-TEUSAQUILLO | D34: 0 | E34: 0 | F34: 383 | G34: 381 | H34: 103 | I34: 0 | J34: 0 | R34: 867 | S34: 0.0%
A35: PARTICULAR | B35: CLINICA FEDERMAN | C35: 13-TEUSAQUILLO | D35: 0 | E35: 0 | F35: 0 | G35: 0 | H35: 0 | I35: 0 | J35: 0 | R35: 0 | S35: 0.0% | T35: 0.0
A36: PARTICULAR | B36: CLINICA PALERMO | C36: 13-TEUSAQUILLO | D36: 0 | E36: 0 | F36: 533 | G36: 438 | H36: 435 | I36: 341 | J36: 274 | R36: 2021 | S36: 0.0%
A37: SANITAS | B37: CLINICA UNIVERSITARIA COLOMBIA | C37: 13-TEUSAQUILLO | D37: 0 | E37: 0 | F37: 6 | G37: 16 | H37: 44 | I37: 131 | J37: 200 | R37: 397 | S37: 0.0%
A38: POLICIA | B38: HOSPITAL CENTRAL DE LA POLICIA | C38: 13-TEUSAQUILLO | D38: 0 | E38: 0 | F38: 86 | G38: 77 | H38: 57 | I38: 71 | J38: 59 | R38: 350 | S38: 0.0%
A39: PARTICULAR | B39: MEDICA MAGDALENA LTDA | C39: 13-TEUSAQUILLO | D39: 0 | E39: 0 | F39: 519 | G39: 520 | H39: 570 | I39: 568 | J39: 613 | R39: 2790 | S39: 0.0%
A40: PARTICULAR | B40: HOSPITAL UNIVERSITARIO MAYOR | C40: 14-LOS MARTIRES | D40: 299 | E40: 25 | F40: 359 | G40: 408 | H40: 418 | I40: 433 | J40: 517 | R40: 2135 | S40: 714.0%
A41: PARTICULAR | B41: SOCIEDAD DE CIRUGIA HOSPITAL SAN JOSE | C41: 14-LOS MARTIRES | D41: 299 | E41: 25 | F41: 268 | G41: 332 | H41: 374 | I41: 316 | J41: 358 | R41: 1648 | S41: 551.2%
A42: 14-LOS MARTIRES | B42: USS SAMPER MENDOZA | C42: 14-LOS MARTIRES | D42: 0 | E42: 0 | F42: 0 | G42: 0 | H42: 1 | I42: 0 | J42: 0 | R42: 1 | S42: 0.0%
A43: COMPENSAR | B43: USS 1 DE MAYO | C43: 15-ANTONIO NARIÑO | D43: 0 | E43: 0 | F43: 0 | G43: 1 | H43: 0 | I43: 0 | J43: 0 | R43: 1 | S43: 0.0%
A44: FAMI- COLSB | B44: CENTRO MEDICO COLSUBSIDIO QUIROGA | C44: 18-RAFAEL URIBE URIBE | D44: 0 | E44: 0 | F44: 0 | G44: 0 | H44: 1 | I44: 0 | J44: 0 | R44: 1 | S44: 0.0%
A45: PARTICULAR | B45: CENTRO POLICLINICO DEL OLAYA | C45: 18-RAFAEL URIBE URIBE | D45: 5526 | E45: 461 | F45: 365 | G45: 355 | H45: 369 | I45: 321 | J45: 278 | R45: 1688 | S45: 30.5% | T45: 614.5
A46: 19-CIUDAD BOLIVAR | B46: USS MEISSEN | C46: 19-CIUDAD BOLIVAR | D46: 0 | E46: =D46/12 -> 0 | F46: 553 | G46: 461 | H46: 476 | I46: 480 | J46: 498 | R46: 2468 | S46: 0.0%
C57: Localidad | D57: Enero | E57: Febrero | F57: Marzo | G57: Abril | H57: Mayo | I57: Junio | J57: Julio | K57: Agosto | L57: Septiembre | M57: Octubre | N57: Noviembre | O57: Diciembre | P57: Total TC
C58: 01-USAQUEN | D58: =SUMIF($C$2:$C$49,$C58,F$2:F$49) -> 426 | E58: 383 | F58: 423 | G58: 353 | H58: 331 | I58: 0 | J58: 0 | K58: 0 | L58: 0 | M58: 0 | N58: 0 | O58: 0 | P58: =SUM(D58:O58) -> 1,916
C59: 02-CHAPINERO | D59: 581 | E59: 570 | F59: 665 | G59: 632 | H59: 666 | I59: 0 | J59: 0 | K59: 0 | L59: 0 | M59: 0 | N59: 0 | O59: 0 | P59: =SUM(D59:O59) -> 3,114
C60: 10-ENGATIVA | D60: 176 | E60: 161 | F60: 156 | G60: 121 | H60: 174 | I60: 0 | J60: 0 | K60: 0 | L60: 0 | M60: 0 | N60: 0 | O60: 0 | P60: 788
C61: 11-SUBA | D61: 629 | E61: 654 | F61: 625 | G61: 721 | H61: 669 | I61: 0 | J61: 0 | K61: 0 | L61: 0 | M61: 0 | N61: 0 | O61: 0 | P61: 3,298
C62: 12-BARRIOS UNIDOS | D62: 671 | E62: 638 | F62: 732 | G62: 730 | H62: 903 | I62: 0 | J62: 0 | K62: 0 | L62: 0 | M62: 0 | N62: 0 | O62: 0 | P62: 3,674
C63: 13-TEUSAQUILLO | D63: 1,999 | E63: 1,830 | F63: 1,665 | G63: 1,534 | H63: 1,605 | I63: 0 | J63: 0 | K63: 0 | L63: 0 | M63: 0 | N63: 0 | O63: 0 | P63: 8,633
C64: TOTAL TC SUBRED NORTE | D64: =SUM(D58:D63) -> 4,482 | E64: =SUM(E58:E63) -> 4,236 | F64: 4,266 | G64: 4,091 | H64: 4,348 | I64: 0 | J64: 0 | K64: 0 | L64: 0 | M64: 0 | N64: 0 | O64: 0 | P64: 21,423
C65: TOTAL INFORME SIS 151 SUBRED NORTE
C66: DIFERENCIA | D66: =+D64-D65 -> 4,482 | E66: =+E64-E65 -> 4,236 | F66: 4,266 | G66: 4,091 | H66: 4,348 | I66: 0 | J66: 0 | K66: 0 | L66: 0 | M66: 0 | N66: 0 | O66: 0 | P66: 21,423
C69: Localidad | D69: Enero | E69: Febrero | F69: Marzo | G69: Abril | H69: Mayo | I69: Junio | J69: Julio | K69: Agosto | L69: Septiembre | M69: Octubre | N69: Noviembre | O69: Diciembre | P69: Total TC
C70: 07-BOSA | D70: =SUMIF($C$2:$DC$49,$C70,F$2:F$49) -> 174 | E70: 154 | F70: 176 | G70: 220 | H70: 208 | I70: 0 | J70: 0 | K70: 0 | L70: 0 | M70: 0 | N70: 0 | O70: 0 | P70: 932
C71: 08-KENNEDY | D71: 498 | E71: 431 | F71: 428 | G71: 425 | H71: 403 | I71: 0 | J71: 0 | K71: 0 | L71: 0 | M71: 0 | N71: 0 | O71: 0 | P71: 2,185
C72: 09-FONTIBON | D72: 86 | E72: 91 | F72: 75 | G72: 48 | H72: 17 | I72: 0 | J72: 0 | K72: 0 | L72: 0 | M72: 0 | N72: 0 | O72: 0 | P72: 317
C73: 16-PUENTE ARANDA | D73: 0 | E73: 0 | F73: 0 | G73: 0 | H73: 0 | I73: 0 | J73: 0 | K73: 0 | L73: 0 | M73: 0 | N73: 0 | O73: 0 | P73: 0
C74: TOTAL TC SUBRED SUROCCIDENTE | D74: =SUM(D70:D73) -> 758 | E74: =SUM(E70:E73) -> 676 | F74: 679 | G74: 693 | H74: 628 | I74: 0 | J74: 0 | K74: 0 | L74: 0 | M74: 0 | N74: 0 | O74: 0 | P74: 3,434
C75: TOTAL INFORME SIS 151 SUBRED SUROCCIDENTE
C76: DIFERENCIA | D76: =+D74-D75 -> 758 | E76: =+E74-E75 -> 676 | F76: 679 | G76: 693 | H76: 628 | I76: 0 | J76: 0 | K76: 0 | L76: 0 | M76: 0 | N76: 0 | O76: 0 | P76: 3,434
C79: Localidad | D79: Enero | E79: Febrero | F79: Marzo | G79: Abril | H79: Mayo | I79: Junio | J79: Julio | K79: Agosto | L79: Septiembre | M79: Octubre | N79: Noviembre | O79: Diciembre | P79: Total TC
C80: 03-SANTA FE | D80: =SUMIF($C$2:$C$49,$C80,F$2:F$49) -> 0 | E80: 0 | F80: 0 | G80: 0 | H80: 0 | I80: 0 | J80: 0 | K80: 0 | L80: 0 | M80: 0 | N80: 0 | O80: 0 | P80: 0
C81: 04-SAN CRISTOBAL | D81: 1,033 | E81: 976 | F81: 1,010 | G81: 964 | H81: 1,104 | I81: 0 | J81: 0 | K81: 0 | L81: 0 | M81: 0 | N81: 0 | O81: 0 | P81: 5,087
C82: 14-LOS MARTIRES | D82: 627 | E82: 740 | F82: 793 | G82: 749 | H82: 875 | I82: 0 | J82: 0 | K82: 0 | L82: 0 | M82: 0 | N82: 0 | O82: 0 | P82: 3,784
C83: 15-ANTONIO NARIÑO | D83: 0 | E83: 1 | F83: 0 | G83: 0 | H83: 0 | I83: 0 | J83: 0 | K83: 0 | L83: 0 | M83: 0 | N83: 0 | O83: 0 | P83: 1
C84: 17-LA CANDELARIA | D84: 0 | E84: 0 | F84: 0 | G84: 0 | H84: 0 | I84: 0 | J84: 0 | K84: 0 | L84: 0 | M84: 0 | N84: 0 | O84: 0 | P84: 0
C85: 18-RAFAEL URIBE URIBE | D85: 365 | E85: 355 | F85: 370 | G85: 321 | H85: 278 | I85: 0 | J85: 0 | K85: 0 | L85: 0 | M85: 0 | N85: 0 | O85: 0 | P85: 1,689
C86: TOTAL TC SUBRED CENTRO ORIENTE | D86: =SUM(D80:D85) -> 2,025 | E86: =SUM(E80:E85) -> 2,072 | F86: 2,173 | G86: 2,034 | H86: 2,257 | I86: 0 | J86: 0 | K86: 0 | L86: 0 | M86: 0 | N86: 0 | O86: 0 | P86: 10,561
C87: TOTAL INFORME SIS 151 SUBRED CENTRO ORIENTE
C88: DIFERENCIA | D88: =+D86-D87 -> 2,025 | E88: =+E86-E87 -> 2,072 | F88: 2,173 | G88: 2,034 | H88: 2,257 | I88: 0 | J88: 0 | K88: 0 | L88: 0 | M88: 0 | N88: 0 | O88: 0 | P88: 10,561
C91: Localidad | D91: Enero | E91: Febrero | F91: Marzo | G91: Abril | H91: Mayo | I91: Junio | J91: Julio | K91: Agosto | L91: Septiembre | M91: Octubre | N91: Noviembre | O91: Diciembre | P91: Total TC
C92: 05-USME | D92: =SUMIF($C$2:$C$49,$C92,F$2:F$49) -> 0 | E92: 0 | F92: 0 | G92: 0 | H92: 0 | I92: 0 | J92: 0 | K92: 0 | L92: 0 | M92: 0 | N92: 0 | O92: 0 | P92: 0
C93: 06-TUNJUELITO | D93: 0 | E93: 0 | F93: 0 | G93: 0 | H93: 0 | I93: 0 | J93: 0 | K93: 0 | L93: 0 | M93: 0 | N93: 0 | O93: 0 | P93: 0
C94: 19-CIUDAD BOLIVAR | D94: 553 | E94: 461 | F94: 476 | G94: 480 | H94: 498 | I94: 0 | J94: 0 | K94: 0 | L94: 0 | M94: 0 | N94: 0 | O94: 0 | P94: 2,468
C95: 20-SUMAPAZ | D95: 0 | E95: 0 | F95: 0 | G95: 0 | H95: 0 | I95: 0 | J95: 0 | K95: 0 | L95: 0 | M95: 0 | N95: 0 | O95: 0 | P95: =SUM(D95:O95) -> 0
C96: TOTAL TC SUBRED SUR | D96: =SUM(D92:D95) -> 553 | E96: =SUM(E92:E95) -> 461 | F96: 476 | G96: 480 | H96: 498 | I96: 0 | J96: 0 | K96: 0 | L96: 0 | M96: 0 | N96: 0 | O96: 0 | P96: 2,468
C97: TOTAL INFORME SIS 151 SUBRED SUR
C98: DIFERENCIA | D98: =+D96-D97 -> 553 | E98: =+E96-E97 -> 461 | F98: 476 | G98: 480 | H98: 498 | I98: 0 | J98: 0 | K98: 0 | L98: 0 | M98: 0 | N98: 0 | O98: 0 | P98: 2,468
C102: TOTAL LOCALIDADES | D102: =+D64+D74+D86+D96 -> 7,818 | E102: 7,445 | F102: 7,594 | G102: 7,298 | H102: 7,731 | I102: 0 | J102: 0 | K102: 0 | L102: 0 | M102: 0 | N102: 0 | O102: 0 | P102: =SUM(P58:P101) -> 113,658
D104: =SUM(F2:F49) -> 7818 | E104: =SUM(G2:G49) -> 7445 | F104: 7594 | G104: 7298 | H104: 7731 | I104: 0 | J104: 0 | K104: 0 | L104: 0 | M104: 0 | N104: 0 | O104: 0

Sheet HEPATITIS_B
A1: EPS O ESE | B1: IPS | C1: Localidad | D1: Meta Anual Menor de 1 Año | E1: Meta Mensual | F1: Enero | G1: Febrero | H1: Marzo | I1: Abril | J1: Mayo | K1: Junio | L1: Julio | M1: Agosto | N1: Septiembre | O1: Octubre | P1: Noviembre | Q1: Diciembre | R1: Total | S1: % Cobertura | T1: Deficit
A2: COMPENSAR | B2: CLINICA LOS COBOS | C2: 01-USAQUEN | D2: 0 | E2: 0 | F2: 88 | G2: 109 | H2: 127 | I2: 120 | J2: 110 | R2: =SUM(F2:Q2) -> 554 | S2: =IF(D2=0,0,+R2/D2) -> 0.0% | T2: =IF(COUNT(F2:Q2)*(D2/12)-R2<0,"",COUNT(F2:Q2)*(D2/12)-R2) -> 
A3: SANITAS | B3: CLINICA REINA SOFIA | C3: 01-USAQUEN | D3: 0 | E3: 0 | F3: 96 | G3: 81 | H3: 90 | I3: 89 | J3: 77 | R3: 433 | S3: 0.0%
A4: PARTICULAR | B4: FUNDACION SANTA FE | C4: 01-USAQUEN | D4: 0 | E4: 0 | F4: 111 | G4: 106 | H4: 113 | I4: 108 | J4: 91 | R4: 529 | S4: 0.0%
A5: 01-USAQUEN | B5: HOSPITAL SIMON BOLIVAR | C5: 01-USAQUEN | D5: 0 | E5: 0 | F5: 142 | G5: 101 | H5: 109 | I5: 56 | J5: 57 | R5: 465 | S5: 0.0%
A6: PARTICULAR | B6: CLINICA DE LA MUJER | C6: 02-CHAPINERO | D6: 0 | E6: 0 | F6: 175 | G6: 153 | H6: 174 | I6: 177 | J6: 178 | R6: 857 | S6: 0.0%
A7: PARTICULAR | B7: CLINICA DE MARLY S.A | C7: 02-CHAPINERO | D7: 0 | E7: 0 | F7: 56 | G7: 52 | H7: 59 | I7: 61 | J7: 69 | R7: 297 | S7: 0.0%
A8: PARTICULAR | B8: CLINICA DEL COUNTRY | C8: 02-CHAPINERO | D8: 0 | E8: 0 | F8: 219 | G8: 231 | H8: 227 | I8: 184 | J8: 196 | R8: 1057 | S8: 0.0%
A9: MILITAR | B9: HOSPITAL MILITAR CENTRAL | C9: 02-CHAPINERO | D9: 0 | E9: 0 | F9: 55 | G9: 66 | H9: 65 | I9: 49 | J9: 57 | R9: 292 | S9: 0.0%
A10: PARTICULAR | B10: HOSPITAL SAN IGNACIO | C10: 02-CHAPINERO | D10: 0 | E10: 0 | F10: 95 | G10: 80 | H10: 157 | I10: 177 | J10: 165 | R10: 674 | S10: 0.0%
A11: UNICAJAS | B11: EXTRAMURAL SANTA FE | C11: 03-SANTA FE | D11: 0 | E11: 0 | F11: 0 | G11: 0 | H11: 0 | I11: 0 | J11: 0 | R11: =SUM(F11:Q11) -> 0 | S11: =IF(D11=0,0,+R11/D11) -> 0.0% | T11: =IF(COUNT(F11:Q11)*(D11/12)-R11<0,"",COUNT(F11:Q11)*(D11/12)-R11) -> 0.0
A12: 04-SAN CRISTOBAL | B12: CAMI ALTAMIRA | C12: 04-SAN CRISTOBAL | D12: 1216 | E12: 101 | F12: 0 | G12: 0 | H12: 0 | I12: 0 | J12: 0 | R12: 0 | S12: 0.0% | T12: 506.7
A13: PARTICULAR | B13: CLINICA SAN RAFAEL | C13: 04-SAN CRISTOBAL | D13: 0 | E13: 0 | F13: 469 | G13: 420 | H13: 457 | I13: 429 | J13: 481 | R13: 2256 | S13: 0.0%
A14: 04-SAN CRISTOBAL | B14: HOSPITAL LA VICTORIA | C14: 04-SAN CRISTOBAL | D14: 1216 | E14: 101 | F14: 238 | G14: 417 | H14: 164 | I14: 125 | J14: 111 | R14: 1055 | S14: 86.8%
A15: 04-SAN CRISTOBAL | B15: INSTITUTO MATERNO INFANTIL LA VICTORIA SEDE II | C15: 04-SAN CRISTOBAL | D15: 1216 | E15: 101 | F15: 362 | G15: 384 | H15: 421 | I15: 444 | J15: 526 | R15: 2137 | S15: 175.7%
A16: 07-BOSA | B16: CAMI PABLO VI BOSA | C16: 07-BOSA | D16: 0 | E16: 0 | F16: 0 | G16: 0 | H16: 0 | I16: 0 | J16: 1 | R16: 1 | S16: 0.0%
A17: 07-BOSA | B17: HOSPITAL DE BOSA II NIVEL | C17: 07-BOSA | D17: 0 | E17: 0 | F17: 174 | G17: 154 | H17: 176 | I17: 220 | J17: 207 | R17: 931 | S17: 0.0%
A18: 08-KENNEDY | B18: CAFAM KENNEDY | C18: 08-KENNEDY | D18: 0 | F18: 0 | G18: 0 | H18: 0 | I18: 0 | J18: 0 | R18: 0 | S18: 0.0% | T18: 0.0
A19: 08-KENNEDY | B19: CAPS PATIO BONITO | C19: 08-KENNEDY | D19: 0 | F19: 0 | G19: 0 | H19: 0 | I19: 0 | J19: 0 | R19: 0 | S19: 0.0% | T19: 0.0
A20: 08-KENNEDY | B20: CLINICA COLSUBSIDIO ROMA | C20: 08-KENNEDY | D20: 0 | F20: 0 | G20: 0 | H20: 0 | I20: 0 | J20: 1 | R20: 1 | S20: 0.0%
A21: 08-KENNEDY | B21: CLINICA DEL OCCIDENTE LTDA | C21: 08-KENNEDY | D21: 0 | E21: 0 | F21: 92 | G21: 86 | H21: 80 | I21: 108 | J21: 86 | R21: 452 | S21: 0.0%
A22: 08-KENNEDY | B22: COMPENSAR KENNEDY | C22: 08-KENNEDY | D22: 0 | F22: 0 | G22: 0 | H22: 0 | I22: 0 | J22: 0 | R22: 0 | S22: 0.0% | T22: 0.0
A23: 08-KENNEDY | B23: HOSPITAL OCCIDENTE DE KENNEDY | C23: 08-KENNEDY | D23: 0 | E23: 0 | F23: 419 | G23: 269 | H23: 371 | I23: 344 | J23: 331 | R23: 1734 | S23: 0.0%
A24: 08-KENNEDY | B24: USS TINTAL PATIO BONITO | C24: 08-KENNEDY | D24: 0 | F24: 0 | G24: 0 | H24: 0 | I24: 0 | J24: 0 | R24: 0 | S24: 0.0% | T24: 0.0
A25: 09-FONTIBON | B25: CAMI II CENTRO DE ESPECIALISTAS | C25: 09-FONTIBON | D25: 0 | E25: 0 | F25: 86 | G25: 87 | H25: 75 | I25: 48 | J25: 0 | R25: 296 | S25: 0.0%
A26: 09-FONTIBON | B26: CENTRO DIA | C26: 09-FONTIBON | D26: 0 | F26: 0 | G26: 0 | H26: 0 | I26: 0 | J26: 18 | R26: 18 | S26: 0.0%
A27: 10-ENGATIVA | B27: HOSPITAL ENGATIVA II SEDE PRINCIPAL CALLE 80 | C27: 10-ENGATIVA | D27: 0 | E27: 0 | F27: 182 | G27: 159 | H27: 159 | I27: 123 | J27: 172 | R27: 795 | S27: 0.0%
A28: 11-SUBA | B28: CENTRO DE SERVICIOS ESPECIALIZADOS | C28: 11-SUBA | D28: 0 | E28: 0 | F28: 215 | G28: 217 | H28: 201 | I28: 261 | J28: 262 | R28: 1156 | S28: 0.0%
A29: PARTICULAR | B29: CLINICA COLINA | C29: 11-SUBA | D29: 0 | E29: 0 | F29: 63 | G29: 52 | H29: 55 | I29: 421 | J29: 48 | R29: 639 | S29: 0.0%
A30: PARTICULAR | B30: FUNDACION CLINICA CORPAS | C30: 11-SUBA | D30: 0 | E30: 0 | F30: 367 | G30: 397 | H30: 398 | I30: 54 | J30: 386 | R30: 1602 | S30: 0.0%
A31: PARTICULAR | B31: CLINICA COLSUBSIDIO CALLE 94 | C31: 12-BARRIOS UNIDOS | D31: 0 | E31: 0 | F31: 306 | G31: 298 | H31: 349 | I31: 322 | J31: 415 | R31: 1690 | S31: 0.0%
A32: CRUZ BLANCA | B32: HOSPITAL UNIVERSITARIO INFANTIL SAN JOSE | C32: 12-BARRIOS UNIDOS | D32: 0 | E32: 0 | F32: 383 | G32: 350 | H32: 374 | I32: 442 | J32: 486 | R32: 2035 | S32: 0.0%
A33: FAMI- CAFAM | B33: CLINICA CAFAM CALLE 51 | C33: 13-TEUSAQUILLO | D33: 0 | E33: 0 | F33: 481 | G33: 397 | H33: 457 | I33: 426 | J33: 460 | R33: 2221 | S33: 0.0%
A34: PARTICULAR | B34: CLINICA EUSALUD | C34: 13-TEUSAQUILLO | D34: 0 | E34: 0 | F34: 394 | G34: 397 | H34: 106 | I34: 0 | J34: 0 | R34: 897 | S34: 0.0%
A35: PARTICULAR | B35: CLINICA FEDERMAN | C35: 13-TEUSAQUILLO | D35: 0 | E35: 0 | F35: 0 | G35: 0 | H35: 0 | I35: 0 | J35: 0 | R35: 0 | S35: 0.0% | T35: 0.0
A36: PARTICULAR | B36: CLINICA PALERMO | C36: 13-TEUSAQUILLO | D36: 0 | E36: 0 | F36: 546 | G36: 450 | H36: 438 | I36: 352 | J36: 278 | R36: 2064 | S36: 0.0%
A37: SANITAS | B37: CLINICA UNIVERSITARIA COLOMBIA | C37: 13-TEUSAQUILLO | D37: 0 | E37: 0 | F37: 3 | G37: 6 | H37: 53 | I37: 141 | J37: 211 | R37: 414 | S37: 0.0%
A38: POLICIA | B38: HOSPITAL CENTRAL DE LA POLICIA | C38: 13-TEUSAQUILLO | D38: 0 | E38: 0 | F38: 89 | G38: 78 | H38: 57 | I38: 73 | J38: 56 | R38: 353 | S38: 0.0%
A39: PARTICULAR | B39: MEDICA MAGDALENA LTDA | C39: 13-TEUSAQUILLO | D39: 0 | E39: 0 | F39: 537 | G39: 538 | H39: 582 | I39: 573 | J39: 625 | R39: 2855 | S39: 0.0%
A40: PARTICULAR | B40: HOSPITAL UNIVERSITARIO MAYOR | C40: 14-LOS MARTIRES | D40: 299 | E40: 25 | F40: 394 | G40: 308 | H40: 309 | I40: 282 | J40: 298 | R40: 1591 | S40: 532.1%
A41: PARTICULAR | B41: SOCIEDAD DE CIRUGIA HOSPITAL SAN JOSE | C41: 14-LOS MARTIRES | D41: 0 | E41: 0 | F41: 279 | G41: 349 | H41: 399 | I41: 326 | J41: 280 | R41: 1633 | S41: 0.0%
A42: 14-LOS MARTIRES | B42: USS SAMPER MENDOZA | C42: 14-LOS MARTIRES | D42: 299 | E42: 25 | F42: 0 | G42: 0 | H42: 1 | I42: 0 | J42: 0 | R42: 1 | S42: 0.3% | T42: 123.6
A43: COMPENSAR | B43: USS 1 DE MAYO | C43: 15-ANTONIO NARIÑO | D43: 0 | E43: 0 | F43: 0 | G43: 0 | H43: 0 | I43: 0 | J43: 0 | R43: 0 | S43: 0.0% | T43: 0.0
A44: FAMI- COLSB | B44: CENTRO MEDICO COLSUBSIDIO QUIROGA | C44: 18-RAFAEL URIBE URIBE | D44: 5526 | E44: 461 | F44: 0 | G44: 0 | H44: 0 | I44: 0 | J44: 0 | R44: 0 | S44: 0.0% | T44: 2302.5
A45: PARTICULAR | B45: CENTRO POLICLINICO DEL OLAYA | C45: 18-RAFAEL URIBE URIBE | D45: 0 | E45: 0 | F45: 373 | G45: 356 | H45: 371 | I45: 321 | J45: 273 | R45: 1694 | S45: 0.0%
A46: 19-CIUDAD BOLIVAR | B46: USS MEISSEN | C46: 19-CIUDAD BOLIVAR | D46: 0 | E46: =D46/12 -> 0 | F46: 556 | G46: 477 | H46: 501 | I46: 492 | J46: 518 | R46: 2544 | S46: 0.0%
C57: Localidad | D57: Enero | E57: Febrero | F57: Marzo | G57: Abril | H57: Mayo | I57: Junio | J57: Julio | K57: Agosto | L57: Septiembre | M57: Octubre | N57: Noviembre | O57: Diciembre | P57: Total TC
C58: 01-USAQUEN | D58: =SUMIF($C$2:$C$49,$C58,F$2:F$49) -> 437 | E58: 397 | F58: 439 | G58: 373 | H58: 335 | I58: 0 | J58: 0 | K58: 0 | L58: 0 | M58: 0 | N58: 0 | O58: 0 | P58: =SUM(D58:O58) -> 1,981
C59: 02-CHAPINERO | D59: 600 | E59: 582 | F59: 682 | G59: 648 | H59: 665 | I59: 0 | J59: 0 | K59: 0 | L59: 0 | M59: 0 | N59: 0 | O59: 0 | P59: =SUM(D59:O59) -> 3,177
C60: 10-ENGATIVA | D60: 182 | E60: 159 | F60: 159 | G60: 123 | H60: 172 | I60: 0 | J60: 0 | K60: 0 | L60: 0 | M60: 0 | N60: 0 | O60: 0 | P60: 795
C61: 11-SUBA | D61: 645 | E61: 666 | F61: 654 | G61: 736 | H61: 696 | I61: 0 | J61: 0 | K61: 0 | L61: 0 | M61: 0 | N61: 0 | O61: 0 | P61: 3,397
C62: 12-BARRIOS UNIDOS | D62: 689 | E62: 648 | F62: 723 | G62: 764 | H62: 901 | I62: 0 | J62: 0 | K62: 0 | L62: 0 | M62: 0 | N62: 0 | O62: 0 | P62: 3,725
C63: 13-TEUSAQUILLO | D63: 2,050 | E63: 1,866 | F63: 1,693 | G63: 1,565 | H63: 1,630 | I63: 0 | J63: 0 | K63: 0 | L63: 0 | M63: 0 | N63: 0 | O63: 0 | P63: 8,804
C64: TOTAL TC SUBRED NORTE | D64: =SUM(D58:D63) -> 4,603 | E64: =SUM(E58:E63) -> 4,318 | F64: 4,350 | G64: 4,209 | H64: 4,399 | I64: 0 | J64: 0 | K64: 0 | L64: 0 | M64: 0 | N64: 0 | O64: 0 | P64: 21,879
C65: TOTAL INFORME SIS 151 SUBRED NORTE
C66: DIFERENCIA | D66: =+D64-D65 -> 4,603 | E66: =+E64-E65 -> 4,318 | F66: 4,350 | G66: 4,209 | H66: 4,399 | I66: 0 | J66: 0 | K66: 0 | L66: 0 | M66: 0 | N66: 0 | O66: 0 | P66: 21,879
C69: Localidad | D69: Enero | E69: Febrero | F69: Marzo | G69: Abril | H69: Mayo | I69: Junio | J69: Julio | K69: Agosto | L69: Septiembre | M69: Octubre | N69: Noviembre | O69: Diciembre | P69: Total TC
C70: 07-BOSA | D70: =SUMIF($C$2:$DC$49,$C70,F$2:F$49) -> 174 | E70: 154 | F70: 176 | G70: 220 | H70: 208 | I70: 0 | J70: 0 | K70: 0 | L70: 0 | M70: 0 | N70: 0 | O70: 0 | P70: 932
C71: 08-KENNEDY | D71: 511 | E71: 355 | F71: 451 | G71: 452 | H71: 418 | I71: 0 | J71: 0 | K71: 0 | L71: 0 | M71: 0 | N71: 0 | O71: 0 | P71: 2,187
C72: 09-FONTIBON | D72: 86 | E72: 87 | F72: 75 | G72: 48 | H72: 18 | I72: 0 | J72: 0 | K72: 0 | L72: 0 | M72: 0 | N72: 0 | O72: 0 | P72: 314
C73: 16-PUENTE ARANDA | D73: 0 | E73: 0 | F73: 0 | G73: 0 | H73: 0 | I73: 0 | J73: 0 | K73: 0 | L73: 0 | M73: 0 | N73: 0 | O73: 0 | P73: 0
C74: TOTAL TC SUBRED SUROCCIDENTE | D74: =SUM(D70:D73) -> 771 | E74: =SUM(E70:E73) -> 596 | F74: 702 | G74: 720 | H74: 644 | I74: 0 | J74: 0 | K74: 0 | L74: 0 | M74: 0 | N74: 0 | O74: 0 | P74: 3,433
C75: TOTAL INFORME SIS 151 SUBRED SUROCCIDENTE
C76: DIFERENCIA | D76: =+D74-D75 -> 771 | E76: =+E74-E75 -> 596 | F76: 702 | G76: 720 | H76: 644 | I76: 0 | J76: 0 | K76: 0 | L76: 0 | M76: 0 | N76: 0 | O76: 0 | P76: 3,433
C79: Localidad | D79: Enero | E79: Febrero | F79: Marzo | G79: Abril | H79: Mayo | I79: Junio | J79: Julio | K79: Agosto | L79: Septiembre | M79: Octubre | N79: Noviembre | O79: Diciembre | P79: Total TC
C80: 03-SANTA FE | D80: =SUMIF($C$2:$C$49,$C80,F$2:F$49) -> 0 | E80: 0 | F80: 0 | G80: 0 | H80: 0 | I80: 0 | J80: 0 | K80: 0 | L80: 0 | M80: 0 | N80: 0 | O80: 0 | P80: 0
C81: 04-SAN CRISTOBAL | D81: 1,069 | E81: 1,221 | F81: 1,042 | G81: 998 | H81: 1,118 | I81: 0 | J81: 0 | K81: 0 | L81: 0 | M81: 0 | N81: 0 | O81: 0 | P81: 5,448
C82: 14-LOS MARTIRES | D82: 673 | E82: 657 | F82: 709 | G82: 608 | H82: 578 | I82: 0 | J82: 0 | K82: 0 | L82: 0 | M82: 0 | N82: 0 | O82: 0 | P82: 3,225
C83: 15-ANTONIO NARIÑO | D83: 0 | E83: 0 | F83: 0 | G83: 0 | H83: 0 | I83: 0 | J83: 0 | K83: 0 | L83: 0 | M83: 0 | N83: 0 | O83: 0 | P83: 0
C84: 17-LA CANDELARIA | D84: 0 | E84: 0 | F84: 0 | G84: 0 | H84: 0 | I84: 0 | J84: 0 | K84: 0 | L84: 0 | M84: 0 | N84: 0 | O84: 0 | P84: 0
C85: 18-RAFAEL URIBE URIBE | D85: 373 | E85: 356 | F85: 371 | G85: 321 | H85: 273 | I85: 0 | J85: 0 | K85: 0 | L85: 0 | M85: 0 | N85: 0 | O85: 0 | P85: 1,694
C86: TOTAL TC SUBRED CENTRO ORIENTE | D86: =SUM(D80:D85) -> 2,115 | E86: =SUM(E80:E85) -> 2,234 | F86: 2,122 | G86: 1,927 | H86: 1,969 | I86: 0 | J86: 0 | K86: 0 | L86: 0 | M86: 0 | N86: 0 | O86: 0 | P86: 10,367
C87: TOTAL INFORME SIS 151 SUBRED CENTRO ORIENTE
C88: DIFERENCIA | D88: =+D86-D87 -> 2,115 | E88: =+E86-E87 -> 2,234 | F88: 2,122 | G88: 1,927 | H88: 1,969 | I88: 0 | J88: 0 | K88: 0 | L88: 0 | M88: 0 | N88: 0 | O88: 0 | P88: 10,367
C91: Localidad | D91: Enero | E91: Febrero | F91: Marzo | G91: Abril | H91: Mayo | I91: Junio | J91: Julio | K91: Agosto | L91: Septiembre | M91: Octubre | N91: Noviembre | O91: Diciembre | P91: Total TC
C92: 05-USME | D92: =SUMIF($C$2:$C$49,$C92,F$2:F$49) -> 0 | E92: 0 | F92: 0 | G92: 0 | H92: 0 | I92: 0 | J92: 0 | K92: 0 | L92: 0 | M92: 0 | N92: 0 | O92: 0 | P92: 0
C93: 06-TUNJUELITO | D93: 0 | E93: 0 | F93: 0 | G93: 0 | H93: 0 | I93: 0 | J93: 0 | K93: 0 | L93: 0 | M93: 0 | N93: 0 | O93: 0 | P93: 0
C94: 19-CIUDAD BOLIVAR | D94: 556 | E94: 477 | F94: 501 | G94: 492 | H94: 518 | I94: 0 | J94: 0 | K94: 0 | L94: 0 | M94: 0 | N94: 0 | O94: 0 | P94: 2,544
C95: 20-SUMAPAZ | D95: 0 | E95: 0 | F95: 0 | G95: 0 | H95: 0 | I95: 0 | J95: 0 | K95: 0 | L95: 0 | M95: 0 | N95: 0 | O95: 0 | P95: =SUM(D95:O95) -> 0
C96: TOTAL TC SUBRED SUR | D96: =SUM(D92:D95) -> 556 | E96: =SUM(E92:E95) -> 477 | F96: 501 | G96: 492 | H96: 518 | I96: 0 | J96: 0 | K96: 0 | L96: 0 | M96: 0 | N96: 0 | O96: 0 | P96: 2,544
C97: TOTAL INFORME SIS 151 SUBRED SUR
C98: DIFERENCIA | D98: =+D96-D97 -> 556 | E98: =+E96-E97 -> 477 | F98: 501 | G98: 492 | H98: 518 | I98: 0 | J98: 0 | K98: 0 | L98: 0 | M98: 0 | N98: 0 | O98: 0 | P98: 2,544
C102: TOTAL LOCALIDADES | D102: =+D64+D74+D86+D96 -> 8,045 | E102: 7,625 | F102: 7,675 | G102: 7,348 | H102: 7,530 | I102: 0 | J102: 0 | K102: 0 | L102: 0 | M102: 0 | N102: 0 | O102: 0 | P102: =SUM(P58:P101) -> 114,669
D104: =SUM(F2:F49) -> 8045 | E104: =SUM(G2:G49) -> 7625 | F104: 7675 | G104: 7348 | H104: 7530 | I104: 0 | J104: 0 | K104: 0 | L104: 0 | M104: 0 | N104: 0 | O104: 0

Sheet PENTA1
A1: EAPB | B1: EPS O ESE | C1: IPS | D1: Localidad | E1: Meta Anual Menor de 1 Año | F1: Meta Mensual | G1: Enero | H1: Febrero | I1: Marzo | J1: Abril | K1: Mayo | L1: Junio | M1: Julio | N1: Agosto | O1: Septiembre | P1: Octubre | Q1: Noviembre | R1: Diciembre | S1: Total | T1: % Cobertura | U1: Deficit
A2: CAPITAL SALUD | B2: CAPITAL SALUD | C2: UPA SAN CRISTOBAL | D2: 01-USAQUEN | E2: 124 | F2: =+E2/12 -> 10 | G2: 7 | H2: 7 | I2: 3 | J2: 7 | K2: 7 | S2: =SUM(G2:R2) -> 31 | T2: =IF(E2=0,0,+S2/E2) -> 25.0% | U2: =IF(COUNT(G2:R2)*(E2/12)-S2<0,"",COUNT(G2:R2)*(E2/12)-S2) -> 21
A3: CAPITAL SALUD | B3: CAPITAL SALUD | C3: UPA USAQUEN | D3: 01-USAQUEN | E3: 10 | F3: =+E3/12 -> 1 | G3: 0 | H3: 1 | I3: 0 | J3: 0 | K3: 0 | S3: =SUM(G3:R3) -> 1 | T3: 10.0% | U3: 3
A4: CAPITAL SALUD | B4: CAPITAL SALUD | C4: UPA ORQUIDEAS | D4: 01-USAQUEN | E4: 11 | F4: 1 | G4: 1 | H4: 3 | I4: 2 | J4: 2 | K4: 5 | S4: 13 | T4: 118.2%
A5: CAPITAL SALUD | B5: CAPITAL SALUD | C5: UPA CODITO | D5: 01-USAQUEN | E5: 107 | F5: 9 | G5: 7 | H5: 4 | I5: 11 | J5: 4 | K5: 5 | S5: 31 | T5: 29.0% | U5: 14
A6: CAPITAL SALUD | B6: CAPITAL SALUD | C6: CAMI VERBENAL | D6: 01-USAQUEN | E6: 87 | F6: 7 | G6: 10 | H6: 4 | I6: 11 | J6: 5 | K6: 4 | S6: 34 | T6: 39.1% | U6: 2
A7: CAPITAL SALUD | B7: CAPITAL SALUD | C7: HOSPITAL SIMON BOLIVAR | D7: 01-USAQUEN | E7: 36 | F7: 3 | G7: 22 | H7: 11 | I7: 6 | J7: 0 | K7: 2 | S7: 41 | T7: 113.9%
A8: 01-USAQUEN | B8: 01-USAQUEN | C8: EXTRAMURAL USAQUEN | D8: 01-USAQUEN | E8: 0 | F8: 0 | G8: 5 | H8: 6 | I8: 5 | J8: 18 | K8: 40 | S8: 74 | T8: 0.0%
A9: ALIANSALUD | B9: ALIANSALUD | C9: CENTRO MEDICO COLMEDICA SANTA BARBARA | D9: 01-USAQUEN | E9: 580 | F9: 48 | G9: 63 | H9: 43 | I9: 43 | J9: 34 | K9: 48 | S9: 231 | T9: 39.8% | U9: 11
A10: COMPENSAR | B10: COMPENSAR | C10: USS CALLE 134 | D10: 01-USAQUEN | E10: 372 | F10: 31 | G10: 17 | H10: 21 | I10: 15 | J10: 11 | K10: 23 | S10: 87 | T10: 23.4% | U10: 68
A11: COMPENSAR | B11: COMPENSAR | C11: USS CALLE 145 | D11: 01-USAQUEN | E11: 173 | F11: 14 | G11: 11 | H11: 10 | I11: 23 | J11: 8 | K11: 20 | S11: 72 | T11: 41.6% | U11: 0
A12: COMPENSAR | B12: COMPENSAR | C12: JAVESALUD TOBERIN | D12: 01-USAQUEN | E12: 372 | F12: 31 | G12: 6 | H12: 12 | I12: 14 | J12: 11 | K12: 10 | S12: 53 | T12: 14.2% | U12: 102
A13: COOMEVA | B13: COOMEVA | C13: SINERGIA UNIDAD INTEGRAL EN SALUD | D13: 01-USAQUEN | E13: 44 | F13: 4 | G13: 5 | H13: 4 | I13: 5 | J13: 4 | K13: 5 | S13: 23 | T13: 52.3%
A14: FAMISANAR | B14: FAMI- COLSB | C14: CENTRO MEDICO COLSUBSIDIO USAQUEN | D14: 01-USAQUEN | E14: 298 | F14: 25 | G14: 38 | H14: 45 | I14: 25 | J14: 20 | K14: 25 | S14: 153 | T14: 51.3%
A15: MILITAR | B15: MILITAR | C15: DISPENSARIO MEDICO CANTON NORTE | D15: 01-USAQUEN | E15: 205 | F15: 17 | G15: 8 | H15: 4 | I15: 6 | J15: 6 | K15: 8 | S15: 32 | T15: 15.6% | U15: 53
A16: NUEVA EPS | B16: NUEVA EPS | C16: IPS VIVA 1A SEDE TOBERIN | D16: 01-USAQUEN | E16: 147 | F16: 12 | G16: 9 | H16: 9 | I16: 6 | J16: 5 | K16: 2 | S16: 31 | T16: 21.1% | U16: 30
A17: NUEVA EPS | B17: NUEVA EPS | C17: CAFAM GRANADA HILLS | D17: 01-USAQUEN | E17: 44 | F17: 4 | G17: 2 | H17: 2 | I17: 1 | J17: 2 | K17: 1 | S17: 8 | T17: 18.2% | U17: 10
A18: SANITAS | B18: SANITAS | C18: UAP SANITAS TOBERIN | D18: 01-USAQUEN | E18: 511 | F18: 43 | G18: 26 | H18: 38 | I18: 34 | J18: 27 | K18: 18 | S18: 143 | T18: 28.0% | U18: 70
A19: SANITAS | B19: SANITAS | C19: MEDIKA IPS SANITAS UAP USAQUEN | D19: 01-USAQUEN | E19: 188 | F19: 16 | G19: 4 | H19: 2 | I19: 3 | J19: 0 | K19: 2 | S19: 11 | T19: 5.9% | U19: 67
A20: SANITAS | B20: SANITAS | C20: UAP SANTA BARBARA | D20: 01-USAQUEN | E20: 796 | F20: 66 | G20: 92 | H20: 113 | I20: 115 | J20: 65 | K20: 57 | S20: 442 | T20: 55.5%
A21: SANITAS | B21: SANITAS | C21: SANITAS BANCO DE LA REPUBLICA | D21: 01-USAQUEN | E21: 0 | F21: 0 | G21: 3 | H21: 3 | I21: 5 | J21: 5 | K21: 4 | S21: 20 | T21: 0.0%
A22: SALUD TOTAL | B22: SALUD TOTAL | C22: VIRREY SOLIS TOBERÍN | D22: 01-USAQUEN | E22: 384 | F22: 32 | G22: 24 | H22: 13 | I22: 19 | J22: 14 | K22: 11 | S22: 81 | T22: 21.1% | U22: 79
A23: SURA | B23: SURA | C23: IPS JAVESALUD SANTA BEATRIZ | D23: 01-USAQUEN | E23: 355 | F23: 30 | G23: 20 | H23: 14 | I23: 12 | J23: 4 | K23: 15 | S23: 65 | T23: 18.3% | U23: 83
A24: ECOPETROL | B24: ECOPETROL | C24: IPS CLINICOS PALATINO | D24: 01-USAQUEN | E24: 87 | F24: 7 | G24: 6 | H24: 10 | I24: 7 | J24: 5 | K24: 6 | S24: 34 | T24: 39.1% | U24: 2
A25: PARTICULAR | B25: PARTICULAR | C25: CLINICA PEDIATRICA COLSANITAS | D25: 01-USAQUEN | E25: 830 | F25: 69 | G25: 58 | H25: 57 | I25: 48 | J25: 51 | K25: 38 | S25: 252 | T25: 30.4% | U25: 94
A26: PARTICULAR | B26: PARTICULAR | C26: CENTRO MEDICO COLSANITAS LA CALLEJA | D26: 01-USAQUEN | E26: 120 | F26: 10 | G26: 5 | H26: 15 | I26: 6 | J26: 5 | K26: 3 | S26: 34 | T26: 28.3% | U26: 16
A27: PARTICULAR | B27: PARTICULAR | C27: CENTRO MEDICO COLSANITAS 108 | D27: 01-USAQUEN | E27: 40 | F27: 3 | G27: 5 | H27: 3 | I27: 0 | J27: 0 | K27: 0 | S27: 8 | T27: 20.0% | U27: 9
A28: PARTICULAR | B28: PARTICULAR | C28: CENTRO MEDICO COLSANITAS SANTA ANA | D28: 01-USAQUEN | E28: 4 | F28: 0 | G28: 1 | H28: 3 | I28: 4 | J28: 0 | K28: 0 | S28: 8 | T28: 200.0%
A29: PARTICULAR | B29: PARTICULAR | C29: FUNDACIÓN CARDIO INFANTIL | D29: 01-USAQUEN | E29: 0 | F29: 0 | G29: 7 | H29: 19 | I29: 5 | J29: 6 | K29: 5 | S29: 42 | T29: 0.0%
A30: PARTICULAR | B30: PARTICULAR | C30: ENFASO USAQUEN | D30: 01-USAQUEN | E30: 0 | F30: 0 | G30: 9 | H30: 13 | I30: 1 | J30: 0 | K30: 6 | S30: 29 | T30: 0.0%
A31: PARTICULAR | B31: PARTICULAR | C31: UNIDAD DE VACUNACIÓN INTERNACIONAL | D31: 01-USAQUEN | E31: 0 | F31: 0 | G31: 6 | H31: 6 | I31: 3 | J31: 3 | K31: 1 | S31: 19 | T31: 0.0%
A32: PARTICULAR | B32: PARTICULAR | C32: INMUNOLOGÍA Y DIAGNÓSTICO ESPECIALIZADO LTDA. | D32: 01-USAQUEN | E32: 0 | F32: 0 | G32: 2 | H32: 0 | I32: 2 | J32: 0 | K32: 0 | S32: 4 | T32: 0.0%
A33: PARTICULAR | B33: PARTICULAR | C33: PROTEGER HEALHT CARE | D33: 01-USAQUEN | E33: 0 | F33: 0 | G33: 2 | H33: 6 | I33: 1 | J33: 1 | K33: 3 | S33: 13 | T33: 0.0%
A34: PARTICULAR | B34: PARTICULAR | C34: FUNDACION SANTA FE DE BOGOTA | D34: 01-USAQUEN | E34: 0 | F34: 0 | G34: 4 | H34: 2 | I34: 0 | J34: 2 | K34: 0 | S34: 8 | T34: 0.0%
A35: PARTICULAR | B35: PARTICULAR | C35: IPS CRUZ ROJA SEDE UNICENTRO | D35: 01-USAQUEN | E35: 0 | F35: 0 | G35: 0 | H35: 0 | I35: 0 | J35: 0 | K35: 0 | S35: 0 | T35: 0.0% | U35: 0
A36: PARTICULAR | B36: PARTICULAR | C36: IPS CRUZ ROJA SAMU CALLE 145 | D36: 01-USAQUEN | E36: 0 | F36: 0 | G36: 0 | H36: 0 | I36: 0 | J36: 0 | K36: 1 | S36: 1 | T36: 0.0%
A37: PEDIATRAS | B37: PEDIATRAS | C37: DR. ALEJANDRO LÓPEZ | D37: 01-USAQUEN | E37: 0 | F37: 0 | G37: 0 | H37: 3 | I37: 0 | J37: 1 | K37: 0 | S37: 4 | T37: 0.0%
A38: PEDIATRAS | B38: PEDIATRAS | C38: DR. CARLOS NEFTALI TORRES | D38: 01-USAQUEN | E38: 0 | F38: 0 | G38: 0 | H38: 4 | I38: 4 | J38: 4 | K38: 3 | S38: 15 | T38: 0.0%
A39: PEDIATRAS | B39: PEDIATRAS | C39: DR. FRANCISCO NUÑEZ | D39: 01-USAQUEN | E39: 0 | F39: 0 | G39: 4 | H39: 1 | I39: 0 | J39: 0 | K39: 1 | S39: 6 | T39: 0.0%
A40: PEDIATRAS | B40: PEDIATRAS | C40: DR. FERNANDO GOMEZ | D40: 01-USAQUEN | E40: 0 | F40: 0 | G40: 0 | H40: 0 | I40: 0 | J40: 0 | K40: 0 | S40: 0 | T40: 0.0% | U40: 0
A41: PEDIATRAS | B41: PEDIATRAS | C41: DR. FERNANDO ZARATE MORENO | D41: 01-USAQUEN | E41: 0 | F41: 0 | G41: 1 | H41: 1 | I41: 0 | J41: 1 | K41: 0 | S41: 3 | T41: 0.0%
A42: PEDIATRAS | B42: PEDIATRAS | C42: DR. GONZALO GARCIA | D42: 01-USAQUEN | E42: 0 | F42: 0 | G42: 1 | H42: 0 | I42: 1 | J42: 0 | K42: 1 | S42: 3 | T42: 0.0%
A43: PEDIATRAS | B43: PEDIATRAS | C43: DR. GUSTAVO MORALES | D43: 01-USAQUEN | E43: 0 | F43: 0 | G43: 2 | H43: 1 | I43: 2 | J43: 2 | K43: 4 | S43: 11 | T43: 0.0%
A44: PEDIATRAS | B44: PEDIATRAS | C44: DR. JAIME OSPINA | D44: 01-USAQUEN | E44: 0 | F44: 0 | G44: 1 | H44: 0 | I44: 0 | J44: 3 | K44: 0 | S44: 4 | T44: 0.0%
A45: PEDIATRAS | B45: PEDIATRAS | C45: DR. JORGE URIBE | D45: 01-USAQUEN | E45: 0 | F45: 0 | G45: 0 | H45: 0 | I45: 1 | J45: 0 | K45: 0 | S45: 1 | T45: 0.0%
A46: PEDIATRAS | B46: PEDIATRAS | C46: DR. JUAN LUIS FIGUEROA | D46: 01-USAQUEN | E46: 0 | F46: 0 | G46: 2 | H46: 0 | I46: 0 | J46: 0 | K46: 2 | S46: 4 | T46: 0.0%
A47: PEDIATRAS | B47: PEDIATRAS | C47: DR. LUIS AUGUSTO PERNA | D47: 01-USAQUEN | E47: 0 | F47: 0 | G47: 4 | H47: 1 | I47: 5 | J47: 0 | K47: 2 | S47: 12 | T47: 0.0%
A48: PEDIATRAS | B48: PEDIATRAS | C48: DR. LIBARDO ELI TRIANA | D48: 01-USAQUEN | E48: 0 | F48: 0 | G48: 0 | H48: 1 | I48: 1 | J48: 1 | K48: 0 | S48: 3 | T48: 0.0%
A49: PEDIATRAS | B49: PEDIATRAS | C49: DR. OSWALDO MERCADO HOYOS | D49: 01-USAQUEN | E49: 0 | F49: 0 | G49: 2 | H49: 3 | I49: 1 | J49: 0 | K49: 2 | S49: 8 | T49: 0.0%
A50: PEDIATRAS | B50: PEDIATRAS | C50: DR. ROBERTO BENIRO | D50: 01-USAQUEN | E50: 0 | F50: 0 | G50: 0 | H50: 0 | I50: 0 | J50: 0 | K50: 0 | S50: 0 | T50: 0.0% | U50: 0
A51: PEDIATRAS | B51: PEDIATRAS | C51: DR. SERGIO ISAZA | D51: 01-USAQUEN | E51: 0 | F51: 0 | G51: 0 | H51: 0 | I51: 0 | J51: 0 | K51: 0 | S51: 0 | T51: 0.0% | U51: 0
A52: PEDIATRAS | B52: PEDIATRAS | C52: DR. SANTIAGO UCROS | D52: 01-USAQUEN | E52: 0 | F52: 0 | G52: 0 | H52: 0 | I52: 0 | J52: 0 | K52: 0 | S52: 0 | T52: 0.0% | U52: 0
A53: PEDIATRAS | B53: PEDIATRAS | C53: DR. GERMAN SILVA | D53: 01-USAQUEN | E53: 0 | F53: 0 | G53: 0 | H53: 0 | I53: 0 | J53: 0 | K53: 0 | S53: 0 | T53: 0.0% | U53: 0
A54: PEDIATRAS | B54: PEDIATRAS | C54: DR. DANIEL ABRIL | D54: 01-USAQUEN | E54: 0 | F54: 0 | G54: 0 | H54: 0 | I54: 0 | J54: 0 | K54: 0 | S54: 0 | T54: 0.0% | U54: 0
A55: PEDIATRAS | B55: PEDIATRAS | C55: DR. CARLOS EDUARDO OLMOS | D55: 01-USAQUEN | E55: 0 | F55: 0 | G55: 0 | H55: 0 | I55: 0 | J55: 0 | K55: 0 | S55: 0 | T55: 0.0% | U55: 0
A56: PEDIATRAS | B56: PEDIATRAS | C56: DR. EDGARDO CHATMAN | D56: 01-USAQUEN | E56: 0 | F56: 0 | G56: 0 | H56: 0 | I56: 0 | J56: 0 | K56: 0 | S56: 0 | T56: 0.0% | U56: 0
A57: PEDIATRAS | B57: PEDIATRAS | C57: DR. JORGE FLOREZ OTERO | D57: 01-USAQUEN | E57: 0 | F57: 0 | G57: 0 | H57: 0 | I57: 0 | J57: 0 | K57: 0 | S57: 0 | T57: 0.0% | U57: 0
A58: PEDIATRAS | B58: PEDIATRAS | C58: DRA. ALEJANDRA MARIA VALENCIA | D58: 01-USAQUEN | E58: 0 | F58: 0 | G58: 0 | H58: 0 | I58: 0 | J58: 0 | K58: 0 | S58: 0 | T58: 0.0% | U58: 0
A59: PEDIATRAS | B59: PEDIATRAS | C59: DRA. ANA MARIA GOYENECHE | D59: 01-USAQUEN | E59: 0 | F59: 0 | G59: 0 | H59: 0 | I59: 0 | J59: 0 | K59: 0 | S59: 0 | T59: 0.0% | U59: 0
A60: PEDIATRAS | B60: PEDIATRAS | C60: DRA. JIMENA VARELA | D60: 01-USAQUEN | E60: 0 | F60: 0 | G60: 0 | H60: 0 | I60: 0 | J60: 0 | K60: 0 | S60: 0 | T60: 0.0% | U60: 0
A61: PEDIATRAS | B61: PEDIATRAS | C61: DRA. LIA SAN MIGUEL | D61: 01-USAQUEN | E61: 0 | F61: 0 | G61: 0 | H61: 0 | I61: 0 | J61: 1 | K61: 0 | S61: 1 | T61: 0.0%
A62: PEDIATRAS | B62: PEDIATRAS | C62: DRA. LIBIA SEGURA | D62: 01-USAQUEN | E62: 0 | F62: 0 | G62: 2 | H62: 0 | I62: 1 | J62: 1 | K62: 0 | S62: 4 | T62: 0.0%
A63: PEDIATRAS | B63: PEDIATRAS | C63: DRA. MARÍA JOSÉ PEDRAZA | D63: 01-USAQUEN | E63: 0 | F63: 0 | G63: 0 | H63: 0 | I63: 0 | J63: 0 | K63: 0 | S63: 0 | T63: 0.0% | U63: 0
A64: PEDIATRAS | B64: PEDIATRAS | C64: DRA. MARTHA LUCIA SANCHEZ | D64: 01-USAQUEN | E64: 0 | F64: 0 | G64: 0 | H64: 0 | I64: 0 | J64: 0 | K64: 0 | S64: 0 | T64: 0.0% | U64: 0
A65: PEDIATRAS | B65: PEDIATRAS | C65: DRA. OLGA LUCÍA SÁNCHEZ | D65: 01-USAQUEN | E65: 0 | F65: 0 | G65: 0 | H65: 0 | I65: 0 | J65: 0 | K65: 0 | S65: 0 | T65: 0.0% | U65: 0
A66: PEDIATRAS | B66: PEDIATRAS | C66: DRA. SANDRA BELTRAN | D66: 01-USAQUEN | E66: 0 | F66: 0 | G66: 1 | H66: 1 | I66: 1 | J66: 0 | K66: 0 | S66: 3 | T66: =IF(E66=0,0,+S66/E66) -> 0.0% | U66: =IF(COUNT(G66:R66)*(E66/12)-S66<0,"",COUNT(G66:R66)*(E66/12)-S66) -> 
A67: PEDIATRAS | B67: PEDIATRAS | C67: DRA. IVANA CABRERA | D67: 01-USAQUEN | E67: 0 | F67: =+E67/12 -> 0 | G67: 0 | H67: 0 | I67: 0 | J67: 0 | K67: 0 | S67: =SUM(G67:R67) -> 0 | T67: 0.0% | U67: 0
A68: PEDIATRAS | B68: PEDIATRAS | C68: DRA. NAYITA ALARCON | D68: 01-USAQUEN | E68: 0 | F68: 0 | G68: 0 | H68: 0 | I68: 0 | J68: 0 | K68: 0 | S68: 0 | T68: 0.0% | U68: 0
A69: PEDIATRAS | B69: PEDIATRAS | C69: DRA. ELIZABETH GARCIA | D69: 01-USAQUEN | E69: 0 | F69: 0 | G69: 0 | H69: 0 | I69: 0 | J69: 0 | K69: 0 | S69: 0 | T69: 0.0% | U69: 0
A70: PEDIATRAS | B70: PEDIATRAS | C70: DRA. BERTHA CALDERON DE RAMOS | D70: 01-USAQUEN | E70: 0 | F70: 0 | G70: 0 | H70: 0 | I70: 0 | J70: 0 | K70: 0 | S70: 0 | T70: 0.0% | U70: 0
A71: PEDIATRAS | B71: PEDIATRAS | C71: DRA. MIRYAM CORREA | D71: 01-USAQUEN | E71: 0 | F71: 0 | G71: 0 | H71: 1 | I71: 0 | J71: 0 | K71: 0 | S71: 1 | T71: 0.0%
A72: 01-USAQUEN | B72: UNICAJAS | C72: UPA SAN CRISTOBAL | D72: 01-USAQUEN | E72: 6 | F72: 1 | G72: 1 | H72: 0 | I72: 0 | J72: 1 | K72: 0 | S72: 2 | T72: 33.3% | U72: 1
A73: UNICAJAS | B73: UNICAJAS | C73: UPA USAQUEN | D73: 01-USAQUEN | E73: 9 | F73: 1 | G73: 0 | H73: 0 | I73: 0 | J73: 0 | K73: 0 | S73: 0 | T73: 0.0% | U73: 4
A74: UNICAJAS | B74: UNICAJAS | C74: UPA ORQUIDEAS | D74: 01-USAQUEN | E74: 6 | F74: 1 | G74: 0 | H74: 0 | I74: 0 | J74: 0 | K74: 1 | S74: 1 | T74: 16.7% | U74: 2
A75: UNICAJAS | B75: UNICAJAS | C75: UPA CODITO | D75: 01-USAQUEN | E75: 5 | F75: 0 | G75: 0 | H75: 0 | I75: 0 | J75: 0 | K75: 0 | S75: 0 | T75: 0.0% | U75: 2
A76: UNICAJAS | B76: UNICAJAS | C76: CAMI VERBENAL | D76: 01-USAQUEN | E76: 6 | F76: 1 | G76: 0 | H76: 0 | I76: 2 | J76: 1 | K76: 1 | S76: 4 | T76: 66.7%
A77: 01-USAQUEN | B77: UNICAJAS | C77: HOSPITAL SIMON BOLIVAR | D77: 01-USAQUEN | E77: 6 | F77: 1 | G77: 1 | H77: 1 | I77: 0 | J77: 1 | K77: 0 | S77: 3 | T77: 50.0%
A78: 01-USAQUEN | B78: OTROS | C78: UPA SAN CRISTOBAL | D78: 01-USAQUEN | E78: 300 | F78: 25 | G78: 1 | H78: 3 | I78: 2 | J78: 3 | K78: 1 | S78: 10 | T78: 3.3% | U78: 115
A79: 01-USAQUEN | B79: OTROS | C79: UPA USAQUEN | D79: 01-USAQUEN | E79: 100 | F79: 8 | G79: 0 | H79: 0 | I79: 0 | J79: 0 | K79: 0 | S79: 0 | T79: 0.0% | U79: 42
A80: 01-USAQUEN | B80: OTROS | C80: UPA ORQUIDEAS | D80: 01-USAQUEN | E80: 120 | F80: 10 | G80: 1 | H80: 0 | I80: 0 | J80: 2 | K80: 1 | S80: 4 | T80: 3.3% | U80: 46
A81: 01-USAQUEN | B81: OTROS | C81: UPA CODITO | D81: 01-USAQUEN | E81: 218 | F81: 18 | G81: 4 | H81: 0 | I81: 1 | J81: 1 | K81: 0 | S81: 6 | T81: 2.8% | U81: 85
A82: 01-USAQUEN | B82: OTROS | C82: CAMI VERBENAL | D82: 01-USAQUEN | E82: 309 | F82: 26 | G82: 4 | H82: 3 | I82: 2 | J82: 1 | K82: 1 | S82: 11 | T82: 3.6% | U82: 118
A83: 01-USAQUEN | B83: OTROS | C83: HOSPITAL SIMON BOLIVAR | D83: 01-USAQUEN | E83: 480 | F83: 40 | G83: 8 | H83: 11 | I83: 8 | J83: 4 | K83: 1 | S83: 32 | T83: 6.7% | U83: 168
A84: 01-USAQUEN | B84: DEMAS EAPB | C84: UPA SAN CRISTOBAL | D84: 01-USAQUEN | E84: 0 | F84: 0 | G84: 10 | H84: 8 | I84: 11 | J84: 8 | K84: 8 | S84: 45 | T84: 0.0%
A85: 01-USAQUEN | B85: DEMAS EAPB | C85: UPA USAQUEN | D85: 01-USAQUEN | E85: 0 | F85: 0 | G85: 2 | H85: 0 | I85: 0 | J85: 0 | K85: 0 | S85: 2 | T85: 0.0%
A86: 01-USAQUEN | B86: DEMAS EAPB | C86: UPA ORQUIDEAS | D86: 01-USAQUEN | E86: 0 | F86: 0 | G86: 2 | H86: 2 | I86: 4 | J86: 6 | K86: 3 | S86: 17 | T86: 0.0%
A87: 01-USAQUEN | B87: DEMAS EAPB | C87: UPA CODITO | D87: 01-USAQUEN | E87: 0 | F87: 0 | G87: 7 | H87: 11 | I87: 12 | J87: 11 | K87: 11 | S87: 52 | T87: 0.0%
A88: 01-USAQUEN | B88: DEMAS EAPB | C88: CAMI VERBENAL | D88: 01-USAQUEN | E88: 0 | F88: 0 | G88: 4 | H88: 12 | I88: 12 | J88: 9 | K88: 21 | S88: 58 | T88: 0.0%
A89: 01-USAQUEN | B89: DEMAS EAPB | C89: HOSPITAL SIMON BOLIVAR | D89: 01-USAQUEN | E89: 0 | F89: 0 | G89: 16 | H89: 20 | I89: 6 | J89: 9 | K89: 11 | S89: 62 | T89: 0.0%
A90: MEDIMAS | B90: MEDIMAS | C90: Corvesalud S.A.S - I P S Chico | D90: 01-USAQUEN | E90: 320 | F90: 27 | G90: 5 | H90: 5 | I90: 7 | S90: 17 | T90: 5.3% | U90: 63
A91: FAMISANAR | B91: COLSUBSIDIO | C91: Sura PAC Santa Bárbara | D91: 01-USAQUEN | E91: 0 | F91: 0 | S91: 0 | T91: 0.0% | U91: 0
A92: CAPITAL SALUD | B92: CAPITAL SALUD | C92: UPA SAN LUIS | D92: 02-CHAPINERO | E92: 12 | F92: 1 | G92: 4 | H92: 2 | I92: 2 | J92: 0 | K92: 2 | S92: 10 | T92: 83.3%
A93: 02-CHAPINERO | B93: 02-CHAPINERO | C93: EXTRAMURAL CHAPINERO | D93: 02-CHAPINERO | E93: 0 | F93: 0 | G93: 1 | H93: 1 | I93: 2 | J93: 13 | K93: 19 | S93: 36 | T93: 0.0%
A94: COMPENSAR | B94: COMPENSAR | C94: USS CALLE 42 | D94: 02-CHAPINERO | E94: 612 | F94: 51 | G94: 29 | H94: 43 | I94: 25 | J94: 36 | K94: 28 | S94: 161 | T94: 26.3% | U94: 94
A95: COMPENSAR | B95: COMPENSAR | C95: USS CALLE 67 | D95: 02-CHAPINERO | E95: 0 | F95: 0 | G95: 0 | H95: 0 | I95: 0 | J95: 0 | K95: 0 | S95: 0 | T95: 0.0% | U95: 0
A96: COMPENSAR | B96: COMPENSAR | C96: USS CALLE 94 | D96: 02-CHAPINERO | E96: 369 | F96: 31 | G96: 35 | H96: 41 | I96: 27 | J96: 46 | K96: 63 | S96: 212 | T96: 57.5%
A97: COMPENSAR | B97: COMPENSAR | C97: VIVA 1A IPS CHAPINERO | D97: 02-CHAPINERO | E97: 73 | F97: 6 | G97: 4 | H97: 6 | I97: 6 | J97: 2 | K97: 3 | S97: 21 | T97: 28.8% | U97: 9
A98: COOMEVA | B98: COOMEVA | C98: SINERGIA UNIDAD BASICA LOURDES | D98: 02-CHAPINERO | E98: 217 | F98: 18 | G98: 9 | H98: 10 | I98: 10 | J98: 3 | K98: 0 | S98: 32 | T98: 14.7% | U98: 58
A99: FAMISANAR | B99: FAMI- CAFAM | C99: CENTRO DE ATENCION EN SALUD CAFAM CALLE 48 | D99: 02-CHAPINERO | E99: 1050 | F99: 88 | G99: 31 | H99: 35 | I99: 21 | J99: 19 | K99: 31 | S99: 137 | T99: 13.0% | U99: 301
A100: FAMISANAR | B100: FAMI- CAFAM | C100: CENTRO DE ATENCION EN SALUD CAFAM CALLE 90 | D100: 02-CHAPINERO | E100: 200 | F100: 17 | G100: 11 | H100: 7 | I100: 20 | J100: 5 | K100: 10 | S100: 53 | T100: 26.5% | U100: 30
A101: FAMISANAR | B101: FAMI- COLSB | C101: CLINICA COLSUBSIDIO EL LAGO | D101: 02-CHAPINERO | E101: 392 | F101: 33 | G101: 10 | H101: 11 | I101: 6 | J101: 5 | K101: 7 | S101: 39 | T101: 9.9% | U101: 124
A102: MILITAR | B102: MILITAR | C102: HOSPITAL MILITAR CENTRAL | D102: 02-CHAPINERO | E102: 70 | F102: 6 | G102: 10 | H102: 11 | I102: 4 | J102: 6 | K102: 3 | S102: 34 | T102: 48.6%
A103: POLICIA | B103: POLICIA | C103: POLICIA NACIONAL ESPAM CHAPINERO | D103: 02-CHAPINERO | E103: 117 | F103: 10 | G103: 4 | H103: 0 | I103: 9 | J103: 32 | K103: 25 | S103: 70 | T103: 59.8%
A104: NUEVA EPS | B104: NUEVA EPS | C104: IPS VIVA 1A SEDE MARLY | D104: 02-CHAPINERO | E104: 131 | F104: 11 | G104: 9 | H104: 5 | I104: 2 | J104: 2 | K104: 4 | S104: 22 | T104: 16.8% | U104: 33
A105: SANITAS | B105: SANITAS | C105: EPS SANITAS CENTRO MEDICO TEUSAQUILLO | D105: 02-CHAPINERO | E105: 579 | F105: 48 | G105: 28 | H105: 23 | I105: 28 | J105: 12 | K105: 14 | S105: 105 | T105: 18.1% | U105: 136
A106: SALUD TOTAL | B106: SALUD TOTAL | C106: VIRREY SOLIS CHAPINERO | D106: 02-CHAPINERO | E106: 337 | F106: 28 | G106: 16 | H106: 13 | I106: 16 | J106: 9 | K106: 16 | S106: 70 | T106: 20.8% | U106: 70
A107: SURA | B107: SURA | C107: PUNTO DE SALUD CHAPINERO | D107: 02-CHAPINERO | E107: 237 | F107: 20 | G107: 13 | H107: 9 | I107: 14 | J107: 5 | K107: 14 | S107: 55 | T107: 23.2% | U107: 44
A108: SURA | B108: SURA | C108: SALUD SURA | D108: 02-CHAPINERO | E108: 454 | F108: 38 | G108: 47 | H108: 29 | I108: 36 | J108: 14 | K108: 32 | S108: 158 | T108: 34.8% | U108: 31
A109: PARTICULAR | B109: PARTICULAR | C109: CENTRO MEDICO COLSANITAS CALLE 96 | D109: 02-CHAPINERO | E109: 24 | F109: 2 | G109: 2 | H109: 1 | I109: 2 | J109: 16 | K109: 12 | S109: 33 | T109: 137.5%
A110: PARTICULAR | B110: PARTICULAR | C110: CENTRO DE ESPECIALISTAS MEDICOS AXA COLPATRIA | D110: 02-CHAPINERO | E110: 0 | F110: 0 | G110: 5 | H110: 6 | I110: 5 | J110: 5 | K110: 9 | S110: 30 | T110: 0.0%
A111: PARTICULAR | B111: PARTICULAR | C111: CLINICA DE LA MUJER | D111: 02-CHAPINERO | E111: 0 | F111: 0 | G111: 46 | H111: 39 | I111: 48 | J111: 24 | K111: 39 | S111: 196 | T111: 0.0%
A112: PARTICULAR | B112: PARTICULAR | C112: VACUNARTE IPS | D112: 02-CHAPINERO | E112: 0 | F112: 0 | G112: 0 | H112: 3 | I112: 1 | J112: 1 | K112: 1 | S112: 6 | T112: 0.0%
A113: PARTICULAR | B113: PARTICULAR | C113: UNIMARLY | D113: 02-CHAPINERO | E113: 0 | F113: 0 | G113: 0 | H113: 0 | I113: 0 | J113: 0 | K113: 0 | S113: 0 | T113: 0.0% | U113: 0
A114: PARTICULAR | B114: PARTICULAR | C114: HOSPITAL SAN IGNACIO | D114: 02-CHAPINERO | E114: 0 | F114: 0 | G114: 13 | H114: 7 | I114: 4 | J114: 5 | K114: 0 | S114: 29 | T114: 0.0%
A115: PARTICULAR | B115: PARTICULAR | C115: PROGRAMA MADRE CANGURO HOSPITAL SAN IGNACIO | D115: 02-CHAPINERO | E115: 0 | F115: 0 | G115: 92 | H115: 100 | I115: 80 | J115: 74 | K115: 66 | S115: 412 | T115: 0.0%
A116: PARTICULAR | B116: PARTICULAR | C116: IPS AVENIR | D116: 02-CHAPINERO | E116: 0 | F116: 0 | G116: 0 | H116: 0 | I116: 0 | J116: 0 | K116: 0 | S116: 0 | T116: 0.0% | U116: 0
A117: PARTICULAR | B117: PARTICULAR | C117: IPS INMUNOLOGIA Y DIAGNOSTICO ESPECIALIZADO | D117: 02-CHAPINERO | E117: 0 | F117: 0 | G117: 0 | H117: 1 | I117: 1 | J117: 0 | K117: 4 | S117: 6 | T117: 0.0%
A118: PARTICULAR | B118: PARTICULAR | C118: ASOCIACION PEDIATRICA DE LOS ANDES | D118: 02-CHAPINERO | E118: 0 | F118: 0 | G118: 1 | H118: 0 | I118: 0 | J118: 0 | K118: 0 | S118: 1 | T118: 0.0%
A119: PARTICULAR | B119: PARTICULAR | C119: CRUZ ROJA SEDE ANDINO | D119: 02-CHAPINERO | E119: 0 | F119: 0 | G119: 0 | H119: 0 | I119: 0 | J119: 0 | K119: 0 | S119: 0 | T119: 0.0% | U119: 0
A120: PARTICULAR | B120: PARTICULAR | C120: CENTRO MEDICO SANTA MONICA | D120: 02-CHAPINERO | E120: 0 | F120: 0 | G120: 0 | H120: 0 | I120: 0 | J120: 6 | K120: 8 | S120: 14 | T120: 0.0%
A121: PEDIATRAS | B121: PEDIATRAS | C121: DR. JUAN OSCAR TAMAYO | D121: 02-CHAPINERO | E121: 0 | F121: 0 | G121: 0 | H121: 0 | I121: 0 | J121: 0 | K121: 0 | S121: 0 | T121: 0.0% | U121: 0
A122: PEDIATRAS | B122: PEDIATRAS | C122: DR. ROBERTO SUAREZ | D122: 02-CHAPINERO | E122: 0 | F122: 0 | G122: 0 | H122: 0 | I122: 0 | J122: 0 | K122: 0 | S122: 0 | T122: 0.0% | U122: 0
A123: PEDIATRAS | B123: PEDIATRAS | C123: DR. WILLIAM RICARDO CABRA | D123: 02-CHAPINERO | E123: 0 | F123: 0 | G123: 3 | H123: 2 | I123: 0 | J123: 2 | K123: 0 | S123: 7 | T123: 0.0%
A124: PEDIATRAS | B124: PEDIATRAS | C124: DR. EDGAR CASTRO | D124: 02-CHAPINERO | E124: 0 | F124: 0 | G124: 5 | H124: 2 | I124: 0 | J124: 7 | K124: 5 | S124: 19 | T124: 0.0%
A125: PEDIATRAS | B125: PEDIATRAS | C125: DR. PABLO KRAUSS | D125: 02-CHAPINERO | E125: 0 | F125: 0 | G125: 3 | H125: 1 | I125: 1 | J125: 0 | K125: 0 | S125: 5 | T125: 0.0%
A126: PEDIATRAS | B126: PEDIATRAS | C126: DR. HERNAN ROBLES | D126: 02-CHAPINERO | E126: 0 | F126: 0 | G126: 4 | H126: 3 | I126: 6 | J126: 4 | K126: 3 | S126: 20 | T126: 0.0%
A127: PEDIATRAS | B127: PEDIATRAS | C127: DR. RAFAEL GAMBOA CASABLANCA | D127: 02-CHAPINERO | E127: 0 | F127: 0 | G127: 13 | H127: 5 | I127: 9 | J127: 4 | K127: 5 | S127: 36 | T127: 0.0%
A128: PEDIATRAS | B128: PEDIATRAS | C128: DR. JAVIER MEJIA | D128: 02-CHAPINERO | E128: 0 | F128: 0 | G128: 2 | H128: 2 | I128: 4 | J128: 2 | K128: 2 | S128: 12 | T128: 0.0%
A129: PEDIATRAS | B129: PEDIATRAS | C129: DR. CARLOS CORTAZAR | D129: 02-CHAPINERO | E129: 0 | F129: 0 | G129: 0 | H129: 0 | I129: 0 | J129: 0 | K129: 0 | S129: 0 | T129: 0.0% | U129: 0
A130: PEDIATRAS | B130: PEDIATRAS | C130: DR. NELSON PARDO | D130: 02-CHAPINERO | E130: 0 | F130: 0 | G130: 2 | H130: 1 | I130: 4 | J130: 0 | K130: 0 | S130: 7 | T130: =IF(E130=0,0,+S130/E130) -> 0.0% | U130: =IF(COUNT(G130:R130)*(E130/12)-S130<0,"",COUNT(G130:R130)*(E130/12)-S130) -> 
A131: PEDIATRAS | B131: PEDIATRAS | C131: DR. ALVARO JACOME | D131: 02-CHAPINERO | E131: 0 | F131: =+E131/12 -> 0 | G131: 3 | H131: 1 | I131: 0 | J131: 4 | K131: 1 | S131: =SUM(G131:R131) -> 9 | T131: 0.0%
A132: PEDIATRAS | B132: PEDIATRAS | C132: DR. SILVIO COPO | D132: 02-CHAPINERO | E132: 0 | F132: 0 | G132: 0 | H132: 1 | I132: 0 | J132: 0 | K132: 0 | S132: 1 | T132: 0.0%
A133: PEDIATRAS | B133: PEDIATRAS | C133: DR. HECTOR FERNANDO MENDOZA | D133: 02-CHAPINERO | E133: 0 | F133: 0 | G133: 0 | H133: 0 | I133: 0 | J133: 0 | K133: 1 | S133: 1 | T133: 0.0%
A134: PEDIATRAS | B134: PEDIATRAS | C134: DR. DIMITRIOS | D134: 02-CHAPINERO | E134: 0 | F134: 0 | G134: 0 | H134: 1 | I134: 0 | J134: 1 | K134: 0 | S134: 2 | T134: 0.0%
A135: PEDIATRAS | B135: PEDIATRAS | C135: DR. ALVARO MARIÑO | D135: 02-CHAPINERO | E135: 0 | F135: 0 | G135: 0 | H135: 1 | I135: 0 | J135: 0 | K135: 0 | S135: 1 | T135: 0.0%
A136: PEDIATRAS | B136: PEDIATRAS | C136: DR. ANDRES VARGAS | D136: 02-CHAPINERO | E136: 0 | F136: 0 | G136: 2 | H136: 1 | I136: 1 | J136: 0 | K136: 1 | S136: 5 | T136: 0.0%
A137: PEDIATRAS | B137: PEDIATRAS | C137: DR. JORGE CAMILO LUNA | D137: 02-CHAPINERO | E137: 0 | F137: 0 | G137: 1 | H137: 5 | I137: 1 | J137: 18 | K137: 5 | S137: 30 | T137: 0.0%
A138: PEDIATRAS | B138: PEDIATRAS | C138: DR. BERNARDO HUERTAS | D138: 02-CHAPINERO | E138: 0 | F138: 0 | G138: 6 | H138: 10 | I138: 9 | J138: 11 | K138: 3 | S138: 39 | T138: 0.0%
A139: PEDIATRAS | B139: PEDIATRAS | C139: DR. CARLOS M CASTILLO | D139: 02-CHAPINERO | E139: 0 | F139: 0 | G139: 0 | H139: 0 | I139: 0 | J139: 0 | K139: 0 | S139: 0 | T139: 0.0% | U139: 0
A140: PEDIATRAS | B140: PEDIATRAS | C140: DR. HEINZ OTTO PFALZGRAF | D140: 02-CHAPINERO | E140: 0 | F140: 0 | G140: 0 | H140: 0 | I140: 0 | J140: 0 | K140: 0 | S140: 0 | T140: 0.0% | U140: 0
A141: PEDIATRAS | B141: PEDIATRAS | C141: DR. GONZALEZ BALLESTEROS | D141: 02-CHAPINERO | E141: 0 | F141: 0 | G141: 0 | H141: 0 | I141: 0 | J141: 0 | K141: 0 | S141: 0 | T141: 0.0% | U141: 0
A142: PEDIATRAS | B142: PEDIATRAS | C142: DR. NORBERTO SALAMANCA | D142: 02-CHAPINERO | E142: 0 | F142: 0 | G142: 0 | H142: 0 | I142: 0 | J142: 0 | K142: 0 | S142: 0 | T142: 0.0% | U142: 0
A143: PEDIATRAS | B143: PEDIATRAS | C143: DR. CAMILO ENRIQUE SOTOMAYOR | D143: 02-CHAPINERO | E143: 0 | F143: 0 | G143: 0 | H143: 2 | I143: 0 | J143: 0 | K143: 0 | S143: 2 | T143: 0.0%
A144: PEDIATRAS | B144: PEDIATRAS | C144: DR. SANTIAGO RUEDA SAIZ | D144: 02-CHAPINERO | E144: 0 | F144: 0 | G144: 0 | H144: 2 | I144: 0 | J144: 0 | K144: 4 | S144: 6 | T144: 0.0%
A145: PEDIATRAS | B145: PEDIATRAS | C145: DR. HENRY HERNANDO SANCHEZ ESCOBAR | D145: 02-CHAPINERO | E145: 0 | F145: 0 | G145: 1 | H145: 1 | I145: 0 | J145: 0 | K145: 1 | S145: 3 | T145: 0.0%
A146: PEDIATRAS | B146: PEDIATRAS | C146: DR. RUBEN DARIO TAMAYO | D146: 02-CHAPINERO | E146: 0 | F146: 0 | G146: 2 | H146: 2 | I146: 0 | J146: 0 | K146: 1 | S146: 5 | T146: 0.0%
A147: PEDIATRAS | B147: PEDIATRAS | C147: DR. JAIME MAURICIO MATALLANA | D147: 02-CHAPINERO | E147: 0 | F147: 0 | G147: 6 | H147: 4 | I147: 8 | J147: 3 | K147: 5 | S147: 26 | T147: 0.0%
A148: PEDIATRAS | B148: PEDIATRAS | C148: DR. RODRIGO GARCIA | D148: 02-CHAPINERO | E148: 0 | F148: 0 | G148: 0 | H148: 0 | I148: 0 | J148: 0 | K148: 0 | S148: 0 | T148: 0.0% | U148: 0
A149: PEDIATRAS | B149: PEDIATRAS | C149: DR. FELIPE ROBAYO | D149: 02-CHAPINERO | E149: 0 | F149: 0 | G149: 0 | H149: 0 | I149: 0 | J149: 0 | K149: 0 | S149: 0 | T149: 0.0% | U149: 0
A150: PEDIATRAS | B150: PEDIATRAS | C150: DR. RUBEN FRANCO | D150: 02-CHAPINERO | E150: 0 | F150: 0 | G150: 0 | H150: 0 | I150: 1 | J150: 4 | K150: 0 | S150: 5 | T150: 0.0%
A151: PEDIATRAS | B151: PEDIATRAS | C151: DR. ORLANDO RODRIGUEZ RAMIREZ | D151: 02-CHAPINERO | E151: 0 | F151: 0 | G151: 2 | H151: 0 | I151: 0 | J151: 0 | K151: 3 | S151: 5 | T151: 0.0%
A152: PEDIATRAS | B152: PEDIATRAS | C152: DR. ARTURO MORENO | D152: 02-CHAPINERO | E152: 0 | F152: 0 | G152: 0 | H152: 0 | I152: 0 | J152: 0 | K152: 0 | S152: 0 | T152: 0.0% | U152: 0
A153: PEDIATRAS | B153: PEDIATRAS | C153: DR. FRANCISCO LEAL QUEVEDO | D153: 02-CHAPINERO | E153: 0 | F153: 0 | G153: 0 | H153: 0 | I153: 0 | J153: 0 | K153: 0 | S153: 0 | T153: 0.0% | U153: 0
A154: PEDIATRAS | B154: PEDIATRAS | C154: DR. CARLOS DIAZ PUENTES | D154: 02-CHAPINERO | E154: 0 | F154: 0 | G154: 0 | H154: 0 | I154: 0 | J154: 0 | K154: 0 | S154: 0 | T154: 0.0% | U154: 0
A155: PEDIATRAS | B155: PEDIATRAS | C155: DR. PEDRO ERASMO MENDOZA | D155: 02-CHAPINERO | E155: 0 | F155: 0 | G155: 0 | H155: 0 | I155: 0 | J155: 0 | K155: 0 | S155: 0 | T155: 0.0% | U155: 0
A156: PEDIATRAS | B156: PEDIATRAS | C156: DR. DIMAS ROSAS | D156: 02-CHAPINERO | E156: 0 | F156: 0 | G156: 0 | H156: 0 | I156: 0 | J156: 0 | K156: 0 | S156: 0 | T156: 0.0% | U156: 0
A157: PEDIATRAS | B157: PEDIATRAS | C157: DR. JAVIER BRITO MORENO | D157: 02-CHAPINERO | E157: 0 | F157: 0 | G157: 0 | H157: 0 | I157: 0 | J157: 0 | K157: 0 | S157: 0 | T157: 0.0% | U157: 0
A158: PEDIATRAS | B158: PEDIATRAS | C158: DR. GUSTAVO CORTÉS | D158: 02-CHAPINERO | E158: 0 | F158: 0 | G158: 0 | H158: 0 | I158: 0 | J158: 0 | K158: 0 | S158: 0 | T158: 0.0% | U158: 0
A159: PEDIATRAS | B159: PEDIATRAS | C159: DR. CARLOS VELASQUEZ | D159: 02-CHAPINERO | E159: 0 | F159: 0 | G159: 0 | H159: 0 | I159: 0 | J159: 0 | K159: 0 | S159: 0 | T159: 0.0% | U159: 0
A160: PEDIATRAS | B160: PEDIATRAS | C160: DR. RICARDO GOMEZ | D160: 02-CHAPINERO | E160: 0 | F160: 0 | G160: 0 | H160: 0 | I160: 0 | J160: 0 | K160: 0 | S160: 0 | T160: 0.0% | U160: 0
A161: PEDIATRAS | B161: PEDIATRAS | C161: DR. SARA BERNAL | D161: 02-CHAPINERO | E161: 0 | F161: 0 | G161: 1 | H161: 2 | I161: 2 | J161: 0 | K161: 0 | S161: 5 | T161: 0.0%
A162: PEDIATRAS | B162: PEDIATRAS | C162: DRA. MARIA PATRICIA AGUALIMPIA | D162: 02-CHAPINERO | E162: 0 | F162: 0 | G162: 0 | H162: 0 | I162: 0 | J162: 0 | K162: 0 | S162: 0 | T162: 0.0% | U162: 0
A163: PEDIATRAS | B163: PEDIATRAS | C163: DRA. LUISA FERNANDA FORERO ACOSTA | D163: 02-CHAPINERO | E163: 0 | F163: 0 | G163: 0 | H163: 0 | I163: 0 | J163: 0 | K163: 0 | S163: 0 | T163: 0.0% | U163: 0
A164: PEDIATRAS | B164: PEDIATRAS | C164: DRA. MARIA CLARA CASAS PARDO | D164: 02-CHAPINERO | E164: 0 | F164: 0 | G164: 0 | H164: 0 | I164: 0 | J164: 0 | K164: 0 | S164: 0 | T164: 0.0% | U164: 0
A165: PEDIATRAS | B165: PEDIATRAS | C165: DRA. MARTHA EUGENIA RONDEROS DE FORERO | D165: 02-CHAPINERO | E165: 0 | F165: 0 | G165: 0 | H165: 0 | I165: 0 | J165: 0 | K165: 0 | S165: 0 | T165: 0.0% | U165: 0
A166: PEDIATRAS | B166: PEDIATRAS | C166: DRA. MARIA ISABEL USCHER | D166: 02-CHAPINERO | E166: 0 | F166: 0 | G166: 4 | H166: 3 | I166: 2 | J166: 0 | K166: 4 | S166: 13 | T166: 0.0%
A167: PEDIATRAS | B167: PEDIATRAS | C167: DRA. MARIA DE LOS ANGELES MUÑOZ | D167: 02-CHAPINERO | E167: 0 | F167: 0 | G167: 3 | H167: 0 | I167: 3 | J167: 0 | K167: 3 | S167: 9 | T167: 0.0%
A168: PEDIATRAS | B168: PEDIATRAS | C168: DRA. CLARA ABELLO REYES | D168: 02-CHAPINERO | E168: 0 | F168: 0 | G168: 2 | H168: 1 | I168: 0 | J168: 0 | K168: 1 | S168: 4 | T168: 0.0%
A169: PEDIATRAS | B169: PEDIATRAS | C169: DRA. PATRICIA CONTRERAS | D169: 02-CHAPINERO | E169: 0 | F169: 0 | G169: 0 | H169: 0 | I169: 3 | J169: 2 | K169: 2 | S169: 7 | T169: 0.0%
A170: PEDIATRAS | B170: PEDIATRAS | C170: DRA. CLAUDIA ZOPPI | D170: 02-CHAPINERO | E170: 0 | F170: 0 | G170: 0 | H170: 0 | I170: 0 | J170: 1 | K170: 0 | S170: 1 | T170: 0.0%
A171: PEDIATRAS | B171: PEDIATRAS | C171: DRA. MARIA DE LOS ANGELES FERNANDEZ LUQUE | D171: 02-CHAPINERO | E171: 0 | F171: 0 | G171: 0 | H171: 3 | I171: 0 | J171: 0 | K171: 0 | S171: 3 | T171: 0.0%
A172: PEDIATRAS | B172: PEDIATRAS | C172: DRA. RUTH CORDOBA CORDOBA | D172: 02-CHAPINERO | E172: 0 | F172: 0 | G172: 0 | H172: 0 | I172: 0 | J172: 0 | K172: 0 | S172: 0 | T172: 0.0% | U172: 0
A173: PEDIATRAS | B173: PEDIATRAS | C173: DRA. LUZ ESTELA CORTES | D173: 02-CHAPINERO | E173: 0 | F173: 0 | G173: 0 | H173: 0 | I173: 0 | J173: 0 | K173: 0 | S173: 0 | T173: 0.0% | U173: 0
A174: UNICAJAS | B174: UNICAJAS | C174: UPA SAN LUIS | D174: 02-CHAPINERO | E174: 18 | F174: 2 | G174: 0 | H174: 0 | I174: 0 | J174: 0 | K174: 1 | S174: 1 | T174: 5.6% | U174: 7
A175: 02-CHAPINERO | B175: OTROS | C175: UPA SAN LUIS | D175: 02-CHAPINERO | E175: 325 | F175: 27 | G175: 2 | H175: 1 | I175: 1 | J175: 3 | K175: 0 | S175: 7 | T175: 2.2% | U175: 128
A176: 02-CHAPINERO | B176: DEMAS EAPB | C176: UPA SAN LUIS | D176: 02-CHAPINERO | E176: 0 | F176: 0 | G176: 6 | H176: 3 | I176: 5 | J176: 1 | K176: 8 | S176: 23 | T176: 0.0%
A177: UNICAJAS | B177: UNICAJAS | C177: COMFASALUD SEDE CENTRO | D177: 03-SANTA FE | E177: 50 | F177: 4 | G177: 2 | H177: 1 | I177: 2 | J177: 1 | K177: 0 | S177: 6 | T177: 12.0% | U177: 15
A178: MEDIMAS | B178: MEDIMAS | C178: CORVESALUD TEUSAQUILLO | D178: 03-SANTA FE | E178: 193 | F178: 16 | G178: 6 | H178: 7 | I178: 2 | J178: 0 | K178: 0 | S178: 15 | T178: 7.8% | U178: 65
A179: 03-SANTA FE | B179: CAPITAL SALUD | C179: EXTRAMURAL SANTA FE | D179: 03-SANTA FE | E179: 0 | F179: 0 | G179: 7 | H179: 2 | I179: 11 | J179: 11 | K179: 11 | S179: 42 | T179: 0.0%
A180: 03-SANTA FE | B180: DEMAS EAPB | C180: EXTRAMURAL SANTA FE | D180: 03-SANTA FE | E180: 0 | F180: 0 | G180: 0 | H180: 1 | I180: 10 | J180: 30 | K180: 17 | S180: 58 | T180: 0.0%
A181: 03-SANTA FE | B181: OTROS | C181: EXTRAMURAL SANTA FE | D181: 03-SANTA FE | E181: 0 | F181: 0 | G181: 9 | H181: 8 | I181: 11 | J181: 6 | K181: 9 | S181: 43 | T181: 0.0%
A182: 03-SANTA FE | B182: UNICAJAS | C182: EXTRAMURAL SANTA FE | D182: 03-SANTA FE | E182: 0 | F182: 0 | G182: 0 | H182: 0 | I182: 2 | J182: 3 | K182: 1 | S182: 6 | T182: 0.0%
A183: 03-SANTA FE | B183: CAPITAL SALUD | C183: USS LACHES | D183: 03-SANTA FE | E183: 54 | F183: 5 | G183: 7 | H183: 12 | I183: 7 | J183: 0 | K183: 5 | S183: 31 | T183: 57.4%
A184: 03-SANTA FE | B184: DEMAS EAPB | C184: USS LACHES | D184: 03-SANTA FE | E184: 0 | F184: 0 | G184: 7 | H184: 6 | I184: 10 | J184: 6 | K184: 5 | S184: 34 | T184: 0.0%
A185: 03-SANTA FE | B185: OTROS | C185: USS LACHES | D185: 03-SANTA FE | E185: 260 | F185: 22 | G185: 4 | H185: 4 | I185: 1 | J185: 1 | K185: 1 | S185: 11 | T185: 4.2% | U185: 97
A186: 03-SANTA FE | B186: UNICAJAS | C186: USS LACHES | D186: 03-SANTA FE | E186: 17 | F186: 1 | G186: 1 | H186: 0 | I186: 0 | J186: 1 | K186: 0 | S186: 2 | T186: 11.8% | U186: 5
A187: 03-SANTA FE | B187: CAPITAL SALUD | C187: USS LAS CRUCES | D187: 03-SANTA FE | E187: 44 | F187: 4 | G187: 6 | H187: 8 | I187: 3 | J187: 6 | K187: 1 | S187: 24 | T187: 54.5%
A188: 03-SANTA FE | B188: DEMAS EAPB | C188: USS LAS CRUCES | D188: 03-SANTA FE | E188: 0 | F188: 0 | G188: 4 | H188: 5 | I188: 7 | J188: 1 | K188: 2 | S188: 19 | T188: 0.0%
A189: 03-SANTA FE | B189: OTROS | C189: USS LAS CRUCES | D189: 03-SANTA FE | E189: 211 | F189: 18 | G189: 3 | H189: 2 | I189: 1 | J189: 0 | K189: 2 | S189: 8 | T189: 3.8% | U189: 80
A190: 03-SANTA FE | B190: UNICAJAS | C190: USS LAS CRUCES | D190: 03-SANTA FE | E190: 14 | F190: 1 | G190: 1 | H190: 1 | I190: 1 | J190: 0 | K190: 0 | S190: 3 | T190: 21.4% | U190: 3
A191: 03-SANTA FE | B191: CAPITAL SALUD | C191: USS PERSEVERANCIA | D191: 03-SANTA FE | E191: 6 | F191: 1 | G191: 1 | H191: 1 | I191: 0 | J191: 0 | K191: 0 | S191: 2 | T191: 33.3% | U191: 1
A192: 03-SANTA FE | B192: DEMAS EAPB | C192: USS PERSEVERANCIA | D192: 03-SANTA FE | E192: 0 | F192: 0 | G192: 1 | H192: 2 | I192: 0 | J192: 0 | K192: 2 | S192: 5 | T192: 0.0%
A193: 03-SANTA FE | B193: OTROS | C193: USS PERSEVERANCIA | D193: 03-SANTA FE | E193: 30 | F193: 3 | G193: 1 | H193: 1 | I193: 2 | J193: 1 | K193: 1 | S193: 6 | T193: 20.0% | U193: 7
A194: 03-SANTA FE | B194: UNICAJAS | C194: USS PERSEVERANCIA | D194: 03-SANTA FE | E194: 2 | F194: 0 | G194: 0 | H194: 0 | I194: 0 | J194: 0 | K194: 0 | S194: 0 | T194: =IF(E194=0,0,+S194/E194) -> 0.0% | U194: =IF(COUNT(G194:R194)*(E194/12)-S194<0,"",COUNT(G194:R194)*(E194/12)-S194) -> 1
A195: PARTICULAR | B195: PARTICULAR | C195: CLINICA SAN RAFAEL | D195: 04-SAN CRISTOBAL | E195: 375 | F195: =+E195/12 -> 31 | G195: 32 | H195: 52 | I195: 35 | J195: 29 | K195: 28 | S195: =SUM(G195:R195) -> 176 | T195: 46.9%
A196: FAMISANAR | B196: FAMI- COLSB | C196: CENTRO MEDICO COLSUBSIDIO 20 DE JULIO | D196: 04-SAN CRISTOBAL | E196: 0 | F196: 0 | S196: 0 | T196: 0.0% | U196: 0
A197: 04-SAN CRISTOBAL | B197: CAPITAL SALUD | C197: EXTRAMURAL SAN CRISTOBAL | D197: 04-SAN CRISTOBAL | E197: 0 | F197: 0 | G197: 22 | H197: 30 | I197: 78 | J197: 68 | K197: 70 | S197: 268 | T197: 0.0%
A198: 04-SAN CRISTOBAL | B198: DEMAS EAPB | C198: EXTRAMURAL SAN CRISTOBAL | D198: 04-SAN CRISTOBAL | E198: 0 | F198: 0 | G198: 31 | H198: 16 | I198: 77 | J198: 140 | K198: 59 | S198: 323 | T198: 0.0%
A199: 04-SAN CRISTOBAL | B199: OTROS | C199: EXTRAMURAL SAN CRISTOBAL | D199: 04-SAN CRISTOBAL | E199: 0 | F199: 0 | G199: 15 | H199: 10 | I199: 31 | J199: 27 | K199: 38 | S199: 121 | T199: 0.0%
A200: 04-SAN CRISTOBAL | B200: UNICAJAS | C200: EXTRAMURAL SAN CRISTOBAL | D200: 04-SAN CRISTOBAL | E200: 0 | F200: 0 | G200: 3 | H200: 1 | I200: 6 | J200: 10 | K200: 11 | S200: 31 | T200: 0.0%
... 620 more rows

Sheet PENTA2
A1: EAPB | B1: EPS O ESE | C1: IPS | D1: Localidad | E1: Meta Anual Menor de 1 Año | F1: Meta Mensual | G1: Enero | H1: Febrero | I1: Marzo | J1: Abril | K1: Mayo | L1: Junio | M1: Julio | N1: Agosto | O1: Septiembre | P1: Octubre | Q1: Noviembre | R1: Diciembre | S1: Total | T1: % Cobertura | U1: Deficit
A2: CAPITAL SALUD | B2: CAPITAL SALUD | C2: UPA SAN CRISTOBAL | D2: 01-USAQUEN | E2: 124 | F2: =+E2/12 -> 10 | G2: 7 | H2: 3 | I2: 7 | J2: 6 | K2: 3 | S2: =SUM(G2:R2) -> 26 | T2: =IF(E2=0,0,+S2/E2) -> 21.0% | U2: =IF(COUNT(G2:R2)*(E2/12)-S2<0,"",COUNT(G2:R2)*(E2/12)-S2) -> 26
A3: CAPITAL SALUD | B3: CAPITAL SALUD | C3: UPA USAQUEN | D3: 01-USAQUEN | E3: 10 | F3: =+E3/12 -> 1 | G3: 0 | H3: 0 | I3: 0 | J3: 0 | K3: 0 | S3: =SUM(G3:R3) -> 0 | T3: 0.0% | U3: 4
A4: CAPITAL SALUD | B4: CAPITAL SALUD | C4: UPA ORQUIDEAS | D4: 01-USAQUEN | E4: 11 | F4: 1 | G4: 3 | H4: 0 | I4: 1 | J4: 4 | K4: 2 | S4: 10 | T4: 90.9%
A5: CAPITAL SALUD | B5: CAPITAL SALUD | C5: UPA CODITO | D5: 01-USAQUEN | E5: 107 | F5: 9 | G5: 8 | H5: 2 | I5: 3 | J5: 3 | K5: 7 | S5: 23 | T5: 21.5% | U5: 22
A6: CAPITAL SALUD | B6: CAPITAL SALUD | C6: CAMI VERBENAL | D6: 01-USAQUEN | E6: 87 | F6: 7 | G6: 8 | H6: 3 | I6: 8 | J6: 3 | K6: 7 | S6: 29 | T6: 33.3% | U6: 7
A7: CAPITAL SALUD | B7: CAPITAL SALUD | C7: HOSPITAL SIMON BOLIVAR | D7: 01-USAQUEN | E7: 36 | F7: 3 | G7: 9 | H7: 17 | I7: 11 | J7: 5 | K7: 5 | S7: 47 | T7: 130.6%
A8: 01-USAQUEN | B8: 01-USAQUEN | C8: EXTRAMURAL USAQUEN | D8: 01-USAQUEN | E8: 0 | F8: 0 | G8: 12 | H8: 8 | I8: 18 | J8: 51 | K8: 41 | S8: 130 | T8: 0.0%
A9: ALIANSALUD | B9: ALIANSALUD | C9: CENTRO MEDICO COLMEDICA SANTA BARBARA | D9: 01-USAQUEN | E9: 580 | F9: 48 | G9: 79 | H9: 56 | I9: 59 | J9: 36 | K9: 36 | S9: 266 | T9: 45.9%
A10: COMPENSAR | B10: COMPENSAR | C10: USS CALLE 134 | D10: 01-USAQUEN | E10: 372 | F10: 31 | G10: 17 | H10: 16 | I10: 13 | J10: 6 | K10: 11 | S10: 63 | T10: 16.9% | U10: 92
A11: COMPENSAR | B11: COMPENSAR | C11: USS CALLE 145 | D11: 01-USAQUEN | E11: 173 | F11: 14 | G11: 17 | H11: 16 | I11: 17 | J11: 10 | K11: 16 | S11: 76 | T11: 43.9%
A12: COMPENSAR | B12: COMPENSAR | C12: JAVESALUD TOBERIN | D12: 01-USAQUEN | E12: 372 | F12: 31 | G12: 3 | H12: 3 | I12: 2 | J12: 9 | K12: 14 | S12: 31 | T12: 8.3% | U12: 124
A13: COOMEVA | B13: COOMEVA | C13: SINERGIA UNIDAD INTEGRAL EN SALUD | D13: 01-USAQUEN | E13: 44 | F13: 4 | G13: 6 | H13: 5 | I13: 8 | J13: 5 | K13: 5 | S13: 29 | T13: 65.9%
A14: FAMISANAR | B14: FAMI- COLSB | C14: CENTRO MEDICO COLSUBSIDIO USAQUEN | D14: 01-USAQUEN | E14: 298 | F14: 25 | G14: 30 | H14: 31 | I14: 27 | J14: 20 | K14: 13 | S14: 121 | T14: 40.6% | U14: 3
A15: MILITAR | B15: MILITAR | C15: DISPENSARIO MEDICO CANTON NORTE | D15: 01-USAQUEN | E15: 205 | F15: 17 | G15: 3 | H15: 9 | I15: 4 | J15: 6 | K15: 6 | S15: 28 | T15: 13.7% | U15: 57
A16: NUEVA EPS | B16: NUEVA EPS | C16: IPS VIVA 1A SEDE TOBERIN | D16: 01-USAQUEN | E16: 147 | F16: 12 | G16: 6 | H16: 7 | I16: 9 | J16: 6 | K16: 5 | S16: 33 | T16: 22.4% | U16: 28
A17: NUEVA EPS | B17: NUEVA EPS | C17: CAFAM GRANADA HILLS | D17: 01-USAQUEN | E17: 44 | F17: 4 | G17: 6 | H17: 4 | I17: 0 | J17: 6 | K17: 2 | S17: 18 | T17: 40.9% | U17: 0
A18: SANITAS | B18: SANITAS | C18: UAP SANITAS TOBERIN | D18: 01-USAQUEN | E18: 511 | F18: 43 | G18: 56 | H18: 41 | I18: 22 | J18: 42 | K18: 36 | S18: 197 | T18: 38.6% | U18: 16
A19: SANITAS | B19: SANITAS | C19: MEDIKA IPS SANITAS UAP USAQUEN | D19: 01-USAQUEN | E19: 188 | F19: 16 | G19: 3 | H19: 1 | I19: 0 | J19: 1 | K19: 1 | S19: 6 | T19: 3.2% | U19: 72
A20: SANITAS | B20: SANITAS | C20: UAP SANTA BARBARA | D20: 01-USAQUEN | E20: 796 | F20: 66 | G20: 85 | H20: 67 | I20: 72 | J20: 56 | K20: 52 | S20: 332 | T20: 41.7%
A21: SANITAS | B21: SANITAS | C21: SANITAS BANCO DE LA REPUBLICA | D21: 01-USAQUEN | E21: 0 | F21: 0 | G21: 4 | H21: 1 | I21: 4 | J21: 3 | K21: 3 | S21: 15 | T21: 0.0%
A22: SALUD TOTAL | B22: SALUD TOTAL | C22: VIRREY SOLIS TOBERÍN | D22: 01-USAQUEN | E22: 384 | F22: 32 | G22: 21 | H22: 20 | I22: 20 | J22: 12 | K22: 14 | S22: 87 | T22: 22.7% | U22: 73
A23: SURA | B23: SURA | C23: IPS JAVESALUD SANTA BEATRIZ | D23: 01-USAQUEN | E23: 355 | F23: 30 | G23: 12 | H23: 9 | I23: 16 | J23: 8 | K23: 11 | S23: 56 | T23: 15.8% | U23: 92
A24: ECOPETROL | B24: ECOPETROL | C24: IPS CLINICOS PALATINO | D24: 01-USAQUEN | E24: 87 | F24: 7 | G24: 9 | H24: 11 | I24: 9 | J24: 8 | K24: 6 | S24: 43 | T24: 49.4%
A25: PARTICULAR | B25: PARTICULAR | C25: CLINICA PEDIATRICA COLSANITAS | D25: 01-USAQUEN | E25: 830 | F25: 69 | G25: 101 | H25: 91 | I25: 52 | J25: 53 | K25: 42 | S25: 339 | T25: 40.8% | U25: 7
A26: PARTICULAR | B26: PARTICULAR | C26: CENTRO MEDICO COLSANITAS LA CALLEJA | D26: 01-USAQUEN | E26: 120 | F26: 10 | G26: 23 | H26: 16 | I26: 6 | J26: 6 | K26: 4 | S26: 55 | T26: 45.8%
A27: PARTICULAR | B27: PARTICULAR | C27: CENTRO MEDICO COLSANITAS 108 | D27: 01-USAQUEN | E27: 40 | F27: 3 | G27: 4 | H27: 4 | I27: 4 | J27: 0 | K27: 0 | S27: 12 | T27: 30.0% | U27: 5
A28: PARTICULAR | B28: PARTICULAR | C28: CENTRO MEDICO COLSANITAS SANTA ANA | D28: 01-USAQUEN | E28: 4 | F28: 0 | G28: 2 | H28: 0 | I28: 1 | J28: 0 | K28: 0 | S28: 3 | T28: 75.0%
A29: PARTICULAR | B29: PARTICULAR | C29: FUNDACIÓN CARDIO INFANTIL | D29: 01-USAQUEN | E29: 0 | F29: 0 | G29: 11 | H29: 7 | I29: 3 | J29: 9 | K29: 4 | S29: 34 | T29: 0.0%
A30: PARTICULAR | B30: PARTICULAR | C30: ENFASO USAQUEN | D30: 01-USAQUEN | E30: 0 | F30: 0 | G30: 9 | H30: 13 | I30: 3 | J30: 12 | K30: 4 | S30: 41 | T30: 0.0%
A31: PARTICULAR | B31: PARTICULAR | C31: UNIDAD DE VACUNACIÓN INTERNACIONAL | D31: 01-USAQUEN | E31: 0 | F31: 0 | G31: 4 | H31: 7 | I31: 5 | J31: 0 | K31: 1 | S31: 17 | T31: 0.0%
A32: PARTICULAR | B32: PARTICULAR | C32: INMUNOLOGÍA Y DIAGNÓSTICO ESPECIALIZADO LTDA. | D32: 01-USAQUEN | E32: 0 | F32: 0 | G32: 0 | H32: 0 | I32: 0 | J32: 0 | K32: 0 | S32: 0 | T32: 0.0% | U32: 0
A33: PARTICULAR | B33: PARTICULAR | C33: PROTEGER HEALHT CARE | D33: 01-USAQUEN | E33: 0 | F33: 0 | G33: 1 | H33: 0 | I33: 2 | J33: 10 | K33: 3 | S33: 16 | T33: 0.0%
A34: PARTICULAR | B34: PARTICULAR | C34: FUNDACION SANTA FE DE BOGOTA | D34: 01-USAQUEN | E34: 0 | F34: 0 | G34: 0 | H34: 0 | I34: 0 | J34: 0 | K34: 0 | S34: 0 | T34: 0.0% | U34: 0
A35: PARTICULAR | B35: PARTICULAR | C35: IPS CRUZ ROJA SEDE UNICENTRO | D35: 01-USAQUEN | E35: 0 | F35: 0 | G35: 0 | H35: 0 | I35: 0 | J35: 0 | K35: 0 | S35: 0 | T35: 0.0% | U35: 0
A36: PARTICULAR | B36: PARTICULAR | C36: IPS CRUZ ROJA SAMU CALLE 145 | D36: 01-USAQUEN | E36: 0 | F36: 0 | G36: 0 | H36: 0 | I36: 0 | J36: 1 | K36: 0 | S36: 1 | T36: 0.0%
A37: PEDIATRAS | B37: PEDIATRAS | C37: DR. ALEJANDRO LÓPEZ | D37: 01-USAQUEN | E37: 0 | F37: 0 | G37: 2 | H37: 0 | I37: 0 | J37: 0 | K37: 0 | S37: 2 | T37: 0.0%
A38: PEDIATRAS | B38: PEDIATRAS | C38: DR. CARLOS NEFTALI TORRES | D38: 01-USAQUEN | E38: 0 | F38: 0 | G38: 6 | H38: 7 | I38: 0 | J38: 2 | K38: 4 | S38: 19 | T38: 0.0%
A39: PEDIATRAS | B39: PEDIATRAS | C39: DR. FRANCISCO NUÑEZ | D39: 01-USAQUEN | E39: 0 | F39: 0 | G39: 0 | H39: 1 | I39: 1 | J39: 0 | K39: 0 | S39: 2 | T39: 0.0%
A40: PEDIATRAS | B40: PEDIATRAS | C40: DR. FERNANDO GOMEZ | D40: 01-USAQUEN | E40: 0 | F40: 0 | G40: 0 | H40: 0 | I40: 0 | J40: 0 | K40: 0 | S40: 0 | T40: 0.0% | U40: 0
A41: PEDIATRAS | B41: PEDIATRAS | C41: DR. FERNANDO ZARATE MORENO | D41: 01-USAQUEN | E41: 0 | F41: 0 | G41: 0 | H41: 2 | I41: 1 | J41: 1 | K41: 0 | S41: 4 | T41: 0.0%
A42: PEDIATRAS | B42: PEDIATRAS | C42: DR. GONZALO GARCIA | D42: 01-USAQUEN | E42: 0 | F42: 0 | G42: 0 | H42: 0 | I42: 1 | J42: 0 | K42: 1 | S42: 2 | T42: 0.0%
A43: PEDIATRAS | B43: PEDIATRAS | C43: DR. GUSTAVO MORALES | D43: 01-USAQUEN | E43: 0 | F43: 0 | G43: 2 | H43: 4 | I43: 1 | J43: 2 | K43: 3 | S43: 12 | T43: 0.0%
A44: PEDIATRAS | B44: PEDIATRAS | C44: DR. JAIME OSPINA | D44: 01-USAQUEN | E44: 0 | F44: 0 | G44: 0 | H44: 0 | I44: 5 | J44: 1 | K44: 0 | S44: 6 | T44: 0.0%
A45: PEDIATRAS | B45: PEDIATRAS | C45: DR. JORGE URIBE | D45: 01-USAQUEN | E45: 0 | F45: 0 | G45: 0 | H45: 0 | I45: 0 | J45: 0 | K45: 1 | S45: 1 | T45: 0.0%
A46: PEDIATRAS | B46: PEDIATRAS | C46: DR. JUAN LUIS FIGUEROA | D46: 01-USAQUEN | E46: 0 | F46: 0 | G46: 1 | H46: 2 | I46: 0 | J46: 0 | K46: 2 | S46: 5 | T46: 0.0%
A47: PEDIATRAS | B47: PEDIATRAS | C47: DR. LUIS AUGUSTO PERNA | D47: 01-USAQUEN | E47: 0 | F47: 0 | G47: 4 | H47: 5 | I47: 5 | J47: 3 | K47: 4 | S47: 21 | T47: 0.0%
A48: PEDIATRAS | B48: PEDIATRAS | C48: DR. LIBARDO ELI TRIANA | D48: 01-USAQUEN | E48: 0 | F48: 0 | G48: 0 | H48: 1 | I48: 0 | J48: 1 | K48: 2 | S48: 4 | T48: 0.0%
A49: PEDIATRAS | B49: PEDIATRAS | C49: DR. OSWALDO MERCADO HOYOS | D49: 01-USAQUEN | E49: 0 | F49: 0 | G49: 2 | H49: 3 | I49: 0 | J49: 3 | K49: 0 | S49: 8 | T49: 0.0%
A50: PEDIATRAS | B50: PEDIATRAS | C50: DR. ROBERTO BENIRO | D50: 01-USAQUEN | E50: 0 | F50: 0 | G50: 0 | H50: 0 | I50: 0 | J50: 0 | K50: 1 | S50: 1 | T50: 0.0%
A51: PEDIATRAS | B51: PEDIATRAS | C51: DR. SERGIO ISAZA | D51: 01-USAQUEN | E51: 0 | F51: 0 | G51: 2 | H51: 0 | I51: 0 | J51: 0 | K51: 0 | S51: 2 | T51: 0.0%
A52: PEDIATRAS | B52: PEDIATRAS | C52: DR. SANTIAGO UCROS | D52: 01-USAQUEN | E52: 0 | F52: 0 | G52: 0 | H52: 0 | I52: 0 | J52: 0 | K52: 0 | S52: 0 | T52: 0.0% | U52: 0
A53: PEDIATRAS | B53: PEDIATRAS | C53: DR. GERMAN SILVA | D53: 01-USAQUEN | E53: 0 | F53: 0 | G53: 0 | H53: 0 | I53: 0 | J53: 0 | K53: 0 | S53: 0 | T53: 0.0% | U53: 0
A54: PEDIATRAS | B54: PEDIATRAS | C54: DR. DANIEL ABRIL | D54: 01-USAQUEN | E54: 0 | F54: 0 | G54: 0 | H54: 0 | I54: 0 | J54: 0 | K54: 0 | S54: 0 | T54: 0.0% | U54: 0
A55: PEDIATRAS | B55: PEDIATRAS | C55: DR. CARLOS EDUARDO OLMOS | D55: 01-USAQUEN | E55: 0 | F55: 0 | G55: 0 | H55: 0 | I55: 0 | J55: 0 | K55: 0 | S55: 0 | T55: 0.0% | U55: 0
A56: PEDIATRAS | B56: PEDIATRAS | C56: DR. EDGARDO CHATMAN | D56: 01-USAQUEN | E56: 0 | F56: 0 | G56: 0 | H56: 0 | I56: 0 | J56: 0 | K56: 0 | S56: 0 | T56: 0.0% | U56: 0
A57: PEDIATRAS | B57: PEDIATRAS | C57: DR. JORGE FLOREZ OTERO | D57: 01-USAQUEN | E57: 0 | F57: 0 | G57: 0 | H57: 0 | I57: 0 | J57: 0 | K57: 0 | S57: 0 | T57: 0.0% | U57: 0
A58: PEDIATRAS | B58: PEDIATRAS | C58: DRA. ALEJANDRA MARIA VALENCIA | D58: 01-USAQUEN | E58: 0 | F58: 0 | G58: 0 | H58: 0 | I58: 0 | J58: 0 | K58: 0 | S58: 0 | T58: 0.0% | U58: 0
A59: PEDIATRAS | B59: PEDIATRAS | C59: DRA. ANA MARIA GOYENECHE | D59: 01-USAQUEN | E59: 0 | F59: 0 | G59: 0 | H59: 0 | I59: 0 | J59: 0 | K59: 0 | S59: 0 | T59: 0.0% | U59: 0
A60: PEDIATRAS | B60: PEDIATRAS | C60: DRA. JIMENA VARELA | D60: 01-USAQUEN | E60: 0 | F60: 0 | G60: 0 | H60: 1 | I60: 0 | J60: 0 | K60: 0 | S60: 1 | T60: 0.0%
A61: PEDIATRAS | B61: PEDIATRAS | C61: DRA. LIA SAN MIGUEL | D61: 01-USAQUEN | E61: 0 | F61: 0 | G61: 0 | H61: 0 | I61: 0 | J61: 0 | K61: 0 | S61: 0 | T61: 0.0% | U61: 0
A62: PEDIATRAS | B62: PEDIATRAS | C62: DRA. LIBIA SEGURA | D62: 01-USAQUEN | E62: 0 | F62: 0 | G62: 1 | H62: 1 | I62: 0 | J62: 0 | K62: 0 | S62: 2 | T62: 0.0%
A63: PEDIATRAS | B63: PEDIATRAS | C63: DRA. MARÍA JOSÉ PEDRAZA | D63: 01-USAQUEN | E63: 0 | F63: 0 | G63: 0 | H63: 0 | I63: 0 | J63: 0 | K63: 0 | S63: 0 | T63: 0.0% | U63: 0
A64: PEDIATRAS | B64: PEDIATRAS | C64: DRA. MARTHA LUCIA SANCHEZ | D64: 01-USAQUEN | E64: 0 | F64: 0 | G64: 0 | H64: 0 | I64: 0 | J64: 0 | K64: 0 | S64: 0 | T64: 0.0% | U64: 0
A65: PEDIATRAS | B65: PEDIATRAS | C65: DRA. OLGA LUCÍA SÁNCHEZ | D65: 01-USAQUEN | E65: 0 | F65: 0 | G65: 0 | H65: 0 | I65: 0 | J65: 0 | K65: 0 | S65: 0 | T65: 0.0% | U65: 0
A66: PEDIATRAS | B66: PEDIATRAS | C66: DRA. SANDRA BELTRAN | D66: 01-USAQUEN | E66: 0 | F66: 0 | G66: 0 | H66: 0 | I66: 1 | J66: 0 | K66: 0 | S66: 1 | T66: =IF(E66=0,0,+S66/E66) -> 0.0% | U66: =IF(COUNT(G66:R66)*(E66/12)-S66<0,"",COUNT(G66:R66)*(E66/12)-S66) -> 
A67: PEDIATRAS | B67: PEDIATRAS | C67: DRA. IVANA CABRERA | D67: 01-USAQUEN | E67: 0 | F67: =+E67/12 -> 0 | G67: 0 | H67: 0 | I67: 0 | J67: 0 | K67: 0 | S67: =SUM(G67:R67) -> 0 | T67: 0.0% | U67: 0
A68: PEDIATRAS | B68: PEDIATRAS | C68: DRA. NAYITA ALARCON | D68: 01-USAQUEN | E68: 0 | F68: 0 | G68: 0 | H68: 0 | I68: 0 | J68: 0 | K68: 0 | S68: 0 | T68: 0.0% | U68: 0
A69: PEDIATRAS | B69: PEDIATRAS | C69: DRA. ELIZABETH GARCIA | D69: 01-USAQUEN | E69: 0 | F69: 0 | G69: 0 | H69: 0 | I69: 0 | J69: 0 | K69: 0 | S69: 0 | T69: 0.0% | U69: 0
A70: PEDIATRAS | B70: PEDIATRAS | C70: DRA. BERTHA CALDERON DE RAMOS | D70: 01-USAQUEN | E70: 0 | F70: 0 | G70: 0 | H70: 0 | I70: 0 | J70: 0 | K70: 0 | S70: 0 | T70: 0.0% | U70: 0
A71: PEDIATRAS | B71: PEDIATRAS | C71: DRA. MIRYAM CORREA | D71: 01-USAQUEN | E71: 0 | F71: 0 | G71: 0 | H71: 1 | I71: 0 | J71: 0 | K71: 0 | S71: 1 | T71: 0.0%
A72: 01-USAQUEN | B72: UNICAJAS | C72: UPA SAN CRISTOBAL | D72: 01-USAQUEN | E72: 6 | F72: 1 | G72: 1 | H72: 0 | I72: 0 | J72: 0 | K72: 0 | S72: 1 | T72: 16.7% | U72: 2
A73: UNICAJAS | B73: UNICAJAS | C73: UPA USAQUEN | D73: 01-USAQUEN | E73: 9 | F73: 1 | G73: 0 | H73: 0 | I73: 0 | J73: 0 | K73: 0 | S73: 0 | T73: 0.0% | U73: 4
A74: UNICAJAS | B74: UNICAJAS | C74: UPA ORQUIDEAS | D74: 01-USAQUEN | E74: 6 | F74: 1 | G74: 0 | H74: 0 | I74: 0 | J74: 0 | K74: 0 | S74: 0 | T74: 0.0% | U74: 3
A75: UNICAJAS | B75: UNICAJAS | C75: UPA CODITO | D75: 01-USAQUEN | E75: 5 | F75: 0 | G75: 1 | H75: 0 | I75: 0 | J75: 1 | K75: 0 | S75: 2 | T75: 40.0% | U75: 0
A76: UNICAJAS | B76: UNICAJAS | C76: CAMI VERBENAL | D76: 01-USAQUEN | E76: 6 | F76: 1 | G76: 2 | H76: 0 | I76: 0 | J76: 0 | K76: 1 | S76: 3 | T76: 50.0%
A77: 01-USAQUEN | B77: UNICAJAS | C77: HOSPITAL SIMON BOLIVAR | D77: 01-USAQUEN | E77: 6 | F77: 1 | H77: 0 | I77: 0 | J77: 1 | K77: 0 | S77: 1 | T77: 16.7% | U77: 1
A78: 01-USAQUEN | B78: OTROS | C78: UPA SAN CRISTOBAL | D78: 01-USAQUEN | E78: 300 | F78: 25 | G78: 9 | H78: 2 | I78: 2 | J78: 1 | K78: 0 | S78: 14 | T78: 4.7% | U78: 111
A79: 01-USAQUEN | B79: OTROS | C79: UPA USAQUEN | D79: 01-USAQUEN | E79: 100 | F79: 8 | G79: 0 | H79: 0 | I79: 0 | J79: 0 | K79: 0 | S79: 0 | T79: 0.0% | U79: 42
A80: 01-USAQUEN | B80: OTROS | C80: UPA ORQUIDEAS | D80: 01-USAQUEN | E80: 120 | F80: 10 | G80: 5 | H80: 0 | I80: 1 | J80: 1 | K80: 3 | S80: 10 | T80: 8.3% | U80: 40
A81: 01-USAQUEN | B81: OTROS | C81: UPA CODITO | D81: 01-USAQUEN | E81: 218 | F81: 18 | G81: 4 | H81: 2 | I81: 0 | J81: 2 | K81: 0 | S81: 8 | T81: 3.7% | U81: 83
A82: 01-USAQUEN | B82: OTROS | C82: CAMI VERBENAL | D82: 01-USAQUEN | E82: 309 | F82: 26 | G82: 5 | H82: 1 | I82: 0 | J82: 2 | K82: 4 | S82: 12 | T82: 3.9% | U82: 117
A83: 01-USAQUEN | B83: OTROS | C83: HOSPITAL SIMON BOLIVAR | D83: 01-USAQUEN | E83: 480 | F83: 40 | G83: 10 | H83: 13 | I83: 3 | J83: 2 | K83: 2 | S83: 30 | T83: 6.3% | U83: 170
A84: 01-USAQUEN | B84: DEMAS EAPB | C84: UPA SAN CRISTOBAL | D84: 01-USAQUEN | F84: 0 | G84: 15 | H84: 7 | I84: 12 | J84: 17 | K84: 17 | S84: 68 | T84: 0.0%
A85: 01-USAQUEN | B85: DEMAS EAPB | C85: UPA USAQUEN | D85: 01-USAQUEN | F85: 0 | G85: 1 | H85: 1 | I85: 4 | J85: 0 | K85: 0 | S85: 6 | T85: 0.0%
A86: 01-USAQUEN | B86: DEMAS EAPB | C86: UPA ORQUIDEAS | D86: 01-USAQUEN | F86: 0 | G86: 1 | H86: 1 | I86: 5 | J86: 3 | K86: 0 | S86: 10 | T86: 0.0%
A87: 01-USAQUEN | B87: DEMAS EAPB | C87: UPA CODITO | D87: 01-USAQUEN | F87: 0 | G87: 12 | H87: 18 | I87: 8 | J87: 20 | K87: 7 | S87: 65 | T87: 0.0%
A88: 01-USAQUEN | B88: DEMAS EAPB | C88: CAMI VERBENAL | D88: 01-USAQUEN | F88: 0 | G88: 15 | H88: 9 | I88: 11 | J88: 15 | K88: 9 | S88: 59 | T88: 0.0%
A89: 01-USAQUEN | B89: DEMAS EAPB | C89: HOSPITAL SIMON BOLIVAR | D89: 01-USAQUEN | F89: 0 | G89: 20 | H89: 21 | I89: 17 | J89: 6 | K89: 3 | S89: 67 | T89: 0.0%
A90: MEDIMAS | B90: MEDIMAS | C90: Corvesalud S.A.S - I P S Chico | D90: 01-USAQUEN | E90: 320 | F90: 27 | G90: 2 | H90: 2 | I90: 5 | S90: 9 | T90: 2.8% | U90: 71
A91: FAMISANAR | B91: COLSUBSIDIO | C91: Sura PAC Santa Bárbara | D91: 01-USAQUEN | F91: 0 | S91: 0 | T91: 0.0% | U91: 0
A92: CAPITAL SALUD | B92: CAPITAL SALUD | C92: UPA SAN LUIS | D92: 02-CHAPINERO | E92: 12 | F92: 1 | G92: 6 | H92: 2 | I92: 2 | J92: 2 | K92: 1 | S92: 13 | T92: 108.3%
A93: 02-CHAPINERO | B93: 02-CHAPINERO | C93: EXTRAMURAL CHAPINERO | D93: 02-CHAPINERO | E93: 0 | F93: 0 | G93: 5 | H93: 5 | I93: 5 | J93: 25 | K93: 28 | S93: 68 | T93: 0.0%
A94: COMPENSAR | B94: COMPENSAR | C94: USS CALLE 42 | D94: 02-CHAPINERO | E94: 612 | F94: 51 | G94: 34 | H94: 37 | I94: 19 | J94: 27 | K94: 23 | S94: 140 | T94: 22.9% | U94: 115
A95: COMPENSAR | B95: COMPENSAR | C95: USS CALLE 67 | D95: 02-CHAPINERO | E95: 0 | F95: 0 | G95: 0 | H95: 0 | I95: 0 | J95: 0 | K95: 0 | S95: 0 | T95: 0.0% | U95: 0
A96: COMPENSAR | B96: COMPENSAR | C96: USS CALLE 94 | D96: 02-CHAPINERO | E96: 369 | F96: 31 | G96: 43 | H96: 52 | I96: 40 | J96: 46 | K96: 48 | S96: 229 | T96: 62.1%
A97: COMPENSAR | B97: COMPENSAR | C97: VIVA 1A IPS CHAPINERO | D97: 02-CHAPINERO | E97: 73 | F97: 6 | G97: 4 | H97: 0 | I97: 2 | J97: 5 | K97: 3 | S97: 14 | T97: 19.2% | U97: 16
A98: COOMEVA | B98: COOMEVA | C98: SINERGIA UNIDAD BASICA LOURDES | D98: 02-CHAPINERO | E98: 217 | F98: 18 | G98: 7 | H98: 5 | I98: 8 | J98: 0 | K98: 0 | S98: 20 | T98: 9.2% | U98: 70
A99: FAMISANAR | B99: FAMI- CAFAM | C99: CENTRO DE ATENCION EN SALUD CAFAM CALLE 48 | D99: 02-CHAPINERO | E99: 1050 | F99: 88 | G99: 31 | H99: 23 | I99: 27 | J99: 12 | K99: 15 | S99: 108 | T99: 10.3% | U99: 330
A100: FAMISANAR | B100: FAMI- CAFAM | C100: CENTRO DE ATENCION EN SALUD CAFAM CALLE 90 | D100: 02-CHAPINERO | E100: 200 | F100: 17 | G100: 14 | H100: 8 | I100: 13 | J100: 7 | K100: 22 | S100: 64 | T100: 32.0% | U100: 19
A101: FAMISANAR | B101: FAMI- COLSB | C101: CLINICA COLSUBSIDIO EL LAGO | D101: 02-CHAPINERO | E101: 392 | F101: 33 | G101: 11 | H101: 9 | I101: 13 | J101: 4 | K101: 4 | S101: 41 | T101: 10.5% | U101: 122
A102: MILITAR | B102: MILITAR | C102: HOSPITAL MILITAR CENTRAL | D102: 02-CHAPINERO | E102: 70 | F102: 6 | G102: 15 | H102: 0 | I102: 7 | J102: 7 | K102: 4 | S102: 33 | T102: 47.1%
A103: POLICIA | B103: POLICIA | C103: POLICIA NACIONAL ESPAM CHAPINERO | D103: 02-CHAPINERO | E103: 117 | F103: 10 | G103: 5 | H103: 0 | I103: 9 | J103: 25 | K103: 19 | S103: 58 | T103: 49.6%
A104: NUEVA EPS | B104: NUEVA EPS | C104: IPS VIVA 1A SEDE MARLY | D104: 02-CHAPINERO | E104: 131 | F104: 11 | G104: 10 | H104: 6 | I104: 7 | J104: 1 | K104: 0 | S104: 24 | T104: 18.3% | U104: 31
A105: SANITAS | B105: SANITAS | C105: EPS SANITAS CENTRO MEDICO TEUSAQUILLO | D105: 02-CHAPINERO | E105: 579 | F105: 48 | G105: 30 | H105: 22 | I105: 24 | J105: 11 | K105: 10 | S105: 97 | T105: 16.8% | U105: 144
A106: SALUD TOTAL | B106: SALUD TOTAL | C106: VIRREY SOLIS CHAPINERO | D106: 02-CHAPINERO | E106: 337 | F106: 28 | G106: 20 | H106: 12 | I106: 8 | J106: 6 | K106: 5 | S106: 51 | T106: 15.1% | U106: 89
A107: SURA | B107: SURA | C107: PUNTO DE SALUD CHAPINERO | D107: 02-CHAPINERO | E107: 237 | F107: 20 | G107: 16 | H107: 11 | I107: 16 | J107: 7 | K107: 8 | S107: 58 | T107: 24.5% | U107: 41
A108: SURA | B108: SURA | C108: SALUD SURA | D108: 02-CHAPINERO | E108: 454 | F108: 38 | G108: 50 | H108: 50 | I108: 43 | J108: 25 | K108: 31 | S108: 199 | T108: 43.8%
A109: PARTICULAR | B109: PARTICULAR | C109: CENTRO MEDICO COLSANITAS CALLE 96 | D109: 02-CHAPINERO | E109: 24 | F109: 2 | G109: 0 | H109: 4 | I109: 2 | J109: 16 | K109: 9 | S109: 31 | T109: 129.2%
A110: PARTICULAR | B110: PARTICULAR | C110: CENTRO DE ESPECIALISTAS MEDICOS AXA COLPATRIA | D110: 02-CHAPINERO | E110: 0 | F110: 0 | G110: 2 | H110: 4 | I110: 6 | J110: 5 | K110: 5 | S110: 22 | T110: 0.0%
A111: PARTICULAR | B111: PARTICULAR | C111: CLINICA DE LA MUJER | D111: 02-CHAPINERO | E111: 0 | F111: 0 | G111: 62 | H111: 36 | I111: 40 | J111: 26 | K111: 36 | S111: 200 | T111: 0.0%
A112: PARTICULAR | B112: PARTICULAR | C112: VACUNARTE IPS | D112: 02-CHAPINERO | E112: 0 | F112: 0 | G112: 5 | H112: 2 | I112: 0 | J112: 0 | K112: 1 | S112: 8 | T112: 0.0%
A113: PARTICULAR | B113: PARTICULAR | C113: UNIMARLY | D113: 02-CHAPINERO | E113: 0 | F113: 0 | G113: 0 | H113: 0 | I113: 0 | J113: 0 | K113: 0 | S113: 0 | T113: 0.0% | U113: 0
A114: PARTICULAR | B114: PARTICULAR | C114: HOSPITAL SAN IGNACIO | D114: 02-CHAPINERO | E114: 0 | F114: 0 | G114: 2 | H114: 10 | I114: 4 | J114: 2 | K114: 0 | S114: 18 | T114: 0.0%
A115: PARTICULAR | B115: PARTICULAR | C115: PROGRAMA MADRE CANGURO HOSPITAL SAN IGNACIO | D115: 02-CHAPINERO | E115: 0 | F115: 0 | G115: 92 | H115: 104 | I115: 85 | J115: 82 | K115: 68 | S115: 431 | T115: 0.0%
A116: PARTICULAR | B116: PARTICULAR | C116: IPS AVENIR | D116: 02-CHAPINERO | E116: 0 | F116: 0 | G116: 0 | H116: 0 | I116: 0 | J116: 0 | K116: 0 | S116: 0 | T116: 0.0% | U116: 0
A117: PARTICULAR | B117: PARTICULAR | C117: IPS INMUNOLOGIA Y DIAGNOSTICO ESPECIALIZADO | D117: 02-CHAPINERO | E117: 0 | F117: 0 | G117: 1 | H117: 0 | I117: 1 | J117: 0 | K117: 3 | S117: 5 | T117: 0.0%
A118: PARTICULAR | B118: PARTICULAR | C118: ASOCIACION PEDIATRICA DE LOS ANDES | D118: 02-CHAPINERO | E118: 0 | F118: 0 | G118: 0 | H118: 0 | I118: 0 | J118: 0 | K118: 0 | S118: 0 | T118: 0.0% | U118: 0
A119: PARTICULAR | B119: PARTICULAR | C119: CRUZ ROJA SEDE ANDINO | D119: 02-CHAPINERO | E119: 0 | F119: 0 | G119: 0 | H119: 0 | I119: 0 | J119: 0 | K119: 0 | S119: 0 | T119: 0.0% | U119: 0
A120: PARTICULAR | B120: PARTICULAR | C120: CENTRO MEDICO SANTA MONICA | D120: 02-CHAPINERO | E120: 0 | F120: 0 | H120: 0 | I120: 0 | J120: 12 | K120: 7 | S120: 19 | T120: 0.0%
A121: PEDIATRAS | B121: PEDIATRAS | C121: DR. JUAN OSCAR TAMAYO | D121: 02-CHAPINERO | E121: 0 | F121: 0 | G121: 1 | H121: 2 | I121: 0 | J121: 0 | K121: 0 | S121: 3 | T121: 0.0%
A122: PEDIATRAS | B122: PEDIATRAS | C122: DR. ROBERTO SUAREZ | D122: 02-CHAPINERO | E122: 0 | F122: 0 | G122: 0 | H122: 0 | I122: 0 | J122: 0 | K122: 0 | S122: 0 | T122: 0.0% | U122: 0
A123: PEDIATRAS | B123: PEDIATRAS | C123: DR. WILLIAM RICARDO CABRA | D123: 02-CHAPINERO | E123: 0 | F123: 0 | G123: 3 | H123: 5 | I123: 1 | J123: 3 | K123: 2 | S123: 14 | T123: 0.0%
A124: PEDIATRAS | B124: PEDIATRAS | C124: DR. EDGAR CASTRO | D124: 02-CHAPINERO | E124: 0 | F124: 0 | G124: 2 | H124: 2 | I124: 0 | J124: 6 | K124: 1 | S124: 11 | T124: 0.0%
A125: PEDIATRAS | B125: PEDIATRAS | C125: DR. PABLO KRAUSS | D125: 02-CHAPINERO | E125: 0 | F125: 0 | G125: 5 | H125: 1 | I125: 3 | J125: 0 | K125: 0 | S125: 9 | T125: 0.0%
A126: PEDIATRAS | B126: PEDIATRAS | C126: DR. HERNAN ROBLES | D126: 02-CHAPINERO | E126: 0 | F126: 0 | G126: 4 | H126: 4 | I126: 2 | J126: 3 | K126: 9 | S126: 22 | T126: 0.0%
A127: PEDIATRAS | B127: PEDIATRAS | C127: DR. RAFAEL GAMBOA CASABLANCA | D127: 02-CHAPINERO | E127: 0 | F127: 0 | G127: 7 | H127: 4 | I127: 11 | J127: 5 | K127: 12 | S127: 39 | T127: 0.0%
A128: PEDIATRAS | B128: PEDIATRAS | C128: DR. JAVIER MEJIA | D128: 02-CHAPINERO | E128: 0 | F128: 0 | G128: 2 | H128: 1 | I128: 2 | J128: 3 | K128: 3 | S128: 11 | T128: 0.0%
A129: PEDIATRAS | B129: PEDIATRAS | C129: DR. CARLOS CORTAZAR | D129: 02-CHAPINERO | E129: 0 | F129: 0 | G129: 0 | H129: 0 | I129: 0 | J129: 0 | K129: 0 | S129: 0 | T129: 0.0% | U129: 0
A130: PEDIATRAS | B130: PEDIATRAS | C130: DR. NELSON PARDO | D130: 02-CHAPINERO | E130: 0 | F130: 0 | G130: 2 | H130: 0 | I130: 1 | J130: 0 | K130: 0 | S130: 3 | T130: =IF(E130=0,0,+S130/E130) -> 0.0% | U130: =IF(COUNT(G130:R130)*(E130/12)-S130<0,"",COUNT(G130:R130)*(E130/12)-S130) -> 
A131: PEDIATRAS | B131: PEDIATRAS | C131: DR. ALVARO JACOME | D131: 02-CHAPINERO | E131: 0 | F131: =+E131/12 -> 0 | G131: 0 | H131: 1 | I131: 3 | J131: 5 | K131: 0 | S131: =SUM(G131:R131) -> 9 | T131: 0.0%
A132: PEDIATRAS | B132: PEDIATRAS | C132: DR. SILVIO COPO | D132: 02-CHAPINERO | E132: 0 | F132: 0 | G132: 0 | H132: 0 | I132: 0 | J132: 0 | K132: 0 | S132: 0 | T132: 0.0% | U132: 0
A133: PEDIATRAS | B133: PEDIATRAS | C133: DR. HECTOR FERNANDO MENDOZA | D133: 02-CHAPINERO | E133: 0 | F133: 0 | G133: 1 | H133: 0 | I133: 0 | J133: 0 | K133: 0 | S133: 1 | T133: 0.0%
A134: PEDIATRAS | B134: PEDIATRAS | C134: DR. DIMITRIOS | D134: 02-CHAPINERO | E134: 0 | F134: 0 | G134: 1 | H134: 2 | I134: 0 | J134: 0 | K134: 0 | S134: 3 | T134: 0.0%
A135: PEDIATRAS | B135: PEDIATRAS | C135: DR. ALVARO MARIÑO | D135: 02-CHAPINERO | E135: 0 | F135: 0 | G135: 0 | H135: 0 | I135: 0 | J135: 0 | K135: 0 | S135: 0 | T135: 0.0% | U135: 0
A136: PEDIATRAS | B136: PEDIATRAS | C136: DR. ANDRES VARGAS | D136: 02-CHAPINERO | E136: 0 | F136: 0 | G136: 1 | H136: 1 | I136: 2 | J136: 2 | K136: 1 | S136: 7 | T136: 0.0%
A137: PEDIATRAS | B137: PEDIATRAS | C137: DR. JORGE CAMILO LUNA | D137: 02-CHAPINERO | E137: 0 | F137: 0 | G137: 0 | H137: 13 | I137: 0 | J137: 11 | K137: 3 | S137: 27 | T137: 0.0%
A138: PEDIATRAS | B138: PEDIATRAS | C138: DR. BERNARDO HUERTAS | D138: 02-CHAPINERO | E138: 0 | F138: 0 | G138: 13 | H138: 11 | I138: 5 | J138: 15 | K138: 10 | S138: 54 | T138: 0.0%
A139: PEDIATRAS | B139: PEDIATRAS | C139: DR. CARLOS M CASTILLO | D139: 02-CHAPINERO | E139: 0 | F139: 0 | G139: 0 | H139: 0 | I139: 0 | J139: 0 | K139: 0 | S139: 0 | T139: 0.0% | U139: 0
A140: PEDIATRAS | B140: PEDIATRAS | C140: DR. HEINZ OTTO PFALZGRAF | D140: 02-CHAPINERO | E140: 0 | F140: 0 | G140: 0 | H140: 0 | I140: 0 | J140: 0 | K140: 0 | S140: 0 | T140: 0.0% | U140: 0
A141: PEDIATRAS | B141: PEDIATRAS | C141: DR. GONZALEZ BALLESTEROS | D141: 02-CHAPINERO | E141: 0 | F141: 0 | G141: 1 | H141: 0 | I141: 0 | J141: 0 | K141: 0 | S141: 1 | T141: 0.0%
A142: PEDIATRAS | B142: PEDIATRAS | C142: DR. NORBERTO SALAMANCA | D142: 02-CHAPINERO | E142: 0 | F142: 0 | G142: 0 | H142: 0 | I142: 1 | J142: 0 | K142: 0 | S142: 1 | T142: 0.0%
A143: PEDIATRAS | B143: PEDIATRAS | C143: DR. CAMILO ENRIQUE SOTOMAYOR | D143: 02-CHAPINERO | E143: 0 | F143: 0 | G143: 2 | H143: 1 | I143: 2 | J143: 2 | K143: 0 | S143: 7 | T143: 0.0%
A144: PEDIATRAS | B144: PEDIATRAS | C144: DR. SANTIAGO RUEDA SAIZ | D144: 02-CHAPINERO | E144: 0 | F144: 0 | G144: 0 | H144: 2 | I144: 0 | J144: 0 | K144: 1 | S144: 3 | T144: 0.0%
A145: PEDIATRAS | B145: PEDIATRAS | C145: DR. HENRY HERNANDO SANCHEZ ESCOBAR | D145: 02-CHAPINERO | E145: 0 | F145: 0 | G145: 0 | H145: 1 | I145: 0 | J145: 1 | K145: 0 | S145: 2 | T145: 0.0%
A146: PEDIATRAS | B146: PEDIATRAS | C146: DR. RUBEN DARIO TAMAYO | D146: 02-CHAPINERO | E146: 0 | F146: 0 | G146: 1 | H146: 2 | I146: 0 | J146: 0 | K146: 4 | S146: 7 | T146: 0.0%
A147: PEDIATRAS | B147: PEDIATRAS | C147: DR. JAIME MAURICIO MATALLANA | D147: 02-CHAPINERO | E147: 0 | F147: 0 | G147: 2 | H147: 5 | I147: 4 | J147: 6 | K147: 8 | S147: 25 | T147: 0.0%
A148: PEDIATRAS | B148: PEDIATRAS | C148: DR. RODRIGO GARCIA | D148: 02-CHAPINERO | E148: 0 | F148: 0 | G148: 0 | H148: 0 | I148: 0 | J148: 0 | K148: 0 | S148: 0 | T148: 0.0% | U148: 0
A149: PEDIATRAS | B149: PEDIATRAS | C149: DR. FELIPE ROBAYO | D149: 02-CHAPINERO | E149: 0 | F149: 0 | G149: 0 | H149: 0 | I149: 0 | J149: 0 | K149: 0 | S149: 0 | T149: 0.0% | U149: 0
A150: PEDIATRAS | B150: PEDIATRAS | C150: DR. RUBEN FRANCO | D150: 02-CHAPINERO | E150: 0 | F150: 0 | G150: 0 | H150: 0 | I150: 3 | J150: 5 | K150: 0 | S150: 8 | T150: 0.0%
A151: PEDIATRAS | B151: PEDIATRAS | C151: DR. ORLANDO RODRIGUEZ RAMIREZ | D151: 02-CHAPINERO | E151: 0 | F151: 0 | G151: 0 | H151: 1 | I151: 1 | J151: 1 | K151: 0 | S151: 3 | T151: 0.0%
A152: PEDIATRAS | B152: PEDIATRAS | C152: DR. ARTURO MORENO | D152: 02-CHAPINERO | E152: 0 | F152: 0 | G152: 0 | H152: 0 | I152: 0 | J152: 0 | K152: 0 | S152: 0 | T152: 0.0% | U152: 0
A153: PEDIATRAS | B153: PEDIATRAS | C153: DR. FRANCISCO LEAL QUEVEDO | D153: 02-CHAPINERO | E153: 0 | F153: 0 | G153: 0 | H153: 0 | I153: 0 | J153: 0 | K153: 0 | S153: 0 | T153: 0.0% | U153: 0
A154: PEDIATRAS | B154: PEDIATRAS | C154: DR. CARLOS DIAZ PUENTES | D154: 02-CHAPINERO | E154: 0 | F154: 0 | G154: 0 | H154: 0 | I154: 0 | J154: 0 | K154: 0 | S154: 0 | T154: 0.0% | U154: 0
A155: PEDIATRAS | B155: PEDIATRAS | C155: DR. PEDRO ERASMO MENDOZA | D155: 02-CHAPINERO | E155: 0 | F155: 0 | G155: 0 | H155: 0 | I155: 0 | J155: 0 | K155: 0 | S155: 0 | T155: 0.0% | U155: 0
A156: PEDIATRAS | B156: PEDIATRAS | C156: DR. DIMAS ROSAS | D156: 02-CHAPINERO | E156: 0 | F156: 0 | G156: 0 | H156: 0 | I156: 0 | J156: 0 | K156: 0 | S156: 0 | T156: 0.0% | U156: 0
A157: PEDIATRAS | B157: PEDIATRAS | C157: DR. JAVIER BRITO MORENO | D157: 02-CHAPINERO | E157: 0 | F157: 0 | G157: 0 | H157: 0 | I157: 0 | J157: 0 | K157: 0 | S157: 0 | T157: 0.0% | U157: 0
A158: PEDIATRAS | B158: PEDIATRAS | C158: DR. GUSTAVO CORTÉS | D158: 02-CHAPINERO | E158: 0 | F158: 0 | G158: 0 | H158: 0 | I158: 0 | J158: 0 | K158: 0 | S158: 0 | T158: 0.0% | U158: 0
A159: PEDIATRAS | B159: PEDIATRAS | C159: DR. CARLOS VELASQUEZ | D159: 02-CHAPINERO | E159: 0 | F159: 0 | G159: 0 | H159: 0 | I159: 0 | J159: 0 | K159: 0 | S159: 0 | T159: 0.0% | U159: 0
A160: PEDIATRAS | B160: PEDIATRAS | C160: DR. RICARDO GOMEZ | D160: 02-CHAPINERO | E160: 0 | F160: 0 | G160: 0 | H160: 0 | I160: 0 | J160: 0 | K160: 0 | S160: 0 | T160: 0.0% | U160: 0
A161: PEDIATRAS | B161: PEDIATRAS | C161: DR. SARA BERNAL | D161: 02-CHAPINERO | E161: 0 | F161: 0 | G161: 2 | H161: 2 | I161: 0 | J161: 0 | K161: 0 | S161: 4 | T161: 0.0%
A162: PEDIATRAS | B162: PEDIATRAS | C162: DRA. MARIA PATRICIA AGUALIMPIA | D162: 02-CHAPINERO | E162: 0 | F162: 0 | G162: 0 | H162: 0 | I162: 0 | J162: 0 | K162: 0 | S162: 0 | T162: 0.0% | U162: 0
A163: PEDIATRAS | B163: PEDIATRAS | C163: DRA. LUISA FERNANDA FORERO ACOSTA | D163: 02-CHAPINERO | E163: 0 | F163: 0 | G163: 0 | H163: 0 | I163: 0 | J163: 0 | K163: 0 | S163: 0 | T163: 0.0% | U163: 0
A164: PEDIATRAS | B164: PEDIATRAS | C164: DRA. MARIA CLARA CASAS PARDO | D164: 02-CHAPINERO | E164: 0 | F164: 0 | G164: 0 | H164: 0 | I164: 0 | J164: 0 | K164: 0 | S164: 0 | T164: 0.0% | U164: 0
A165: PEDIATRAS | B165: PEDIATRAS | C165: DRA. MARTHA EUGENIA RONDEROS DE FORERO | D165: 02-CHAPINERO | E165: 0 | F165: 0 | G165: 0 | H165: 0 | I165: 0 | J165: 0 | K165: 0 | S165: 0 | T165: 0.0% | U165: 0
A166: PEDIATRAS | B166: PEDIATRAS | C166: DRA. MARIA ISABEL USCHER | D166: 02-CHAPINERO | E166: 0 | F166: 0 | G166: 1 | H166: 2 | I166: 5 | J166: 0 | K166: 7 | S166: 15 | T166: 0.0%
A167: PEDIATRAS | B167: PEDIATRAS | C167: DRA. MARIA DE LOS ANGELES MUÑOZ | D167: 02-CHAPINERO | E167: 0 | F167: 0 | G167: 1 | H167: 0 | I167: 1 | J167: 0 | K167: 2 | S167: 4 | T167: 0.0%
A168: PEDIATRAS | B168: PEDIATRAS | C168: DRA. CLARA ABELLO REYES | D168: 02-CHAPINERO | E168: 0 | F168: 0 | H168: 0 | I168: 1 | J168: 0 | K168: 0 | S168: 1 | T168: 0.0%
A169: PEDIATRAS | B169: PEDIATRAS | C169: DRA. PATRICIA CONTRERAS | D169: 02-CHAPINERO | E169: 0 | F169: 0 | H169: 1 | I169: 0 | J169: 0 | K169: 3 | S169: 4 | T169: 0.0%
A170: PEDIATRAS | B170: PEDIATRAS | C170: DRA. CLAUDIA ZOPPI | D170: 02-CHAPINERO | E170: 0 | F170: 0 | G170: 0 | H170: 0 | I170: 0 | J170: 0 | K170: 0 | S170: 0 | T170: 0.0% | U170: 0
A171: PEDIATRAS | B171: PEDIATRAS | C171: DRA. MARIA DE LOS ANGELES FERNANDEZ LUQUE | D171: 02-CHAPINERO | E171: 0 | F171: 0 | G171: 0 | H171: 0 | I171: 0 | J171: 0 | K171: 0 | S171: 0 | T171: 0.0% | U171: 0
A172: PEDIATRAS | B172: PEDIATRAS | C172: DRA. RUTH CORDOBA CORDOBA | D172: 02-CHAPINERO | E172: 0 | F172: 0 | G172: 0 | H172: 0 | I172: 0 | J172: 0 | K172: 0 | S172: 0 | T172: 0.0% | U172: 0
A173: PEDIATRAS | B173: PEDIATRAS | C173: DRA. LUZ ESTELA CORTES | D173: 02-CHAPINERO | E173: 0 | F173: 0 | G173: 0 | H173: 1 | I173: 0 | J173: 0 | K173: 0 | S173: 1 | T173: 0.0%
A174: UNICAJAS | B174: UNICAJAS | C174: UPA SAN LUIS | D174: 02-CHAPINERO | E174: 18 | F174: 2 | G174: 1 | H174: 0 | I174: 1 | J174: 0 | K174: 0 | S174: 2 | T174: 11.1% | U174: 6
A175: 02-CHAPINERO | B175: OTROS | C175: UPA SAN LUIS | D175: 02-CHAPINERO | E175: 325 | F175: 27 | G175: 0 | H175: 2 | I175: 1 | J175: 1 | K175: 0 | S175: 4 | T175: 1.2% | U175: 131
A176: 02-CHAPINERO | B176: DEMAS EAPB | C176: UPA SAN LUIS | D176: 02-CHAPINERO | F176: 0 | G176: 7 | H176: 2 | I176: 5 | J176: 5 | K176: 5 | S176: 24 | T176: 0.0%
A177: UNICAJAS | B177: UNICAJAS | C177: COMFASALUD SEDE CENTRO | D177: 03-SANTA FE | E177: 50 | F177: 4 | G177: 4 | H177: 2 | I177: 4 | J177: 1 | K177: 1 | S177: 12 | T177: 24.0% | U177: 9
A178: MEDIMAS | B178: MEDIMAS | C178: CORVESALUD TEUSAQUILLO | D178: 03-SANTA FE | E178: 193 | F178: 16 | G178: 6 | H178: 4 | I178: 2 | J178: 0 | K178: 0 | S178: 12 | T178: 6.2% | U178: 68
A179: 03-SANTA FE | B179: CAPITAL SALUD | C179: EXTRAMURAL SANTA FE | D179: 03-SANTA FE | E179: 0 | F179: 0 | G179: 2 | H179: 5 | I179: 18 | J179: 31 | K179: 19 | S179: 75 | T179: 0.0%
A180: 03-SANTA FE | B180: DEMAS EAPB | C180: EXTRAMURAL SANTA FE | D180: 03-SANTA FE | E180: 0 | F180: 0 | G180: 6 | H180: 4 | I180: 17 | J180: 36 | K180: 22 | S180: 85 | T180: 0.0%
A181: 03-SANTA FE | B181: OTROS | C181: EXTRAMURAL SANTA FE | D181: 03-SANTA FE | E181: 0 | F181: 0 | G181: 16 | H181: 9 | I181: 9 | J181: 10 | K181: 8 | S181: 52 | T181: 0.0%
A182: 03-SANTA FE | B182: UNICAJAS | C182: EXTRAMURAL SANTA FE | D182: 03-SANTA FE | E182: 0 | F182: 0 | G182: 0 | H182: 0 | I182: 1 | J182: 1 | K182: 3 | S182: 5 | T182: 0.0%
A183: 03-SANTA FE | B183: CAPITAL SALUD | C183: USS LACHES | D183: 03-SANTA FE | E183: 54 | F183: 5 | G183: 9 | H183: 3 | I183: 4 | J183: 6 | K183: 4 | S183: 26 | T183: 48.1%
A184: 03-SANTA FE | B184: DEMAS EAPB | C184: USS LACHES | D184: 03-SANTA FE | E184: 0 | F184: 0 | G184: 12 | H184: 2 | I184: 11 | J184: 1 | K184: 6 | S184: 32 | T184: 0.0%
A185: 03-SANTA FE | B185: OTROS | C185: USS LACHES | D185: 03-SANTA FE | E185: 260 | F185: 22 | G185: 6 | H185: 0 | I185: 4 | J185: 1 | K185: 1 | S185: 12 | T185: 4.6% | U185: 96
A186: 03-SANTA FE | B186: UNICAJAS | C186: USS LACHES | D186: 03-SANTA FE | E186: 17 | F186: 1 | G186: 0 | H186: 2 | I186: 1 | J186: 0 | K186: 0 | S186: 3 | T186: 17.6% | U186: 4
A187: 03-SANTA FE | B187: CAPITAL SALUD | C187: USS LAS CRUCES | D187: 03-SANTA FE | E187: 44 | F187: 4 | G187: 7 | H187: 5 | I187: 6 | J187: 3 | K187: 2 | S187: 23 | T187: 52.3%
A188: 03-SANTA FE | B188: DEMAS EAPB | C188: USS LAS CRUCES | D188: 03-SANTA FE | E188: 0 | F188: 0 | G188: 6 | H188: 1 | I188: 4 | J188: 5 | K188: 3 | S188: 19 | T188: 0.0%
A189: 03-SANTA FE | B189: OTROS | C189: USS LAS CRUCES | D189: 03-SANTA FE | E189: 211 | F189: 18 | G189: 5 | H189: 4 | I189: 2 | J189: 2 | K189: 2 | S189: 15 | T189: 7.1% | U189: 73
A190: 03-SANTA FE | B190: UNICAJAS | C190: USS LAS CRUCES | D190: 03-SANTA FE | E190: 14 | F190: 1 | G190: 7 | H190: 0 | I190: 1 | J190: 0 | K190: 1 | S190: 9 | T190: 64.3%
A191: 03-SANTA FE | B191: CAPITAL SALUD | C191: USS PERSEVERANCIA | D191: 03-SANTA FE | E191: 6 | F191: 1 | G191: 2 | H191: 0 | I191: 3 | J191: 0 | K191: 0 | S191: 5 | T191: 83.3%
A192: 03-SANTA FE | B192: DEMAS EAPB | C192: USS PERSEVERANCIA | D192: 03-SANTA FE | E192: 0 | F192: 0 | G192: 0 | H192: 0 | I192: 1 | J192: 0 | K192: 0 | S192: 1 | T192: 0.0%
A193: 03-SANTA FE | B193: OTROS | C193: USS PERSEVERANCIA | D193: 03-SANTA FE | E193: 30 | F193: 3 | G193: 2 | H193: 0 | I193: 0 | J193: 0 | K193: 2 | S193: 4 | T193: 13.3% | U193: 9
A194: 03-SANTA FE | B194: UNICAJAS | C194: USS PERSEVERANCIA | D194: 03-SANTA FE | E194: 2 | F194: 0 | G194: 0 | H194: 0 | I194: 0 | J194: 0 | K194: 0 | S194: 0 | T194: =IF(E194=0,0,+S194/E194) -> 0.0% | U194: =IF(COUNT(G194:R194)*(E194/12)-S194<0,"",COUNT(G194:R194)*(E194/12)-S194) -> 1
A195: PARTICULAR | B195: PARTICULAR | C195: CLINICA SAN RAFAEL | D195: 04-SAN CRISTOBAL | E195: 375 | F195: =+E195/12 -> 31 | G195: 35 | H195: 26 | I195: 24 | J195: 17 | K195: 25 | S195: =SUM(G195:R195) -> 127 | T195: 33.9% | U195: 29
A196: FAMISANAR | B196: FAMI- COLSB | C196: CENTRO MEDICO COLSUBSIDIO 20 DE JULIO | D196: 04-SAN CRISTOBAL | F196: 0 | S196: 0 | T196: 0.0% | U196: 0
A197: 04-SAN CRISTOBAL | B197: CAPITAL SALUD | C197: EXTRAMURAL SAN CRISTOBAL | D197: 04-SAN CRISTOBAL | E197: 0 | F197: 0 | G197: 28 | H197: 28 | I197: 66 | J197: 43 | K197: 70 | S197: 235 | T197: 0.0%
A198: 04-SAN CRISTOBAL | B198: DEMAS EAPB | C198: EXTRAMURAL SAN CRISTOBAL | D198: 04-SAN CRISTOBAL | E198: 0 | F198: 0 | G198: 37 | H198: 26 | I198: 105 | J198: 118 | K198: 107 | S198: 393 | T198: 0.0%
A199: 04-SAN CRISTOBAL | B199: OTROS | C199: EXTRAMURAL SAN CRISTOBAL | D199: 04-SAN CRISTOBAL | E199: 0 | F199: 0 | G199: 12 | H199: 7 | I199: 25 | J199: 22 | K199: 27 | S199: 93 | T199: 0.0%
A200: 04-SAN CRISTOBAL | B200: UNICAJAS | C200: EXTRAMURAL SAN CRISTOBAL | D200: 04-SAN CRISTOBAL | E200: 0 | F200: 0 | G200: 0 | H200: 2 | I200: 14 | J200: 6 | K200: 11 | S200: 33 | T200: 0.0%
... 620 more rows

Sheet PENTA3
A1: EAPB | B1: EPS O ESE | C1: IPS | D1: Localidad | E1: Meta Anual Menor de 1 Año | F1: Meta Mensual | G1: Enero | H1: Febrero | I1: Marzo | J1: Abril | K1: Mayo | L1: Junio | M1: Julio | N1: Agosto | O1: Septiembre | P1: Octubre | Q1: Noviembre | R1: Diciembre | S1: Total | T1: % Cobertura | U1: Deficit
A2: CAPITAL SALUD | B2: CAPITAL SALUD | C2: UPA SAN CRISTOBAL | D2: 01-USAQUEN | E2: 124 | F2: =+E2/12 -> 10 | G2: 6 | H2: 3 | I2: 3 | J2: 4 | K2: 6 | S2: =SUM(G2:R2) -> 22 | T2: =IF(E2=0,0,+S2/E2) -> 17.7% | U2: =IF(COUNT(G2:R2)*(E2/12)-S2<0,"",COUNT(G2:R2)*(E2/12)-S2) -> 30
A3: CAPITAL SALUD | B3: CAPITAL SALUD | C3: UPA USAQUEN | D3: 01-USAQUEN | E3: 10 | F3: =+E3/12 -> 1 | G3: 0 | H3: 0 | I3: 0 | J3: 0 | K3: 0 | S3: =SUM(G3:R3) -> 0 | T3: 0.0% | U3: 4
A4: CAPITAL SALUD | B4: CAPITAL SALUD | C4: UPA ORQUIDEAS | D4: 01-USAQUEN | E4: 11 | F4: 1 | G4: 0 | H4: 0 | I4: 3 | J4: 2 | K4: 0 | S4: 5 | T4: 45.5%
A5: CAPITAL SALUD | B5: CAPITAL SALUD | C5: UPA CODITO | D5: 01-USAQUEN | E5: 107 | F5: 9 | G5: 7 | H5: 2 | I5: 4 | J5: 4 | K5: 5 | S5: 22 | T5: 20.6% | U5: 23
A6: CAPITAL SALUD | B6: CAPITAL SALUD | C6: CAMI VERBENAL | D6: 01-USAQUEN | E6: 87 | F6: 7 | G6: 7 | H6: 10 | I6: 3 | J6: 4 | K6: 7 | S6: 31 | T6: 35.6% | U6: 5
A7: CAPITAL SALUD | B7: CAPITAL SALUD | C7: HOSPITAL SIMON BOLIVAR | D7: 01-USAQUEN | E7: 36 | F7: 3 | G7: 10 | H7: 6 | I7: 6 | J7: 2 | K7: 3 | S7: 27 | T7: 75.0%
A8: 01-USAQUEN | B8: 01-USAQUEN | C8: EXTRAMURAL USAQUEN | D8: 01-USAQUEN | E8: 0 | F8: 0 | G8: 21 | H8: 34 | I8: 34 | J8: 110 | K8: 47 | S8: 246 | T8: 0.0%
A9: ALIANSALUD | B9: ALIANSALUD | C9: CENTRO MEDICO COLMEDICA SANTA BARBARA | D9: 01-USAQUEN | E9: 580 | F9: 48 | G9: 71 | H9: 69 | I9: 66 | J9: 39 | K9: 53 | S9: 298 | T9: 51.4%
A10: COMPENSAR | B10: COMPENSAR | C10: USS CALLE 134 | D10: 01-USAQUEN | E10: 372 | F10: 31 | G10: 20 | H10: 9 | I10: 14 | J10: 8 | K10: 9 | S10: 60 | T10: 16.1% | U10: 95
A11: COMPENSAR | B11: COMPENSAR | C11: USS CALLE 145 | D11: 01-USAQUEN | E11: 173 | F11: 14 | G11: 22 | H11: 14 | I11: 16 | J11: 11 | K11: 14 | S11: 77 | T11: 44.5%
A12: COMPENSAR | B12: COMPENSAR | C12: JAVESALUD TOBERIN | D12: 01-USAQUEN | E12: 372 | F12: 31 | G12: 0 | H12: 9 | I12: 3 | J12: 7 | K12: 10 | S12: 29 | T12: 7.8% | U12: 126
A13: COOMEVA | B13: COOMEVA | C13: SINERGIA UNIDAD INTEGRAL EN SALUD | D13: 01-USAQUEN | E13: 44 | F13: 4 | G13: 12 | H13: 13 | I13: 5 | J13: 2 | K13: 7 | S13: 39 | T13: 88.6%
A14: FAMISANAR | B14: FAMI- COLSB | C14: CENTRO MEDICO COLSUBSIDIO USAQUEN | D14: 01-USAQUEN | E14: 298 | F14: 25 | G14: 26 | H14: 25 | I14: 19 | J14: 14 | K14: 28 | S14: 112 | T14: 37.6% | U14: 12
A15: MILITAR | B15: MILITAR | C15: DISPENSARIO MEDICO CANTON NORTE | D15: 01-USAQUEN | E15: 205 | F15: 17 | G15: 8 | H15: 6 | I15: 3 | J15: 11 | K15: 4 | S15: 32 | T15: 15.6% | U15: 53
A16: NUEVA EPS | B16: NUEVA EPS | C16: IPS VIVA 1A SEDE TOBERIN | D16: 01-USAQUEN | E16: 147 | F16: 12 | G16: 11 | H16: 7 | I16: 7 | J16: 1 | K16: 6 | S16: 32 | T16: 21.8% | U16: 29
A17: NUEVA EPS | B17: NUEVA EPS | C17: CAFAM GRANADA HILLS | D17: 01-USAQUEN | E17: 44 | F17: 4 | G17: 0 | H17: 3 | I17: 7 | J17: 4 | K17: 1 | S17: 15 | T17: 34.1% | U17: 3
A18: SANITAS | B18: SANITAS | C18: UAP SANITAS TOBERIN | D18: 01-USAQUEN | E18: 511 | F18: 43 | G18: 33 | H18: 27 | I18: 37 | J18: 22 | K18: 10 | S18: 129 | T18: 25.2% | U18: 84
A19: SANITAS | B19: SANITAS | C19: MEDIKA IPS SANITAS UAP USAQUEN | D19: 01-USAQUEN | E19: 188 | F19: 16 | G19: 1 | H19: 2 | I19: 1 | J19: 0 | K19: 1 | S19: 5 | T19: 2.7% | U19: 73
A20: SANITAS | B20: SANITAS | C20: UAP SANTA BARBARA | D20: 01-USAQUEN | E20: 796 | F20: 66 | G20: 77 | H20: 69 | I20: 62 | J20: 33 | K20: 18 | S20: 259 | T20: 32.5% | U20: 73
A21: SANITAS | B21: SANITAS | C21: SANITAS BANCO DE LA REPUBLICA | D21: 01-USAQUEN | E21: 0 | F21: 0 | G21: 1 | H21: 5 | I21: 4 | J21: 1 | K21: 4 | S21: 15 | T21: 0.0%
A22: SALUD TOTAL | B22: SALUD TOTAL | C22: VIRREY SOLIS TOBERÍN | D22: 01-USAQUEN | E22: 384 | F22: 32 | G22: 18 | H22: 19 | I22: 20 | J22: 12 | K22: 20 | S22: 89 | T22: 23.2% | U22: 71
A23: SURA | B23: SURA | C23: IPS JAVESALUD SANTA BEATRIZ | D23: 01-USAQUEN | E23: 355 | F23: 30 | G23: 10 | H23: 18 | I23: 13 | J23: 5 | K23: 11 | S23: 57 | T23: 16.1% | U23: 91
A24: ECOPETROL | B24: ECOPETROL | C24: IPS CLINICOS PALATINO | D24: 01-USAQUEN | E24: 87 | F24: 7 | G24: 4 | H24: 9 | I24: 10 | J24: 15 | K24: 6 | S24: 44 | T24: 50.6%
A25: PARTICULAR | B25: PARTICULAR | C25: CLINICA PEDIATRICA COLSANITAS | D25: 01-USAQUEN | E25: 830 | F25: 69 | G25: 88 | H25: 58 | I25: 68 | J25: 52 | K25: 34 | S25: 300 | T25: 36.1% | U25: 46
A26: PARTICULAR | B26: PARTICULAR | C26: CENTRO MEDICO COLSANITAS LA CALLEJA | D26: 01-USAQUEN | E26: 120 | F26: 10 | G26: 10 | H26: 18 | I26: 17 | J26: 7 | K26: 6 | S26: 58 | T26: 48.3%
A27: PARTICULAR | B27: PARTICULAR | C27: CENTRO MEDICO COLSANITAS 108 | D27: 01-USAQUEN | E27: 40 | F27: 3 | G27: 3 | H27: 3 | I27: 5 | J27: 0 | K27: 0 | S27: 11 | T27: 27.5% | U27: 6
A28: PARTICULAR | B28: PARTICULAR | C28: CENTRO MEDICO COLSANITAS SANTA ANA | D28: 01-USAQUEN | E28: 4 | F28: 0 | G28: 2 | H28: 3 | I28: 3 | J28: 0 | K28: 0 | S28: 8 | T28: 200.0%
A29: PARTICULAR | B29: PARTICULAR | C29: FUNDACIÓN CARDIO INFANTIL | D29: 01-USAQUEN | E29: 0 | F29: 0 | G29: 10 | H29: 12 | I29: 7 | J29: 3 | K29: 2 | S29: 34 | T29: 0.0%
A30: PARTICULAR | B30: PARTICULAR | C30: ENFASO USAQUEN | D30: 01-USAQUEN | E30: 0 | F30: 0 | G30: 9 | H30: 8 | I30: 8 | J30: 8 | K30: 2 | S30: 35 | T30: 0.0%
A31: PARTICULAR | B31: PARTICULAR | C31: UNIDAD DE VACUNACIÓN INTERNACIONAL | D31: 01-USAQUEN | E31: 0 | F31: 0 | G31: 5 | H31: 5 | I31: 3 | J31: 2 | K31: 5 | S31: 20 | T31: 0.0%
A32: PARTICULAR | B32: PARTICULAR | C32: INMUNOLOGÍA Y DIAGNÓSTICO ESPECIALIZADO LTDA. | D32: 01-USAQUEN | E32: 0 | F32: 0 | G32: 1 | H32: 0 | I32: 0 | J32: 0 | K32: 0 | S32: 1 | T32: 0.0%
A33: PARTICULAR | B33: PARTICULAR | C33: PROTEGER HEALHT CARE | D33: 01-USAQUEN | E33: 0 | F33: 0 | G33: 1 | H33: 1 | I33: 0 | J33: 4 | K33: 6 | S33: 12 | T33: 0.0%
A34: PARTICULAR | B34: PARTICULAR | C34: FUNDACION SANTA FE DE BOGOTA | D34: 01-USAQUEN | E34: 0 | F34: 0 | G34: 0 | H34: 0 | I34: 0 | J34: 0 | K34: 0 | S34: 0 | T34: 0.0% | U34: 0
A35: PARTICULAR | B35: PARTICULAR | C35: IPS CRUZ ROJA SEDE UNICENTRO | D35: 01-USAQUEN | E35: 0 | F35: 0 | G35: 0 | H35: 1 | I35: 0 | J35: 0 | K35: 0 | S35: 1 | T35: 0.0%
A36: PARTICULAR | B36: PARTICULAR | C36: IPS CRUZ ROJA SAMU CALLE 145 | D36: 01-USAQUEN | E36: 0 | F36: 0 | G36: 0 | H36: 0 | I36: 0 | J36: 0 | K36: 0 | S36: 0 | T36: 0.0% | U36: 0
A37: PEDIATRAS | B37: PEDIATRAS | C37: DR. ALEJANDRO LÓPEZ | D37: 01-USAQUEN | E37: 0 | F37: 0 | G37: 4 | H37: 2 | I37: 1 | J37: 1 | K37: 0 | S37: 8 | T37: 0.0%
A38: PEDIATRAS | B38: PEDIATRAS | C38: DR. CARLOS NEFTALI TORRES | D38: 01-USAQUEN | E38: 0 | F38: 0 | G38: 5 | H38: 7 | I38: 6 | J38: 6 | K38: 1 | S38: 25 | T38: 0.0%
A39: PEDIATRAS | B39: PEDIATRAS | C39: DR. FRANCISCO NUÑEZ | D39: 01-USAQUEN | E39: 0 | F39: 0 | G39: 0 | H39: 0 | I39: 0 | J39: 0 | K39: 1 | S39: 1 | T39: 0.0%
A40: PEDIATRAS | B40: PEDIATRAS | C40: DR. FERNANDO GOMEZ | D40: 01-USAQUEN | E40: 0 | F40: 0 | G40: 0 | H40: 0 | I40: 0 | J40: 0 | K40: 0 | S40: 0 | T40: 0.0% | U40: 0
A41: PEDIATRAS | B41: PEDIATRAS | C41: DR. FERNANDO ZARATE MORENO | D41: 01-USAQUEN | E41: 0 | F41: 0 | G41: 0 | H41: 1 | I41: 0 | J41: 2 | K41: 1 | S41: 4 | T41: 0.0%
A42: PEDIATRAS | B42: PEDIATRAS | C42: DR. GONZALO GARCIA | D42: 01-USAQUEN | E42: 0 | F42: 0 | G42: 1 | H42: 0 | I42: 1 | J42: 0 | K42: 1 | S42: 3 | T42: 0.0%
A43: PEDIATRAS | B43: PEDIATRAS | C43: DR. GUSTAVO MORALES | D43: 01-USAQUEN | E43: 0 | F43: 0 | G43: 2 | H43: 3 | I43: 2 | J43: 1 | K43: 3 | S43: 11 | T43: 0.0%
A44: PEDIATRAS | B44: PEDIATRAS | C44: DR. JAIME OSPINA | D44: 01-USAQUEN | E44: 0 | F44: 0 | G44: 6 | H44: 0 | I44: 0 | J44: 2 | K44: 4 | S44: 12 | T44: 0.0%
A45: PEDIATRAS | B45: PEDIATRAS | C45: DR. JORGE URIBE | D45: 01-USAQUEN | E45: 0 | F45: 0 | G45: 0 | H45: 0 | I45: 0 | J45: 0 | K45: 0 | S45: 0 | T45: 0.0% | U45: 0
A46: PEDIATRAS | B46: PEDIATRAS | C46: DR. JUAN LUIS FIGUEROA | D46: 01-USAQUEN | E46: 0 | F46: 0 | G46: 1 | H46: 3 | I46: 1 | J46: 0 | K46: 1 | S46: 6 | T46: 0.0%
A47: PEDIATRAS | B47: PEDIATRAS | C47: DR. LUIS AUGUSTO PERNA | D47: 01-USAQUEN | E47: 0 | F47: 0 | G47: 6 | H47: 3 | I47: 5 | J47: 5 | K47: 8 | S47: 27 | T47: 0.0%
A48: PEDIATRAS | B48: PEDIATRAS | C48: DR. LIBARDO ELI TRIANA | D48: 01-USAQUEN | E48: 0 | F48: 0 | G48: 0 | H48: 0 | I48: 0 | J48: 0 | K48: 0 | S48: 0 | T48: 0.0% | U48: 0
A49: PEDIATRAS | B49: PEDIATRAS | C49: DR. OSWALDO MERCADO HOYOS | D49: 01-USAQUEN | E49: 0 | F49: 0 | G49: 0 | H49: 0 | I49: 1 | J49: 2 | K49: 2 | S49: 5 | T49: 0.0%
A50: PEDIATRAS | B50: PEDIATRAS | C50: DR. ROBERTO BENIRO | D50: 01-USAQUEN | E50: 0 | F50: 0 | G50: 0 | H50: 0 | I50: 0 | J50: 0 | K50: 1 | S50: 1 | T50: 0.0%
A51: PEDIATRAS | B51: PEDIATRAS | C51: DR. SERGIO ISAZA | D51: 01-USAQUEN | E51: 0 | F51: 0 | G51: 0 | H51: 0 | I51: 0 | J51: 0 | K51: 0 | S51: 0 | T51: 0.0% | U51: 0
A52: PEDIATRAS | B52: PEDIATRAS | C52: DR. SANTIAGO UCROS | D52: 01-USAQUEN | E52: 0 | F52: 0 | G52: 0 | H52: 0 | I52: 0 | J52: 0 | K52: 0 | S52: 0 | T52: 0.0% | U52: 0
A53: PEDIATRAS | B53: PEDIATRAS | C53: DR. GERMAN SILVA | D53: 01-USAQUEN | E53: 0 | F53: 0 | G53: 0 | H53: 0 | I53: 0 | J53: 0 | K53: 0 | S53: 0 | T53: 0.0% | U53: 0
A54: PEDIATRAS | B54: PEDIATRAS | C54: DR. DANIEL ABRIL | D54: 01-USAQUEN | E54: 0 | F54: 0 | G54: 0 | H54: 0 | I54: 0 | J54: 0 | K54: 0 | S54: 0 | T54: 0.0% | U54: 0
A55: PEDIATRAS | B55: PEDIATRAS | C55: DR. CARLOS EDUARDO OLMOS | D55: 01-USAQUEN | E55: 0 | F55: 0 | G55: 0 | H55: 0 | I55: 0 | J55: 0 | K55: 0 | S55: 0 | T55: 0.0% | U55: 0
A56: PEDIATRAS | B56: PEDIATRAS | C56: DR. EDGARDO CHATMAN | D56: 01-USAQUEN | E56: 0 | F56: 0 | G56: 0 | H56: 0 | I56: 0 | J56: 0 | K56: 0 | S56: 0 | T56: 0.0% | U56: 0
A57: PEDIATRAS | B57: PEDIATRAS | C57: DR. JORGE FLOREZ OTERO | D57: 01-USAQUEN | E57: 0 | F57: 0 | G57: 0 | H57: 0 | I57: 0 | J57: 0 | K57: 0 | S57: 0 | T57: 0.0% | U57: 0
A58: PEDIATRAS | B58: PEDIATRAS | C58: DRA. ALEJANDRA MARIA VALENCIA | D58: 01-USAQUEN | E58: 0 | F58: 0 | G58: 0 | H58: 0 | I58: 0 | J58: 0 | K58: 0 | S58: 0 | T58: 0.0% | U58: 0
A59: PEDIATRAS | B59: PEDIATRAS | C59: DRA. ANA MARIA GOYENECHE | D59: 01-USAQUEN | E59: 0 | F59: 0 | G59: 0 | H59: 0 | I59: 0 | J59: 0 | K59: 0 | S59: 0 | T59: 0.0% | U59: 0
A60: PEDIATRAS | B60: PEDIATRAS | C60: DRA. JIMENA VARELA | D60: 01-USAQUEN | E60: 0 | F60: 0 | G60: 1 | H60: 0 | I60: 0 | J60: 0 | K60: 1 | S60: 2 | T60: 0.0%
A61: PEDIATRAS | B61: PEDIATRAS | C61: DRA. LIA SAN MIGUEL | D61: 01-USAQUEN | E61: 0 | F61: 0 | G61: 0 | H61: 0 | I61: 0 | J61: 1 | K61: 0 | S61: 1 | T61: 0.0%
A62: PEDIATRAS | B62: PEDIATRAS | C62: DRA. LIBIA SEGURA | D62: 01-USAQUEN | E62: 0 | F62: 0 | G62: 0 | H62: 0 | I62: 1 | J62: 1 | K62: 0 | S62: 2 | T62: 0.0%
A63: PEDIATRAS | B63: PEDIATRAS | C63: DRA. MARÍA JOSÉ PEDRAZA | D63: 01-USAQUEN | E63: 0 | F63: 0 | G63: 0 | H63: 0 | I63: 0 | J63: 0 | K63: 0 | S63: 0 | T63: 0.0% | U63: 0
A64: PEDIATRAS | B64: PEDIATRAS | C64: DRA. MARTHA LUCIA SANCHEZ | D64: 01-USAQUEN | E64: 0 | F64: 0 | G64: 0 | H64: 0 | I64: 0 | J64: 0 | K64: 0 | S64: 0 | T64: 0.0% | U64: 0
A65: PEDIATRAS | B65: PEDIATRAS | C65: DRA. OLGA LUCÍA SÁNCHEZ | D65: 01-USAQUEN | E65: 0 | F65: 0 | G65: 0 | H65: 0 | I65: 0 | J65: 0 | K65: 0 | S65: 0 | T65: 0.0% | U65: 0
A66: PEDIATRAS | B66: PEDIATRAS | C66: DRA. SANDRA BELTRAN | D66: 01-USAQUEN | E66: 0 | F66: 0 | G66: 0 | H66: 0 | I66: 0 | J66: 0 | K66: 0 | S66: 0 | T66: =IF(E66=0,0,+S66/E66) -> 0.0% | U66: =IF(COUNT(G66:R66)*(E66/12)-S66<0,"",COUNT(G66:R66)*(E66/12)-S66) -> 0
A67: PEDIATRAS | B67: PEDIATRAS | C67: DRA. IVANA CABRERA | D67: 01-USAQUEN | E67: 0 | F67: =+E67/12 -> 0 | G67: 0 | H67: 0 | I67: 0 | J67: 0 | K67: 0 | S67: =SUM(G67:R67) -> 0 | T67: 0.0% | U67: 0
A68: PEDIATRAS | B68: PEDIATRAS | C68: DRA. NAYITA ALARCON | D68: 01-USAQUEN | E68: 0 | F68: 0 | G68: 0 | H68: 0 | I68: 0 | J68: 0 | K68: 0 | S68: 0 | T68: 0.0% | U68: 0
A69: PEDIATRAS | B69: PEDIATRAS | C69: DRA. ELIZABETH GARCIA | D69: 01-USAQUEN | E69: 0 | F69: 0 | G69: 0 | H69: 0 | I69: 0 | J69: 0 | K69: 0 | S69: 0 | T69: 0.0% | U69: 0
A70: PEDIATRAS | B70: PEDIATRAS | C70: DRA. BERTHA CALDERON DE RAMOS | D70: 01-USAQUEN | E70: 0 | F70: 0 | G70: 0 | H70: 0 | I70: 0 | J70: 0 | K70: 0 | S70: 0 | T70: 0.0% | U70: 0
A71: PEDIATRAS | B71: PEDIATRAS | C71: DRA. MIRYAM CORREA | D71: 01-USAQUEN | E71: 0 | F71: 0 | G71: 0 | H71: 0 | I71: 0 | J71: 0 | K71: 0 | S71: 0 | T71: 0.0% | U71: 0
A72: 01-USAQUEN | B72: UNICAJAS | C72: UPA SAN CRISTOBAL | D72: 01-USAQUEN | E72: 6 | F72: 1 | G72: 0 | H72: 1 | I72: 1 | J72: 0 | K72: 0 | S72: 2 | T72: 33.3% | U72: 1
A73: UNICAJAS | B73: UNICAJAS | C73: UPA USAQUEN | D73: 01-USAQUEN | E73: 9 | F73: 1 | G73: 0 | H73: 0 | I73: 0 | J73: 0 | K73: 0 | S73: 0 | T73: 0.0% | U73: 4
A74: UNICAJAS | B74: UNICAJAS | C74: UPA ORQUIDEAS | D74: 01-USAQUEN | E74: 6 | F74: 1 | G74: 0 | H74: 0 | I74: 0 | J74: 0 | K74: 0 | S74: 0 | T74: 0.0% | U74: 3
A75: UNICAJAS | B75: UNICAJAS | C75: UPA CODITO | D75: 01-USAQUEN | E75: 5 | F75: 0 | G75: 1 | H75: 0 | I75: 1 | J75: 0 | K75: 0 | S75: 2 | T75: 40.0% | U75: 0
A76: UNICAJAS | B76: UNICAJAS | C76: CAMI VERBENAL | D76: 01-USAQUEN | E76: 6 | F76: 1 | G76: 2 | H76: 1 | I76: 2 | J76: 0 | K76: 0 | S76: 5 | T76: 83.3%
A77: 01-USAQUEN | B77: UNICAJAS | C77: HOSPITAL SIMON BOLIVAR | D77: 01-USAQUEN | E77: 6 | F77: 1 | G77: 1 | H77: 0 | I77: 0 | J77: 0 | K77: 0 | S77: 1 | T77: 16.7% | U77: 2
A78: 01-USAQUEN | B78: OTROS | C78: UPA SAN CRISTOBAL | D78: 01-USAQUEN | E78: 300 | F78: 25 | G78: 5 | H78: 1 | I78: 5 | J78: 1 | K78: 0 | S78: 12 | T78: 4.0% | U78: 113
A79: 01-USAQUEN | B79: OTROS | C79: UPA USAQUEN | D79: 01-USAQUEN | E79: 100 | F79: 8 | G79: 0 | H79: 0 | I79: 0 | J79: 0 | K79: 0 | S79: 0 | T79: 0.0% | U79: 42
A80: 01-USAQUEN | B80: OTROS | C80: UPA ORQUIDEAS | D80: 01-USAQUEN | E80: 120 | F80: 10 | G80: 0 | H80: 1 | I80: 1 | J80: 1 | K80: 0 | S80: 3 | T80: 2.5% | U80: 47
A81: 01-USAQUEN | B81: OTROS | C81: UPA CODITO | D81: 01-USAQUEN | E81: 218 | F81: 18 | G81: 4 | H81: 1 | I81: 0 | J81: 0 | K81: 0 | S81: 5 | T81: 2.3% | U81: 86
A82: 01-USAQUEN | B82: OTROS | C82: CAMI VERBENAL | D82: 01-USAQUEN | E82: 309 | F82: 26 | G82: 5 | H82: 1 | I82: 1 | J82: 0 | K82: 1 | S82: 8 | T82: 2.6% | U82: 121
A83: 01-USAQUEN | B83: OTROS | C83: HOSPITAL SIMON BOLIVAR | D83: 01-USAQUEN | E83: 480 | F83: 40 | G83: 5 | H83: 9 | I83: 3 | J83: 4 | K83: 0 | S83: 21 | T83: 4.4% | U83: 179
A84: 01-USAQUEN | B84: DEMAS EAPB | C84: UPA SAN CRISTOBAL | D84: 01-USAQUEN | F84: 0 | G84: 8 | H84: 10 | I84: 13 | J84: 5 | K84: 15 | S84: 51 | T84: 0.0%
A85: 01-USAQUEN | B85: DEMAS EAPB | C85: UPA USAQUEN | D85: 01-USAQUEN | F85: 0 | G85: 1 | H85: 1 | I85: 1 | J85: 1 | K85: 0 | S85: 4 | T85: 0.0%
A86: 01-USAQUEN | B86: DEMAS EAPB | C86: UPA ORQUIDEAS | D86: 01-USAQUEN | F86: 0 | G86: 2 | H86: 0 | I86: 2 | J86: 0 | K86: 3 | S86: 7 | T86: 0.0%
A87: 01-USAQUEN | B87: DEMAS EAPB | C87: UPA CODITO | D87: 01-USAQUEN | F87: 0 | G87: 11 | H87: 15 | I87: 13 | J87: 14 | K87: 5 | S87: 58 | T87: 0.0%
A88: 01-USAQUEN | B88: DEMAS EAPB | C88: CAMI VERBENAL | D88: 01-USAQUEN | F88: 0 | G88: 26 | H88: 11 | I88: 16 | J88: 9 | K88: 13 | S88: 75 | T88: 0.0%
A89: 01-USAQUEN | B89: DEMAS EAPB | C89: HOSPITAL SIMON BOLIVAR | D89: 01-USAQUEN | F89: 0 | G89: 15 | H89: 11 | I89: 11 | J89: 6 | K89: 3 | S89: 46 | T89: 0.0%
A90: MEDIMAS | B90: MEDIMAS | C90: Corvesalud S.A.S - I P S Chico | D90: 01-USAQUEN | E90: 320 | F90: 27 | G90: 3 | H90: 2 | I90: 3 | S90: 8 | T90: 2.5% | U90: 72
A91: FAMISANAR | B91: COLSUBSIDIO | C91: Sura PAC Santa Bárbara | D91: 01-USAQUEN | F91: 0 | S91: 0 | T91: 0.0% | U91: 0
A92: CAPITAL SALUD | B92: CAPITAL SALUD | C92: UPA SAN LUIS | D92: 02-CHAPINERO | E92: 12 | F92: 1 | G92: 2 | H92: 3 | I92: 5 | J92: 0 | K92: 1 | S92: 11 | T92: 91.7%
A93: 02-CHAPINERO | B93: 02-CHAPINERO | C93: EXTRAMURAL CHAPINERO | D93: 02-CHAPINERO | E93: 0 | F93: 0 | G93: 0 | H93: 3 | I93: 10 | J93: 30 | K93: 30 | S93: 73 | T93: 0.0%
A94: COMPENSAR | B94: COMPENSAR | C94: USS CALLE 42 | D94: 02-CHAPINERO | E94: 612 | F94: 51 | G94: 29 | H94: 31 | I94: 17 | J94: 19 | K94: 32 | S94: 128 | T94: 20.9% | U94: 127
A95: COMPENSAR | B95: COMPENSAR | C95: USS CALLE 67 | D95: 02-CHAPINERO | E95: 0 | F95: 0 | G95: 0 | H95: 0 | I95: 0 | J95: 0 | K95: 0 | S95: 0 | T95: 0.0% | U95: 0
A96: COMPENSAR | B96: COMPENSAR | C96: USS CALLE 94 | D96: 02-CHAPINERO | E96: 369 | F96: 31 | G96: 57 | H96: 54 | I96: 43 | J96: 47 | K96: 62 | S96: 263 | T96: 71.3%
A97: COMPENSAR | B97: COMPENSAR | C97: VIVA 1A IPS CHAPINERO | D97: 02-CHAPINERO | E97: 73 | F97: 6 | G97: 1 | H97: 2 | I97: 1 | J97: 0 | K97: 1 | S97: 5 | T97: 6.8% | U97: 25
A98: COOMEVA | B98: COOMEVA | C98: SINERGIA UNIDAD BASICA LOURDES | D98: 02-CHAPINERO | E98: 217 | F98: 18 | G98: 7 | H98: 6 | I98: 5 | J98: 1 | K98: 1 | S98: 20 | T98: 9.2% | U98: 70
A99: FAMISANAR | B99: FAMI- CAFAM | C99: CENTRO DE ATENCION EN SALUD CAFAM CALLE 48 | D99: 02-CHAPINERO | E99: 1050 | F99: 88 | G99: 23 | H99: 19 | I99: 19 | J99: 10 | K99: 15 | S99: 86 | T99: 8.2% | U99: 352
A100: FAMISANAR | B100: FAMI- CAFAM | C100: CENTRO DE ATENCION EN SALUD CAFAM CALLE 90 | D100: 02-CHAPINERO | E100: 200 | F100: 17 | G100: 16 | H100: 11 | I100: 16 | J100: 9 | K100: 10 | S100: 62 | T100: 31.0% | U100: 21
A101: FAMISANAR | B101: FAMI- COLSB | C101: CLINICA COLSUBSIDIO EL LAGO | D101: 02-CHAPINERO | E101: 392 | F101: 33 | G101: 4 | H101: 5 | I101: 10 | J101: 1 | K101: 9 | S101: 29 | T101: 7.4% | U101: 134
A102: MILITAR | B102: MILITAR | C102: HOSPITAL MILITAR CENTRAL | D102: 02-CHAPINERO | E102: 70 | F102: 6 | G102: 6 | H102: 7 | I102: 8 | J102: 1 | K102: 0 | S102: 22 | T102: 31.4% | U102: 7
A103: POLICIA | B103: POLICIA | C103: POLICIA NACIONAL ESPAM CHAPINERO | D103: 02-CHAPINERO | E103: 117 | F103: 10 | G103: 1 | H103: 0 | I103: 5 | J103: 17 | K103: 13 | S103: 36 | T103: 30.8% | U103: 13
A104: NUEVA EPS | B104: NUEVA EPS | C104: IPS VIVA 1A SEDE MARLY | D104: 02-CHAPINERO | E104: 131 | F104: 11 | G104: 2 | H104: 6 | I104: 7 | J104: 2 | K104: 3 | S104: 20 | T104: 15.3% | U104: 35
A105: SANITAS | B105: SANITAS | C105: EPS SANITAS CENTRO MEDICO TEUSAQUILLO | D105: 02-CHAPINERO | E105: 579 | F105: 48 | G105: 20 | H105: 24 | I105: 26 | J105: 10 | K105: 7 | S105: 87 | T105: 15.0% | U105: 154
A106: SALUD TOTAL | B106: SALUD TOTAL | C106: VIRREY SOLIS CHAPINERO | D106: 02-CHAPINERO | E106: 337 | F106: 28 | G106: 13 | H106: 11 | I106: 13 | J106: 7 | K106: 14 | S106: 58 | T106: 17.2% | U106: 82
A107: SURA | B107: SURA | C107: PUNTO DE SALUD CHAPINERO | D107: 02-CHAPINERO | E107: 237 | F107: 20 | G107: 13 | H107: 25 | I107: 13 | J107: 8 | K107: 9 | S107: 68 | T107: 28.7% | U107: 31
A108: SURA | B108: SURA | C108: SALUD SURA | D108: 02-CHAPINERO | E108: 454 | F108: 38 | G108: 52 | H108: 46 | I108: 32 | J108: 23 | K108: 34 | S108: 187 | T108: 41.2% | U108: 2
A109: PARTICULAR | B109: PARTICULAR | C109: CENTRO MEDICO COLSANITAS CALLE 96 | D109: 02-CHAPINERO | E109: 24 | F109: 2 | G109: 2 | H109: 3 | I109: 3 | J109: 23 | K109: 10 | S109: 41 | T109: 170.8%
A110: PARTICULAR | B110: PARTICULAR | C110: CENTRO DE ESPECIALISTAS MEDICOS AXA COLPATRIA | D110: 02-CHAPINERO | E110: 0 | F110: 0 | G110: 4 | H110: 1 | I110: 2 | J110: 6 | K110: 3 | S110: 16 | T110: 0.0%
A111: PARTICULAR | B111: PARTICULAR | C111: CLINICA DE LA MUJER | D111: 02-CHAPINERO | E111: 0 | F111: 0 | G111: 39 | H111: 35 | I111: 41 | J111: 23 | K111: 25 | S111: 163 | T111: 0.0%
A112: PARTICULAR | B112: PARTICULAR | C112: VACUNARTE IPS | D112: 02-CHAPINERO | E112: 0 | F112: 0 | G112: 2 | H112: 2 | I112: 1 | J112: 1 | K112: 2 | S112: 8 | T112: 0.0%
A113: PARTICULAR | B113: PARTICULAR | C113: UNIMARLY | D113: 02-CHAPINERO | E113: 0 | F113: 0 | G113: 0 | H113: 0 | I113: 0 | J113: 0 | K113: 0 | S113: 0 | T113: 0.0% | U113: 0
A114: PARTICULAR | B114: PARTICULAR | C114: HOSPITAL SAN IGNACIO | D114: 02-CHAPINERO | E114: 0 | F114: 0 | G114: 2 | H114: 6 | I114: 0 | J114: 7 | K114: 5 | S114: 20 | T114: 0.0%
A115: PARTICULAR | B115: PARTICULAR | C115: PROGRAMA MADRE CANGURO HOSPITAL SAN IGNACIO | D115: 02-CHAPINERO | E115: 0 | F115: 0 | G115: 25 | H115: 23 | I115: 13 | J115: 13 | K115: 16 | S115: 90 | T115: 0.0%
A116: PARTICULAR | B116: PARTICULAR | C116: IPS AVENIR | D116: 02-CHAPINERO | E116: 0 | F116: 0 | G116: 0 | H116: 0 | I116: 0 | J116: 0 | K116: 0 | S116: 0 | T116: 0.0% | U116: 0
A117: PARTICULAR | B117: PARTICULAR | C117: IPS INMUNOLOGIA Y DIAGNOSTICO ESPECIALIZADO | D117: 02-CHAPINERO | E117: 0 | F117: 0 | G117: 0 | H117: 0 | I117: 1 | J117: 3 | K117: 3 | S117: 7 | T117: 0.0%
A118: PARTICULAR | B118: PARTICULAR | C118: ASOCIACION PEDIATRICA DE LOS ANDES | D118: 02-CHAPINERO | E118: 0 | F118: 0 | G118: 1 | H118: 0 | I118: 0 | J118: 0 | K118: 0 | S118: 1 | T118: 0.0%
A119: PARTICULAR | B119: PARTICULAR | C119: CRUZ ROJA SEDE ANDINO | D119: 02-CHAPINERO | E119: 0 | F119: 0 | G119: 0 | H119: 0 | I119: 1 | J119: 0 | K119: 0 | S119: 1 | T119: 0.0%
A120: PARTICULAR | B120: PARTICULAR | C120: CENTRO MEDICO SANTA MONICA | D120: 02-CHAPINERO | E120: 0 | F120: 0 | H120: 0 | I120: 0 | J120: 7 | K120: 8 | S120: 15 | T120: 0.0%
A121: PEDIATRAS | B121: PEDIATRAS | C121: DR. JUAN OSCAR TAMAYO | D121: 02-CHAPINERO | E121: 0 | F121: 0 | G121: 0 | H121: 0 | I121: 1 | J121: 0 | K121: 0 | S121: 1 | T121: 0.0%
A122: PEDIATRAS | B122: PEDIATRAS | C122: DR. ROBERTO SUAREZ | D122: 02-CHAPINERO | E122: 0 | F122: 0 | G122: 0 | H122: 0 | I122: 0 | J122: 0 | K122: 0 | S122: 0 | T122: 0.0% | U122: 0
A123: PEDIATRAS | B123: PEDIATRAS | C123: DR. WILLIAM RICARDO CABRA | D123: 02-CHAPINERO | E123: 0 | F123: 0 | G123: 1 | H123: 2 | I123: 2 | J123: 1 | K123: 4 | S123: 10 | T123: 0.0%
A124: PEDIATRAS | B124: PEDIATRAS | C124: DR. EDGAR CASTRO | D124: 02-CHAPINERO | E124: 0 | F124: 0 | G124: 3 | H124: 2 | I124: 0 | J124: 4 | K124: 7 | S124: 16 | T124: 0.0%
A125: PEDIATRAS | B125: PEDIATRAS | C125: DR. PABLO KRAUSS | D125: 02-CHAPINERO | E125: 0 | F125: 0 | G125: 3 | H125: 4 | I125: 1 | J125: 0 | K125: 0 | S125: 8 | T125: 0.0%
A126: PEDIATRAS | B126: PEDIATRAS | C126: DR. HERNAN ROBLES | D126: 02-CHAPINERO | E126: 0 | F126: 0 | G126: 5 | H126: 1 | I126: 4 | J126: 7 | K126: 4 | S126: 21 | T126: 0.0%
A127: PEDIATRAS | B127: PEDIATRAS | C127: DR. RAFAEL GAMBOA CASABLANCA | D127: 02-CHAPINERO | E127: 0 | F127: 0 | G127: 2 | H127: 0 | I127: 5 | J127: 11 | K127: 4 | S127: 22 | T127: 0.0%
A128: PEDIATRAS | B128: PEDIATRAS | C128: DR. JAVIER MEJIA | D128: 02-CHAPINERO | E128: 0 | F128: 0 | G128: 3 | H128: 4 | I128: 1 | J128: 4 | K128: 4 | S128: 16 | T128: 0.0%
A129: PEDIATRAS | B129: PEDIATRAS | C129: DR. CARLOS CORTAZAR | D129: 02-CHAPINERO | E129: 0 | F129: 0 | G129: 0 | H129: 0 | I129: 0 | J129: 0 | K129: 0 | S129: 0 | T129: 0.0% | U129: 0
A130: PEDIATRAS | B130: PEDIATRAS | C130: DR. NELSON PARDO | D130: 02-CHAPINERO | E130: 0 | F130: 0 | G130: 1 | H130: 1 | I130: 2 | J130: 0 | K130: 0 | S130: 4 | T130: =IF(E130=0,0,+S130/E130) -> 0.0% | U130: =IF(COUNT(G130:R130)*(E130/12)-S130<0,"",COUNT(G130:R130)*(E130/12)-S130) -> 
A131: PEDIATRAS | B131: PEDIATRAS | C131: DR. ALVARO JACOME | D131: 02-CHAPINERO | E131: 0 | F131: =+E131/12 -> 0 | G131: 0 | H131: 1 | I131: 0 | J131: 4 | K131: 3 | S131: =SUM(G131:R131) -> 8 | T131: 0.0%
A132: PEDIATRAS | B132: PEDIATRAS | C132: DR. SILVIO COPO | D132: 02-CHAPINERO | E132: 0 | F132: 0 | G132: 0 | H132: 1 | I132: 0 | J132: 0 | K132: 0 | S132: 1 | T132: 0.0%
A133: PEDIATRAS | B133: PEDIATRAS | C133: DR. HECTOR FERNANDO MENDOZA | D133: 02-CHAPINERO | E133: 0 | F133: 0 | G133: 1 | H133: 1 | I133: 0 | J133: 1 | K133: 1 | S133: 4 | T133: 0.0%
A134: PEDIATRAS | B134: PEDIATRAS | C134: DR. DIMITRIOS | D134: 02-CHAPINERO | E134: 0 | F134: 0 | G134: 0 | H134: 0 | I134: 0 | J134: 0 | K134: 1 | S134: 1 | T134: 0.0%
A135: PEDIATRAS | B135: PEDIATRAS | C135: DR. ALVARO MARIÑO | D135: 02-CHAPINERO | E135: 0 | F135: 0 | G135: 0 | H135: 0 | I135: 0 | J135: 0 | K135: 0 | S135: 0 | T135: 0.0% | U135: 0
A136: PEDIATRAS | B136: PEDIATRAS | C136: DR. ANDRES VARGAS | D136: 02-CHAPINERO | E136: 0 | F136: 0 | G136: 0 | H136: 1 | I136: 0 | J136: 3 | K136: 1 | S136: 5 | T136: 0.0%
A137: PEDIATRAS | B137: PEDIATRAS | C137: DR. JORGE CAMILO LUNA | D137: 02-CHAPINERO | E137: 0 | F137: 0 | G137: 0 | H137: 4 | I137: 1 | J137: 22 | K137: 3 | S137: 30 | T137: 0.0%
A138: PEDIATRAS | B138: PEDIATRAS | C138: DR. BERNARDO HUERTAS | D138: 02-CHAPINERO | E138: 0 | F138: 0 | G138: 9 | H138: 7 | I138: 14 | J138: 11 | K138: 5 | S138: 46 | T138: 0.0%
A139: PEDIATRAS | B139: PEDIATRAS | C139: DR. CARLOS M CASTILLO | D139: 02-CHAPINERO | E139: 0 | F139: 0 | G139: 0 | H139: 0 | I139: 0 | J139: 0 | K139: 0 | S139: 0 | T139: 0.0% | U139: 0
A140: PEDIATRAS | B140: PEDIATRAS | C140: DR. HEINZ OTTO PFALZGRAF | D140: 02-CHAPINERO | E140: 0 | F140: 0 | G140: 0 | H140: 0 | I140: 0 | J140: 0 | K140: 0 | S140: 0 | T140: 0.0% | U140: 0
A141: PEDIATRAS | B141: PEDIATRAS | C141: DR. GONZALEZ BALLESTEROS | D141: 02-CHAPINERO | E141: 0 | F141: 0 | G141: 0 | H141: 0 | I141: 0 | J141: 0 | K141: 0 | S141: 0 | T141: 0.0% | U141: 0
A142: PEDIATRAS | B142: PEDIATRAS | C142: DR. NORBERTO SALAMANCA | D142: 02-CHAPINERO | E142: 0 | F142: 0 | G142: 0 | H142: 0 | I142: 0 | J142: 0 | K142: 0 | S142: 0 | T142: 0.0% | U142: 0
A143: PEDIATRAS | B143: PEDIATRAS | C143: DR. CAMILO ENRIQUE SOTOMAYOR | D143: 02-CHAPINERO | E143: 0 | F143: 0 | G143: 1 | H143: 0 | I143: 1 | J143: 0 | K143: 1 | S143: 3 | T143: 0.0%
A144: PEDIATRAS | B144: PEDIATRAS | C144: DR. SANTIAGO RUEDA SAIZ | D144: 02-CHAPINERO | E144: 0 | F144: 0 | G144: 5 | H144: 1 | I144: 1 | J144: 0 | K144: 0 | S144: 7 | T144: 0.0%
A145: PEDIATRAS | B145: PEDIATRAS | C145: DR. HENRY HERNANDO SANCHEZ ESCOBAR | D145: 02-CHAPINERO | E145: 0 | F145: 0 | G145: 1 | H145: 1 | I145: 0 | J145: 0 | K145: 1 | S145: 3 | T145: 0.0%
A146: PEDIATRAS | B146: PEDIATRAS | C146: DR. RUBEN DARIO TAMAYO | D146: 02-CHAPINERO | E146: 0 | F146: 0 | G146: 1 | H146: 0 | I146: 0 | J146: 0 | K146: 4 | S146: 5 | T146: 0.0%
A147: PEDIATRAS | B147: PEDIATRAS | C147: DR. JAIME MAURICIO MATALLANA | D147: 02-CHAPINERO | E147: 0 | F147: 0 | G147: 5 | H147: 4 | I147: 6 | J147: 2 | K147: 4 | S147: 21 | T147: 0.0%
A148: PEDIATRAS | B148: PEDIATRAS | C148: DR. RODRIGO GARCIA | D148: 02-CHAPINERO | E148: 0 | F148: 0 | G148: 0 | H148: 0 | I148: 0 | J148: 0 | K148: 0 | S148: 0 | T148: 0.0% | U148: 0
A149: PEDIATRAS | B149: PEDIATRAS | C149: DR. FELIPE ROBAYO | D149: 02-CHAPINERO | E149: 0 | F149: 0 | G149: 0 | H149: 0 | I149: 0 | J149: 0 | K149: 0 | S149: 0 | T149: 0.0% | U149: 0
A150: PEDIATRAS | B150: PEDIATRAS | C150: DR. RUBEN FRANCO | D150: 02-CHAPINERO | E150: 0 | F150: 0 | G150: 0 | H150: 0 | I150: 1 | J150: 3 | K150: 0 | S150: 4 | T150: 0.0%
A151: PEDIATRAS | B151: PEDIATRAS | C151: DR. ORLANDO RODRIGUEZ RAMIREZ | D151: 02-CHAPINERO | E151: 0 | F151: 0 | G151: 2 | H151: 0 | I151: 1 | J151: 1 | K151: 2 | S151: 6 | T151: 0.0%
A152: PEDIATRAS | B152: PEDIATRAS | C152: DR. ARTURO MORENO | D152: 02-CHAPINERO | E152: 0 | F152: 0 | G152: 0 | H152: 0 | I152: 0 | J152: 0 | K152: 0 | S152: 0 | T152: 0.0% | U152: 0
A153: PEDIATRAS | B153: PEDIATRAS | C153: DR. FRANCISCO LEAL QUEVEDO | D153: 02-CHAPINERO | E153: 0 | F153: 0 | G153: 0 | H153: 0 | I153: 0 | J153: 0 | K153: 0 | S153: 0 | T153: 0.0% | U153: 0
A154: PEDIATRAS | B154: PEDIATRAS | C154: DR. CARLOS DIAZ PUENTES | D154: 02-CHAPINERO | E154: 0 | F154: 0 | G154: 0 | H154: 0 | I154: 0 | J154: 0 | K154: 0 | S154: 0 | T154: 0.0% | U154: 0
A155: PEDIATRAS | B155: PEDIATRAS | C155: DR. PEDRO ERASMO MENDOZA | D155: 02-CHAPINERO | E155: 0 | F155: 0 | G155: 0 | H155: 0 | I155: 0 | J155: 0 | K155: 0 | S155: 0 | T155: 0.0% | U155: 0
A156: PEDIATRAS | B156: PEDIATRAS | C156: DR. DIMAS ROSAS | D156: 02-CHAPINERO | E156: 0 | F156: 0 | G156: 0 | H156: 0 | I156: 0 | J156: 0 | K156: 0 | S156: 0 | T156: 0.0% | U156: 0
A157: PEDIATRAS | B157: PEDIATRAS | C157: DR. JAVIER BRITO MORENO | D157: 02-CHAPINERO | E157: 0 | F157: 0 | G157: 0 | H157: 0 | I157: 0 | J157: 0 | K157: 0 | S157: 0 | T157: 0.0% | U157: 0
A158: PEDIATRAS | B158: PEDIATRAS | C158: DR. GUSTAVO CORTÉS | D158: 02-CHAPINERO | E158: 0 | F158: 0 | G158: 0 | H158: 0 | I158: 0 | J158: 0 | K158: 0 | S158: 0 | T158: 0.0% | U158: 0
A159: PEDIATRAS | B159: PEDIATRAS | C159: DR. CARLOS VELASQUEZ | D159: 02-CHAPINERO | E159: 0 | F159: 0 | G159: 0 | H159: 0 | I159: 0 | J159: 0 | K159: 0 | S159: 0 | T159: 0.0% | U159: 0
A160: PEDIATRAS | B160: PEDIATRAS | C160: DR. RICARDO GOMEZ | D160: 02-CHAPINERO | E160: 0 | F160: 0 | G160: 0 | H160: 0 | I160: 0 | J160: 0 | K160: 0 | S160: 0 | T160: 0.0% | U160: 0
A161: PEDIATRAS | B161: PEDIATRAS | C161: DR. SARA BERNAL | D161: 02-CHAPINERO | E161: 0 | F161: 0 | G161: 1 | H161: 0 | I161: 0 | J161: 0 | K161: 2 | S161: 3 | T161: 0.0%
A162: PEDIATRAS | B162: PEDIATRAS | C162: DRA. MARIA PATRICIA AGUALIMPIA | D162: 02-CHAPINERO | E162: 0 | F162: 0 | G162: 0 | H162: 0 | I162: 0 | J162: 0 | K162: 0 | S162: 0 | T162: 0.0% | U162: 0
A163: PEDIATRAS | B163: PEDIATRAS | C163: DRA. LUISA FERNANDA FORERO ACOSTA | D163: 02-CHAPINERO | E163: 0 | F163: 0 | G163: 0 | H163: 0 | I163: 0 | J163: 0 | K163: 0 | S163: 0 | T163: 0.0% | U163: 0
A164: PEDIATRAS | B164: PEDIATRAS | C164: DRA. MARIA CLARA CASAS PARDO | D164: 02-CHAPINERO | E164: 0 | F164: 0 | G164: 0 | H164: 0 | I164: 0 | J164: 0 | K164: 0 | S164: 0 | T164: 0.0% | U164: 0
A165: PEDIATRAS | B165: PEDIATRAS | C165: DRA. MARTHA EUGENIA RONDEROS DE FORERO | D165: 02-CHAPINERO | E165: 0 | F165: 0 | G165: 0 | H165: 0 | I165: 0 | J165: 0 | K165: 0 | S165: 0 | T165: 0.0% | U165: 0
A166: PEDIATRAS | B166: PEDIATRAS | C166: DRA. MARIA ISABEL USCHER | D166: 02-CHAPINERO | E166: 0 | F166: 0 | G166: 5 | H166: 5 | I166: 1 | J166: 0 | K166: 8 | S166: 19 | T166: 0.0%
A167: PEDIATRAS | B167: PEDIATRAS | C167: DRA. MARIA DE LOS ANGELES MUÑOZ | D167: 02-CHAPINERO | E167: 0 | F167: 0 | G167: 2 | H167: 0 | I167: 0 | J167: 0 | K167: 1 | S167: 3 | T167: 0.0%
A168: PEDIATRAS | B168: PEDIATRAS | C168: DRA. CLARA ABELLO REYES | D168: 02-CHAPINERO | E168: 0 | F168: 0 | G168: 1 | H168: 1 | I168: 0 | J168: 0 | K168: 0 | S168: 2 | T168: 0.0%
A169: PEDIATRAS | B169: PEDIATRAS | C169: DRA. PATRICIA CONTRERAS | D169: 02-CHAPINERO | E169: 0 | F169: 0 | G169: 1 | H169: 1 | I169: 1 | J169: 2 | K169: 1 | S169: 6 | T169: 0.0%
A170: PEDIATRAS | B170: PEDIATRAS | C170: DRA. CLAUDIA ZOPPI | D170: 02-CHAPINERO | E170: 0 | F170: 0 | G170: 0 | H170: 0 | I170: 0 | J170: 0 | K170: 0 | S170: 0 | T170: 0.0% | U170: 0
A171: PEDIATRAS | B171: PEDIATRAS | C171: DRA. MARIA DE LOS ANGELES FERNANDEZ LUQUE | D171: 02-CHAPINERO | E171: 0 | F171: 0 | G171: 0 | H171: 0 | I171: 0 | J171: 0 | K171: 0 | S171: 0 | T171: 0.0% | U171: 0
A172: PEDIATRAS | B172: PEDIATRAS | C172: DRA. RUTH CORDOBA CORDOBA | D172: 02-CHAPINERO | E172: 0 | F172: 0 | G172: 0 | H172: 0 | I172: 0 | J172: 0 | K172: 0 | S172: 0 | T172: 0.0% | U172: 0
A173: PEDIATRAS | B173: PEDIATRAS | C173: DRA. LUZ ESTELA CORTES | D173: 02-CHAPINERO | E173: 0 | F173: 0 | G173: 0 | H173: 0 | I173: 0 | J173: 0 | K173: 0 | S173: 0 | T173: 0.0% | U173: 0
A174: UNICAJAS | B174: UNICAJAS | C174: UPA SAN LUIS | D174: 02-CHAPINERO | E174: 18 | F174: 2 | G174: 0 | H174: 0 | I174: 0 | J174: 0 | K174: 1 | S174: 1 | T174: 5.6% | U174: 7
A175: 02-CHAPINERO | B175: OTROS | C175: UPA SAN LUIS | D175: 02-CHAPINERO | E175: 325 | F175: 27 | G175: 0 | H175: 4 | I175: 1 | J175: 1 | K175: 0 | S175: 6 | T175: 1.8% | U175: 129
A176: 02-CHAPINERO | B176: DEMAS EAPB | C176: UPA SAN LUIS | D176: 02-CHAPINERO | F176: 0 | G176: 5 | H176: 1 | I176: 8 | J176: 4 | K176: 7 | S176: 25 | T176: 0.0%
A177: UNICAJAS | B177: UNICAJAS | C177: COMFASALUD SEDE CENTRO | D177: 03-SANTA FE | E177: 50 | F177: 4 | G177: 5 | H177: 1 | I177: 2 | J177: 1 | K177: 2 | S177: 11 | T177: 22.0% | U177: 10
A178: MEDIMAS | B178: MEDIMAS | C178: CORVESALUD TEUSAQUILLO | D178: 03-SANTA FE | E178: 193 | F178: 16 | G178: 4 | H178: 1 | I178: 1 | J178: 0 | K178: 0 | S178: 6 | T178: 3.1% | U178: 74
A179: 03-SANTA FE | B179: CAPITAL SALUD | C179: EXTRAMURAL SANTA FE | D179: 03-SANTA FE | E179: 0 | F179: 0 | G179: 6 | H179: 11 | I179: 19 | J179: 25 | K179: 15 | S179: 76 | T179: 0.0%
A180: 03-SANTA FE | B180: DEMAS EAPB | C180: EXTRAMURAL SANTA FE | D180: 03-SANTA FE | E180: 0 | F180: 0 | G180: 8 | H180: 12 | I180: 24 | J180: 25 | K180: 28 | S180: 97 | T180: 0.0%
A181: 03-SANTA FE | B181: OTROS | C181: EXTRAMURAL SANTA FE | D181: 03-SANTA FE | E181: 0 | F181: 0 | G181: 4 | H181: 9 | I181: 9 | J181: 11 | K181: 10 | S181: 43 | T181: 0.0%
A182: 03-SANTA FE | B182: UNICAJAS | C182: EXTRAMURAL SANTA FE | D182: 03-SANTA FE | E182: 0 | F182: 0 | G182: 0 | H182: 0 | I182: 3 | J182: 3 | K182: 3 | S182: 9 | T182: 0.0%
A183: 03-SANTA FE | B183: CAPITAL SALUD | C183: USS LACHES | D183: 03-SANTA FE | E183: 54 | F183: 5 | G183: 6 | H183: 5 | I183: 5 | J183: 2 | K183: 2 | S183: 20 | T183: 37.0% | U183: 3
A184: 03-SANTA FE | B184: DEMAS EAPB | C184: USS LACHES | D184: 03-SANTA FE | E184: 0 | F184: 0 | G184: 9 | H184: 7 | I184: 9 | J184: 1 | K184: 3 | S184: 29 | T184: 0.0%
A185: 03-SANTA FE | B185: OTROS | C185: USS LACHES | D185: 03-SANTA FE | E185: 260 | F185: 22 | G185: 0 | H185: 0 | I185: 1 | J185: 0 | K185: 1 | S185: 2 | T185: 0.8% | U185: 106
A186: 03-SANTA FE | B186: UNICAJAS | C186: USS LACHES | D186: 03-SANTA FE | E186: 17 | F186: 1 | G186: 4 | H186: 0 | I186: 0 | J186: 0 | K186: 1 | S186: 5 | T186: 29.4% | U186: 2
A187: 03-SANTA FE | B187: CAPITAL SALUD | C187: USS LAS CRUCES | D187: 03-SANTA FE | E187: 44 | F187: 4 | G187: 5 | H187: 4 | I187: 3 | J187: 0 | K187: 2 | S187: 14 | T187: 31.8% | U187: 4
A188: 03-SANTA FE | B188: DEMAS EAPB | C188: USS LAS CRUCES | D188: 03-SANTA FE | E188: 0 | F188: 0 | G188: 4 | H188: 4 | I188: 3 | J188: 1 | K188: 2 | S188: 14 | T188: 0.0%
A189: 03-SANTA FE | B189: OTROS | C189: USS LAS CRUCES | D189: 03-SANTA FE | E189: 211 | F189: 18 | G189: 2 | H189: 2 | I189: 4 | J189: 3 | K189: 1 | S189: 12 | T189: 5.7% | U189: 76
A190: 03-SANTA FE | B190: UNICAJAS | C190: USS LAS CRUCES | D190: 03-SANTA FE | E190: 14 | F190: 1 | G190: 1 | H190: 0 | I190: 3 | J190: 0 | K190: 1 | S190: 5 | T190: 35.7% | U190: 1
A191: 03-SANTA FE | B191: CAPITAL SALUD | C191: USS PERSEVERANCIA | D191: 03-SANTA FE | E191: 6 | F191: 1 | G191: 1 | H191: 2 | I191: 3 | J191: 1 | K191: 1 | S191: 8 | T191: 133.3%
A192: 03-SANTA FE | B192: DEMAS EAPB | C192: USS PERSEVERANCIA | D192: 03-SANTA FE | E192: 0 | F192: 0 | G192: 3 | H192: 2 | I192: 2 | J192: 0 | K192: 1 | S192: 8 | T192: 0.0%
A193: 03-SANTA FE | B193: OTROS | C193: USS PERSEVERANCIA | D193: 03-SANTA FE | E193: 30 | F193: 3 | G193: 1 | H193: 1 | I193: 1 | J193: 0 | K193: 0 | S193: 3 | T193: 10.0% | U193: 10
A194: 03-SANTA FE | B194: UNICAJAS | C194: USS PERSEVERANCIA | D194: 03-SANTA FE | E194: 2 | F194: 0 | G194: 1 | H194: 0 | I194: 0 | J194: 0 | K194: 0 | S194: 1 | T194: =IF(E194=0,0,+S194/E194) -> 50.0% | U194: =IF(COUNT(G194:R194)*(E194/12)-S194<0,"",COUNT(G194:R194)*(E194/12)-S194) -> 
A195: PARTICULAR | B195: PARTICULAR | C195: CLINICA SAN RAFAEL | D195: 04-SAN CRISTOBAL | E195: 375 | F195: =+E195/12 -> 31 | G195: 19 | H195: 13 | I195: 13 | J195: 10 | K195: 9 | S195: =SUM(G195:R195) -> 64 | T195: 17.1% | U195: 92
A196: FAMISANAR | B196: FAMI- COLSB | C196: CENTRO MEDICO COLSUBSIDIO 20 DE JULIO | D196: 04-SAN CRISTOBAL | F196: 0 | S196: 0 | T196: 0.0% | U196: 0
A197: 04-SAN CRISTOBAL | B197: CAPITAL SALUD | C197: EXTRAMURAL SAN CRISTOBAL | D197: 04-SAN CRISTOBAL | E197: 0 | F197: 0 | G197: 39 | H197: 36 | I197: 72 | J197: 51 | K197: 68 | S197: 266 | T197: 0.0%
A198: 04-SAN CRISTOBAL | B198: DEMAS EAPB | C198: EXTRAMURAL SAN CRISTOBAL | D198: 04-SAN CRISTOBAL | E198: 0 | F198: 0 | G198: 73 | H198: 51 | I198: 151 | J198: 138 | K198: 136 | S198: 549 | T198: 0.0%
A199: 04-SAN CRISTOBAL | B199: OTROS | C199: EXTRAMURAL SAN CRISTOBAL | D199: 04-SAN CRISTOBAL | E199: 0 | F199: 0 | G199: 5 | H199: 14 | I199: 17 | J199: 13 | K199: 17 | S199: 66 | T199: 0.0%
A200: 04-SAN CRISTOBAL | B200: UNICAJAS | C200: EXTRAMURAL SAN CRISTOBAL | D200: 04-SAN CRISTOBAL | E200: 0 | F200: 0 | G200: 4 | H200: 2 | I200: 13 | J200: 5 | K200: 9 | S200: 33 | T200: 0.0%
... 620 more rows

Sheet ROTAVIRUS1
A1: EAPB | B1: EPS O ESE | C1: IPS | D1: Localidad | E1: Meta Anual Menor de 1 Año | F1: Meta Mensual | G1: Enero | H1: Febrero | I1: Marzo | J1: Abril | K1: Mayo | L1: Junio | M1: Julio | N1: Agosto | O1: Septiembre | P1: Octubre | Q1: Noviembre | R1: Diciembre | S1: Total | T1: % Cobertura | U1: Deficit
A2: CAPITAL SALUD | B2: CAPITAL SALUD | C2: UPA SAN CRISTOBAL | D2: 01-USAQUEN | E2: 124 | F2: =+E2/12 -> 10 | G2: 6 | H2: 7 | I2: 3 | J2: 7 | K2: 7 | S2: =SUM(G2:R2) -> 30 | T2: =IF(E2=0,0,+S2/E2) -> 24.2% | U2: =IF(COUNT(G2:R2)*(E2/12)-S2<0,"",COUNT(G2:R2)*(E2/12)-S2) -> 22
A3: CAPITAL SALUD | B3: CAPITAL SALUD | C3: UPA USAQUEN | D3: 01-USAQUEN | E3: 10 | F3: =+E3/12 -> 1 | G3: 0 | H3: 1 | I3: 0 | J3: 0 | K3: 0 | S3: =SUM(G3:R3) -> 1 | T3: 10.0% | U3: 3
A4: CAPITAL SALUD | B4: CAPITAL SALUD | C4: UPA ORQUIDEAS | D4: 01-USAQUEN | E4: 11 | F4: 1 | G4: 1 | H4: 3 | I4: 2 | J4: 2 | K4: 5 | S4: 13 | T4: 118.2%
A5: CAPITAL SALUD | B5: CAPITAL SALUD | C5: UPA CODITO | D5: 01-USAQUEN | E5: 107 | F5: 9 | G5: 7 | H5: 4 | I5: 11 | J5: 4 | K5: 5 | S5: 31 | T5: 29.0% | U5: 14
A6: CAPITAL SALUD | B6: CAPITAL SALUD | C6: CAMI VERBENAL | D6: 01-USAQUEN | E6: 87 | F6: 7 | G6: 10 | H6: 4 | I6: 11 | J6: 5 | K6: 3 | S6: 33 | T6: 37.9% | U6: 3
A7: CAPITAL SALUD | B7: CAPITAL SALUD | C7: HOSPITAL SIMON BOLIVAR | D7: 01-USAQUEN | E7: 36 | F7: 3 | G7: 22 | H7: 9 | I7: 6 | J7: 0 | K7: 2 | S7: 39 | T7: 108.3%
A8: 01-USAQUEN | B8: 01-USAQUEN | C8: EXTRAMURAL USAQUEN | D8: 01-USAQUEN | E8: 0 | F8: 0 | G8: 5 | H8: 3 | I8: 5 | J8: 18 | K8: 38 | S8: 69 | T8: 0.0%
A9: ALIANSALUD | B9: ALIANSALUD | C9: CENTRO MEDICO COLMEDICA SANTA BARBARA | D9: 01-USAQUEN | E9: 580 | F9: 48 | G9: 63 | H9: 43 | I9: 43 | J9: 34 | K9: 49 | S9: 232 | T9: 40.0% | U9: 10
A10: COMPENSAR | B10: COMPENSAR | C10: USS CALLE 134 | D10: 01-USAQUEN | E10: 372 | F10: 31 | G10: 17 | H10: 21 | I10: 15 | J10: 11 | K10: 22 | S10: 86 | T10: 23.1% | U10: 69
A11: COMPENSAR | B11: COMPENSAR | C11: USS CALLE 145 | D11: 01-USAQUEN | E11: 173 | F11: 14 | G11: 12 | H11: 10 | I11: 22 | J11: 8 | K11: 20 | S11: 72 | T11: 41.6% | U11: 0
A12: COMPENSAR | B12: COMPENSAR | C12: JAVESALUD TOBERIN | D12: 01-USAQUEN | E12: 372 | F12: 31 | G12: 6 | H12: 12 | I12: 14 | J12: 11 | K12: 10 | S12: 53 | T12: 14.2% | U12: 102
A13: COOMEVA | B13: COOMEVA | C13: SINERGIA UNIDAD INTEGRAL EN SALUD | D13: 01-USAQUEN | E13: 44 | F13: 4 | G13: 5 | H13: 4 | I13: 5 | J13: 4 | K13: 5 | S13: 23 | T13: 52.3%
A14: FAMISANAR | B14: FAMI- COLSB | C14: CENTRO MEDICO COLSUBSIDIO USAQUEN | D14: 01-USAQUEN | E14: 298 | F14: 25 | G14: 37 | H14: 45 | I14: 25 | J14: 20 | K14: 23 | S14: 150 | T14: 50.3%
A15: MILITAR | B15: MILITAR | C15: DISPENSARIO MEDICO CANTON NORTE | D15: 01-USAQUEN | E15: 205 | F15: 17 | G15: 8 | H15: 4 | I15: 6 | J15: 6 | K15: 8 | S15: 32 | T15: 15.6% | U15: 53
A16: NUEVA EPS | B16: NUEVA EPS | C16: IPS VIVA 1A SEDE TOBERIN | D16: 01-USAQUEN | E16: 147 | F16: 12 | G16: 9 | H16: 9 | I16: 6 | J16: 5 | K16: 2 | S16: 31 | T16: 21.1% | U16: 30
A17: NUEVA EPS | B17: NUEVA EPS | C17: CAFAM GRANADA HILLS | D17: 01-USAQUEN | E17: 44 | F17: 4 | G17: 2 | H17: 2 | I17: 1 | J17: 2 | K17: 1 | S17: 8 | T17: 18.2% | U17: 10
A18: SANITAS | B18: SANITAS | C18: UAP SANITAS TOBERIN | D18: 01-USAQUEN | E18: 511 | F18: 43 | G18: 25 | H18: 38 | I18: 34 | J18: 27 | K18: 18 | S18: 142 | T18: 27.8% | U18: 71
A19: SANITAS | B19: SANITAS | C19: MEDIKA IPS SANITAS UAP USAQUEN | D19: 01-USAQUEN | E19: 188 | F19: 16 | G19: 4 | H19: 2 | I19: 3 | J19: 1 | K19: 2 | S19: 12 | T19: 6.4% | U19: 66
A20: SANITAS | B20: SANITAS | C20: UAP SANTA BARBARA | D20: 01-USAQUEN | E20: 796 | F20: 66 | G20: 93 | H20: 113 | I20: 117 | J20: 65 | K20: 58 | S20: 446 | T20: 56.0%
A21: SANITAS | B21: SANITAS | C21: SANITAS BANCO DE LA REPUBLICA | D21: 01-USAQUEN | E21: 0 | F21: 0 | G21: 3 | H21: 3 | I21: 5 | J21: 5 | K21: 4 | S21: 20 | T21: 0.0%
A22: SALUD TOTAL | B22: SALUD TOTAL | C22: VIRREY SOLIS TOBERÍN | D22: 01-USAQUEN | E22: 384 | F22: 32 | G22: 24 | H22: 13 | I22: 19 | J22: 14 | K22: 11 | S22: 81 | T22: 21.1% | U22: 79
A23: SURA | B23: SURA | C23: IPS JAVESALUD SANTA BEATRIZ | D23: 01-USAQUEN | E23: 355 | F23: 30 | G23: 20 | H23: 13 | I23: 12 | J23: 4 | K23: 15 | S23: 64 | T23: 18.0% | U23: 84
A24: ECOPETROL | B24: ECOPETROL | C24: IPS CLINICOS PALATINO | D24: 01-USAQUEN | E24: 87 | F24: 7 | G24: 6 | H24: 9 | I24: 7 | J24: 5 | K24: 6 | S24: 33 | T24: 37.9% | U24: 3
A25: PARTICULAR | B25: PARTICULAR | C25: CLINICA PEDIATRICA COLSANITAS | D25: 01-USAQUEN | E25: 830 | F25: 69 | G25: 59 | H25: 57 | I25: 46 | J25: 51 | K25: 38 | S25: 251 | T25: 30.2% | U25: 95
A26: PARTICULAR | B26: PARTICULAR | C26: CENTRO MEDICO COLSANITAS LA CALLEJA | D26: 01-USAQUEN | E26: 120 | F26: 10 | G26: 5 | H26: 15 | I26: 6 | J26: 5 | K26: 3 | S26: 34 | T26: 28.3% | U26: 16
A27: PARTICULAR | B27: PARTICULAR | C27: CENTRO MEDICO COLSANITAS 108 | D27: 01-USAQUEN | E27: 40 | F27: 3 | G27: 4 | H27: 3 | I27: 0 | J27: 0 | K27: 0 | S27: 7 | T27: 17.5% | U27: 10
A28: PARTICULAR | B28: PARTICULAR | C28: CENTRO MEDICO COLSANITAS SANTA ANA | D28: 01-USAQUEN | E28: 4 | F28: 0 | G28: 1 | H28: 3 | I28: 3 | J28: 0 | K28: 0 | S28: 7 | T28: 175.0%
A29: PARTICULAR | B29: PARTICULAR | C29: FUNDACIÓN CARDIO INFANTIL | D29: 01-USAQUEN | E29: 0 | F29: 0 | G29: 5 | H29: 16 | I29: 6 | J29: 2 | K29: 3 | S29: 32 | T29: 0.0%
A30: PARTICULAR | B30: PARTICULAR | C30: ENFASO USAQUEN | D30: 01-USAQUEN | E30: 0 | F30: 0 | G30: 9 | H30: 13 | I30: 1 | J30: 0 | K30: 6 | S30: 29 | T30: 0.0%
A31: PARTICULAR | B31: PARTICULAR | C31: UNIDAD DE VACUNACIÓN INTERNACIONAL | D31: 01-USAQUEN | E31: 0 | F31: 0 | G31: 6 | H31: 5 | I31: 3 | J31: 3 | K31: 0 | S31: 17 | T31: 0.0%
A32: PARTICULAR | B32: PARTICULAR | C32: INMUNOLOGÍA Y DIAGNÓSTICO ESPECIALIZADO LTDA. | D32: 01-USAQUEN | E32: 0 | F32: 0 | G32: 2 | H32: 0 | I32: 2 | J32: 0 | K32: 0 | S32: 4 | T32: 0.0%
A33: PARTICULAR | B33: PARTICULAR | C33: PROTEGER HEALHT CARE | D33: 01-USAQUEN | E33: 0 | F33: 0 | G33: 1 | H33: 6 | I33: 1 | J33: 1 | K33: 3 | S33: 12 | T33: 0.0%
A34: PARTICULAR | B34: PARTICULAR | C34: FUNDACION SANTA FE DE BOGOTA | D34: 01-USAQUEN | E34: 0 | F34: 0 | G34: 0 | H34: 1 | I34: 0 | J34: 0 | K34: 0 | S34: 1 | T34: 0.0%
A35: PARTICULAR | B35: PARTICULAR | C35: IPS CRUZ ROJA SEDE UNICENTRO | D35: 01-USAQUEN | E35: 0 | F35: 0 | G35: 0 | H35: 0 | I35: 0 | J35: 0 | K35: 0 | S35: 0 | T35: 0.0% | U35: 0
A36: PARTICULAR | B36: PARTICULAR | C36: IPS CRUZ ROJA SAMU CALLE 145 | D36: 01-USAQUEN | E36: 0 | F36: 0 | G36: 0 | H36: 0 | I36: 0 | J36: 0 | K36: 0 | S36: 0 | T36: 0.0% | U36: 0
A37: PEDIATRAS | B37: PEDIATRAS | C37: DR. ALEJANDRO LÓPEZ | D37: 01-USAQUEN | E37: 0 | F37: 0 | G37: 0 | H37: 3 | I37: 0 | J37: 1 | K37: 0 | S37: 4 | T37: 0.0%
A38: PEDIATRAS | B38: PEDIATRAS | C38: DR. CARLOS NEFTALI TORRES | D38: 01-USAQUEN | E38: 0 | F38: 0 | G38: 1 | H38: 4 | I38: 2 | J38: 6 | K38: 3 | S38: 16 | T38: 0.0%
A39: PEDIATRAS | B39: PEDIATRAS | C39: DR. FRANCISCO NUÑEZ | D39: 01-USAQUEN | E39: 0 | F39: 0 | G39: 1 | H39: 1 | I39: 0 | J39: 0 | K39: 1 | S39: 3 | T39: 0.0%
A40: PEDIATRAS | B40: PEDIATRAS | C40: DR. FERNANDO GOMEZ | D40: 01-USAQUEN | E40: 0 | F40: 0 | G40: 0 | H40: 0 | I40: 0 | J40: 0 | K40: 0 | S40: 0 | T40: 0.0% | U40: 0
A41: PEDIATRAS | B41: PEDIATRAS | C41: DR. FERNANDO ZARATE MORENO | D41: 01-USAQUEN | E41: 0 | F41: 0 | G41: 1 | H41: 1 | I41: 0 | J41: 1 | K41: 0 | S41: 3 | T41: 0.0%
A42: PEDIATRAS | B42: PEDIATRAS | C42: DR. GONZALO GARCIA | D42: 01-USAQUEN | E42: 0 | F42: 0 | G42: 1 | H42: 0 | I42: 1 | J42: 0 | K42: 1 | S42: 3 | T42: 0.0%
A43: PEDIATRAS | B43: PEDIATRAS | C43: DR. GUSTAVO MORALES | D43: 01-USAQUEN | E43: 0 | F43: 0 | G43: 2 | H43: 1 | I43: 2 | J43: 0 | K43: 4 | S43: 9 | T43: 0.0%
A44: PEDIATRAS | B44: PEDIATRAS | C44: DR. JAIME OSPINA | D44: 01-USAQUEN | E44: 0 | F44: 0 | G44: 1 | H44: 0 | I44: 0 | J44: 3 | K44: 0 | S44: 4 | T44: 0.0%
A45: PEDIATRAS | B45: PEDIATRAS | C45: DR. JORGE URIBE | D45: 01-USAQUEN | E45: 0 | F45: 0 | G45: 0 | H45: 1 | I45: 1 | J45: 0 | K45: 0 | S45: 2 | T45: 0.0%
A46: PEDIATRAS | B46: PEDIATRAS | C46: DR. JUAN LUIS FIGUEROA | D46: 01-USAQUEN | E46: 0 | F46: 0 | G46: 2 | H46: 1 | I46: 0 | J46: 0 | K46: 2 | S46: 5 | T46: 0.0%
A47: PEDIATRAS | B47: PEDIATRAS | C47: DR. LUIS AUGUSTO PERNA | D47: 01-USAQUEN | E47: 0 | F47: 0 | G47: 4 | H47: 2 | I47: 5 | J47: 0 | K47: 2 | S47: 13 | T47: 0.0%
A48: PEDIATRAS | B48: PEDIATRAS | C48: DR. LIBARDO ELI TRIANA | D48: 01-USAQUEN | E48: 0 | F48: 0 | G48: 0 | H48: 1 | I48: 1 | J48: 1 | K48: 0 | S48: 3 | T48: 0.0%
A49: PEDIATRAS | B49: PEDIATRAS | C49: DR. OSWALDO MERCADO HOYOS | D49: 01-USAQUEN | E49: 0 | F49: 0 | G49: 3 | H49: 3 | I49: 1 | J49: 0 | K49: 2 | S49: 9 | T49: 0.0%
A50: PEDIATRAS | B50: PEDIATRAS | C50: DR. ROBERTO BENIRO | D50: 01-USAQUEN | E50: 0 | F50: 0 | G50: 0 | H50: 0 | I50: 0 | J50: 0 | K50: 0 | S50: 0 | T50: 0.0% | U50: 0
A51: PEDIATRAS | B51: PEDIATRAS | C51: DR. SERGIO ISAZA | D51: 01-USAQUEN | E51: 0 | F51: 0 | G51: 0 | H51: 0 | I51: 0 | J51: 0 | K51: 0 | S51: 0 | T51: 0.0% | U51: 0
A52: PEDIATRAS | B52: PEDIATRAS | C52: DR. SANTIAGO UCROS | D52: 01-USAQUEN | E52: 0 | F52: 0 | G52: 0 | H52: 0 | I52: 0 | J52: 0 | K52: 0 | S52: 0 | T52: 0.0% | U52: 0
A53: PEDIATRAS | B53: PEDIATRAS | C53: DR. GERMAN SILVA | D53: 01-USAQUEN | E53: 0 | F53: 0 | G53: 0 | H53: 0 | I53: 0 | J53: 0 | K53: 0 | S53: 0 | T53: 0.0% | U53: 0
A54: PEDIATRAS | B54: PEDIATRAS | C54: DR. DANIEL ABRIL | D54: 01-USAQUEN | E54: 0 | F54: 0 | G54: 0 | H54: 0 | I54: 0 | J54: 0 | K54: 0 | S54: 0 | T54: 0.0% | U54: 0
A55: PEDIATRAS | B55: PEDIATRAS | C55: DR. CARLOS EDUARDO OLMOS | D55: 01-USAQUEN | E55: 0 | F55: 0 | G55: 0 | H55: 0 | I55: 0 | J55: 0 | K55: 0 | S55: 0 | T55: 0.0% | U55: 0
A56: PEDIATRAS | B56: PEDIATRAS | C56: DR. EDGARDO CHATMAN | D56: 01-USAQUEN | E56: 0 | F56: 0 | G56: 0 | H56: 0 | I56: 0 | J56: 0 | K56: 0 | S56: 0 | T56: 0.0% | U56: 0
A57: PEDIATRAS | B57: PEDIATRAS | C57: DR. JORGE FLOREZ OTERO | D57: 01-USAQUEN | E57: 0 | F57: 0 | G57: 0 | H57: 0 | I57: 0 | J57: 0 | K57: 0 | S57: 0 | T57: 0.0% | U57: 0
A58: PEDIATRAS | B58: PEDIATRAS | C58: DRA. ALEJANDRA MARIA VALENCIA | D58: 01-USAQUEN | E58: 0 | F58: 0 | G58: 0 | H58: 0 | I58: 0 | J58: 0 | K58: 0 | S58: 0 | T58: 0.0% | U58: 0
A59: PEDIATRAS | B59: PEDIATRAS | C59: DRA. ANA MARIA GOYENECHE | D59: 01-USAQUEN | E59: 0 | F59: 0 | G59: 0 | H59: 0 | I59: 0 | J59: 0 | K59: 0 | S59: 0 | T59: 0.0% | U59: 0
A60: PEDIATRAS | B60: PEDIATRAS | C60: DRA. JIMENA VARELA | D60: 01-USAQUEN | E60: 0 | F60: 0 | G60: 0 | H60: 0 | I60: 0 | J60: 0 | K60: 0 | S60: 0 | T60: 0.0% | U60: 0
A61: PEDIATRAS | B61: PEDIATRAS | C61: DRA. LIA SAN MIGUEL | D61: 01-USAQUEN | E61: 0 | F61: 0 | G61: 0 | H61: 0 | I61: 0 | J61: 0 | K61: 0 | S61: 0 | T61: 0.0% | U61: 0
A62: PEDIATRAS | B62: PEDIATRAS | C62: DRA. LIBIA SEGURA | D62: 01-USAQUEN | E62: 0 | F62: 0 | G62: 0 | H62: 0 | I62: 1 | J62: 1 | K62: 0 | S62: 2 | T62: 0.0%
A63: PEDIATRAS | B63: PEDIATRAS | C63: DRA. MARÍA JOSÉ PEDRAZA | D63: 01-USAQUEN | E63: 0 | F63: 0 | G63: 0 | H63: 0 | I63: 0 | J63: 0 | K63: 0 | S63: 0 | T63: 0.0% | U63: 0
A64: PEDIATRAS | B64: PEDIATRAS | C64: DRA. MARTHA LUCIA SANCHEZ | D64: 01-USAQUEN | E64: 0 | F64: 0 | G64: 0 | H64: 0 | I64: 0 | J64: 0 | K64: 0 | S64: 0 | T64: 0.0% | U64: 0
A65: PEDIATRAS | B65: PEDIATRAS | C65: DRA. OLGA LUCÍA SÁNCHEZ | D65: 01-USAQUEN | E65: 0 | F65: 0 | G65: 0 | H65: 0 | I65: 0 | J65: 0 | K65: 0 | S65: 0 | T65: 0.0% | U65: 0
A66: PEDIATRAS | B66: PEDIATRAS | C66: DRA. SANDRA BELTRAN | D66: 01-USAQUEN | E66: 0 | F66: 0 | G66: 0 | H66: 0 | I66: 1 | J66: 0 | K66: 0 | S66: 1 | T66: =IF(E66=0,0,+S66/E66) -> 0.0% | U66: =IF(COUNT(G66:R66)*(E66/12)-S66<0,"",COUNT(G66:R66)*(E66/12)-S66) -> 
A67: PEDIATRAS | B67: PEDIATRAS | C67: DRA. IVANA CABRERA | D67: 01-USAQUEN | E67: 0 | F67: =+E67/12 -> 0 | G67: 0 | H67: 0 | I67: 0 | J67: 0 | K67: 0 | S67: =SUM(G67:R67) -> 0 | T67: 0.0% | U67: 0
A68: PEDIATRAS | B68: PEDIATRAS | C68: DRA. NAYITA ALARCON | D68: 01-USAQUEN | E68: 0 | F68: 0 | G68: 0 | H68: 0 | I68: 0 | J68: 0 | K68: 0 | S68: 0 | T68: 0.0% | U68: 0
A69: PEDIATRAS | B69: PEDIATRAS | C69: DRA. ELIZABETH GARCIA | D69: 01-USAQUEN | E69: 0 | F69: 0 | G69: 0 | H69: 0 | I69: 0 | J69: 0 | K69: 0 | S69: 0 | T69: 0.0% | U69: 0
A70: PEDIATRAS | B70: PEDIATRAS | C70: DRA. BERTHA CALDERON DE RAMOS | D70: 01-USAQUEN | E70: 0 | F70: 0 | G70: 0 | H70: 0 | I70: 0 | J70: 0 | K70: 0 | S70: 0 | T70: 0.0% | U70: 0
A71: PEDIATRAS | B71: PEDIATRAS | C71: DRA. MIRYAM CORREA | D71: 01-USAQUEN | E71: 0 | F71: 0 | G71: 0 | H71: 1 | I71: 0 | J71: 0 | K71: 0 | S71: 1 | T71: 0.0%
A72: 01-USAQUEN | B72: UNICAJAS | C72: UPA SAN CRISTOBAL | D72: 01-USAQUEN | E72: 6 | F72: 1 | G72: 1 | H72: 0 | I72: 0 | J72: 1 | K72: 0 | S72: 2 | T72: 33.3% | U72: 1
A73: UNICAJAS | B73: UNICAJAS | C73: UPA USAQUEN | D73: 01-USAQUEN | E73: 9 | F73: 1 | G73: 0 | H73: 0 | I73: 0 | J73: 0 | K73: 0 | S73: 0 | T73: 0.0% | U73: 4
A74: UNICAJAS | B74: UNICAJAS | C74: UPA ORQUIDEAS | D74: 01-USAQUEN | E74: 6 | F74: 1 | G74: 0 | H74: 0 | I74: 0 | J74: 0 | K74: 1 | S74: 1 | T74: 16.7% | U74: 2
A75: UNICAJAS | B75: UNICAJAS | C75: UPA CODITO | D75: 01-USAQUEN | E75: 5 | F75: 0 | G75: 0 | H75: 0 | I75: 0 | J75: 0 | K75: 0 | S75: 0 | T75: 0.0% | U75: 2
A76: UNICAJAS | B76: UNICAJAS | C76: CAMI VERBENAL | D76: 01-USAQUEN | E76: 6 | F76: 1 | G76: 0 | H76: 0 | I76: 2 | J76: 1 | K76: 1 | S76: 4 | T76: 66.7%
A77: 01-USAQUEN | B77: UNICAJAS | C77: HOSPITAL SIMON BOLIVAR | D77: 01-USAQUEN | E77: 6 | F77: 1 | G77: 1 | H77: 1 | I77: 0 | J77: 1 | K77: 0 | S77: 3 | T77: 50.0%
A78: 01-USAQUEN | B78: OTROS | C78: UPA SAN CRISTOBAL | D78: 01-USAQUEN | E78: 300 | F78: 25 | G78: 0 | H78: 2 | I78: 2 | J78: 2 | K78: 1 | S78: 7 | T78: 2.3% | U78: 118
A79: 01-USAQUEN | B79: OTROS | C79: UPA USAQUEN | D79: 01-USAQUEN | E79: 100 | F79: 8 | G79: 0 | H79: 0 | I79: 0 | J79: 0 | K79: 0 | S79: 0 | T79: 0.0% | U79: 42
A80: 01-USAQUEN | B80: OTROS | C80: UPA ORQUIDEAS | D80: 01-USAQUEN | E80: 120 | F80: 10 | G80: 0 | H80: 0 | I80: 0 | J80: 2 | K80: 1 | S80: 3 | T80: 2.5% | U80: 47
A81: 01-USAQUEN | B81: OTROS | C81: UPA CODITO | D81: 01-USAQUEN | E81: 218 | F81: 18 | G81: 4 | H81: 0 | I81: 1 | J81: 1 | K81: 0 | S81: 6 | T81: 2.8% | U81: 85
A82: 01-USAQUEN | B82: OTROS | C82: CAMI VERBENAL | D82: 01-USAQUEN | E82: 309 | F82: 26 | G82: 4 | H82: 2 | I82: 2 | J82: 1 | K82: 1 | S82: 10 | T82: 3.2% | U82: 119
A83: 01-USAQUEN | B83: OTROS | C83: HOSPITAL SIMON BOLIVAR | D83: 01-USAQUEN | E83: 480 | F83: 40 | G83: 8 | H83: 12 | I83: 7 | J83: 4 | K83: 1 | S83: 32 | T83: 6.7% | U83: 168
A84: 01-USAQUEN | B84: DEMAS EAPB | C84: UPA SAN CRISTOBAL | D84: 01-USAQUEN | F84: 0 | G84: 10 | H84: 9 | I84: 11 | J84: 8 | K84: 8 | S84: 46 | T84: 0.0%
A85: 01-USAQUEN | B85: DEMAS EAPB | C85: UPA USAQUEN | D85: 01-USAQUEN | F85: 0 | G85: 3 | H85: 0 | I85: 0 | J85: 0 | K85: 0 | S85: 3 | T85: 0.0%
A86: 01-USAQUEN | B86: DEMAS EAPB | C86: UPA ORQUIDEAS | D86: 01-USAQUEN | F86: 0 | G86: 2 | H86: 2 | I86: 3 | J86: 6 | K86: 3 | S86: 16 | T86: 0.0%
A87: 01-USAQUEN | B87: DEMAS EAPB | C87: UPA CODITO | D87: 01-USAQUEN | F87: 0 | G87: 7 | H87: 10 | I87: 12 | J87: 11 | K87: 10 | S87: 50 | T87: 0.0%
A88: 01-USAQUEN | B88: DEMAS EAPB | C88: CAMI VERBENAL | D88: 01-USAQUEN | F88: 0 | G88: 3 | H88: 12 | I88: 12 | J88: 9 | K88: 20 | S88: 56 | T88: 0.0%
A89: 01-USAQUEN | B89: DEMAS EAPB | C89: HOSPITAL SIMON BOLIVAR | D89: 01-USAQUEN | F89: 0 | G89: 20 | H89: 20 | I89: 4 | J89: 9 | K89: 11 | S89: 64 | T89: 0.0%
A90: MEDIMAS | B90: MEDIMAS | C90: Corvesalud S.A.S - I P S Chico | D90: 01-USAQUEN | E90: 320 | F90: 27 | G90: 5 | H90: 5 | I90: 7 | S90: 17 | T90: 5.3% | U90: 63
A91: FAMISANAR | B91: COLSUBSIDIO | C91: Sura PAC Santa Bárbara | D91: 01-USAQUEN | F91: 0 | S91: 0 | T91: 0.0% | U91: 0
A92: CAPITAL SALUD | B92: CAPITAL SALUD | C92: UPA SAN LUIS | D92: 02-CHAPINERO | E92: 12 | F92: 1 | G92: 4 | H92: 2 | I92: 1 | J92: 0 | K92: 2 | S92: 9 | T92: 75.0%
A93: 02-CHAPINERO | B93: 02-CHAPINERO | C93: EXTRAMURAL CHAPINERO | D93: 02-CHAPINERO | E93: 0 | F93: 0 | G93: 1 | H93: 0 | I93: 1 | J93: 13 | K93: 17 | S93: 32 | T93: 0.0%
A94: COMPENSAR | B94: COMPENSAR | C94: USS CALLE 42 | D94: 02-CHAPINERO | E94: 612 | F94: 51 | G94: 29 | H94: 43 | I94: 26 | J94: 36 | K94: 28 | S94: 162 | T94: 26.5% | U94: 93
A95: COMPENSAR | B95: COMPENSAR | C95: USS CALLE 67 | D95: 02-CHAPINERO | E95: 0 | F95: 0 | G95: 0 | H95: 0 | I95: 0 | J95: 0 | K95: 0 | S95: 0 | T95: 0.0% | U95: 0
A96: COMPENSAR | B96: COMPENSAR | C96: USS CALLE 94 | D96: 02-CHAPINERO | E96: 369 | F96: 31 | G96: 35 | H96: 41 | I96: 26 | J96: 46 | K96: 63 | S96: 211 | T96: 57.2%
A97: COMPENSAR | B97: COMPENSAR | C97: VIVA 1A IPS CHAPINERO | D97: 02-CHAPINERO | E97: 73 | F97: 6 | G97: 4 | H97: 6 | I97: 6 | J97: 2 | K97: 3 | S97: 21 | T97: 28.8% | U97: 9
A98: COOMEVA | B98: COOMEVA | C98: SINERGIA UNIDAD BASICA LOURDES | D98: 02-CHAPINERO | E98: 217 | F98: 18 | G98: 9 | H98: 10 | I98: 9 | J98: 2 | K98: 0 | S98: 30 | T98: 13.8% | U98: 60
A99: FAMISANAR | B99: FAMI- CAFAM | C99: CENTRO DE ATENCION EN SALUD CAFAM CALLE 48 | D99: 02-CHAPINERO | E99: 1050 | F99: 88 | G99: 31 | H99: 36 | I99: 21 | J99: 19 | K99: 31 | S99: 138 | T99: 13.1% | U99: 300
A100: FAMISANAR | B100: FAMI- CAFAM | C100: CENTRO DE ATENCION EN SALUD CAFAM CALLE 90 | D100: 02-CHAPINERO | E100: 200 | F100: 17 | G100: 11 | H100: 7 | I100: 20 | J100: 5 | K100: 10 | S100: 53 | T100: 26.5% | U100: 30
A101: FAMISANAR | B101: FAMI- COLSB | C101: CLINICA COLSUBSIDIO EL LAGO | D101: 02-CHAPINERO | E101: 392 | F101: 33 | G101: 8 | H101: 11 | I101: 6 | J101: 5 | K101: 7 | S101: 37 | T101: 9.4% | U101: 126
A102: MILITAR | B102: MILITAR | C102: HOSPITAL MILITAR CENTRAL | D102: 02-CHAPINERO | E102: 70 | F102: 6 | G102: 10 | H102: 11 | I102: 4 | J102: 6 | K102: 3 | S102: 34 | T102: 48.6%
A103: POLICIA | B103: POLICIA | C103: POLICIA NACIONAL ESPAM CHAPINERO | D103: 02-CHAPINERO | E103: 117 | F103: 10 | G103: 4 | H103: 0 | I103: 9 | J103: 32 | K103: 25 | S103: 70 | T103: 59.8%
A104: NUEVA EPS | B104: NUEVA EPS | C104: IPS VIVA 1A SEDE MARLY | D104: 02-CHAPINERO | E104: 131 | F104: 11 | G104: 9 | H104: 5 | I104: 2 | J104: 2 | K104: 4 | S104: 22 | T104: 16.8% | U104: 33
A105: SANITAS | B105: SANITAS | C105: EPS SANITAS CENTRO MEDICO TEUSAQUILLO | D105: 02-CHAPINERO | E105: 579 | F105: 48 | G105: 28 | H105: 22 | I105: 28 | J105: 12 | K105: 14 | S105: 104 | T105: 18.0% | U105: 137
A106: SALUD TOTAL | B106: SALUD TOTAL | C106: VIRREY SOLIS CHAPINERO | D106: 02-CHAPINERO | E106: 337 | F106: 28 | G106: 16 | H106: 13 | I106: 16 | J106: 9 | K106: 16 | S106: 70 | T106: 20.8% | U106: 70
A107: SURA | B107: SURA | C107: PUNTO DE SALUD CHAPINERO | D107: 02-CHAPINERO | E107: 237 | F107: 20 | G107: 13 | H107: 10 | I107: 13 | J107: 5 | K107: 14 | S107: 55 | T107: 23.2% | U107: 44
A108: SURA | B108: SURA | C108: SALUD SURA | D108: 02-CHAPINERO | E108: 454 | F108: 38 | G108: 46 | H108: 30 | I108: 35 | J108: 14 | K108: 32 | S108: 157 | T108: 34.6% | U108: 32
A109: PARTICULAR | B109: PARTICULAR | C109: CENTRO MEDICO COLSANITAS CALLE 96 | D109: 02-CHAPINERO | E109: 24 | F109: 2 | G109: 2 | H109: 0 | I109: 2 | J109: 16 | K109: 12 | S109: 32 | T109: 133.3%
A110: PARTICULAR | B110: PARTICULAR | C110: CENTRO DE ESPECIALISTAS MEDICOS AXA COLPATRIA | D110: 02-CHAPINERO | E110: 0 | F110: 0 | G110: 5 | H110: 6 | I110: 5 | J110: 5 | K110: 9 | S110: 30 | T110: 0.0%
A111: PARTICULAR | B111: PARTICULAR | C111: CLINICA DE LA MUJER | D111: 02-CHAPINERO | E111: 0 | F111: 0 | G111: 54 | H111: 42 | I111: 51 | J111: 24 | K111: 39 | S111: 210 | T111: 0.0%
A112: PARTICULAR | B112: PARTICULAR | C112: VACUNARTE IPS | D112: 02-CHAPINERO | E112: 0 | F112: 0 | G112: 1 | H112: 3 | I112: 1 | J112: 1 | K112: 1 | S112: 7 | T112: 0.0%
A113: PARTICULAR | B113: PARTICULAR | C113: UNIMARLY | D113: 02-CHAPINERO | E113: 0 | F113: 0 | G113: 0 | H113: 0 | I113: 0 | J113: 0 | K113: 0 | S113: 0 | T113: 0.0% | U113: 0
A114: PARTICULAR | B114: PARTICULAR | C114: HOSPITAL SAN IGNACIO | D114: 02-CHAPINERO | E114: 0 | F114: 0 | G114: 9 | H114: 5 | I114: 2 | J114: 2 | K114: 1 | S114: 19 | T114: 0.0%
A115: PARTICULAR | B115: PARTICULAR | C115: PROGRAMA MADRE CANGURO HOSPITAL SAN IGNACIO | D115: 02-CHAPINERO | E115: 0 | F115: 0 | G115: 96 | H115: 100 | I115: 80 | J115: 74 | K115: 65 | S115: 415 | T115: 0.0%
A116: PARTICULAR | B116: PARTICULAR | C116: IPS AVENIR | D116: 02-CHAPINERO | E116: 0 | F116: 0 | G116: 0 | H116: 0 | I116: 0 | J116: 0 | K116: 0 | S116: 0 | T116: 0.0% | U116: 0
A117: PARTICULAR | B117: PARTICULAR | C117: IPS INMUNOLOGIA Y DIAGNOSTICO ESPECIALIZADO | D117: 02-CHAPINERO | E117: 0 | F117: 0 | G117: 0 | H117: 0 | I117: 0 | J117: 0 | K117: 4 | S117: 4 | T117: 0.0%
A118: PARTICULAR | B118: PARTICULAR | C118: ASOCIACION PEDIATRICA DE LOS ANDES | D118: 02-CHAPINERO | E118: 0 | F118: 0 | G118: 1 | H118: 0 | I118: 0 | J118: 0 | K118: 0 | S118: 1 | T118: 0.0%
A119: PARTICULAR | B119: PARTICULAR | C119: CRUZ ROJA SEDE ANDINO | D119: 02-CHAPINERO | E119: 0 | F119: 0 | G119: 0 | H119: 0 | I119: 0 | J119: 0 | K119: 0 | S119: 0 | T119: 0.0% | U119: 0
A120: PARTICULAR | B120: PARTICULAR | C120: CENTRO MEDICO SANTA MONICA | D120: 02-CHAPINERO | E120: 0 | F120: 0 | H120: 0 | I120: 0 | J120: 7 | K120: 8 | S120: 15 | T120: 0.0%
A121: PEDIATRAS | B121: PEDIATRAS | C121: DR. JUAN OSCAR TAMAYO | D121: 02-CHAPINERO | E121: 0 | F121: 0 | G121: 0 | H121: 0 | I121: 0 | J121: 0 | K121: 0 | S121: 0 | T121: 0.0% | U121: 0
A122: PEDIATRAS | B122: PEDIATRAS | C122: DR. ROBERTO SUAREZ | D122: 02-CHAPINERO | E122: 0 | F122: 0 | G122: 0 | H122: 0 | I122: 0 | J122: 0 | K122: 0 | S122: 0 | T122: 0.0% | U122: 0
A123: PEDIATRAS | B123: PEDIATRAS | C123: DR. WILLIAM RICARDO CABRA | D123: 02-CHAPINERO | E123: 0 | F123: 0 | G123: 3 | H123: 2 | I123: 0 | J123: 2 | K123: 0 | S123: 7 | T123: 0.0%
A124: PEDIATRAS | B124: PEDIATRAS | C124: DR. EDGAR CASTRO | D124: 02-CHAPINERO | E124: 0 | F124: 0 | G124: 5 | H124: 2 | I124: 0 | J124: 6 | K124: 5 | S124: 18 | T124: 0.0%
A125: PEDIATRAS | B125: PEDIATRAS | C125: DR. PABLO KRAUSS | D125: 02-CHAPINERO | E125: 0 | F125: 0 | G125: 4 | H125: 1 | I125: 1 | J125: 0 | K125: 0 | S125: 6 | T125: 0.0%
A126: PEDIATRAS | B126: PEDIATRAS | C126: DR. HERNAN ROBLES | D126: 02-CHAPINERO | E126: 0 | F126: 0 | G126: 5 | H126: 3 | I126: 6 | J126: 4 | K126: 3 | S126: 21 | T126: 0.0%
A127: PEDIATRAS | B127: PEDIATRAS | C127: DR. RAFAEL GAMBOA CASABLANCA | D127: 02-CHAPINERO | E127: 0 | F127: 0 | G127: 15 | H127: 11 | I127: 5 | J127: 1 | K127: 8 | S127: 40 | T127: 0.0%
A128: PEDIATRAS | B128: PEDIATRAS | C128: DR. JAVIER MEJIA | D128: 02-CHAPINERO | E128: 0 | F128: 0 | G128: 2 | H128: 2 | I128: 4 | J128: 2 | K128: 2 | S128: 12 | T128: 0.0%
A129: PEDIATRAS | B129: PEDIATRAS | C129: DR. CARLOS CORTAZAR | D129: 02-CHAPINERO | E129: 0 | F129: 0 | G129: 0 | H129: 0 | I129: 0 | J129: 0 | K129: 0 | S129: 0 | T129: 0.0% | U129: 0
A130: PEDIATRAS | B130: PEDIATRAS | C130: DR. NELSON PARDO | D130: 02-CHAPINERO | E130: 0 | F130: 0 | G130: 2 | H130: 1 | I130: 4 | J130: 0 | K130: 0 | S130: 7 | T130: =IF(E130=0,0,+S130/E130) -> 0.0% | U130: =IF(COUNT(G130:R130)*(E130/12)-S130<0,"",COUNT(G130:R130)*(E130/12)-S130) -> 
A131: PEDIATRAS | B131: PEDIATRAS | C131: DR. ALVARO JACOME | D131: 02-CHAPINERO | E131: 0 | F131: =+E131/12 -> 0 | G131: 2 | H131: 1 | I131: 0 | J131: 4 | K131: 1 | S131: =SUM(G131:R131) -> 8 | T131: 0.0%
A132: PEDIATRAS | B132: PEDIATRAS | C132: DR. SILVIO COPO | D132: 02-CHAPINERO | E132: 0 | F132: 0 | G132: 0 | H132: 1 | I132: 0 | J132: 0 | K132: 0 | S132: 1 | T132: 0.0%
A133: PEDIATRAS | B133: PEDIATRAS | C133: DR. HECTOR FERNANDO MENDOZA | D133: 02-CHAPINERO | E133: 0 | F133: 0 | G133: 0 | H133: 0 | I133: 0 | J133: 0 | K133: 1 | S133: 1 | T133: 0.0%
A134: PEDIATRAS | B134: PEDIATRAS | C134: DR. DIMITRIOS | D134: 02-CHAPINERO | E134: 0 | F134: 0 | G134: 0 | H134: 1 | I134: 0 | J134: 1 | K134: 0 | S134: 2 | T134: 0.0%
A135: PEDIATRAS | B135: PEDIATRAS | C135: DR. ALVARO MARIÑO | D135: 02-CHAPINERO | E135: 0 | F135: 0 | G135: 0 | H135: 1 | I135: 0 | J135: 0 | K135: 0 | S135: 1 | T135: 0.0%
A136: PEDIATRAS | B136: PEDIATRAS | C136: DR. ANDRES VARGAS | D136: 02-CHAPINERO | E136: 0 | F136: 0 | G136: 2 | H136: 1 | I136: 1 | J136: 0 | K136: 1 | S136: 5 | T136: 0.0%
A137: PEDIATRAS | B137: PEDIATRAS | C137: DR. JORGE CAMILO LUNA | D137: 02-CHAPINERO | E137: 0 | F137: 0 | G137: 1 | H137: 7 | I137: 2 | J137: 18 | K137: 5 | S137: 33 | T137: 0.0%
A138: PEDIATRAS | B138: PEDIATRAS | C138: DR. BERNARDO HUERTAS | D138: 02-CHAPINERO | E138: 0 | F138: 0 | G138: 13 | H138: 13 | I138: 8 | J138: 11 | K138: 11 | S138: 56 | T138: 0.0%
A139: PEDIATRAS | B139: PEDIATRAS | C139: DR. CARLOS M CASTILLO | D139: 02-CHAPINERO | E139: 0 | F139: 0 | G139: 0 | H139: 0 | I139: 0 | J139: 0 | K139: 0 | S139: 0 | T139: 0.0% | U139: 0
A140: PEDIATRAS | B140: PEDIATRAS | C140: DR. HEINZ OTTO PFALZGRAF | D140: 02-CHAPINERO | E140: 0 | F140: 0 | G140: 0 | H140: 0 | I140: 0 | J140: 0 | K140: 0 | S140: 0 | T140: 0.0% | U140: 0
A141: PEDIATRAS | B141: PEDIATRAS | C141: DR. GONZALEZ BALLESTEROS | D141: 02-CHAPINERO | E141: 0 | F141: 0 | G141: 0 | H141: 0 | I141: 0 | J141: 0 | K141: 0 | S141: 0 | T141: 0.0% | U141: 0
A142: PEDIATRAS | B142: PEDIATRAS | C142: DR. NORBERTO SALAMANCA | D142: 02-CHAPINERO | E142: 0 | F142: 0 | G142: 0 | H142: 0 | I142: 0 | J142: 0 | K142: 0 | S142: 0 | T142: 0.0% | U142: 0
A143: PEDIATRAS | B143: PEDIATRAS | C143: DR. CAMILO ENRIQUE SOTOMAYOR | D143: 02-CHAPINERO | E143: 0 | F143: 0 | G143: 0 | H143: 2 | I143: 0 | J143: 0 | K143: 0 | S143: 2 | T143: 0.0%
A144: PEDIATRAS | B144: PEDIATRAS | C144: DR. SANTIAGO RUEDA SAIZ | D144: 02-CHAPINERO | E144: 0 | F144: 0 | G144: 0 | H144: 1 | I144: 0 | J144: 0 | K144: 4 | S144: 5 | T144: 0.0%
A145: PEDIATRAS | B145: PEDIATRAS | C145: DR. HENRY HERNANDO SANCHEZ ESCOBAR | D145: 02-CHAPINERO | E145: 0 | F145: 0 | G145: 1 | H145: 1 | I145: 0 | J145: 0 | K145: 2 | S145: 4 | T145: 0.0%
A146: PEDIATRAS | B146: PEDIATRAS | C146: DR. RUBEN DARIO TAMAYO | D146: 02-CHAPINERO | E146: 0 | F146: 0 | G146: 2 | H146: 2 | I146: 0 | J146: 0 | K146: 1 | S146: 5 | T146: 0.0%
A147: PEDIATRAS | B147: PEDIATRAS | C147: DR. JAIME MAURICIO MATALLANA | D147: 02-CHAPINERO | E147: 0 | F147: 0 | G147: 5 | H147: 4 | I147: 8 | J147: 3 | K147: 5 | S147: 25 | T147: 0.0%
A148: PEDIATRAS | B148: PEDIATRAS | C148: DR. RODRIGO GARCIA | D148: 02-CHAPINERO | E148: 0 | F148: 0 | G148: 0 | H148: 0 | I148: 0 | J148: 0 | K148: 0 | S148: 0 | T148: 0.0% | U148: 0
A149: PEDIATRAS | B149: PEDIATRAS | C149: DR. FELIPE ROBAYO | D149: 02-CHAPINERO | E149: 0 | F149: 0 | G149: 0 | H149: 0 | I149: 0 | J149: 0 | K149: 0 | S149: 0 | T149: 0.0% | U149: 0
A150: PEDIATRAS | B150: PEDIATRAS | C150: DR. RUBEN FRANCO | D150: 02-CHAPINERO | E150: 0 | F150: 0 | G150: 0 | H150: 0 | I150: 1 | J150: 4 | K150: 0 | S150: 5 | T150: 0.0%
A151: PEDIATRAS | B151: PEDIATRAS | C151: DR. ORLANDO RODRIGUEZ RAMIREZ | D151: 02-CHAPINERO | E151: 0 | F151: 0 | G151: 2 | H151: 0 | I151: 0 | J151: 0 | K151: 3 | S151: 5 | T151: 0.0%
A152: PEDIATRAS | B152: PEDIATRAS | C152: DR. ARTURO MORENO | D152: 02-CHAPINERO | E152: 0 | F152: 0 | G152: 0 | H152: 0 | I152: 0 | J152: 0 | K152: 0 | S152: 0 | T152: 0.0% | U152: 0
A153: PEDIATRAS | B153: PEDIATRAS | C153: DR. FRANCISCO LEAL QUEVEDO | D153: 02-CHAPINERO | E153: 0 | F153: 0 | G153: 0 | H153: 0 | I153: 0 | J153: 0 | K153: 0 | S153: 0 | T153: 0.0% | U153: 0
A154: PEDIATRAS | B154: PEDIATRAS | C154: DR. CARLOS DIAZ PUENTES | D154: 02-CHAPINERO | E154: 0 | F154: 0 | G154: 0 | H154: 0 | I154: 0 | J154: 0 | K154: 0 | S154: 0 | T154: 0.0% | U154: 0
A155: PEDIATRAS | B155: PEDIATRAS | C155: DR. PEDRO ERASMO MENDOZA | D155: 02-CHAPINERO | E155: 0 | F155: 0 | G155: 0 | H155: 0 | I155: 0 | J155: 0 | K155: 0 | S155: 0 | T155: 0.0% | U155: 0
A156: PEDIATRAS | B156: PEDIATRAS | C156: DR. DIMAS ROSAS | D156: 02-CHAPINERO | E156: 0 | F156: 0 | G156: 0 | H156: 0 | I156: 0 | J156: 0 | K156: 0 | S156: 0 | T156: 0.0% | U156: 0
A157: PEDIATRAS | B157: PEDIATRAS | C157: DR. JAVIER BRITO MORENO | D157: 02-CHAPINERO | E157: 0 | F157: 0 | G157: 0 | H157: 0 | I157: 0 | J157: 0 | K157: 0 | S157: 0 | T157: 0.0% | U157: 0
A158: PEDIATRAS | B158: PEDIATRAS | C158: DR. GUSTAVO CORTÉS | D158: 02-CHAPINERO | E158: 0 | F158: 0 | G158: 0 | H158: 0 | I158: 0 | J158: 0 | K158: 0 | S158: 0 | T158: 0.0% | U158: 0
A159: PEDIATRAS | B159: PEDIATRAS | C159: DR. CARLOS VELASQUEZ | D159: 02-CHAPINERO | E159: 0 | F159: 0 | G159: 0 | H159: 0 | I159: 0 | J159: 0 | K159: 0 | S159: 0 | T159: 0.0% | U159: 0
A160: PEDIATRAS | B160: PEDIATRAS | C160: DR. RICARDO GOMEZ | D160: 02-CHAPINERO | E160: 0 | F160: 0 | G160: 0 | H160: 0 | I160: 0 | J160: 0 | K160: 0 | S160: 0 | T160: 0.0% | U160: 0
A161: PEDIATRAS | B161: PEDIATRAS | C161: DR. SARA BERNAL | D161: 02-CHAPINERO | E161: 0 | F161: 0 | G161: 0 | H161: 2 | I161: 2 | J161: 0 | K161: 0 | S161: 4 | T161: 0.0%
A162: PEDIATRAS | B162: PEDIATRAS | C162: DRA. MARIA PATRICIA AGUALIMPIA | D162: 02-CHAPINERO | E162: 0 | F162: 0 | G162: 0 | H162: 0 | I162: 0 | J162: 0 | K162: 0 | S162: 0 | T162: 0.0% | U162: 0
A163: PEDIATRAS | B163: PEDIATRAS | C163: DRA. LUISA FERNANDA FORERO ACOSTA | D163: 02-CHAPINERO | E163: 0 | F163: 0 | G163: 0 | H163: 0 | I163: 0 | J163: 0 | K163: 0 | S163: 0 | T163: 0.0% | U163: 0
A164: PEDIATRAS | B164: PEDIATRAS | C164: DRA. MARIA CLARA CASAS PARDO | D164: 02-CHAPINERO | E164: 0 | F164: 0 | G164: 0 | H164: 0 | I164: 0 | J164: 0 | K164: 0 | S164: 0 | T164: 0.0% | U164: 0
A165: PEDIATRAS | B165: PEDIATRAS | C165: DRA. MARTHA EUGENIA RONDEROS DE FORERO | D165: 02-CHAPINERO | E165: 0 | F165: 0 | G165: 0 | H165: 0 | I165: 0 | J165: 0 | K165: 0 | S165: 0 | T165: 0.0% | U165: 0
A166: PEDIATRAS | B166: PEDIATRAS | C166: DRA. MARIA ISABEL USCHER | D166: 02-CHAPINERO | E166: 0 | F166: 0 | G166: 0 | H166: 0 | I166: 0 | J166: 0 | K166: 2 | S166: 2 | T166: 0.0%
A167: PEDIATRAS | B167: PEDIATRAS | C167: DRA. MARIA DE LOS ANGELES MUÑOZ | D167: 02-CHAPINERO | E167: 0 | F167: 0 | G167: 3 | H167: 0 | I167: 3 | J167: 0 | K167: 3 | S167: 9 | T167: 0.0%
A168: PEDIATRAS | B168: PEDIATRAS | C168: DRA. CLARA ABELLO REYES | D168: 02-CHAPINERO | E168: 0 | F168: 0 | G168: 2 | H168: 1 | I168: 0 | J168: 0 | K168: 1 | S168: 4 | T168: 0.0%
A169: PEDIATRAS | B169: PEDIATRAS | C169: DRA. PATRICIA CONTRERAS | D169: 02-CHAPINERO | E169: 0 | F169: 0 | G169: 0 | H169: 0 | I169: 3 | J169: 2 | K169: 2 | S169: 7 | T169: 0.0%
A170: PEDIATRAS | B170: PEDIATRAS | C170: DRA. CLAUDIA ZOPPI | D170: 02-CHAPINERO | E170: 0 | F170: 0 | G170: 0 | H170: 0 | I170: 2 | J170: 1 | K170: 0 | S170: 3 | T170: 0.0%
A171: PEDIATRAS | B171: PEDIATRAS | C171: DRA. MARIA DE LOS ANGELES FERNANDEZ LUQUE | D171: 02-CHAPINERO | E171: 0 | F171: 0 | G171: 0 | H171: 3 | I171: 0 | J171: 0 | K171: 0 | S171: 3 | T171: 0.0%
A172: PEDIATRAS | B172: PEDIATRAS | C172: DRA. RUTH CORDOBA CORDOBA | D172: 02-CHAPINERO | E172: 0 | F172: 0 | G172: 0 | H172: 0 | I172: 0 | J172: 0 | K172: 0 | S172: 0 | T172: 0.0% | U172: 0
A173: PEDIATRAS | B173: PEDIATRAS | C173: DRA. LUZ ESTELA CORTES | D173: 02-CHAPINERO | E173: 0 | F173: 0 | G173: 0 | H173: 0 | I173: 0 | J173: 0 | K173: 0 | S173: 0 | T173: 0.0% | U173: 0
A174: UNICAJAS | B174: UNICAJAS | C174: UPA SAN LUIS | D174: 02-CHAPINERO | E174: 18 | F174: 2 | G174: 0 | H174: 0 | I174: 0 | J174: 0 | K174: 1 | S174: 1 | T174: 5.6% | U174: 7
A175: 02-CHAPINERO | B175: OTROS | C175: UPA SAN LUIS | D175: 02-CHAPINERO | E175: 325 | F175: 27 | G175: 2 | H175: 1 | I175: 0 | J175: 1 | K175: 0 | S175: 4 | T175: 1.2% | U175: 131
A176: 02-CHAPINERO | B176: DEMAS EAPB | C176: UPA SAN LUIS | D176: 02-CHAPINERO | F176: 0 | G176: 6 | H176: 3 | I176: 5 | J176: 1 | K176: 8 | S176: 23 | T176: 0.0%
A177: UNICAJAS | B177: UNICAJAS | C177: COMFASALUD SEDE CENTRO | D177: 03-SANTA FE | E177: 50 | F177: 4 | G177: 2 | H177: 1 | I177: 2 | J177: 1 | K177: 0 | S177: 6 | T177: 12.0% | U177: 15
A178: MEDIMAS | B178: MEDIMAS | C178: CORVESALUD TEUSAQUILLO | D178: 03-SANTA FE | E178: 193 | F178: 16 | G178: 6 | H178: 7 | I178: 2 | J178: 0 | K178: 0 | S178: 15 | T178: 7.8% | U178: 65
A179: 03-SANTA FE | B179: CAPITAL SALUD | C179: EXTRAMURAL SANTA FE | D179: 03-SANTA FE | E179: 0 | F179: 0 | G179: 7 | H179: 2 | I179: 11 | J179: 11 | K179: 11 | S179: 42 | T179: 0.0%
A180: 03-SANTA FE | B180: DEMAS EAPB | C180: EXTRAMURAL SANTA FE | D180: 03-SANTA FE | E180: 0 | F180: 0 | G180: 0 | H180: 1 | I180: 10 | J180: 30 | K180: 17 | S180: 58 | T180: 0.0%
A181: 03-SANTA FE | B181: OTROS | C181: EXTRAMURAL SANTA FE | D181: 03-SANTA FE | E181: 0 | F181: 0 | G181: 8 | H181: 6 | I181: 9 | J181: 6 | K181: 9 | S181: 38 | T181: 0.0%
A182: 03-SANTA FE | B182: UNICAJAS | C182: EXTRAMURAL SANTA FE | D182: 03-SANTA FE | E182: 0 | F182: 0 | G182: 0 | H182: 0 | I182: 2 | J182: 3 | K182: 1 | S182: 6 | T182: 0.0%
A183: 03-SANTA FE | B183: CAPITAL SALUD | C183: USS LACHES | D183: 03-SANTA FE | E183: 54 | F183: 5 | G183: 7 | H183: 12 | I183: 7 | J183: 0 | K183: 5 | S183: 31 | T183: 57.4%
A184: 03-SANTA FE | B184: DEMAS EAPB | C184: USS LACHES | D184: 03-SANTA FE | E184: 0 | F184: 0 | G184: 7 | H184: 6 | I184: 10 | J184: 6 | K184: 5 | S184: 34 | T184: 0.0%
A185: 03-SANTA FE | B185: OTROS | C185: USS LACHES | D185: 03-SANTA FE | E185: 260 | F185: 22 | G185: 2 | H185: 3 | I185: 1 | J185: 1 | K185: 1 | S185: 8 | T185: 3.1% | U185: 100
A186: 03-SANTA FE | B186: UNICAJAS | C186: USS LACHES | D186: 03-SANTA FE | E186: 17 | F186: 1 | G186: 1 | H186: 0 | I186: 0 | J186: 1 | K186: 0 | S186: 2 | T186: 11.8% | U186: 5
A187: 03-SANTA FE | B187: CAPITAL SALUD | C187: USS LAS CRUCES | D187: 03-SANTA FE | E187: 44 | F187: 4 | G187: 6 | H187: 8 | I187: 3 | J187: 6 | K187: 1 | S187: 24 | T187: 54.5%
A188: 03-SANTA FE | B188: DEMAS EAPB | C188: USS LAS CRUCES | D188: 03-SANTA FE | E188: 0 | F188: 0 | G188: 4 | H188: 5 | I188: 6 | J188: 1 | K188: 2 | S188: 18 | T188: 0.0%
A189: 03-SANTA FE | B189: OTROS | C189: USS LAS CRUCES | D189: 03-SANTA FE | E189: 211 | F189: 18 | G189: 2 | H189: 2 | I189: 1 | J189: 0 | K189: 2 | S189: 7 | T189: 3.3% | U189: 81
A190: 03-SANTA FE | B190: UNICAJAS | C190: USS LAS CRUCES | D190: 03-SANTA FE | E190: 14 | F190: 1 | G190: 1 | H190: 1 | I190: 1 | J190: 0 | K190: 0 | S190: 3 | T190: 21.4% | U190: 3
A191: 03-SANTA FE | B191: CAPITAL SALUD | C191: USS PERSEVERANCIA | D191: 03-SANTA FE | E191: 6 | F191: 1 | G191: 1 | H191: 1 | I191: 0 | J191: 0 | K191: 0 | S191: 2 | T191: 33.3% | U191: 1
A192: 03-SANTA FE | B192: DEMAS EAPB | C192: USS PERSEVERANCIA | D192: 03-SANTA FE | E192: 0 | F192: 0 | G192: 1 | H192: 2 | I192: 0 | J192: 0 | K192: 2 | S192: 5 | T192: 0.0%
A193: 03-SANTA FE | B193: OTROS | C193: USS PERSEVERANCIA | D193: 03-SANTA FE | E193: 30 | F193: 3 | G193: 1 | H193: 0 | I193: 2 | J193: 0 | K193: 1 | S193: 4 | T193: 13.3% | U193: 9
A194: 03-SANTA FE | B194: UNICAJAS | C194: USS PERSEVERANCIA | D194: 03-SANTA FE | E194: 2 | F194: 0 | G194: 0 | H194: 0 | I194: 0 | J194: 0 | K194: 0 | S194: 0 | T194: =IF(E194=0,0,+S194/E194) -> 0.0% | U194: =IF(COUNT(G194:R194)*(E194/12)-S194<0,"",COUNT(G194:R194)*(E194/12)-S194) -> 1
A195: PARTICULAR | B195: PARTICULAR | C195: CLINICA SAN RAFAEL | D195: 04-SAN CRISTOBAL | E195: 375 | F195: =+E195/12 -> 31 | G195: 31 | H195: 52 | I195: 35 | J195: 29 | K195: 27 | S195: =SUM(G195:R195) -> 174 | T195: 46.4%
A196: FAMISANAR | B196: FAMI- COLSB | C196: CENTRO MEDICO COLSUBSIDIO 20 DE JULIO | D196: 04-SAN CRISTOBAL | F196: 0 | S196: 0 | T196: 0.0% | U196: 0
A197: 04-SAN CRISTOBAL | B197: CAPITAL SALUD | C197: EXTRAMURAL SAN CRISTOBAL | D197: 04-SAN CRISTOBAL | E197: 0 | F197: 0 | G197: 22 | H197: 30 | I197: 78 | J197: 65 | K197: 68 | S197: 263 | T197: 0.0%
A198: 04-SAN CRISTOBAL | B198: DEMAS EAPB | C198: EXTRAMURAL SAN CRISTOBAL | D198: 04-SAN CRISTOBAL | E198: 0 | F198: 0 | G198: 31 | H198: 16 | I198: 77 | J198: 140 | K198: 58 | S198: 322 | T198: 0.0%
A199: 04-SAN CRISTOBAL | B199: OTROS | C199: EXTRAMURAL SAN CRISTOBAL | D199: 04-SAN CRISTOBAL | E199: 0 | F199: 0 | G199: 14 | H199: 10 | I199: 29 | J199: 26 | K199: 37 | S199: 116 | T199: 0.0%
A200: 04-SAN CRISTOBAL | B200: UNICAJAS | C200: EXTRAMURAL SAN CRISTOBAL | D200: 04-SAN CRISTOBAL | E200: 0 | F200: 0 | G200: 3 | H200: 1 | I200: 6 | J200: 10 | K200: 11 | S200: 31 | T200: 0.0%
... 620 more rows

Sheet ROTAVIRUS2
A1: EAPB | B1: EPS O ESE | C1: IPS | D1: Localidad | E1: Meta Anual Menor de 1 Año | F1: Meta Mensual | G1: Enero | H1: Febrero | I1: Marzo | J1: Abril | K1: Mayo | L1: Junio | M1: Julio | N1: Agosto | O1: Septiembre | P1: Octubre | Q1: Noviembre | R1: Diciembre | S1: Total | T1: % Cobertura | U1: Deficit
A2: CAPITAL SALUD | B2: CAPITAL SALUD | C2: UPA SAN CRISTOBAL | D2: 01-USAQUEN | E2: 124 | F2: =+E2/12 -> 10 | G2: 6 | H2: 3 | I2: 7 | J2: 6 | K2: 3 | S2: =SUM(G2:R2) -> 25 | T2: =IF(E2=0,0,+S2/E2) -> 20.2% | U2: =IF(COUNT(G2:R2)*(E2/12)-S2<0,"",COUNT(G2:R2)*(E2/12)-S2) -> 27
A3: CAPITAL SALUD | B3: CAPITAL SALUD | C3: UPA USAQUEN | D3: 01-USAQUEN | E3: 10 | F3: =+E3/12 -> 1 | G3: 0 | H3: 0 | I3: 0 | J3: 0 | K3: 0 | S3: =SUM(G3:R3) -> 0 | T3: 0.0% | U3: 4
A4: CAPITAL SALUD | B4: CAPITAL SALUD | C4: UPA ORQUIDEAS | D4: 01-USAQUEN | E4: 11 | F4: 1 | G4: 3 | H4: 0 | I4: 1 | J4: 4 | K4: 2 | S4: 10 | T4: 90.9%
A5: CAPITAL SALUD | B5: CAPITAL SALUD | C5: UPA CODITO | D5: 01-USAQUEN | E5: 107 | F5: 9 | G5: 8 | H5: 2 | I5: 3 | J5: 3 | K5: 6 | S5: 22 | T5: 20.6% | U5: 23
A6: CAPITAL SALUD | B6: CAPITAL SALUD | C6: CAMI VERBENAL | D6: 01-USAQUEN | E6: 87 | F6: 7 | G6: 8 | H6: 4 | I6: 8 | J6: 3 | K6: 8 | S6: 31 | T6: 35.6% | U6: 5
A7: CAPITAL SALUD | B7: CAPITAL SALUD | C7: HOSPITAL SIMON BOLIVAR | D7: 01-USAQUEN | E7: 36 | F7: 3 | G7: 9 | H7: 18 | I7: 11 | J7: 4 | K7: 6 | S7: 48 | T7: 133.3%
A8: 01-USAQUEN | B8: 01-USAQUEN | C8: EXTRAMURAL USAQUEN | D8: 01-USAQUEN | E8: 0 | F8: 0 | G8: 10 | H8: 7 | I8: 18 | J8: 48 | K8: 42 | S8: 125 | T8: 0.0%
A9: ALIANSALUD | B9: ALIANSALUD | C9: CENTRO MEDICO COLMEDICA SANTA BARBARA | D9: 01-USAQUEN | E9: 580 | F9: 48 | G9: 89 | H9: 61 | I9: 40 | J9: 30 | K9: 39 | S9: 259 | T9: 44.7%
A10: COMPENSAR | B10: COMPENSAR | C10: USS CALLE 134 | D10: 01-USAQUEN | E10: 372 | F10: 31 | G10: 16 | H10: 18 | I10: 13 | J10: 6 | K10: 9 | S10: 62 | T10: 16.7% | U10: 93
A11: COMPENSAR | B11: COMPENSAR | C11: USS CALLE 145 | D11: 01-USAQUEN | E11: 173 | F11: 14 | G11: 15 | H11: 17 | I11: 18 | J11: 10 | K11: 13 | S11: 73 | T11: 42.2%
A12: COMPENSAR | B12: COMPENSAR | C12: JAVESALUD TOBERIN | D12: 01-USAQUEN | E12: 372 | F12: 31 | G12: 3 | H12: 3 | I12: 2 | J12: 9 | K12: 14 | S12: 31 | T12: 8.3% | U12: 124
A13: COOMEVA | B13: COOMEVA | C13: SINERGIA UNIDAD INTEGRAL EN SALUD | D13: 01-USAQUEN | E13: 44 | F13: 4 | G13: 7 | H13: 6 | I13: 7 | J13: 4 | K13: 5 | S13: 29 | T13: 65.9%
A14: FAMISANAR | B14: FAMI- COLSB | C14: CENTRO MEDICO COLSUBSIDIO USAQUEN | D14: 01-USAQUEN | E14: 298 | F14: 25 | G14: 30 | H14: 30 | I14: 27 | J14: 20 | K14: 14 | S14: 121 | T14: 40.6% | U14: 3
A15: MILITAR | B15: MILITAR | C15: DISPENSARIO MEDICO CANTON NORTE | D15: 01-USAQUEN | E15: 205 | F15: 17 | G15: 3 | H15: 9 | I15: 4 | J15: 6 | K15: 6 | S15: 28 | T15: 13.7% | U15: 57
A16: NUEVA EPS | B16: NUEVA EPS | C16: IPS VIVA 1A SEDE TOBERIN | D16: 01-USAQUEN | E16: 147 | F16: 12 | G16: 6 | H16: 7 | I16: 9 | J16: 6 | K16: 5 | S16: 33 | T16: 22.4% | U16: 28
A17: NUEVA EPS | B17: NUEVA EPS | C17: CAFAM GRANADA HILLS | D17: 01-USAQUEN | E17: 44 | F17: 4 | G17: 6 | H17: 4 | I17: 0 | J17: 6 | K17: 2 | S17: 18 | T17: 40.9% | U17: 0
A18: SANITAS | B18: SANITAS | C18: UAP SANITAS TOBERIN | D18: 01-USAQUEN | E18: 511 | F18: 43 | G18: 56 | H18: 41 | I18: 21 | J18: 42 | K18: 36 | S18: 196 | T18: 38.4% | U18: 17
A19: SANITAS | B19: SANITAS | C19: MEDIKA IPS SANITAS UAP USAQUEN | D19: 01-USAQUEN | E19: 188 | F19: 16 | G19: 3 | H19: 1 | I19: 0 | J19: 1 | K19: 1 | S19: 6 | T19: 3.2% | U19: 72
A20: SANITAS | B20: SANITAS | C20: UAP SANTA BARBARA | D20: 01-USAQUEN | E20: 796 | F20: 66 | G20: 87 | H20: 70 | I20: 74 | J20: 55 | K20: 52 | S20: 338 | T20: 42.5%
A21: SANITAS | B21: SANITAS | C21: SANITAS BANCO DE LA REPUBLICA | D21: 01-USAQUEN | E21: 0 | F21: 0 | G21: 4 | H21: 1 | I21: 4 | J21: 3 | K21: 3 | S21: 15 | T21: 0.0%
A22: SALUD TOTAL | B22: SALUD TOTAL | C22: VIRREY SOLIS TOBERÍN | D22: 01-USAQUEN | E22: 384 | F22: 32 | G22: 21 | H22: 20 | I22: 20 | J22: 12 | K22: 14 | S22: 87 | T22: 22.7% | U22: 73
A23: SURA | B23: SURA | C23: IPS JAVESALUD SANTA BEATRIZ | D23: 01-USAQUEN | E23: 355 | F23: 30 | G23: 12 | H23: 9 | I23: 16 | J23: 8 | K23: 11 | S23: 56 | T23: 15.8% | U23: 92
A24: ECOPETROL | B24: ECOPETROL | C24: IPS CLINICOS PALATINO | D24: 01-USAQUEN | E24: 87 | F24: 7 | G24: 9 | H24: 12 | I24: 9 | J24: 10 | K24: 5 | S24: 45 | T24: 51.7%
A25: PARTICULAR | B25: PARTICULAR | C25: CLINICA PEDIATRICA COLSANITAS | D25: 01-USAQUEN | E25: 830 | F25: 69 | G25: 106 | H25: 92 | I25: 47 | J25: 50 | K25: 38 | S25: 333 | T25: 40.1% | U25: 13
A26: PARTICULAR | B26: PARTICULAR | C26: CENTRO MEDICO COLSANITAS LA CALLEJA | D26: 01-USAQUEN | E26: 120 | F26: 10 | G26: 23 | H26: 16 | I26: 10 | J26: 8 | K26: 5 | S26: 62 | T26: 51.7%
A27: PARTICULAR | B27: PARTICULAR | C27: CENTRO MEDICO COLSANITAS 108 | D27: 01-USAQUEN | E27: 40 | F27: 3 | G27: 2 | H27: 1 | I27: 3 | J27: 0 | K27: 0 | S27: 6 | T27: 15.0% | U27: 11
A28: PARTICULAR | B28: PARTICULAR | C28: CENTRO MEDICO COLSANITAS SANTA ANA | D28: 01-USAQUEN | E28: 4 | F28: 0 | G28: 1 | H28: 2 | I28: 1 | J28: 0 | K28: 0 | S28: 4 | T28: 100.0%
A29: PARTICULAR | B29: PARTICULAR | C29: FUNDACIÓN CARDIO INFANTIL | D29: 01-USAQUEN | E29: 0 | F29: 0 | G29: 8 | H29: 8 | I29: 3 | J29: 9 | K29: 3 | S29: 31 | T29: 0.0%
A30: PARTICULAR | B30: PARTICULAR | C30: ENFASO USAQUEN | D30: 01-USAQUEN | E30: 0 | F30: 0 | G30: 9 | H30: 15 | I30: 2 | J30: 5 | K30: 3 | S30: 34 | T30: 0.0%
A31: PARTICULAR | B31: PARTICULAR | C31: UNIDAD DE VACUNACIÓN INTERNACIONAL | D31: 01-USAQUEN | E31: 0 | F31: 0 | G31: 2 | H31: 4 | I31: 1 | J31: 1 | K31: 4 | S31: 12 | T31: 0.0%
A32: PARTICULAR | B32: PARTICULAR | C32: INMUNOLOGÍA Y DIAGNÓSTICO ESPECIALIZADO LTDA. | D32: 01-USAQUEN | E32: 0 | F32: 0 | G32: 0 | H32: 0 | I32: 1 | J32: 0 | K32: 0 | S32: 1 | T32: 0.0%
A33: PARTICULAR | B33: PARTICULAR | C33: PROTEGER HEALHT CARE | D33: 01-USAQUEN | E33: 0 | F33: 0 | G33: 0 | H33: 0 | I33: 0 | J33: 1 | K33: 5 | S33: 6 | T33: 0.0%
A34: PARTICULAR | B34: PARTICULAR | C34: FUNDACION SANTA FE DE BOGOTA | D34: 01-USAQUEN | E34: 0 | F34: 0 | G34: 0 | H34: 0 | I34: 0 | J34: 0 | K34: 0 | S34: 0 | T34: 0.0% | U34: 0
A35: PARTICULAR | B35: PARTICULAR | C35: IPS CRUZ ROJA SEDE UNICENTRO | D35: 01-USAQUEN | E35: 0 | F35: 0 | G35: 0 | H35: 0 | I35: 0 | J35: 0 | K35: 0 | S35: 0 | T35: 0.0% | U35: 0
A36: PARTICULAR | B36: PARTICULAR | C36: IPS CRUZ ROJA SAMU CALLE 145 | D36: 01-USAQUEN | E36: 0 | F36: 0 | G36: 0 | H36: 0 | I36: 0 | J36: 0 | K36: 0 | S36: 0 | T36: 0.0% | U36: 0
A37: PEDIATRAS | B37: PEDIATRAS | C37: DR. ALEJANDRO LÓPEZ | D37: 01-USAQUEN | E37: 0 | F37: 0 | G37: 3 | H37: 2 | I37: 1 | J37: 0 | K37: 0 | S37: 6 | T37: 0.0%
A38: PEDIATRAS | B38: PEDIATRAS | C38: DR. CARLOS NEFTALI TORRES | D38: 01-USAQUEN | E38: 0 | F38: 0 | G38: 0 | H38: 9 | I38: 4 | J38: 12 | K38: 2 | S38: 27 | T38: 0.0%
A39: PEDIATRAS | B39: PEDIATRAS | C39: DR. FRANCISCO NUÑEZ | D39: 01-USAQUEN | E39: 0 | F39: 0 | G39: 2 | H39: 1 | I39: 1 | J39: 0 | K39: 0 | S39: 4 | T39: 0.0%
A40: PEDIATRAS | B40: PEDIATRAS | C40: DR. FERNANDO GOMEZ | D40: 01-USAQUEN | E40: 0 | F40: 0 | G40: 0 | H40: 0 | I40: 0 | J40: 0 | K40: 0 | S40: 0 | T40: 0.0% | U40: 0
A41: PEDIATRAS | B41: PEDIATRAS | C41: DR. FERNANDO ZARATE MORENO | D41: 01-USAQUEN | E41: 0 | F41: 0 | G41: 0 | H41: 1 | I41: 0 | J41: 2 | K41: 1 | S41: 4 | T41: 0.0%
A42: PEDIATRAS | B42: PEDIATRAS | C42: DR. GONZALO GARCIA | D42: 01-USAQUEN | E42: 0 | F42: 0 | G42: 1 | H42: 0 | I42: 1 | J42: 0 | K42: 2 | S42: 4 | T42: 0.0%
A43: PEDIATRAS | B43: PEDIATRAS | C43: DR. GUSTAVO MORALES | D43: 01-USAQUEN | E43: 0 | F43: 0 | G43: 2 | H43: 7 | I43: 1 | J43: 0 | K43: 2 | S43: 12 | T43: 0.0%
A44: PEDIATRAS | B44: PEDIATRAS | C44: DR. JAIME OSPINA | D44: 01-USAQUEN | E44: 0 | F44: 0 | G44: 6 | H44: 0 | I44: 0 | J44: 2 | K44: 4 | S44: 12 | T44: 0.0%
A45: PEDIATRAS | B45: PEDIATRAS | C45: DR. JORGE URIBE | D45: 01-USAQUEN | E45: 0 | F45: 0 | G45: 0 | H45: 0 | I45: 0 | J45: 0 | K45: 0 | S45: 0 | T45: 0.0% | U45: 0
A46: PEDIATRAS | B46: PEDIATRAS | C46: DR. JUAN LUIS FIGUEROA | D46: 01-USAQUEN | E46: 0 | F46: 0 | G46: 2 | H46: 3 | I46: 0 | J46: 0 | K46: 1 | S46: 6 | T46: 0.0%
A47: PEDIATRAS | B47: PEDIATRAS | C47: DR. LUIS AUGUSTO PERNA | D47: 01-USAQUEN | E47: 0 | F47: 0 | G47: 1 | H47: 2 | I47: 3 | J47: 7 | K47: 6 | S47: 19 | T47: 0.0%
A48: PEDIATRAS | B48: PEDIATRAS | C48: DR. LIBARDO ELI TRIANA | D48: 01-USAQUEN | E48: 0 | F48: 0 | G48: 0 | H48: 0 | I48: 0 | J48: 0 | K48: 0 | S48: 0 | T48: 0.0% | U48: 0
A49: PEDIATRAS | B49: PEDIATRAS | C49: DR. OSWALDO MERCADO HOYOS | D49: 01-USAQUEN | E49: 0 | F49: 0 | G49: 0 | H49: 0 | I49: 1 | J49: 2 | K49: 2 | S49: 5 | T49: 0.0%
A50: PEDIATRAS | B50: PEDIATRAS | C50: DR. ROBERTO BENIRO | D50: 01-USAQUEN | E50: 0 | F50: 0 | G50: 0 | H50: 0 | I50: 0 | J50: 0 | K50: 0 | S50: 0 | T50: 0.0% | U50: 0
A51: PEDIATRAS | B51: PEDIATRAS | C51: DR. SERGIO ISAZA | D51: 01-USAQUEN | E51: 0 | F51: 0 | G51: 0 | H51: 0 | I51: 0 | J51: 0 | K51: 0 | S51: 0 | T51: 0.0% | U51: 0
A52: PEDIATRAS | B52: PEDIATRAS | C52: DR. SANTIAGO UCROS | D52: 01-USAQUEN | E52: 0 | F52: 0 | G52: 0 | H52: 0 | I52: 0 | J52: 0 | K52: 0 | S52: 0 | T52: 0.0% | U52: 0
A53: PEDIATRAS | B53: PEDIATRAS | C53: DR. GERMAN SILVA | D53: 01-USAQUEN | E53: 0 | F53: 0 | G53: 0 | H53: 0 | I53: 0 | J53: 0 | K53: 0 | S53: 0 | T53: 0.0% | U53: 0
A54: PEDIATRAS | B54: PEDIATRAS | C54: DR. DANIEL ABRIL | D54: 01-USAQUEN | E54: 0 | F54: 0 | G54: 0 | H54: 0 | I54: 0 | J54: 0 | K54: 0 | S54: 0 | T54: 0.0% | U54: 0
A55: PEDIATRAS | B55: PEDIATRAS | C55: DR. CARLOS EDUARDO OLMOS | D55: 01-USAQUEN | E55: 0 | F55: 0 | G55: 0 | H55: 0 | I55: 0 | J55: 0 | K55: 0 | S55: 0 | T55: 0.0% | U55: 0
A56: PEDIATRAS | B56: PEDIATRAS | C56: DR. EDGARDO CHATMAN | D56: 01-USAQUEN | E56: 0 | F56: 0 | G56: 0 | H56: 0 | I56: 0 | J56: 0 | K56: 0 | S56: 0 | T56: 0.0% | U56: 0
A57: PEDIATRAS | B57: PEDIATRAS | C57: DR. JORGE FLOREZ OTERO | D57: 01-USAQUEN | E57: 0 | F57: 0 | G57: 0 | H57: 0 | I57: 0 | J57: 0 | K57: 0 | S57: 0 | T57: 0.0% | U57: 0
A58: PEDIATRAS | B58: PEDIATRAS | C58: DRA. ALEJANDRA MARIA VALENCIA | D58: 01-USAQUEN | E58: 0 | F58: 0 | G58: 0 | H58: 0 | I58: 0 | J58: 0 | K58: 0 | S58: 0 | T58: 0.0% | U58: 0
A59: PEDIATRAS | B59: PEDIATRAS | C59: DRA. ANA MARIA GOYENECHE | D59: 01-USAQUEN | E59: 0 | F59: 0 | G59: 0 | H59: 0 | I59: 0 | J59: 0 | K59: 0 | S59: 0 | T59: 0.0% | U59: 0
A60: PEDIATRAS | B60: PEDIATRAS | C60: DRA. JIMENA VARELA | D60: 01-USAQUEN | E60: 0 | F60: 0 | G60: 1 | H60: 0 | I60: 0 | J60: 0 | K60: 1 | S60: 2 | T60: 0.0%
A61: PEDIATRAS | B61: PEDIATRAS | C61: DRA. LIA SAN MIGUEL | D61: 01-USAQUEN | E61: 0 | F61: 0 | G61: 0 | H61: 0 | I61: 0 | J61: 1 | K61: 0 | S61: 1 | T61: 0.0%
A62: PEDIATRAS | B62: PEDIATRAS | C62: DRA. LIBIA SEGURA | D62: 01-USAQUEN | E62: 0 | F62: 0 | G62: 0 | H62: 0 | I62: 0 | J62: 1 | K62: 0 | S62: 1 | T62: 0.0%
A63: PEDIATRAS | B63: PEDIATRAS | C63: DRA. MARÍA JOSÉ PEDRAZA | D63: 01-USAQUEN | E63: 0 | F63: 0 | G63: 0 | H63: 0 | I63: 0 | J63: 0 | K63: 0 | S63: 0 | T63: 0.0% | U63: 0
A64: PEDIATRAS | B64: PEDIATRAS | C64: DRA. MARTHA LUCIA SANCHEZ | D64: 01-USAQUEN | E64: 0 | F64: 0 | G64: 0 | H64: 0 | I64: 0 | J64: 0 | K64: 0 | S64: 0 | T64: 0.0% | U64: 0
A65: PEDIATRAS | B65: PEDIATRAS | C65: DRA. OLGA LUCÍA SÁNCHEZ | D65: 01-USAQUEN | E65: 0 | F65: 0 | G65: 0 | H65: 0 | I65: 0 | J65: 0 | K65: 0 | S65: 0 | T65: 0.0% | U65: 0
A66: PEDIATRAS | B66: PEDIATRAS | C66: DRA. SANDRA BELTRAN | D66: 01-USAQUEN | E66: 0 | F66: 0 | G66: 0 | H66: 0 | I66: 0 | J66: 0 | K66: 0 | S66: 0 | T66: =IF(E66=0,0,+S66/E66) -> 0.0% | U66: =IF(COUNT(G66:R66)*(E66/12)-S66<0,"",COUNT(G66:R66)*(E66/12)-S66) -> 0
A67: PEDIATRAS | B67: PEDIATRAS | C67: DRA. IVANA CABRERA | D67: 01-USAQUEN | E67: 0 | F67: =+E67/12 -> 0 | G67: 0 | H67: 0 | I67: 0 | J67: 0 | K67: 0 | S67: =SUM(G67:R67) -> 0 | T67: 0.0% | U67: 0
A68: PEDIATRAS | B68: PEDIATRAS | C68: DRA. NAYITA ALARCON | D68: 01-USAQUEN | E68: 0 | F68: 0 | G68: 0 | H68: 0 | I68: 0 | J68: 0 | K68: 0 | S68: 0 | T68: 0.0% | U68: 0
A69: PEDIATRAS | B69: PEDIATRAS | C69: DRA. ELIZABETH GARCIA | D69: 01-USAQUEN | E69: 0 | F69: 0 | G69: 0 | H69: 0 | I69: 0 | J69: 0 | K69: 0 | S69: 0 | T69: 0.0% | U69: 0
A70: PEDIATRAS | B70: PEDIATRAS | C70: DRA. BERTHA CALDERON DE RAMOS | D70: 01-USAQUEN | E70: 0 | F70: 0 | G70: 0 | H70: 0 | I70: 0 | J70: 0 | K70: 0 | S70: 0 | T70: 0.0% | U70: 0
A71: PEDIATRAS | B71: PEDIATRAS | C71: DRA. MIRYAM CORREA | D71: 01-USAQUEN | E71: 0 | F71: 0 | G71: 0 | H71: 0 | I71: 0 | J71: 0 | K71: 0 | S71: 0 | T71: 0.0% | U71: 0
A72: 01-USAQUEN | B72: UNICAJAS | C72: UPA SAN CRISTOBAL | D72: 01-USAQUEN | E72: 6 | F72: 1 | G72: 1 | H72: 0 | I72: 0 | J72: 0 | K72: 0 | S72: 1 | T72: 16.7% | U72: 2
A73: UNICAJAS | B73: UNICAJAS | C73: UPA USAQUEN | D73: 01-USAQUEN | E73: 9 | F73: 1 | H73: 0 | I73: 0 | J73: 0 | K73: 0 | S73: 0 | T73: 0.0% | U73: 3
A74: UNICAJAS | B74: UNICAJAS | C74: UPA ORQUIDEAS | D74: 01-USAQUEN | E74: 6 | F74: 1 | G74: 0 | H74: 0 | I74: 0 | J74: 0 | K74: 0 | S74: 0 | T74: 0.0% | U74: 3
A75: UNICAJAS | B75: UNICAJAS | C75: UPA CODITO | D75: 01-USAQUEN | E75: 5 | F75: 0 | G75: 1 | H75: 0 | I75: 0 | J75: 1 | K75: 0 | S75: 2 | T75: 40.0% | U75: 0
A76: UNICAJAS | B76: UNICAJAS | C76: CAMI VERBENAL | D76: 01-USAQUEN | E76: 6 | F76: 1 | G76: 2 | H76: 0 | I76: 0 | J76: 0 | K76: 1 | S76: 3 | T76: 50.0%
A77: 01-USAQUEN | B77: UNICAJAS | C77: HOSPITAL SIMON BOLIVAR | D77: 01-USAQUEN | E77: 6 | F77: 1 | G77: 0 | H77: 0 | I77: 0 | J77: 1 | K77: 0 | S77: 1 | T77: 16.7% | U77: 2
A78: 01-USAQUEN | B78: OTROS | C78: UPA SAN CRISTOBAL | D78: 01-USAQUEN | E78: 300 | F78: 25 | G78: 9 | H78: 2 | I78: 2 | J78: 1 | K78: 0 | S78: 14 | T78: 4.7% | U78: 111
A79: 01-USAQUEN | B79: OTROS | C79: UPA USAQUEN | D79: 01-USAQUEN | E79: 100 | F79: 8 | H79: 0 | I79: 0 | J79: 0 | K79: 0 | S79: 0 | T79: 0.0% | U79: 33
A80: 01-USAQUEN | B80: OTROS | C80: UPA ORQUIDEAS | D80: 01-USAQUEN | E80: 120 | F80: 10 | G80: 5 | H80: 0 | I80: 1 | J80: 1 | K80: 0 | S80: 7 | T80: 5.8% | U80: 43
A81: 01-USAQUEN | B81: OTROS | C81: UPA CODITO | D81: 01-USAQUEN | E81: 218 | F81: 18 | G81: 3 | H81: 2 | I81: 0 | J81: 2 | K81: 0 | S81: 7 | T81: 3.2% | U81: 84
A82: 01-USAQUEN | B82: OTROS | C82: CAMI VERBENAL | D82: 01-USAQUEN | E82: 309 | F82: 26 | G82: 5 | H82: 1 | I82: 0 | J82: 2 | K82: 4 | S82: 12 | T82: 3.9% | U82: 117
A83: 01-USAQUEN | B83: OTROS | C83: HOSPITAL SIMON BOLIVAR | D83: 01-USAQUEN | E83: 480 | F83: 40 | G83: 10 | H83: 12 | I83: 3 | J83: 2 | K83: 1 | S83: 28 | T83: 5.8% | U83: 172
A84: 01-USAQUEN | B84: DEMAS EAPB | C84: UPA SAN CRISTOBAL | D84: 01-USAQUEN | F84: 0 | G84: 15 | H84: 7 | I84: 12 | J84: 17 | K84: 16 | S84: 67 | T84: 0.0%
A85: 01-USAQUEN | B85: DEMAS EAPB | C85: UPA USAQUEN | D85: 01-USAQUEN | F85: 0 | G85: 7 | H85: 3 | I85: 4 | J85: 0 | K85: 0 | S85: 14 | T85: 0.0%
A86: 01-USAQUEN | B86: DEMAS EAPB | C86: UPA ORQUIDEAS | D86: 01-USAQUEN | F86: 0 | G86: 1 | H86: 1 | I86: 4 | J86: 3 | K86: 2 | S86: 11 | T86: 0.0%
A87: 01-USAQUEN | B87: DEMAS EAPB | C87: UPA CODITO | D87: 01-USAQUEN | F87: 0 | G87: 12 | H87: 16 | I87: 7 | J87: 20 | K87: 7 | S87: 62 | T87: 0.0%
A88: 01-USAQUEN | B88: DEMAS EAPB | C88: CAMI VERBENAL | D88: 01-USAQUEN | F88: 0 | G88: 13 | H88: 8 | I88: 11 | J88: 16 | K88: 8 | S88: 56 | T88: 0.0%
A89: 01-USAQUEN | B89: DEMAS EAPB | C89: HOSPITAL SIMON BOLIVAR | D89: 01-USAQUEN | F89: 0 | G89: 20 | H89: 22 | I89: 18 | J89: 5 | K89: 5 | S89: 70 | T89: 0.0%
A90: MEDIMAS | B90: MEDIMAS | C90: Corvesalud S.A.S - I P S Chico | D90: 01-USAQUEN | E90: 320 | F90: 27 | G90: 2 | H90: 2 | I90: 5 | S90: 9 | T90: 2.8% | U90: 71
A91: FAMISANAR | B91: COLSUBSIDIO | C91: Sura PAC Santa Bárbara | D91: 01-USAQUEN | F91: 0 | S91: 0 | T91: 0.0% | U91: 0
A92: CAPITAL SALUD | B92: CAPITAL SALUD | C92: UPA SAN LUIS | D92: 02-CHAPINERO | E92: 12 | F92: 1 | G92: 6 | H92: 2 | I92: 2 | J92: 2 | K92: 0 | S92: 12 | T92: 100.0%
A93: 02-CHAPINERO | B93: 02-CHAPINERO | C93: EXTRAMURAL CHAPINERO | D93: 02-CHAPINERO | E93: 0 | F93: 0 | G93: 4 | H93: 3 | I93: 3 | J93: 23 | K93: 29 | S93: 62 | T93: 0.0%
A94: COMPENSAR | B94: COMPENSAR | C94: USS CALLE 42 | D94: 02-CHAPINERO | E94: 612 | F94: 51 | G94: 32 | H94: 38 | I94: 22 | J94: 22 | K94: 23 | S94: 137 | T94: 22.4% | U94: 118
A95: COMPENSAR | B95: COMPENSAR | C95: USS CALLE 67 | D95: 02-CHAPINERO | E95: 0 | F95: 0 | G95: 0 | H95: 0 | I95: 0 | J95: 0 | K95: 0 | S95: 0 | T95: 0.0% | U95: 0
A96: COMPENSAR | B96: COMPENSAR | C96: USS CALLE 94 | D96: 02-CHAPINERO | E96: 369 | F96: 31 | G96: 47 | H96: 57 | I96: 47 | J96: 43 | K96: 41 | S96: 235 | T96: 63.7%
A97: COMPENSAR | B97: COMPENSAR | C97: VIVA 1A IPS CHAPINERO | D97: 02-CHAPINERO | E97: 73 | F97: 6 | G97: 4 | H97: 0 | I97: 2 | J97: 5 | K97: 3 | S97: 14 | T97: 19.2% | U97: 16
A98: COOMEVA | B98: COOMEVA | C98: SINERGIA UNIDAD BASICA LOURDES | D98: 02-CHAPINERO | E98: 217 | F98: 18 | G98: 7 | H98: 5 | I98: 8 | J98: 1 | K98: 0 | S98: 21 | T98: 9.7% | U98: 69
A99: FAMISANAR | B99: FAMI- CAFAM | C99: CENTRO DE ATENCION EN SALUD CAFAM CALLE 48 | D99: 02-CHAPINERO | E99: 1050 | F99: 88 | G99: 31 | H99: 23 | I99: 25 | J99: 13 | K99: 15 | S99: 107 | T99: 10.2% | U99: 331
A100: FAMISANAR | B100: FAMI- CAFAM | C100: CENTRO DE ATENCION EN SALUD CAFAM CALLE 90 | D100: 02-CHAPINERO | E100: 200 | F100: 17 | G100: 12 | H100: 8 | I100: 13 | J100: 7 | K100: 22 | S100: 62 | T100: 31.0% | U100: 21
A101: FAMISANAR | B101: FAMI- COLSB | C101: CLINICA COLSUBSIDIO EL LAGO | D101: 02-CHAPINERO | E101: 392 | F101: 33 | G101: 11 | H101: 9 | I101: 12 | J101: 4 | K101: 4 | S101: 40 | T101: 10.2% | U101: 123
A102: MILITAR | B102: MILITAR | C102: HOSPITAL MILITAR CENTRAL | D102: 02-CHAPINERO | E102: 70 | F102: 6 | G102: 13 | H102: 2 | I102: 6 | J102: 7 | K102: 3 | S102: 31 | T102: 44.3%
A103: POLICIA | B103: POLICIA | C103: POLICIA NACIONAL ESPAM CHAPINERO | D103: 02-CHAPINERO | E103: 117 | F103: 10 | G103: 5 | H103: 0 | I103: 9 | J103: 24 | K103: 19 | S103: 57 | T103: 48.7%
A104: NUEVA EPS | B104: NUEVA EPS | C104: IPS VIVA 1A SEDE MARLY | D104: 02-CHAPINERO | E104: 131 | F104: 11 | G104: 10 | H104: 6 | I104: 7 | J104: 1 | K104: 0 | S104: 24 | T104: 18.3% | U104: 31
A105: SANITAS | B105: SANITAS | C105: EPS SANITAS CENTRO MEDICO TEUSAQUILLO | D105: 02-CHAPINERO | E105: 579 | F105: 48 | G105: 29 | H105: 22 | I105: 24 | J105: 11 | K105: 10 | S105: 96 | T105: 16.6% | U105: 145
A106: SALUD TOTAL | B106: SALUD TOTAL | C106: VIRREY SOLIS CHAPINERO | D106: 02-CHAPINERO | E106: 337 | F106: 28 | G106: 19 | H106: 12 | I106: 8 | J106: 6 | K106: 5 | S106: 50 | T106: 14.8% | U106: 90
A107: SURA | B107: SURA | C107: PUNTO DE SALUD CHAPINERO | D107: 02-CHAPINERO | E107: 237 | F107: 20 | G107: 16 | H107: 13 | I107: 15 | J107: 5 | K107: 7 | S107: 56 | T107: 23.6% | U107: 43
A108: SURA | B108: SURA | C108: SALUD SURA | D108: 02-CHAPINERO | E108: 454 | F108: 38 | G108: 56 | H108: 55 | I108: 35 | J108: 23 | K108: 26 | S108: 195 | T108: 43.0%
A109: PARTICULAR | B109: PARTICULAR | C109: CENTRO MEDICO COLSANITAS CALLE 96 | D109: 02-CHAPINERO | E109: 24 | F109: 2 | G109: 3 | H109: 1 | I109: 0 | J109: 17 | K109: 3 | S109: 24 | T109: 100.0%
A110: PARTICULAR | B110: PARTICULAR | C110: CENTRO DE ESPECIALISTAS MEDICOS AXA COLPATRIA | D110: 02-CHAPINERO | E110: 0 | F110: 0 | G110: 3 | H110: 4 | I110: 6 | J110: 5 | K110: 6 | S110: 24 | T110: 0.0%
A111: PARTICULAR | B111: PARTICULAR | C111: CLINICA DE LA MUJER | D111: 02-CHAPINERO | E111: 0 | F111: 0 | G111: 72 | H111: 42 | I111: 37 | J111: 28 | K111: 35 | S111: 214 | T111: 0.0%
A112: PARTICULAR | B112: PARTICULAR | C112: VACUNARTE IPS | D112: 02-CHAPINERO | E112: 0 | F112: 0 | G112: 2 | H112: 2 | I112: 0 | J112: 1 | K112: 2 | S112: 7 | T112: 0.0%
A113: PARTICULAR | B113: PARTICULAR | C113: UNIMARLY | D113: 02-CHAPINERO | E113: 0 | F113: 0 | G113: 0 | H113: 0 | I113: 0 | J113: 0 | K113: 0 | S113: 0 | T113: 0.0% | U113: 0
A114: PARTICULAR | B114: PARTICULAR | C114: HOSPITAL SAN IGNACIO | D114: 02-CHAPINERO | E114: 0 | F114: 0 | G114: 2 | H114: 8 | I114: 4 | J114: 1 | K114: 0 | S114: 15 | T114: 0.0%
A115: PARTICULAR | B115: PARTICULAR | C115: PROGRAMA MADRE CANGURO HOSPITAL SAN IGNACIO | D115: 02-CHAPINERO | E115: 0 | F115: 0 | G115: 90 | H115: 102 | I115: 85 | J115: 82 | K115: 67 | S115: 426 | T115: 0.0%
A116: PARTICULAR | B116: PARTICULAR | C116: IPS AVENIR | D116: 02-CHAPINERO | E116: 0 | F116: 0 | G116: 0 | H116: 0 | I116: 0 | J116: 0 | K116: 0 | S116: 0 | T116: 0.0% | U116: 0
A117: PARTICULAR | B117: PARTICULAR | C117: IPS INMUNOLOGIA Y DIAGNOSTICO ESPECIALIZADO | D117: 02-CHAPINERO | E117: 0 | F117: 0 | G117: 0 | H117: 0 | I117: 0 | J117: 0 | K117: 1 | S117: 1 | T117: 0.0%
A118: PARTICULAR | B118: PARTICULAR | C118: ASOCIACION PEDIATRICA DE LOS ANDES | D118: 02-CHAPINERO | E118: 0 | F118: 0 | G118: 1 | H118: 0 | I118: 0 | J118: 0 | K118: 0 | S118: 1 | T118: 0.0%
A119: PARTICULAR | B119: PARTICULAR | C119: CRUZ ROJA SEDE ANDINO | D119: 02-CHAPINERO | E119: 0 | F119: 0 | G119: 0 | H119: 0 | I119: 0 | J119: 0 | K119: 0 | S119: 0 | T119: 0.0% | U119: 0
A120: PARTICULAR | B120: PARTICULAR | C120: CENTRO MEDICO SANTA MONICA | D120: 02-CHAPINERO | E120: 0 | F120: 0 | H120: 0 | I120: 0 | J120: 11 | K120: 5 | S120: 16 | T120: 0.0%
A121: PEDIATRAS | B121: PEDIATRAS | C121: DR. JUAN OSCAR TAMAYO | D121: 02-CHAPINERO | E121: 0 | F121: 0 | G121: 0 | H121: 0 | I121: 1 | J121: 0 | K121: 0 | S121: 1 | T121: 0.0%
A122: PEDIATRAS | B122: PEDIATRAS | C122: DR. ROBERTO SUAREZ | D122: 02-CHAPINERO | E122: 0 | F122: 0 | G122: 0 | H122: 0 | I122: 0 | J122: 0 | K122: 0 | S122: 0 | T122: 0.0% | U122: 0
A123: PEDIATRAS | B123: PEDIATRAS | C123: DR. WILLIAM RICARDO CABRA | D123: 02-CHAPINERO | E123: 0 | F123: 0 | G123: 1 | H123: 2 | I123: 2 | J123: 1 | K123: 4 | S123: 10 | T123: 0.0%
A124: PEDIATRAS | B124: PEDIATRAS | C124: DR. EDGAR CASTRO | D124: 02-CHAPINERO | E124: 0 | F124: 0 | G124: 7 | H124: 4 | I124: 0 | J124: 4 | K124: 8 | S124: 23 | T124: 0.0%
A125: PEDIATRAS | B125: PEDIATRAS | C125: DR. PABLO KRAUSS | D125: 02-CHAPINERO | E125: 0 | F125: 0 | G125: 6 | H125: 1 | I125: 2 | J125: 0 | K125: 0 | S125: 9 | T125: 0.0%
A126: PEDIATRAS | B126: PEDIATRAS | C126: DR. HERNAN ROBLES | D126: 02-CHAPINERO | E126: 0 | F126: 0 | G126: 4 | H126: 1 | I126: 4 | J126: 5 | K126: 3 | S126: 17 | T126: 0.0%
A127: PEDIATRAS | B127: PEDIATRAS | C127: DR. RAFAEL GAMBOA CASABLANCA | D127: 02-CHAPINERO | E127: 0 | F127: 0 | G127: 5 | H127: 9 | I127: 1 | J127: 3 | K127: 6 | S127: 24 | T127: 0.0%
A128: PEDIATRAS | B128: PEDIATRAS | C128: DR. JAVIER MEJIA | D128: 02-CHAPINERO | E128: 0 | F128: 0 | G128: 2 | H128: 5 | I128: 1 | J128: 4 | K128: 4 | S128: 16 | T128: 0.0%
A129: PEDIATRAS | B129: PEDIATRAS | C129: DR. CARLOS CORTAZAR | D129: 02-CHAPINERO | E129: 0 | F129: 0 | G129: 0 | H129: 0 | I129: 0 | J129: 0 | K129: 0 | S129: 0 | T129: 0.0% | U129: 0
A130: PEDIATRAS | B130: PEDIATRAS | C130: DR. NELSON PARDO | D130: 02-CHAPINERO | E130: 0 | F130: 0 | G130: 0 | H130: 2 | I130: 1 | J130: 0 | K130: 0 | S130: 3 | T130: =IF(E130=0,0,+S130/E130) -> 0.0% | U130: =IF(COUNT(G130:R130)*(E130/12)-S130<0,"",COUNT(G130:R130)*(E130/12)-S130) -> 
A131: PEDIATRAS | B131: PEDIATRAS | C131: DR. ALVARO JACOME | D131: 02-CHAPINERO | E131: 0 | F131: =+E131/12 -> 0 | G131: 0 | H131: 1 | I131: 0 | J131: 4 | K131: 3 | S131: =SUM(G131:R131) -> 8 | T131: 0.0%
A132: PEDIATRAS | B132: PEDIATRAS | C132: DR. SILVIO COPO | D132: 02-CHAPINERO | E132: 0 | F132: 0 | G132: 0 | H132: 2 | I132: 0 | J132: 0 | K132: 0 | S132: 2 | T132: 0.0%
A133: PEDIATRAS | B133: PEDIATRAS | C133: DR. HECTOR FERNANDO MENDOZA | D133: 02-CHAPINERO | E133: 0 | F133: 0 | G133: 1 | H133: 1 | I133: 0 | J133: 0 | K133: 1 | S133: 3 | T133: 0.0%
A134: PEDIATRAS | B134: PEDIATRAS | C134: DR. DIMITRIOS | D134: 02-CHAPINERO | E134: 0 | F134: 0 | G134: 0 | H134: 1 | I134: 0 | J134: 0 | K134: 1 | S134: 2 | T134: 0.0%
A135: PEDIATRAS | B135: PEDIATRAS | C135: DR. ALVARO MARIÑO | D135: 02-CHAPINERO | E135: 0 | F135: 0 | G135: 0 | H135: 1 | I135: 0 | J135: 0 | K135: 0 | S135: 1 | T135: 0.0%
A136: PEDIATRAS | B136: PEDIATRAS | C136: DR. ANDRES VARGAS | D136: 02-CHAPINERO | E136: 0 | F136: 0 | G136: 1 | H136: 0 | I136: 0 | J136: 2 | K136: 1 | S136: 4 | T136: 0.0%
A137: PEDIATRAS | B137: PEDIATRAS | C137: DR. JORGE CAMILO LUNA | D137: 02-CHAPINERO | E137: 0 | F137: 0 | G137: 0 | H137: 1 | I137: 1 | J137: 19 | K137: 3 | S137: 24 | T137: 0.0%
A138: PEDIATRAS | B138: PEDIATRAS | C138: DR. BERNARDO HUERTAS | D138: 02-CHAPINERO | E138: 0 | F138: 0 | G138: 4 | H138: 8 | I138: 3 | J138: 14 | K138: 6 | S138: 35 | T138: 0.0%
A139: PEDIATRAS | B139: PEDIATRAS | C139: DR. CARLOS M CASTILLO | D139: 02-CHAPINERO | E139: 0 | F139: 0 | G139: 0 | H139: 0 | I139: 0 | J139: 0 | K139: 0 | S139: 0 | T139: 0.0% | U139: 0
A140: PEDIATRAS | B140: PEDIATRAS | C140: DR. HEINZ OTTO PFALZGRAF | D140: 02-CHAPINERO | E140: 0 | F140: 0 | G140: 0 | H140: 0 | I140: 0 | J140: 0 | K140: 0 | S140: 0 | T140: 0.0% | U140: 0
A141: PEDIATRAS | B141: PEDIATRAS | C141: DR. GONZALEZ BALLESTEROS | D141: 02-CHAPINERO | E141: 0 | F141: 0 | G141: 0 | H141: 0 | I141: 0 | J141: 0 | K141: 0 | S141: 0 | T141: 0.0% | U141: 0
A142: PEDIATRAS | B142: PEDIATRAS | C142: DR. NORBERTO SALAMANCA | D142: 02-CHAPINERO | E142: 0 | F142: 0 | G142: 0 | H142: 0 | I142: 0 | J142: 0 | K142: 0 | S142: 0 | T142: 0.0% | U142: 0
A143: PEDIATRAS | B143: PEDIATRAS | C143: DR. CAMILO ENRIQUE SOTOMAYOR | D143: 02-CHAPINERO | E143: 0 | F143: 0 | G143: 0 | H143: 2 | I143: 1 | J143: 0 | K143: 1 | S143: 4 | T143: 0.0%
A144: PEDIATRAS | B144: PEDIATRAS | C144: DR. SANTIAGO RUEDA SAIZ | D144: 02-CHAPINERO | E144: 0 | F144: 0 | G144: 5 | H144: 3 | I144: 1 | J144: 0 | K144: 1 | S144: 10 | T144: 0.0%
A145: PEDIATRAS | B145: PEDIATRAS | C145: DR. HENRY HERNANDO SANCHEZ ESCOBAR | D145: 02-CHAPINERO | E145: 0 | F145: 0 | G145: 0 | H145: 1 | I145: 0 | J145: 0 | K145: 1 | S145: 2 | T145: 0.0%
A146: PEDIATRAS | B146: PEDIATRAS | C146: DR. RUBEN DARIO TAMAYO | D146: 02-CHAPINERO | E146: 0 | F146: 0 | G146: 0 | H146: 0 | I146: 0 | J146: 0 | K146: 3 | S146: 3 | T146: 0.0%
A147: PEDIATRAS | B147: PEDIATRAS | C147: DR. JAIME MAURICIO MATALLANA | D147: 02-CHAPINERO | E147: 0 | F147: 0 | G147: 6 | H147: 3 | I147: 2 | J147: 2 | K147: 3 | S147: 16 | T147: 0.0%
A148: PEDIATRAS | B148: PEDIATRAS | C148: DR. RODRIGO GARCIA | D148: 02-CHAPINERO | E148: 0 | F148: 0 | G148: 0 | H148: 0 | I148: 0 | J148: 0 | K148: 0 | S148: 0 | T148: 0.0% | U148: 0
A149: PEDIATRAS | B149: PEDIATRAS | C149: DR. FELIPE ROBAYO | D149: 02-CHAPINERO | E149: 0 | F149: 0 | G149: 0 | H149: 0 | I149: 0 | J149: 0 | K149: 0 | S149: 0 | T149: 0.0% | U149: 0
A150: PEDIATRAS | B150: PEDIATRAS | C150: DR. RUBEN FRANCO | D150: 02-CHAPINERO | E150: 0 | F150: 0 | G150: 0 | H150: 0 | I150: 1 | J150: 2 | K150: 0 | S150: 3 | T150: 0.0%
A151: PEDIATRAS | B151: PEDIATRAS | C151: DR. ORLANDO RODRIGUEZ RAMIREZ | D151: 02-CHAPINERO | E151: 0 | F151: 0 | G151: 0 | H151: 1 | I151: 1 | J151: 0 | K151: 1 | S151: 3 | T151: 0.0%
A152: PEDIATRAS | B152: PEDIATRAS | C152: DR. ARTURO MORENO | D152: 02-CHAPINERO | E152: 0 | F152: 0 | G152: 0 | H152: 0 | I152: 0 | J152: 0 | K152: 0 | S152: 0 | T152: 0.0% | U152: 0
A153: PEDIATRAS | B153: PEDIATRAS | C153: DR. FRANCISCO LEAL QUEVEDO | D153: 02-CHAPINERO | E153: 0 | F153: 0 | G153: 0 | H153: 0 | I153: 0 | J153: 0 | K153: 0 | S153: 0 | T153: 0.0% | U153: 0
A154: PEDIATRAS | B154: PEDIATRAS | C154: DR. CARLOS DIAZ PUENTES | D154: 02-CHAPINERO | E154: 0 | F154: 0 | G154: 0 | H154: 0 | I154: 0 | J154: 0 | K154: 0 | S154: 0 | T154: 0.0% | U154: 0
A155: PEDIATRAS | B155: PEDIATRAS | C155: DR. PEDRO ERASMO MENDOZA | D155: 02-CHAPINERO | E155: 0 | F155: 0 | G155: 0 | H155: 0 | I155: 0 | J155: 0 | K155: 0 | S155: 0 | T155: 0.0% | U155: 0
A156: PEDIATRAS | B156: PEDIATRAS | C156: DR. DIMAS ROSAS | D156: 02-CHAPINERO | E156: 0 | F156: 0 | G156: 0 | H156: 0 | I156: 0 | J156: 0 | K156: 0 | S156: 0 | T156: 0.0% | U156: 0
A157: PEDIATRAS | B157: PEDIATRAS | C157: DR. JAVIER BRITO MORENO | D157: 02-CHAPINERO | E157: 0 | F157: 0 | G157: 0 | H157: 0 | I157: 0 | J157: 0 | K157: 0 | S157: 0 | T157: 0.0% | U157: 0
A158: PEDIATRAS | B158: PEDIATRAS | C158: DR. GUSTAVO CORTÉS | D158: 02-CHAPINERO | E158: 0 | F158: 0 | G158: 0 | H158: 0 | I158: 0 | J158: 0 | K158: 0 | S158: 0 | T158: 0.0% | U158: 0
A159: PEDIATRAS | B159: PEDIATRAS | C159: DR. CARLOS VELASQUEZ | D159: 02-CHAPINERO | E159: 0 | F159: 0 | G159: 0 | H159: 0 | I159: 0 | J159: 0 | K159: 0 | S159: 0 | T159: 0.0% | U159: 0
A160: PEDIATRAS | B160: PEDIATRAS | C160: DR. RICARDO GOMEZ | D160: 02-CHAPINERO | E160: 0 | F160: 0 | G160: 0 | H160: 0 | I160: 0 | J160: 0 | K160: 0 | S160: 0 | T160: 0.0% | U160: 0
A161: PEDIATRAS | B161: PEDIATRAS | C161: DR. SARA BERNAL | D161: 02-CHAPINERO | E161: 0 | F161: 0 | G161: 1 | H161: 0 | I161: 0 | J161: 0 | K161: 0 | S161: 1 | T161: 0.0%
A162: PEDIATRAS | B162: PEDIATRAS | C162: DRA. MARIA PATRICIA AGUALIMPIA | D162: 02-CHAPINERO | E162: 0 | F162: 0 | G162: 0 | H162: 0 | I162: 0 | J162: 0 | K162: 0 | S162: 0 | T162: 0.0% | U162: 0
A163: PEDIATRAS | B163: PEDIATRAS | C163: DRA. LUISA FERNANDA FORERO ACOSTA | D163: 02-CHAPINERO | E163: 0 | F163: 0 | G163: 0 | H163: 0 | I163: 0 | J163: 0 | K163: 0 | S163: 0 | T163: 0.0% | U163: 0
A164: PEDIATRAS | B164: PEDIATRAS | C164: DRA. MARIA CLARA CASAS PARDO | D164: 02-CHAPINERO | E164: 0 | F164: 0 | G164: 0 | H164: 0 | I164: 0 | J164: 0 | K164: 0 | S164: 0 | T164: 0.0% | U164: 0
A165: PEDIATRAS | B165: PEDIATRAS | C165: DRA. MARTHA EUGENIA RONDEROS DE FORERO | D165: 02-CHAPINERO | E165: 0 | F165: 0 | G165: 0 | H165: 0 | I165: 0 | J165: 0 | K165: 0 | S165: 0 | T165: 0.0% | U165: 0
A166: PEDIATRAS | B166: PEDIATRAS | C166: DRA. MARIA ISABEL USCHER | D166: 02-CHAPINERO | E166: 0 | F166: 0 | G166: 1 | H166: 0 | I166: 0 | J166: 0 | K166: 2 | S166: 3 | T166: 0.0%
A167: PEDIATRAS | B167: PEDIATRAS | C167: DRA. MARIA DE LOS ANGELES MUÑOZ | D167: 02-CHAPINERO | E167: 0 | F167: 0 | G167: 2 | H167: 0 | I167: 0 | J167: 0 | K167: 1 | S167: 3 | T167: 0.0%
A168: PEDIATRAS | B168: PEDIATRAS | C168: DRA. CLARA ABELLO REYES | D168: 02-CHAPINERO | E168: 0 | F168: 0 | G168: 1 | H168: 1 | I168: 0 | J168: 0 | K168: 0 | S168: 2 | T168: 0.0%
A169: PEDIATRAS | B169: PEDIATRAS | C169: DRA. PATRICIA CONTRERAS | D169: 02-CHAPINERO | E169: 0 | F169: 0 | G169: 3 | H169: 0 | I169: 1 | J169: 1 | K169: 0 | S169: 5 | T169: 0.0%
A170: PEDIATRAS | B170: PEDIATRAS | C170: DRA. CLAUDIA ZOPPI | D170: 02-CHAPINERO | E170: 0 | F170: 0 | G170: 0 | H170: 0 | I170: 0 | J170: 0 | K170: 0 | S170: 0 | T170: 0.0% | U170: 0
A171: PEDIATRAS | B171: PEDIATRAS | C171: DRA. MARIA DE LOS ANGELES FERNANDEZ LUQUE | D171: 02-CHAPINERO | E171: 0 | F171: 0 | G171: 0 | H171: 0 | I171: 0 | J171: 0 | K171: 0 | S171: 0 | T171: 0.0% | U171: 0
A172: PEDIATRAS | B172: PEDIATRAS | C172: DRA. RUTH CORDOBA CORDOBA | D172: 02-CHAPINERO | E172: 0 | F172: 0 | G172: 0 | H172: 0 | I172: 0 | J172: 0 | K172: 0 | S172: 0 | T172: 0.0% | U172: 0
A173: PEDIATRAS | B173: PEDIATRAS | C173: DRA. LUZ ESTELA CORTES | D173: 02-CHAPINERO | E173: 0 | F173: 0 | G173: 0 | H173: 0 | I173: 0 | J173: 0 | K173: 0 | S173: 0 | T173: 0.0% | U173: 0
A174: UNICAJAS | B174: UNICAJAS | C174: UPA SAN LUIS | D174: 02-CHAPINERO | E174: 18 | F174: 2 | G174: 1 | H174: 0 | I174: 1 | J174: 0 | K174: 0 | S174: 2 | T174: 11.1% | U174: 6
A175: 02-CHAPINERO | B175: OTROS | C175: UPA SAN LUIS | D175: 02-CHAPINERO | E175: 325 | F175: 27 | G175: 0 | H175: 2 | I175: 0 | J175: 1 | K175: 0 | S175: 3 | T175: 0.9% | U175: 132
A176: 02-CHAPINERO | B176: DEMAS EAPB | C176: UPA SAN LUIS | D176: 02-CHAPINERO | F176: 0 | G176: 6 | H176: 2 | I176: 5 | J176: 5 | K176: 4 | S176: 22 | T176: 0.0%
A177: UNICAJAS | B177: UNICAJAS | C177: COMFASALUD SEDE CENTRO | D177: 03-SANTA FE | E177: 50 | F177: 4 | G177: 4 | H177: 2 | I177: 4 | J177: 1 | K177: 1 | S177: 12 | T177: 24.0% | U177: 9
A178: MEDIMAS | B178: MEDIMAS | C178: CORVESALUD TEUSAQUILLO | D178: 03-SANTA FE | E178: 193 | F178: 16 | G178: 6 | H178: 4 | I178: 2 | J178: 0 | K178: 0 | S178: 12 | T178: 6.2% | U178: 68
A179: 03-SANTA FE | B179: CAPITAL SALUD | C179: EXTRAMURAL SANTA FE | D179: 03-SANTA FE | E179: 0 | F179: 0 | G179: 2 | H179: 4 | I179: 17 | J179: 29 | K179: 19 | S179: 71 | T179: 0.0%
A180: 03-SANTA FE | B180: DEMAS EAPB | C180: EXTRAMURAL SANTA FE | D180: 03-SANTA FE | E180: 0 | F180: 0 | G180: 6 | H180: 4 | I180: 17 | J180: 35 | K180: 22 | S180: 84 | T180: 0.0%
A181: 03-SANTA FE | B181: OTROS | C181: EXTRAMURAL SANTA FE | D181: 03-SANTA FE | E181: 0 | F181: 0 | G181: 13 | H181: 9 | I181: 10 | J181: 7 | K181: 6 | S181: 45 | T181: 0.0%
A182: 03-SANTA FE | B182: UNICAJAS | C182: EXTRAMURAL SANTA FE | D182: 03-SANTA FE | E182: 0 | F182: 0 | G182: 0 | H182: 0 | I182: 1 | J182: 1 | K182: 3 | S182: 5 | T182: 0.0%
A183: 03-SANTA FE | B183: CAPITAL SALUD | C183: USS LACHES | D183: 03-SANTA FE | E183: 54 | F183: 5 | G183: 9 | H183: 3 | I183: 4 | J183: 6 | K183: 4 | S183: 26 | T183: 48.1%
A184: 03-SANTA FE | B184: DEMAS EAPB | C184: USS LACHES | D184: 03-SANTA FE | E184: 0 | F184: 0 | G184: 12 | H184: 2 | I184: 11 | J184: 1 | K184: 6 | S184: 32 | T184: 0.0%
A185: 03-SANTA FE | B185: OTROS | C185: USS LACHES | D185: 03-SANTA FE | E185: 260 | F185: 22 | G185: 6 | H185: 0 | I185: 2 | J185: 0 | K185: 1 | S185: 9 | T185: 3.5% | U185: 99
A186: 03-SANTA FE | B186: UNICAJAS | C186: USS LACHES | D186: 03-SANTA FE | E186: 17 | F186: 1 | G186: 0 | H186: 2 | I186: 1 | J186: 0 | K186: 0 | S186: 3 | T186: 17.6% | U186: 4
A187: 03-SANTA FE | B187: CAPITAL SALUD | C187: USS LAS CRUCES | D187: 03-SANTA FE | E187: 44 | F187: 4 | G187: 7 | H187: 5 | I187: 6 | J187: 3 | K187: 2 | S187: 23 | T187: 52.3%
A188: 03-SANTA FE | B188: DEMAS EAPB | C188: USS LAS CRUCES | D188: 03-SANTA FE | E188: 0 | F188: 0 | G188: 6 | H188: 1 | I188: 4 | J188: 5 | K188: 2 | S188: 18 | T188: 0.0%
A189: 03-SANTA FE | B189: OTROS | C189: USS LAS CRUCES | D189: 03-SANTA FE | E189: 211 | F189: 18 | G189: 3 | H189: 2 | I189: 2 | J189: 1 | K189: 2 | S189: 10 | T189: 4.7% | U189: 78
A190: 03-SANTA FE | B190: UNICAJAS | C190: USS LAS CRUCES | D190: 03-SANTA FE | E190: 14 | F190: 1 | G190: 7 | H190: 0 | I190: 1 | J190: 0 | K190: 1 | S190: 9 | T190: 64.3%
A191: 03-SANTA FE | B191: CAPITAL SALUD | C191: USS PERSEVERANCIA | D191: 03-SANTA FE | E191: 6 | F191: 1 | G191: 2 | H191: 0 | I191: 3 | J191: 0 | K191: 0 | S191: 5 | T191: 83.3%
A192: 03-SANTA FE | B192: DEMAS EAPB | C192: USS PERSEVERANCIA | D192: 03-SANTA FE | E192: 0 | F192: 0 | G192: 0 | H192: 0 | I192: 1 | J192: 0 | K192: 0 | S192: 1 | T192: 0.0%
A193: 03-SANTA FE | B193: OTROS | C193: USS PERSEVERANCIA | D193: 03-SANTA FE | E193: 30 | F193: 3 | G193: 2 | H193: 0 | I193: 0 | J193: 0 | K193: 2 | S193: 4 | T193: 13.3% | U193: 9
A194: 03-SANTA FE | B194: UNICAJAS | C194: USS PERSEVERANCIA | D194: 03-SANTA FE | E194: 2 | F194: 0 | G194: 0 | H194: 0 | I194: 0 | J194: 0 | K194: 0 | S194: 0 | T194: =IF(E194=0,0,+S194/E194) -> 0.0% | U194: =IF(COUNT(G194:R194)*(E194/12)-S194<0,"",COUNT(G194:R194)*(E194/12)-S194) -> 1
A195: PARTICULAR | B195: PARTICULAR | C195: CLINICA SAN RAFAEL | D195: 04-SAN CRISTOBAL | E195: 375 | F195: =+E195/12 -> 31 | G195: 35 | H195: 26 | I195: 23 | J195: 17 | K195: 25 | S195: =SUM(G195:R195) -> 126 | T195: 33.6% | U195: 30
A196: FAMISANAR | B196: FAMI- COLSB | C196: CENTRO MEDICO COLSUBSIDIO 20 DE JULIO | D196: 04-SAN CRISTOBAL | F196: 0 | S196: 0 | T196: 0.0% | U196: 0
A197: 04-SAN CRISTOBAL | B197: CAPITAL SALUD | C197: EXTRAMURAL SAN CRISTOBAL | D197: 04-SAN CRISTOBAL | E197: 0 | F197: 0 | G197: 25 | H197: 28 | I197: 65 | J197: 43 | K197: 69 | S197: 230 | T197: 0.0%
A198: 04-SAN CRISTOBAL | B198: DEMAS EAPB | C198: EXTRAMURAL SAN CRISTOBAL | D198: 04-SAN CRISTOBAL | E198: 0 | F198: 0 | G198: 36 | H198: 26 | I198: 105 | J198: 117 | K198: 105 | S198: 389 | T198: 0.0%
A199: 04-SAN CRISTOBAL | B199: OTROS | C199: EXTRAMURAL SAN CRISTOBAL | D199: 04-SAN CRISTOBAL | E199: 0 | F199: 0 | G199: 11 | H199: 5 | I199: 19 | J199: 18 | K199: 21 | S199: 74 | T199: 0.0%
A200: 04-SAN CRISTOBAL | B200: UNICAJAS | C200: EXTRAMURAL SAN CRISTOBAL | D200: 04-SAN CRISTOBAL | E200: 0 | F200: 0 | G200: 0 | H200: 2 | I200: 14 | J200: 6 | K200: 11 | S200: 33 | T200: 0.0%
... 620 more rows

Sheet NEUMOCOCO1
A1: EAPB | B1: EPS O ESE | C1: IPS | D1: Localidad | E1: Meta Anual Menor de 1 Año | F1: Meta Mensual | G1: Enero | H1: Febrero | I1: Marzo | J1: Abril | K1: Mayo | L1: Junio | M1: Julio | N1: Agosto | O1: Septiembre | P1: Octubre | Q1: Noviembre | R1: Diciembre | S1: Total | T1: % Cobertura | U1: Deficit
A2: CAPITAL SALUD | B2: CAPITAL SALUD | C2: UPA SAN CRISTOBAL | D2: 01-USAQUEN | E2: 124 | F2: =+E2/12 -> 10 | G2: 6 | H2: 7 | I2: 3 | J2: 7 | K2: 7 | S2: =SUM(G2:R2) -> 30 | T2: =IF(E2=0,0,+S2/E2) -> 24.2% | U2: =IF(COUNT(G2:R2)*(E2/12)-S2<0,"",COUNT(G2:R2)*(E2/12)-S2) -> 22
A3: CAPITAL SALUD | B3: CAPITAL SALUD | C3: UPA USAQUEN | D3: 01-USAQUEN | E3: 10 | F3: =+E3/12 -> 1 | H3: 1 | I3: 0 | J3: 0 | K3: 0 | S3: =SUM(G3:R3) -> 1 | T3: 10.0% | U3: 2
A4: CAPITAL SALUD | B4: CAPITAL SALUD | C4: UPA ORQUIDEAS | D4: 01-USAQUEN | E4: 11 | F4: 1 | G4: 1 | H4: 3 | I4: 2 | J4: 2 | K4: 5 | S4: 13 | T4: 118.2%
A5: CAPITAL SALUD | B5: CAPITAL SALUD | C5: UPA CODITO | D5: 01-USAQUEN | E5: 107 | F5: 9 | G5: 7 | H5: 4 | I5: 11 | J5: 4 | K5: 6 | S5: 32 | T5: 29.9% | U5: 13
A6: CAPITAL SALUD | B6: CAPITAL SALUD | C6: CAMI VERBENAL | D6: 01-USAQUEN | E6: 87 | F6: 7 | G6: 11 | H6: 4 | I6: 11 | J6: 5 | K6: 4 | S6: 35 | T6: 40.2% | U6: 1
A7: CAPITAL SALUD | B7: CAPITAL SALUD | C7: HOSPITAL SIMON BOLIVAR | D7: 01-USAQUEN | E7: 36 | F7: 3 | G7: 22 | H7: 10 | I7: 6 | J7: 0 | K7: 2 | S7: 40 | T7: 111.1%
A8: 01-USAQUEN | B8: 01-USAQUEN | C8: EXTRAMURAL USAQUEN | D8: 01-USAQUEN | E8: 0 | F8: 0 | G8: 6 | H8: 7 | I8: 5 | J8: 18 | K8: 40 | S8: 76 | T8: 0.0%
A9: ALIANSALUD | B9: ALIANSALUD | C9: CENTRO MEDICO COLMEDICA SANTA BARBARA | D9: 01-USAQUEN | E9: 580 | F9: 48 | G9: 63 | H9: 44 | I9: 43 | J9: 34 | K9: 49 | S9: 233 | T9: 40.2% | U9: 9
A10: COMPENSAR | B10: COMPENSAR | C10: USS CALLE 134 | D10: 01-USAQUEN | E10: 372 | F10: 31 | G10: 17 | H10: 21 | I10: 15 | J10: 11 | K10: 23 | S10: 87 | T10: 23.4% | U10: 68
A11: COMPENSAR | B11: COMPENSAR | C11: USS CALLE 145 | D11: 01-USAQUEN | E11: 173 | F11: 14 | G11: 13 | H11: 10 | I11: 23 | J11: 8 | K11: 21 | S11: 75 | T11: 43.4%
A12: COMPENSAR | B12: COMPENSAR | C12: JAVESALUD TOBERIN | D12: 01-USAQUEN | E12: 372 | F12: 31 | G12: 6 | H12: 12 | I12: 14 | J12: 11 | K12: 10 | S12: 53 | T12: 14.2% | U12: 102
A13: COOMEVA | B13: COOMEVA | C13: SINERGIA UNIDAD INTEGRAL EN SALUD | D13: 01-USAQUEN | E13: 44 | F13: 4 | G13: 5 | H13: 5 | I13: 5 | J13: 4 | K13: 5 | S13: 24 | T13: 54.5%
A14: FAMISANAR | B14: FAMI- COLSB | C14: CENTRO MEDICO COLSUBSIDIO USAQUEN | D14: 01-USAQUEN | E14: 298 | F14: 25 | G14: 38 | H14: 45 | I14: 25 | J14: 20 | K14: 24 | S14: 152 | T14: 51.0%
A15: MILITAR | B15: MILITAR | C15: DISPENSARIO MEDICO CANTON NORTE | D15: 01-USAQUEN | E15: 205 | F15: 17 | G15: 8 | H15: 4 | I15: 6 | J15: 6 | K15: 8 | S15: 32 | T15: 15.6% | U15: 53
A16: NUEVA EPS | B16: NUEVA EPS | C16: IPS VIVA 1A SEDE TOBERIN | D16: 01-USAQUEN | E16: 147 | F16: 12 | G16: 9 | H16: 9 | I16: 6 | J16: 5 | K16: 2 | S16: 31 | T16: 21.1% | U16: 30
A17: NUEVA EPS | B17: NUEVA EPS | C17: CAFAM GRANADA HILLS | D17: 01-USAQUEN | E17: 44 | F17: 4 | G17: 2 | H17: 2 | I17: 1 | J17: 2 | K17: 1 | S17: 8 | T17: 18.2% | U17: 10
A18: SANITAS | B18: SANITAS | C18: UAP SANITAS TOBERIN | D18: 01-USAQUEN | E18: 511 | F18: 43 | G18: 27 | H18: 38 | I18: 35 | J18: 27 | K18: 18 | S18: 145 | T18: 28.4% | U18: 68
A19: SANITAS | B19: SANITAS | C19: MEDIKA IPS SANITAS UAP USAQUEN | D19: 01-USAQUEN | E19: 188 | F19: 16 | G19: 4 | H19: 2 | I19: 4 | J19: 0 | K19: 2 | S19: 12 | T19: 6.4% | U19: 66
A20: SANITAS | B20: SANITAS | C20: UAP SANTA BARBARA | D20: 01-USAQUEN | E20: 796 | F20: 66 | G20: 92 | H20: 114 | I20: 117 | J20: 65 | K20: 57 | S20: 445 | T20: 55.9%
A21: SANITAS | B21: SANITAS | C21: SANITAS BANCO DE LA REPUBLICA | D21: 01-USAQUEN | E21: 0 | F21: 0 | G21: 3 | H21: 3 | I21: 5 | J21: 5 | K21: 4 | S21: 20 | T21: 0.0%
A22: SALUD TOTAL | B22: SALUD TOTAL | C22: VIRREY SOLIS TOBERÍN | D22: 01-USAQUEN | E22: 384 | F22: 32 | G22: 24 | H22: 13 | I22: 19 | J22: 14 | K22: 11 | S22: 81 | T22: 21.1% | U22: 79
A23: SURA | B23: SURA | C23: IPS JAVESALUD SANTA BEATRIZ | D23: 01-USAQUEN | E23: 355 | F23: 30 | G23: 20 | H23: 14 | I23: 12 | J23: 4 | K23: 15 | S23: 65 | T23: 18.3% | U23: 83
A24: ECOPETROL | B24: ECOPETROL | C24: IPS CLINICOS PALATINO | D24: 01-USAQUEN | E24: 87 | F24: 7 | G24: 6 | H24: 9 | I24: 7 | J24: 5 | K24: 6 | S24: 33 | T24: 37.9% | U24: 3
A25: PARTICULAR | B25: PARTICULAR | C25: CLINICA PEDIATRICA COLSANITAS | D25: 01-USAQUEN | E25: 830 | F25: 69 | G25: 58 | H25: 57 | I25: 47 | J25: 51 | K25: 38 | S25: 251 | T25: 30.2% | U25: 95
A26: PARTICULAR | B26: PARTICULAR | C26: CENTRO MEDICO COLSANITAS LA CALLEJA | D26: 01-USAQUEN | E26: 120 | F26: 10 | G26: 5 | H26: 15 | I26: 6 | J26: 5 | K26: 3 | S26: 34 | T26: 28.3% | U26: 16
A27: PARTICULAR | B27: PARTICULAR | C27: CENTRO MEDICO COLSANITAS 108 | D27: 01-USAQUEN | E27: 40 | F27: 3 | G27: 4 | H27: 3 | I27: 0 | J27: 0 | K27: 0 | S27: 7 | T27: 17.5% | U27: 10
A28: PARTICULAR | B28: PARTICULAR | C28: CENTRO MEDICO COLSANITAS SANTA ANA | D28: 01-USAQUEN | E28: 4 | F28: 0 | G28: 1 | H28: 3 | I28: 4 | J28: 0 | K28: 0 | S28: 8 | T28: 200.0%
A29: PARTICULAR | B29: PARTICULAR | C29: FUNDACIÓN CARDIO INFANTIL | D29: 01-USAQUEN | E29: 0 | F29: 0 | G29: 8 | H29: 19 | I29: 6 | J29: 6 | K29: 4 | S29: 43 | T29: 0.0%
A30: PARTICULAR | B30: PARTICULAR | C30: ENFASO USAQUEN | D30: 01-USAQUEN | E30: 0 | F30: 0 | G30: 9 | H30: 13 | I30: 1 | J30: 0 | K30: 6 | S30: 29 | T30: 0.0%
A31: PARTICULAR | B31: PARTICULAR | C31: UNIDAD DE VACUNACIÓN INTERNACIONAL | D31: 01-USAQUEN | E31: 0 | F31: 0 | G31: 6 | H31: 6 | I31: 3 | J31: 3 | K31: 0 | S31: 18 | T31: 0.0%
A32: PARTICULAR | B32: PARTICULAR | C32: INMUNOLOGÍA Y DIAGNÓSTICO ESPECIALIZADO LTDA. | D32: 01-USAQUEN | E32: 0 | F32: 0 | G32: 2 | H32: 0 | I32: 2 | J32: 0 | K32: 0 | S32: 4 | T32: 0.0%
A33: PARTICULAR | B33: PARTICULAR | C33: PROTEGER HEALHT CARE | D33: 01-USAQUEN | E33: 0 | F33: 0 | G33: 2 | H33: 6 | I33: 1 | J33: 1 | K33: 3 | S33: 13 | T33: 0.0%
A34: PARTICULAR | B34: PARTICULAR | C34: FUNDACION SANTA FE DE BOGOTA | D34: 01-USAQUEN | E34: 0 | F34: 0 | G34: 4 | H34: 2 | I34: 0 | J34: 2 | K34: 0 | S34: 8 | T34: 0.0%
A35: PARTICULAR | B35: PARTICULAR | C35: IPS CRUZ ROJA SEDE UNICENTRO | D35: 01-USAQUEN | E35: 0 | F35: 0 | G35: 0 | H35: 0 | I35: 0 | J35: 0 | K35: 0 | S35: 0 | T35: 0.0% | U35: 0
A36: PARTICULAR | B36: PARTICULAR | C36: IPS CRUZ ROJA SAMU CALLE 145 | D36: 01-USAQUEN | E36: 0 | F36: 0 | G36: 0 | H36: 0 | I36: 0 | J36: 0 | K36: 0 | S36: 0 | T36: 0.0% | U36: 0
A37: PEDIATRAS | B37: PEDIATRAS | C37: DR. ALEJANDRO LÓPEZ | D37: 01-USAQUEN | E37: 0 | F37: 0 | G37: 0 | H37: 3 | I37: 0 | J37: 1 | K37: 0 | S37: 4 | T37: 0.0%
A38: PEDIATRAS | B38: PEDIATRAS | C38: DR. CARLOS NEFTALI TORRES | D38: 01-USAQUEN | E38: 0 | F38: 0 | G38: 1 | H38: 2 | I38: 5 | J38: 1 | K38: 5 | S38: 14 | T38: 0.0%
A39: PEDIATRAS | B39: PEDIATRAS | C39: DR. FRANCISCO NUÑEZ | D39: 01-USAQUEN | E39: 0 | F39: 0 | G39: 1 | H39: 1 | I39: 0 | J39: 0 | K39: 1 | S39: 3 | T39: 0.0%
A40: PEDIATRAS | B40: PEDIATRAS | C40: DR. FERNANDO GOMEZ | D40: 01-USAQUEN | E40: 0 | F40: 0 | G40: 0 | H40: 0 | I40: 0 | J40: 0 | K40: 0 | S40: 0 | T40: 0.0% | U40: 0
A41: PEDIATRAS | B41: PEDIATRAS | C41: DR. FERNANDO ZARATE MORENO | D41: 01-USAQUEN | E41: 0 | F41: 0 | G41: 1 | H41: 1 | I41: 0 | J41: 1 | K41: 0 | S41: 3 | T41: 0.0%
A42: PEDIATRAS | B42: PEDIATRAS | C42: DR. GONZALO GARCIA | D42: 01-USAQUEN | E42: 0 | F42: 0 | G42: 1 | H42: 0 | I42: 1 | J42: 0 | K42: 1 | S42: 3 | T42: 0.0%
A43: PEDIATRAS | B43: PEDIATRAS | C43: DR. GUSTAVO MORALES | D43: 01-USAQUEN | E43: 0 | F43: 0 | G43: 2 | H43: 1 | I43: 2 | J43: 2 | K43: 4 | S43: 11 | T43: 0.0%
A44: PEDIATRAS | B44: PEDIATRAS | C44: DR. JAIME OSPINA | D44: 01-USAQUEN | E44: 0 | F44: 0 | G44: 1 | H44: 0 | I44: 0 | J44: 3 | K44: 0 | S44: 4 | T44: 0.0%
A45: PEDIATRAS | B45: PEDIATRAS | C45: DR. JORGE URIBE | D45: 01-USAQUEN | E45: 0 | F45: 0 | G45: 0 | H45: 0 | I45: 1 | J45: 0 | K45: 0 | S45: 1 | T45: 0.0%
A46: PEDIATRAS | B46: PEDIATRAS | C46: DR. JUAN LUIS FIGUEROA | D46: 01-USAQUEN | E46: 0 | F46: 0 | G46: 2 | H46: 0 | I46: 0 | J46: 0 | K46: 2 | S46: 4 | T46: 0.0%
A47: PEDIATRAS | B47: PEDIATRAS | C47: DR. LUIS AUGUSTO PERNA | D47: 01-USAQUEN | E47: 0 | F47: 0 | G47: 4 | H47: 2 | I47: 5 | J47: 0 | K47: 2 | S47: 13 | T47: 0.0%
A48: PEDIATRAS | B48: PEDIATRAS | C48: DR. LIBARDO ELI TRIANA | D48: 01-USAQUEN | E48: 0 | F48: 0 | G48: 0 | H48: 1 | I48: 1 | J48: 1 | K48: 0 | S48: 3 | T48: 0.0%
A49: PEDIATRAS | B49: PEDIATRAS | C49: DR. OSWALDO MERCADO HOYOS | D49: 01-USAQUEN | E49: 0 | F49: 0 | G49: 2 | H49: 3 | I49: 1 | J49: 0 | K49: 2 | S49: 8 | T49: 0.0%
A50: PEDIATRAS | B50: PEDIATRAS | C50: DR. ROBERTO BENIRO | D50: 01-USAQUEN | E50: 0 | F50: 0 | G50: 0 | H50: 0 | I50: 0 | J50: 0 | K50: 0 | S50: 0 | T50: 0.0% | U50: 0
A51: PEDIATRAS | B51: PEDIATRAS | C51: DR. SERGIO ISAZA | D51: 01-USAQUEN | E51: 0 | F51: 0 | G51: 1 | H51: 0 | I51: 0 | J51: 0 | K51: 0 | S51: 1 | T51: 0.0%
A52: PEDIATRAS | B52: PEDIATRAS | C52: DR. SANTIAGO UCROS | D52: 01-USAQUEN | E52: 0 | F52: 0 | G52: 0 | H52: 0 | I52: 0 | J52: 0 | K52: 0 | S52: 0 | T52: 0.0% | U52: 0
A53: PEDIATRAS | B53: PEDIATRAS | C53: DR. GERMAN SILVA | D53: 01-USAQUEN | E53: 0 | F53: 0 | G53: 0 | H53: 0 | I53: 0 | J53: 0 | K53: 0 | S53: 0 | T53: 0.0% | U53: 0
A54: PEDIATRAS | B54: PEDIATRAS | C54: DR. DANIEL ABRIL | D54: 01-USAQUEN | E54: 0 | F54: 0 | G54: 0 | H54: 0 | I54: 0 | J54: 0 | K54: 0 | S54: 0 | T54: 0.0% | U54: 0
A55: PEDIATRAS | B55: PEDIATRAS | C55: DR. CARLOS EDUARDO OLMOS | D55: 01-USAQUEN | E55: 0 | F55: 0 | G55: 0 | H55: 0 | I55: 0 | J55: 0 | K55: 0 | S55: 0 | T55: 0.0% | U55: 0
A56: PEDIATRAS | B56: PEDIATRAS | C56: DR. EDGARDO CHATMAN | D56: 01-USAQUEN | E56: 0 | F56: 0 | G56: 0 | H56: 0 | I56: 0 | J56: 0 | K56: 0 | S56: 0 | T56: 0.0% | U56: 0
A57: PEDIATRAS | B57: PEDIATRAS | C57: DR. JORGE FLOREZ OTERO | D57: 01-USAQUEN | E57: 0 | F57: 0 | G57: 0 | H57: 0 | I57: 0 | J57: 0 | K57: 0 | S57: 0 | T57: 0.0% | U57: 0
A58: PEDIATRAS | B58: PEDIATRAS | C58: DRA. ALEJANDRA MARIA VALENCIA | D58: 01-USAQUEN | E58: 0 | F58: 0 | G58: 0 | H58: 0 | I58: 0 | J58: 0 | K58: 0 | S58: 0 | T58: 0.0% | U58: 0
A59: PEDIATRAS | B59: PEDIATRAS | C59: DRA. ANA MARIA GOYENECHE | D59: 01-USAQUEN | E59: 0 | F59: 0 | G59: 0 | H59: 0 | I59: 0 | J59: 0 | K59: 0 | S59: 0 | T59: 0.0% | U59: 0
A60: PEDIATRAS | B60: PEDIATRAS | C60: DRA. JIMENA VARELA | D60: 01-USAQUEN | E60: 0 | F60: 0 | G60: 0 | H60: 0 | I60: 0 | J60: 0 | K60: 0 | S60: 0 | T60: 0.0% | U60: 0
A61: PEDIATRAS | B61: PEDIATRAS | C61: DRA. LIA SAN MIGUEL | D61: 01-USAQUEN | E61: 0 | F61: 0 | G61: 0 | H61: 0 | I61: 0 | J61: 0 | K61: 0 | S61: 0 | T61: 0.0% | U61: 0
A62: PEDIATRAS | B62: PEDIATRAS | C62: DRA. LIBIA SEGURA | D62: 01-USAQUEN | E62: 0 | F62: 0 | G62: 0 | H62: 0 | I62: 1 | J62: 1 | K62: 0 | S62: 2 | T62: 0.0%
A63: PEDIATRAS | B63: PEDIATRAS | C63: DRA. MARÍA JOSÉ PEDRAZA | D63: 01-USAQUEN | E63: 0 | F63: 0 | G63: 0 | H63: 0 | I63: 0 | J63: 0 | K63: 0 | S63: 0 | T63: 0.0% | U63: 0
A64: PEDIATRAS | B64: PEDIATRAS | C64: DRA. MARTHA LUCIA SANCHEZ | D64: 01-USAQUEN | E64: 0 | F64: 0 | G64: 0 | H64: 0 | I64: 0 | J64: 0 | K64: 0 | S64: 0 | T64: 0.0% | U64: 0
A65: PEDIATRAS | B65: PEDIATRAS | C65: DRA. OLGA LUCÍA SÁNCHEZ | D65: 01-USAQUEN | E65: 0 | F65: 0 | G65: 0 | H65: 0 | I65: 0 | J65: 0 | K65: 0 | S65: 0 | T65: 0.0% | U65: 0
A66: PEDIATRAS | B66: PEDIATRAS | C66: DRA. SANDRA BELTRAN | D66: 01-USAQUEN | E66: 0 | F66: 0 | G66: 0 | H66: 1 | I66: 1 | J66: 0 | K66: 0 | S66: 2 | T66: =IF(E66=0,0,+S66/E66) -> 0.0% | U66: =IF(COUNT(G66:R66)*(E66/12)-S66<0,"",COUNT(G66:R66)*(E66/12)-S66) -> 
A67: PEDIATRAS | B67: PEDIATRAS | C67: DRA. IVANA CABRERA | D67: 01-USAQUEN | E67: 0 | F67: =+E67/12 -> 0 | G67: 0 | H67: 0 | I67: 0 | J67: 0 | K67: 0 | S67: =SUM(G67:R67) -> 0 | T67: 0.0% | U67: 0
A68: PEDIATRAS | B68: PEDIATRAS | C68: DRA. NAYITA ALARCON | D68: 01-USAQUEN | E68: 0 | F68: 0 | G68: 0 | H68: 0 | I68: 0 | J68: 0 | K68: 0 | S68: 0 | T68: 0.0% | U68: 0
A69: PEDIATRAS | B69: PEDIATRAS | C69: DRA. ELIZABETH GARCIA | D69: 01-USAQUEN | E69: 0 | F69: 0 | G69: 0 | H69: 0 | I69: 0 | J69: 0 | K69: 0 | S69: 0 | T69: 0.0% | U69: 0
A70: PEDIATRAS | B70: PEDIATRAS | C70: DRA. BERTHA CALDERON DE RAMOS | D70: 01-USAQUEN | E70: 0 | F70: 0 | G70: 0 | H70: 0 | I70: 0 | J70: 0 | K70: 0 | S70: 0 | T70: 0.0% | U70: 0
A71: PEDIATRAS | B71: PEDIATRAS | C71: DRA. MIRYAM CORREA | D71: 01-USAQUEN | E71: 0 | F71: 0 | G71: 0 | H71: 1 | I71: 0 | J71: 0 | K71: 0 | S71: 1 | T71: 0.0%
A72: 01-USAQUEN | B72: UNICAJAS | C72: UPA SAN CRISTOBAL | D72: 01-USAQUEN | E72: 6 | F72: 1 | G72: 1 | H72: 0 | I72: 0 | J72: 1 | K72: 0 | S72: 2 | T72: 33.3% | U72: 1
A73: UNICAJAS | B73: UNICAJAS | C73: UPA USAQUEN | D73: 01-USAQUEN | E73: 9 | F73: 1 | H73: 0 | I73: 0 | J73: 0 | K73: 0 | S73: 0 | T73: 0.0% | U73: 3
A74: UNICAJAS | B74: UNICAJAS | C74: UPA ORQUIDEAS | D74: 01-USAQUEN | E74: 6 | F74: 1 | G74: 0 | H74: 0 | I74: 0 | J74: 0 | K74: 1 | S74: 1 | T74: 16.7% | U74: 2
A75: UNICAJAS | B75: UNICAJAS | C75: UPA CODITO | D75: 01-USAQUEN | E75: 5 | F75: 0 | G75: 0 | H75: 0 | I75: 0 | J75: 0 | K75: 0 | S75: 0 | T75: 0.0% | U75: 2
A76: UNICAJAS | B76: UNICAJAS | C76: CAMI VERBENAL | D76: 01-USAQUEN | E76: 6 | F76: 1 | G76: 0 | H76: 0 | I76: 2 | J76: 1 | K76: 1 | S76: 4 | T76: 66.7%
A77: 01-USAQUEN | B77: UNICAJAS | C77: HOSPITAL SIMON BOLIVAR | D77: 01-USAQUEN | E77: 6 | F77: 1 | G77: 1 | H77: 0 | I77: 0 | J77: 3 | K77: 0 | S77: 4 | T77: 66.7%
A78: 01-USAQUEN | B78: OTROS | C78: UPA SAN CRISTOBAL | D78: 01-USAQUEN | E78: 300 | F78: 25 | G78: 1 | H78: 3 | I78: 2 | J78: 3 | K78: 1 | S78: 10 | T78: 3.3% | U78: 115
A79: 01-USAQUEN | B79: OTROS | C79: UPA USAQUEN | D79: 01-USAQUEN | E79: 100 | F79: 8 | H79: 0 | I79: 0 | J79: 0 | K79: 0 | S79: 0 | T79: 0.0% | U79: 33
A80: 01-USAQUEN | B80: OTROS | C80: UPA ORQUIDEAS | D80: 01-USAQUEN | E80: 120 | F80: 10 | G80: 2 | H80: 0 | I80: 0 | J80: 2 | K80: 1 | S80: 5 | T80: 4.2% | U80: 45
A81: 01-USAQUEN | B81: OTROS | C81: UPA CODITO | D81: 01-USAQUEN | E81: 218 | F81: 18 | G81: 4 | H81: 1 | I81: 1 | J81: 1 | K81: 0 | S81: 7 | T81: 3.2% | U81: 84
A82: 01-USAQUEN | B82: OTROS | C82: CAMI VERBENAL | D82: 01-USAQUEN | E82: 309 | F82: 26 | G82: 4 | H82: 3 | I82: 2 | J82: 1 | K82: 1 | S82: 11 | T82: 3.6% | U82: 118
A83: 01-USAQUEN | B83: OTROS | C83: HOSPITAL SIMON BOLIVAR | D83: 01-USAQUEN | E83: 480 | F83: 40 | G83: 9 | H83: 15 | I83: 12 | J83: 4 | K83: 1 | S83: 41 | T83: 8.5% | U83: 159
A84: 01-USAQUEN | B84: DEMAS EAPB | C84: UPA SAN CRISTOBAL | D84: 01-USAQUEN | F84: 0 | G84: 11 | H84: 9 | I84: 11 | J84: 8 | K84: 8 | S84: 47 | T84: 0.0%
A85: 01-USAQUEN | B85: DEMAS EAPB | C85: UPA USAQUEN | D85: 01-USAQUEN | F85: 0 | G85: 2 | H85: 0 | I85: 0 | J85: 0 | K85: 0 | S85: 2 | T85: 0.0%
A86: 01-USAQUEN | B86: DEMAS EAPB | C86: UPA ORQUIDEAS | D86: 01-USAQUEN | F86: 0 | G86: 2 | H86: 2 | I86: 4 | J86: 6 | K86: 3 | S86: 17 | T86: 0.0%
A87: 01-USAQUEN | B87: DEMAS EAPB | C87: UPA CODITO | D87: 01-USAQUEN | F87: 0 | G87: 7 | H87: 13 | I87: 13 | J87: 11 | K87: 11 | S87: 55 | T87: 0.0%
A88: 01-USAQUEN | B88: DEMAS EAPB | C88: CAMI VERBENAL | D88: 01-USAQUEN | F88: 0 | G88: 4 | H88: 15 | I88: 12 | J88: 9 | K88: 21 | S88: 61 | T88: 0.0%
A89: 01-USAQUEN | B89: DEMAS EAPB | C89: HOSPITAL SIMON BOLIVAR | D89: 01-USAQUEN | F89: 0 | G89: 17 | H89: 16 | I89: 4 | J89: 9 | K89: 11 | S89: 57 | T89: 0.0%
A90: MEDIMAS | B90: MEDIMAS | C90: Corvesalud S.A.S - I P S Chico | D90: 01-USAQUEN | E90: 320 | F90: 27 | G90: 5 | H90: 5 | I90: 7 | S90: 17 | T90: 5.3% | U90: 63
A91: FAMISANAR | B91: COLSUBSIDIO | C91: Sura PAC Santa Bárbara | D91: 01-USAQUEN | F91: 0 | S91: 0 | T91: 0.0% | U91: 0
A92: CAPITAL SALUD | B92: CAPITAL SALUD | C92: UPA SAN LUIS | D92: 02-CHAPINERO | E92: 12 | F92: 1 | G92: 4 | H92: 2 | I92: 2 | J92: 0 | K92: 2 | S92: 10 | T92: 83.3%
A93: 02-CHAPINERO | B93: 02-CHAPINERO | C93: EXTRAMURAL CHAPINERO | D93: 02-CHAPINERO | E93: 0 | F93: 0 | G93: 2 | H93: 3 | I93: 2 | J93: 13 | K93: 19 | S93: 39 | T93: 0.0%
A94: COMPENSAR | B94: COMPENSAR | C94: USS CALLE 42 | D94: 02-CHAPINERO | E94: 612 | F94: 51 | G94: 29 | H94: 43 | I94: 26 | J94: 36 | K94: 28 | S94: 162 | T94: 26.5% | U94: 93
A95: COMPENSAR | B95: COMPENSAR | C95: USS CALLE 67 | D95: 02-CHAPINERO | E95: 0 | F95: 0 | G95: 0 | H95: 0 | I95: 0 | J95: 0 | K95: 0 | S95: 0 | T95: 0.0% | U95: 0
A96: COMPENSAR | B96: COMPENSAR | C96: USS CALLE 94 | D96: 02-CHAPINERO | E96: 369 | F96: 31 | G96: 35 | H96: 42 | I96: 26 | J96: 46 | K96: 63 | S96: 212 | T96: 57.5%
A97: COMPENSAR | B97: COMPENSAR | C97: VIVA 1A IPS CHAPINERO | D97: 02-CHAPINERO | E97: 73 | F97: 6 | G97: 4 | H97: 6 | I97: 6 | J97: 2 | K97: 3 | S97: 21 | T97: 28.8% | U97: 9
A98: COOMEVA | B98: COOMEVA | C98: SINERGIA UNIDAD BASICA LOURDES | D98: 02-CHAPINERO | E98: 217 | F98: 18 | G98: 9 | H98: 10 | I98: 10 | J98: 2 | K98: 0 | S98: 31 | T98: 14.3% | U98: 59
A99: FAMISANAR | B99: FAMI- CAFAM | C99: CENTRO DE ATENCION EN SALUD CAFAM CALLE 48 | D99: 02-CHAPINERO | E99: 1050 | F99: 88 | G99: 32 | H99: 35 | I99: 21 | J99: 19 | K99: 31 | S99: 138 | T99: 13.1% | U99: 300
A100: FAMISANAR | B100: FAMI- CAFAM | C100: CENTRO DE ATENCION EN SALUD CAFAM CALLE 90 | D100: 02-CHAPINERO | E100: 200 | F100: 17 | G100: 13 | H100: 7 | I100: 20 | J100: 5 | K100: 10 | S100: 55 | T100: 27.5% | U100: 28
A101: FAMISANAR | B101: FAMI- COLSB | C101: CLINICA COLSUBSIDIO EL LAGO | D101: 02-CHAPINERO | E101: 392 | F101: 33 | G101: 10 | H101: 11 | I101: 6 | J101: 5 | K101: 7 | S101: 39 | T101: 9.9% | U101: 124
A102: MILITAR | B102: MILITAR | C102: HOSPITAL MILITAR CENTRAL | D102: 02-CHAPINERO | E102: 70 | F102: 6 | G102: 10 | H102: 11 | I102: 5 | J102: 6 | K102: 3 | S102: 35 | T102: 50.0%
A103: POLICIA | B103: POLICIA | C103: POLICIA NACIONAL ESPAM CHAPINERO | D103: 02-CHAPINERO | E103: 117 | F103: 10 | G103: 4 | H103: 0 | I103: 9 | J103: 32 | K103: 25 | S103: 70 | T103: 59.8%
A104: NUEVA EPS | B104: NUEVA EPS | C104: IPS VIVA 1A SEDE MARLY | D104: 02-CHAPINERO | E104: 131 | F104: 11 | G104: 10 | H104: 5 | I104: 2 | J104: 2 | K104: 4 | S104: 23 | T104: 17.6% | U104: 32
A105: SANITAS | B105: SANITAS | C105: EPS SANITAS CENTRO MEDICO TEUSAQUILLO | D105: 02-CHAPINERO | E105: 579 | F105: 48 | G105: 28 | H105: 24 | I105: 28 | J105: 12 | K105: 14 | S105: 106 | T105: 18.3% | U105: 135
A106: SALUD TOTAL | B106: SALUD TOTAL | C106: VIRREY SOLIS CHAPINERO | D106: 02-CHAPINERO | E106: 337 | F106: 28 | G106: 17 | H106: 13 | I106: 16 | J106: 9 | K106: 16 | S106: 71 | T106: 21.1% | U106: 69
A107: SURA | B107: SURA | C107: PUNTO DE SALUD CHAPINERO | D107: 02-CHAPINERO | E107: 237 | F107: 20 | G107: 14 | H107: 10 | I107: 14 | J107: 5 | K107: 14 | S107: 57 | T107: 24.1% | U107: 42
A108: SURA | B108: SURA | C108: SALUD SURA | D108: 02-CHAPINERO | E108: 454 | F108: 38 | G108: 46 | H108: 29 | I108: 37 | J108: 14 | K108: 32 | S108: 158 | T108: 34.8% | U108: 31
A109: PARTICULAR | B109: PARTICULAR | C109: CENTRO MEDICO COLSANITAS CALLE 96 | D109: 02-CHAPINERO | E109: 24 | F109: 2 | G109: 2 | H109: 0 | I109: 2 | J109: 16 | K109: 12 | S109: 32 | T109: 133.3%
A110: PARTICULAR | B110: PARTICULAR | C110: CENTRO DE ESPECIALISTAS MEDICOS AXA COLPATRIA | D110: 02-CHAPINERO | E110: 0 | F110: 0 | G110: 5 | H110: 6 | I110: 5 | J110: 5 | K110: 9 | S110: 30 | T110: 0.0%
A111: PARTICULAR | B111: PARTICULAR | C111: CLINICA DE LA MUJER | D111: 02-CHAPINERO | E111: 0 | F111: 0 | G111: 49 | H111: 40 | I111: 49 | J111: 25 | K111: 39 | S111: 202 | T111: 0.0%
A112: PARTICULAR | B112: PARTICULAR | C112: VACUNARTE IPS | D112: 02-CHAPINERO | E112: 0 | F112: 0 | G112: 0 | H112: 3 | I112: 1 | J112: 1 | K112: 1 | S112: 6 | T112: 0.0%
A113: PARTICULAR | B113: PARTICULAR | C113: UNIMARLY | D113: 02-CHAPINERO | E113: 0 | F113: 0 | G113: 0 | H113: 0 | I113: 0 | J113: 0 | K113: 0 | S113: 0 | T113: 0.0% | U113: 0
A114: PARTICULAR | B114: PARTICULAR | C114: HOSPITAL SAN IGNACIO | D114: 02-CHAPINERO | E114: 0 | F114: 0 | G114: 13 | H114: 7 | I114: 4 | J114: 5 | K114: 1 | S114: 30 | T114: 0.0%
A115: PARTICULAR | B115: PARTICULAR | C115: PROGRAMA MADRE CANGURO HOSPITAL SAN IGNACIO | D115: 02-CHAPINERO | E115: 0 | F115: 0 | G115: 92 | H115: 100 | I115: 80 | J115: 74 | K115: 65 | S115: 411 | T115: 0.0%
A116: PARTICULAR | B116: PARTICULAR | C116: IPS AVENIR | D116: 02-CHAPINERO | E116: 0 | F116: 0 | G116: 0 | H116: 0 | I116: 0 | J116: 0 | K116: 0 | S116: 0 | T116: 0.0% | U116: 0
A117: PARTICULAR | B117: PARTICULAR | C117: IPS INMUNOLOGIA Y DIAGNOSTICO ESPECIALIZADO | D117: 02-CHAPINERO | E117: 0 | F117: 0 | G117: 0 | H117: 0 | I117: 0 | J117: 0 | K117: 4 | S117: 4 | T117: 0.0%
A118: PARTICULAR | B118: PARTICULAR | C118: ASOCIACION PEDIATRICA DE LOS ANDES | D118: 02-CHAPINERO | E118: 0 | F118: 0 | G118: 1 | H118: 0 | I118: 0 | J118: 0 | K118: 0 | S118: 1 | T118: 0.0%
A119: PARTICULAR | B119: PARTICULAR | C119: CRUZ ROJA SEDE ANDINO | D119: 02-CHAPINERO | E119: 0 | F119: 0 | G119: 0 | H119: 0 | I119: 0 | J119: 0 | K119: 0 | S119: 0 | T119: 0.0% | U119: 0
A120: PARTICULAR | B120: PARTICULAR | C120: CENTRO MEDICO SANTA MONICA | D120: 02-CHAPINERO | E120: 0 | F120: 0 | H120: 0 | I120: 0 | J120: 7 | K120: 8 | S120: 15 | T120: 0.0%
A121: PEDIATRAS | B121: PEDIATRAS | C121: DR. JUAN OSCAR TAMAYO | D121: 02-CHAPINERO | E121: 0 | F121: 0 | G121: 2 | H121: 0 | I121: 0 | J121: 0 | K121: 0 | S121: 2 | T121: 0.0%
A122: PEDIATRAS | B122: PEDIATRAS | C122: DR. ROBERTO SUAREZ | D122: 02-CHAPINERO | E122: 0 | F122: 0 | G122: 0 | H122: 0 | I122: 0 | J122: 0 | K122: 0 | S122: 0 | T122: 0.0% | U122: 0
A123: PEDIATRAS | B123: PEDIATRAS | C123: DR. WILLIAM RICARDO CABRA | D123: 02-CHAPINERO | E123: 0 | F123: 0 | G123: 3 | H123: 2 | I123: 0 | J123: 2 | K123: 0 | S123: 7 | T123: 0.0%
A124: PEDIATRAS | B124: PEDIATRAS | C124: DR. EDGAR CASTRO | D124: 02-CHAPINERO | E124: 0 | F124: 0 | G124: 5 | H124: 2 | I124: 0 | J124: 6 | K124: 5 | S124: 18 | T124: 0.0%
A125: PEDIATRAS | B125: PEDIATRAS | C125: DR. PABLO KRAUSS | D125: 02-CHAPINERO | E125: 0 | F125: 0 | G125: 1 | H125: 2 | I125: 2 | J125: 0 | K125: 0 | S125: 5 | T125: 0.0%
A126: PEDIATRAS | B126: PEDIATRAS | C126: DR. HERNAN ROBLES | D126: 02-CHAPINERO | E126: 0 | F126: 0 | G126: 4 | H126: 3 | I126: 6 | J126: 4 | K126: 3 | S126: 20 | T126: 0.0%
A127: PEDIATRAS | B127: PEDIATRAS | C127: DR. RAFAEL GAMBOA CASABLANCA | D127: 02-CHAPINERO | E127: 0 | F127: 0 | G127: 0 | H127: 3 | I127: 5 | J127: 23 | K127: 12 | S127: 43 | T127: 0.0%
A128: PEDIATRAS | B128: PEDIATRAS | C128: DR. JAVIER MEJIA | D128: 02-CHAPINERO | E128: 0 | F128: 0 | G128: 2 | H128: 2 | I128: 4 | J128: 2 | K128: 2 | S128: 12 | T128: 0.0%
A129: PEDIATRAS | B129: PEDIATRAS | C129: DR. CARLOS CORTAZAR | D129: 02-CHAPINERO | E129: 0 | F129: 0 | G129: 0 | H129: 0 | I129: 0 | J129: 0 | K129: 0 | S129: 0 | T129: 0.0% | U129: 0
A130: PEDIATRAS | B130: PEDIATRAS | C130: DR. NELSON PARDO | D130: 02-CHAPINERO | E130: 0 | F130: 0 | G130: 2 | H130: 1 | I130: 4 | J130: 0 | K130: 0 | S130: 7 | T130: =IF(E130=0,0,+S130/E130) -> 0.0% | U130: =IF(COUNT(G130:R130)*(E130/12)-S130<0,"",COUNT(G130:R130)*(E130/12)-S130) -> 
A131: PEDIATRAS | B131: PEDIATRAS | C131: DR. ALVARO JACOME | D131: 02-CHAPINERO | E131: 0 | F131: =+E131/12 -> 0 | G131: 2 | H131: 1 | I131: 0 | J131: 4 | K131: 1 | S131: =SUM(G131:R131) -> 8 | T131: 0.0%
A132: PEDIATRAS | B132: PEDIATRAS | C132: DR. SILVIO COPO | D132: 02-CHAPINERO | E132: 0 | F132: 0 | G132: 0 | H132: 1 | I132: 0 | J132: 0 | K132: 0 | S132: 1 | T132: 0.0%
A133: PEDIATRAS | B133: PEDIATRAS | C133: DR. HECTOR FERNANDO MENDOZA | D133: 02-CHAPINERO | E133: 0 | F133: 0 | G133: 0 | H133: 0 | I133: 0 | J133: 0 | K133: 1 | S133: 1 | T133: 0.0%
A134: PEDIATRAS | B134: PEDIATRAS | C134: DR. DIMITRIOS | D134: 02-CHAPINERO | E134: 0 | F134: 0 | G134: 1 | H134: 0 | I134: 0 | J134: 1 | K134: 0 | S134: 2 | T134: 0.0%
A135: PEDIATRAS | B135: PEDIATRAS | C135: DR. ALVARO MARIÑO | D135: 02-CHAPINERO | E135: 0 | F135: 0 | G135: 0 | H135: 1 | I135: 0 | J135: 0 | K135: 0 | S135: 1 | T135: 0.0%
A136: PEDIATRAS | B136: PEDIATRAS | C136: DR. ANDRES VARGAS | D136: 02-CHAPINERO | E136: 0 | F136: 0 | G136: 2 | H136: 1 | I136: 1 | J136: 0 | K136: 1 | S136: 5 | T136: 0.0%
A137: PEDIATRAS | B137: PEDIATRAS | C137: DR. JORGE CAMILO LUNA | D137: 02-CHAPINERO | E137: 0 | F137: 0 | G137: 1 | H137: 6 | I137: 1 | J137: 16 | K137: 5 | S137: 29 | T137: 0.0%
A138: PEDIATRAS | B138: PEDIATRAS | C138: DR. BERNARDO HUERTAS | D138: 02-CHAPINERO | E138: 0 | F138: 0 | G138: 6 | H138: 6 | I138: 10 | J138: 12 | K138: 13 | S138: 47 | T138: 0.0%
A139: PEDIATRAS | B139: PEDIATRAS | C139: DR. CARLOS M CASTILLO | D139: 02-CHAPINERO | E139: 0 | F139: 0 | G139: 0 | H139: 0 | I139: 0 | J139: 0 | K139: 0 | S139: 0 | T139: 0.0% | U139: 0
A140: PEDIATRAS | B140: PEDIATRAS | C140: DR. HEINZ OTTO PFALZGRAF | D140: 02-CHAPINERO | E140: 0 | F140: 0 | G140: 0 | H140: 0 | I140: 0 | J140: 0 | K140: 0 | S140: 0 | T140: 0.0% | U140: 0
A141: PEDIATRAS | B141: PEDIATRAS | C141: DR. GONZALEZ BALLESTEROS | D141: 02-CHAPINERO | E141: 0 | F141: 0 | G141: 0 | H141: 0 | I141: 0 | J141: 0 | K141: 0 | S141: 0 | T141: 0.0% | U141: 0
A142: PEDIATRAS | B142: PEDIATRAS | C142: DR. NORBERTO SALAMANCA | D142: 02-CHAPINERO | E142: 0 | F142: 0 | G142: 0 | H142: 0 | I142: 0 | J142: 0 | K142: 0 | S142: 0 | T142: 0.0% | U142: 0
A143: PEDIATRAS | B143: PEDIATRAS | C143: DR. CAMILO ENRIQUE SOTOMAYOR | D143: 02-CHAPINERO | E143: 0 | F143: 0 | G143: 0 | H143: 2 | I143: 0 | J143: 0 | K143: 0 | S143: 2 | T143: 0.0%
A144: PEDIATRAS | B144: PEDIATRAS | C144: DR. SANTIAGO RUEDA SAIZ | D144: 02-CHAPINERO | E144: 0 | F144: 0 | G144: 2 | H144: 1 | I144: 1 | J144: 0 | K144: 0 | S144: 4 | T144: 0.0%
A145: PEDIATRAS | B145: PEDIATRAS | C145: DR. HENRY HERNANDO SANCHEZ ESCOBAR | D145: 02-CHAPINERO | E145: 0 | F145: 0 | G145: 1 | H145: 1 | I145: 0 | J145: 0 | K145: 1 | S145: 3 | T145: 0.0%
A146: PEDIATRAS | B146: PEDIATRAS | C146: DR. RUBEN DARIO TAMAYO | D146: 02-CHAPINERO | E146: 0 | F146: 0 | G146: 2 | H146: 2 | I146: 0 | J146: 0 | K146: 1 | S146: 5 | T146: 0.0%
A147: PEDIATRAS | B147: PEDIATRAS | C147: DR. JAIME MAURICIO MATALLANA | D147: 02-CHAPINERO | E147: 0 | F147: 0 | G147: 5 | H147: 4 | I147: 8 | J147: 3 | K147: 5 | S147: 25 | T147: 0.0%
A148: PEDIATRAS | B148: PEDIATRAS | C148: DR. RODRIGO GARCIA | D148: 02-CHAPINERO | E148: 0 | F148: 0 | G148: 0 | H148: 0 | I148: 0 | J148: 0 | K148: 0 | S148: 0 | T148: 0.0% | U148: 0
A149: PEDIATRAS | B149: PEDIATRAS | C149: DR. FELIPE ROBAYO | D149: 02-CHAPINERO | E149: 0 | F149: 0 | G149: 0 | H149: 0 | I149: 0 | J149: 0 | K149: 0 | S149: 0 | T149: 0.0% | U149: 0
A150: PEDIATRAS | B150: PEDIATRAS | C150: DR. RUBEN FRANCO | D150: 02-CHAPINERO | E150: 0 | F150: 0 | G150: 0 | H150: 0 | I150: 1 | J150: 4 | K150: 0 | S150: 5 | T150: 0.0%
A151: PEDIATRAS | B151: PEDIATRAS | C151: DR. ORLANDO RODRIGUEZ RAMIREZ | D151: 02-CHAPINERO | E151: 0 | F151: 0 | G151: 2 | H151: 0 | I151: 0 | J151: 0 | K151: 3 | S151: 5 | T151: 0.0%
A152: PEDIATRAS | B152: PEDIATRAS | C152: DR. ARTURO MORENO | D152: 02-CHAPINERO | E152: 0 | F152: 0 | G152: 0 | H152: 0 | I152: 0 | J152: 0 | K152: 0 | S152: 0 | T152: 0.0% | U152: 0
A153: PEDIATRAS | B153: PEDIATRAS | C153: DR. FRANCISCO LEAL QUEVEDO | D153: 02-CHAPINERO | E153: 0 | F153: 0 | G153: 0 | H153: 0 | I153: 0 | J153: 0 | K153: 0 | S153: 0 | T153: 0.0% | U153: 0
A154: PEDIATRAS | B154: PEDIATRAS | C154: DR. CARLOS DIAZ PUENTES | D154: 02-CHAPINERO | E154: 0 | F154: 0 | G154: 0 | H154: 0 | I154: 0 | J154: 0 | K154: 0 | S154: 0 | T154: 0.0% | U154: 0
A155: PEDIATRAS | B155: PEDIATRAS | C155: DR. PEDRO ERASMO MENDOZA | D155: 02-CHAPINERO | E155: 0 | F155: 0 | G155: 0 | H155: 0 | I155: 0 | J155: 0 | K155: 0 | S155: 0 | T155: 0.0% | U155: 0
A156: PEDIATRAS | B156: PEDIATRAS | C156: DR. DIMAS ROSAS | D156: 02-CHAPINERO | E156: 0 | F156: 0 | G156: 0 | H156: 0 | I156: 0 | J156: 0 | K156: 0 | S156: 0 | T156: 0.0% | U156: 0
A157: PEDIATRAS | B157: PEDIATRAS | C157: DR. JAVIER BRITO MORENO | D157: 02-CHAPINERO | E157: 0 | F157: 0 | G157: 0 | H157: 0 | I157: 0 | J157: 0 | K157: 0 | S157: 0 | T157: 0.0% | U157: 0
A158: PEDIATRAS | B158: PEDIATRAS | C158: DR. GUSTAVO CORTÉS | D158: 02-CHAPINERO | E158: 0 | F158: 0 | G158: 0 | H158: 0 | I158: 0 | J158: 0 | K158: 0 | S158: 0 | T158: 0.0% | U158: 0
A159: PEDIATRAS | B159: PEDIATRAS | C159: DR. CARLOS VELASQUEZ | D159: 02-CHAPINERO | E159: 0 | F159: 0 | G159: 0 | H159: 0 | I159: 0 | J159: 0 | K159: 0 | S159: 0 | T159: 0.0% | U159: 0
A160: PEDIATRAS | B160: PEDIATRAS | C160: DR. RICARDO GOMEZ | D160: 02-CHAPINERO | E160: 0 | F160: 0 | G160: 0 | H160: 0 | I160: 0 | J160: 0 | K160: 0 | S160: 0 | T160: 0.0% | U160: 0
A161: PEDIATRAS | B161: PEDIATRAS | C161: DR. SARA BERNAL | D161: 02-CHAPINERO | E161: 0 | F161: 0 | G161: 1 | H161: 2 | I161: 2 | J161: 0 | K161: 0 | S161: 5 | T161: 0.0%
A162: PEDIATRAS | B162: PEDIATRAS | C162: DRA. MARIA PATRICIA AGUALIMPIA | D162: 02-CHAPINERO | E162: 0 | F162: 0 | G162: 0 | H162: 0 | I162: 0 | J162: 0 | K162: 0 | S162: 0 | T162: 0.0% | U162: 0
A163: PEDIATRAS | B163: PEDIATRAS | C163: DRA. LUISA FERNANDA FORERO ACOSTA | D163: 02-CHAPINERO | E163: 0 | F163: 0 | G163: 0 | H163: 0 | I163: 0 | J163: 0 | K163: 0 | S163: 0 | T163: 0.0% | U163: 0
A164: PEDIATRAS | B164: PEDIATRAS | C164: DRA. MARIA CLARA CASAS PARDO | D164: 02-CHAPINERO | E164: 0 | F164: 0 | G164: 0 | H164: 0 | I164: 0 | J164: 0 | K164: 0 | S164: 0 | T164: 0.0% | U164: 0
A165: PEDIATRAS | B165: PEDIATRAS | C165: DRA. MARTHA EUGENIA RONDEROS DE FORERO | D165: 02-CHAPINERO | E165: 0 | F165: 0 | G165: 0 | H165: 0 | I165: 0 | J165: 0 | K165: 0 | S165: 0 | T165: 0.0% | U165: 0
A166: PEDIATRAS | B166: PEDIATRAS | C166: DRA. MARIA ISABEL USCHER | D166: 02-CHAPINERO | E166: 0 | F166: 0 | G166: 4 | H166: 3 | I166: 2 | J166: 0 | K166: 2 | S166: 11 | T166: 0.0%
A167: PEDIATRAS | B167: PEDIATRAS | C167: DRA. MARIA DE LOS ANGELES MUÑOZ | D167: 02-CHAPINERO | E167: 0 | F167: 0 | G167: 3 | H167: 0 | I167: 3 | J167: 0 | K167: 3 | S167: 9 | T167: 0.0%
A168: PEDIATRAS | B168: PEDIATRAS | C168: DRA. CLARA ABELLO REYES | D168: 02-CHAPINERO | E168: 0 | F168: 0 | G168: 2 | H168: 1 | I168: 0 | J168: 0 | K168: 1 | S168: 4 | T168: 0.0%
A169: PEDIATRAS | B169: PEDIATRAS | C169: DRA. PATRICIA CONTRERAS | D169: 02-CHAPINERO | E169: 0 | F169: 0 | G169: 0 | H169: 0 | I169: 3 | J169: 2 | K169: 2 | S169: 7 | T169: 0.0%
A170: PEDIATRAS | B170: PEDIATRAS | C170: DRA. CLAUDIA ZOPPI | D170: 02-CHAPINERO | E170: 0 | F170: 0 | G170: 0 | H170: 0 | I170: 0 | J170: 1 | K170: 0 | S170: 1 | T170: 0.0%
A171: PEDIATRAS | B171: PEDIATRAS | C171: DRA. MARIA DE LOS ANGELES FERNANDEZ LUQUE | D171: 02-CHAPINERO | E171: 0 | F171: 0 | G171: 0 | H171: 3 | I171: 0 | J171: 0 | K171: 0 | S171: 3 | T171: 0.0%
A172: PEDIATRAS | B172: PEDIATRAS | C172: DRA. RUTH CORDOBA CORDOBA | D172: 02-CHAPINERO | E172: 0 | F172: 0 | G172: 0 | H172: 0 | I172: 0 | J172: 0 | K172: 0 | S172: 0 | T172: 0.0% | U172: 0
A173: PEDIATRAS | B173: PEDIATRAS | C173: DRA. LUZ ESTELA CORTES | D173: 02-CHAPINERO | E173: 0 | F173: 0 | G173: 0 | H173: 0 | I173: 0 | J173: 0 | K173: 0 | S173: 0 | T173: 0.0% | U173: 0
A174: UNICAJAS | B174: UNICAJAS | C174: UPA SAN LUIS | D174: 02-CHAPINERO | E174: 18 | F174: 2 | G174: 0 | H174: 0 | I174: 0 | J174: 0 | K174: 1 | S174: 1 | T174: 5.6% | U174: 7
A175: 02-CHAPINERO | B175: OTROS | C175: UPA SAN LUIS | D175: 02-CHAPINERO | E175: 325 | F175: 27 | G175: 2 | H175: 3 | I175: 1 | J175: 3 | K175: 0 | S175: 9 | T175: 2.8% | U175: 126
A176: 02-CHAPINERO | B176: DEMAS EAPB | C176: UPA SAN LUIS | D176: 02-CHAPINERO | F176: 0 | G176: 6 | H176: 3 | I176: 5 | J176: 1 | K176: 8 | S176: 23 | T176: 0.0%
A177: UNICAJAS | B177: UNICAJAS | C177: COMFASALUD SEDE CENTRO | D177: 03-SANTA FE | E177: 50 | F177: 4 | G177: 2 | H177: 1 | I177: 2 | J177: 1 | K177: 0 | S177: 6 | T177: 12.0% | U177: 15
A178: MEDIMAS | B178: MEDIMAS | C178: CORVESALUD TEUSAQUILLO | D178: 03-SANTA FE | E178: 193 | F178: 16 | G178: 6 | H178: 7 | I178: 2 | J178: 0 | K178: 0 | S178: 15 | T178: 7.8% | U178: 65
A179: 03-SANTA FE | B179: CAPITAL SALUD | C179: EXTRAMURAL SANTA FE | D179: 03-SANTA FE | E179: 0 | F179: 0 | G179: 7 | H179: 3 | I179: 11 | J179: 11 | K179: 11 | S179: 43 | T179: 0.0%
A180: 03-SANTA FE | B180: DEMAS EAPB | C180: EXTRAMURAL SANTA FE | D180: 03-SANTA FE | E180: 0 | F180: 0 | G180: 0 | H180: 1 | I180: 10 | J180: 30 | K180: 17 | S180: 58 | T180: 0.0%
A181: 03-SANTA FE | B181: OTROS | C181: EXTRAMURAL SANTA FE | D181: 03-SANTA FE | E181: 0 | F181: 0 | G181: 11 | H181: 11 | I181: 12 | J181: 8 | K181: 10 | S181: 52 | T181: 0.0%
A182: 03-SANTA FE | B182: UNICAJAS | C182: EXTRAMURAL SANTA FE | D182: 03-SANTA FE | E182: 0 | F182: 0 | G182: 0 | H182: 0 | I182: 2 | J182: 3 | K182: 1 | S182: 6 | T182: 0.0%
A183: 03-SANTA FE | B183: CAPITAL SALUD | C183: USS LACHES | D183: 03-SANTA FE | E183: 54 | F183: 5 | G183: 7 | H183: 12 | I183: 7 | J183: 0 | K183: 5 | S183: 31 | T183: 57.4%
A184: 03-SANTA FE | B184: DEMAS EAPB | C184: USS LACHES | D184: 03-SANTA FE | E184: 0 | F184: 0 | G184: 7 | H184: 6 | I184: 10 | J184: 6 | K184: 5 | S184: 34 | T184: 0.0%
A185: 03-SANTA FE | B185: OTROS | C185: USS LACHES | D185: 03-SANTA FE | E185: 260 | F185: 22 | G185: 4 | H185: 4 | I185: 1 | J185: 1 | K185: 1 | S185: 11 | T185: 4.2% | U185: 97
A186: 03-SANTA FE | B186: UNICAJAS | C186: USS LACHES | D186: 03-SANTA FE | E186: 17 | F186: 1 | G186: 1 | H186: 0 | I186: 0 | J186: 1 | K186: 0 | S186: 2 | T186: 11.8% | U186: 5
A187: 03-SANTA FE | B187: CAPITAL SALUD | C187: USS LAS CRUCES | D187: 03-SANTA FE | E187: 44 | F187: 4 | G187: 6 | H187: 8 | I187: 3 | J187: 6 | K187: 1 | S187: 24 | T187: 54.5%
A188: 03-SANTA FE | B188: DEMAS EAPB | C188: USS LAS CRUCES | D188: 03-SANTA FE | E188: 0 | F188: 0 | G188: 4 | H188: 5 | I188: 7 | J188: 1 | K188: 2 | S188: 19 | T188: 0.0%
A189: 03-SANTA FE | B189: OTROS | C189: USS LAS CRUCES | D189: 03-SANTA FE | E189: 211 | F189: 18 | G189: 5 | H189: 3 | I189: 2 | J189: 1 | K189: 2 | S189: 13 | T189: 6.2% | U189: 75
A190: 03-SANTA FE | B190: UNICAJAS | C190: USS LAS CRUCES | D190: 03-SANTA FE | E190: 14 | F190: 1 | G190: 1 | H190: 1 | I190: 1 | J190: 0 | K190: 0 | S190: 3 | T190: 21.4% | U190: 3
A191: 03-SANTA FE | B191: CAPITAL SALUD | C191: USS PERSEVERANCIA | D191: 03-SANTA FE | E191: 6 | F191: 1 | G191: 1 | H191: 1 | I191: 0 | J191: 0 | K191: 0 | S191: 2 | T191: 33.3% | U191: 1
A192: 03-SANTA FE | B192: DEMAS EAPB | C192: USS PERSEVERANCIA | D192: 03-SANTA FE | E192: 0 | F192: 0 | G192: 1 | H192: 2 | I192: 0 | J192: 0 | K192: 2 | S192: 5 | T192: 0.0%
A193: 03-SANTA FE | B193: OTROS | C193: USS PERSEVERANCIA | D193: 03-SANTA FE | E193: 30 | F193: 3 | G193: 2 | H193: 1 | I193: 2 | J193: 1 | K193: 1 | S193: 7 | T193: 23.3% | U193: 6
A194: 03-SANTA FE | B194: UNICAJAS | C194: USS PERSEVERANCIA | D194: 03-SANTA FE | E194: 2 | F194: 0 | G194: 0 | H194: 0 | I194: 0 | J194: 0 | K194: 0 | S194: 0 | T194: =IF(E194=0,0,+S194/E194) -> 0.0% | U194: =IF(COUNT(G194:R194)*(E194/12)-S194<0,"",COUNT(G194:R194)*(E194/12)-S194) -> 1
A195: PARTICULAR | B195: PARTICULAR | C195: CLINICA SAN RAFAEL | D195: 04-SAN CRISTOBAL | E195: 375 | F195: =+E195/12 -> 31 | G195: 32 | H195: 52 | I195: 35 | J195: 29 | K195: 28 | S195: =SUM(G195:R195) -> 176 | T195: 46.9%
A196: FAMISANAR | B196: FAMI- COLSB | C196: CENTRO MEDICO COLSUBSIDIO 20 DE JULIO | D196: 04-SAN CRISTOBAL | F196: 0 | S196: 0 | T196: 0.0% | U196: 0
A197: 04-SAN CRISTOBAL | B197: CAPITAL SALUD | C197: EXTRAMURAL SAN CRISTOBAL | D197: 04-SAN CRISTOBAL | E197: 0 | F197: 0 | G197: 22 | H197: 30 | I197: 78 | J197: 68 | K197: 70 | S197: 268 | T197: 0.0%
A198: 04-SAN CRISTOBAL | B198: DEMAS EAPB | C198: EXTRAMURAL SAN CRISTOBAL | D198: 04-SAN CRISTOBAL | E198: 0 | F198: 0 | G198: 31 | H198: 16 | I198: 77 | J198: 140 | K198: 59 | S198: 323 | T198: 0.0%
A199: 04-SAN CRISTOBAL | B199: OTROS | C199: EXTRAMURAL SAN CRISTOBAL | D199: 04-SAN CRISTOBAL | E199: 0 | F199: 0 | G199: 17 | H199: 12 | I199: 38 | J199: 30 | K199: 40 | S199: 137 | T199: 0.0%
A200: 04-SAN CRISTOBAL | B200: UNICAJAS | C200: EXTRAMURAL SAN CRISTOBAL | D200: 04-SAN CRISTOBAL | E200: 0 | F200: 0 | G200: 3 | H200: 1 | I200: 6 | J200: 10 | K200: 11 | S200: 31 | T200: 0.0%
... 620 more rows

Sheet NEUMOCOCO2
A1: EAPB | B1: EPS O ESE | C1: IPS | D1: Localidad | E1: Meta Anual Menor de 1 Año | F1: Meta Mensual | G1: Enero | H1: Febrero | I1: Marzo | J1: Abril | K1: Mayo | L1: Junio | M1: Julio | N1: Agosto | O1: Septiembre | P1: Octubre | Q1: Noviembre | R1: Diciembre | S1: Total | T1: % Cobertura | U1: Deficit
A2: CAPITAL SALUD | B2: CAPITAL SALUD | C2: UPA SAN CRISTOBAL | D2: 01-USAQUEN | E2: 124 | F2: =+E2/12 -> 10 | G2: 7 | H2: 3 | I2: 7 | J2: 6 | K2: 3 | S2: =SUM(G2:R2) -> 26 | T2: =IF(E2=0,0,+S2/E2) -> 21.0% | U2: =IF(COUNT(G2:R2)*(E2/12)-S2<0,"",COUNT(G2:R2)*(E2/12)-S2) -> 26
A3: CAPITAL SALUD | B3: CAPITAL SALUD | C3: UPA USAQUEN | D3: 01-USAQUEN | E3: 10 | F3: =+E3/12 -> 1 | H3: 0 | I3: 0 | J3: 0 | K3: 0 | S3: =SUM(G3:R3) -> 0 | T3: 0.0% | U3: 3
A4: CAPITAL SALUD | B4: CAPITAL SALUD | C4: UPA ORQUIDEAS | D4: 01-USAQUEN | E4: 11 | F4: 1 | G4: 3 | H4: 1 | I4: 1 | J4: 4 | K4: 2 | S4: 11 | T4: 100.0%
A5: CAPITAL SALUD | B5: CAPITAL SALUD | C5: UPA CODITO | D5: 01-USAQUEN | E5: 107 | F5: 9 | G5: 8 | H5: 2 | I5: 3 | J5: 3 | K5: 6 | S5: 22 | T5: 20.6% | U5: 23
A6: CAPITAL SALUD | B6: CAPITAL SALUD | C6: CAMI VERBENAL | D6: 01-USAQUEN | E6: 87 | F6: 7 | G6: 8 | H6: 4 | I6: 8 | J6: 3 | K6: 7 | S6: 30 | T6: 34.5% | U6: 6
A7: CAPITAL SALUD | B7: CAPITAL SALUD | C7: HOSPITAL SIMON BOLIVAR | D7: 01-USAQUEN | E7: 36 | F7: 3 | G7: 9 | H7: 17 | I7: 11 | J7: 5 | K7: 5 | S7: 47 | T7: 130.6%
A8: 01-USAQUEN | B8: 01-USAQUEN | C8: EXTRAMURAL USAQUEN | D8: 01-USAQUEN | E8: 0 | F8: 0 | G8: 13 | H8: 10 | I8: 18 | J8: 51 | K8: 42 | S8: 134 | T8: 0.0%
A9: ALIANSALUD | B9: ALIANSALUD | C9: CENTRO MEDICO COLMEDICA SANTA BARBARA | D9: 01-USAQUEN | E9: 580 | F9: 48 | G9: 79 | H9: 56 | I9: 59 | J9: 36 | K9: 36 | S9: 266 | T9: 45.9%
A10: COMPENSAR | B10: COMPENSAR | C10: USS CALLE 134 | D10: 01-USAQUEN | E10: 372 | F10: 31 | G10: 16 | H10: 16 | I10: 13 | J10: 6 | K10: 11 | S10: 62 | T10: 16.7% | U10: 93
A11: COMPENSAR | B11: COMPENSAR | C11: USS CALLE 145 | D11: 01-USAQUEN | E11: 173 | F11: 14 | G11: 16 | H11: 16 | I11: 18 | J11: 10 | K11: 16 | S11: 76 | T11: 43.9%
A12: COMPENSAR | B12: COMPENSAR | C12: JAVESALUD TOBERIN | D12: 01-USAQUEN | E12: 372 | F12: 31 | G12: 3 | H12: 3 | I12: 2 | J12: 9 | K12: 14 | S12: 31 | T12: 8.3% | U12: 124
A13: COOMEVA | B13: COOMEVA | C13: SINERGIA UNIDAD INTEGRAL EN SALUD | D13: 01-USAQUEN | E13: 44 | F13: 4 | G13: 6 | H13: 5 | I13: 7 | J13: 5 | K13: 5 | S13: 28 | T13: 63.6%
A14: FAMISANAR | B14: FAMI- COLSB | C14: CENTRO MEDICO COLSUBSIDIO USAQUEN | D14: 01-USAQUEN | E14: 298 | F14: 25 | G14: 30 | H14: 31 | I14: 27 | J14: 20 | K14: 14 | S14: 122 | T14: 40.9% | U14: 2
A15: MILITAR | B15: MILITAR | C15: DISPENSARIO MEDICO CANTON NORTE | D15: 01-USAQUEN | E15: 205 | F15: 17 | G15: 3 | H15: 9 | I15: 4 | J15: 6 | K15: 6 | S15: 28 | T15: 13.7% | U15: 57
A16: NUEVA EPS | B16: NUEVA EPS | C16: IPS VIVA 1A SEDE TOBERIN | D16: 01-USAQUEN | E16: 147 | F16: 12 | G16: 6 | H16: 7 | I16: 9 | J16: 6 | K16: 5 | S16: 33 | T16: 22.4% | U16: 28
A17: NUEVA EPS | B17: NUEVA EPS | C17: CAFAM GRANADA HILLS | D17: 01-USAQUEN | E17: 44 | F17: 4 | G17: 6 | H17: 4 | I17: 0 | J17: 6 | K17: 2 | S17: 18 | T17: 40.9% | U17: 0
A18: SANITAS | B18: SANITAS | C18: UAP SANITAS TOBERIN | D18: 01-USAQUEN | E18: 511 | F18: 43 | G18: 55 | H18: 41 | I18: 22 | J18: 42 | K18: 37 | S18: 197 | T18: 38.6% | U18: 16
A19: SANITAS | B19: SANITAS | C19: MEDIKA IPS SANITAS UAP USAQUEN | D19: 01-USAQUEN | E19: 188 | F19: 16 | G19: 3 | H19: 1 | I19: 0 | J19: 1 | K19: 1 | S19: 6 | T19: 3.2% | U19: 72
A20: SANITAS | B20: SANITAS | C20: UAP SANTA BARBARA | D20: 01-USAQUEN | E20: 796 | F20: 66 | G20: 86 | H20: 68 | I20: 73 | J20: 56 | K20: 52 | S20: 335 | T20: 42.1%
A21: SANITAS | B21: SANITAS | C21: SANITAS BANCO DE LA REPUBLICA | D21: 01-USAQUEN | E21: 0 | F21: 0 | G21: 4 | H21: 1 | I21: 4 | J21: 3 | K21: 3 | S21: 15 | T21: 0.0%
A22: SALUD TOTAL | B22: SALUD TOTAL | C22: VIRREY SOLIS TOBERÍN | D22: 01-USAQUEN | E22: 384 | F22: 32 | G22: 21 | H22: 20 | I22: 20 | J22: 12 | K22: 14 | S22: 87 | T22: 22.7% | U22: 73
A23: SURA | B23: SURA | C23: IPS JAVESALUD SANTA BEATRIZ | D23: 01-USAQUEN | E23: 355 | F23: 30 | G23: 12 | H23: 9 | I23: 16 | J23: 8 | K23: 11 | S23: 56 | T23: 15.8% | U23: 92
A24: ECOPETROL | B24: ECOPETROL | C24: IPS CLINICOS PALATINO | D24: 01-USAQUEN | E24: 87 | F24: 7 | G24: 9 | H24: 12 | I24: 9 | J24: 10 | K24: 6 | S24: 46 | T24: 52.9%
A25: PARTICULAR | B25: PARTICULAR | C25: CLINICA PEDIATRICA COLSANITAS | D25: 01-USAQUEN | E25: 830 | F25: 69 | G25: 100 | H25: 89 | I25: 53 | J25: 53 | K25: 42 | S25: 337 | T25: 40.6% | U25: 9
A26: PARTICULAR | B26: PARTICULAR | C26: CENTRO MEDICO COLSANITAS LA CALLEJA | D26: 01-USAQUEN | E26: 120 | F26: 10 | G26: 23 | H26: 16 | I26: 6 | J26: 6 | K26: 4 | S26: 55 | T26: 45.8%
A27: PARTICULAR | B27: PARTICULAR | C27: CENTRO MEDICO COLSANITAS 108 | D27: 01-USAQUEN | E27: 40 | F27: 3 | G27: 4 | H27: 6 | I27: 3 | J27: 0 | K27: 0 | S27: 13 | T27: 32.5% | U27: 4
A28: PARTICULAR | B28: PARTICULAR | C28: CENTRO MEDICO COLSANITAS SANTA ANA | D28: 01-USAQUEN | E28: 4 | F28: 0 | G28: 2 | H28: 0 | I28: 1 | J28: 0 | K28: 0 | S28: 3 | T28: 75.0%
A29: PARTICULAR | B29: PARTICULAR | C29: FUNDACIÓN CARDIO INFANTIL | D29: 01-USAQUEN | E29: 0 | F29: 0 | G29: 11 | H29: 7 | I29: 3 | J29: 9 | K29: 5 | S29: 35 | T29: 0.0%
A30: PARTICULAR | B30: PARTICULAR | C30: ENFASO USAQUEN | D30: 01-USAQUEN | E30: 0 | F30: 0 | G30: 9 | H30: 13 | I30: 3 | J30: 12 | K30: 4 | S30: 41 | T30: 0.0%
A31: PARTICULAR | B31: PARTICULAR | C31: UNIDAD DE VACUNACIÓN INTERNACIONAL | D31: 01-USAQUEN | E31: 0 | F31: 0 | G31: 4 | H31: 7 | I31: 5 | J31: 0 | K31: 1 | S31: 17 | T31: 0.0%
A32: PARTICULAR | B32: PARTICULAR | C32: INMUNOLOGÍA Y DIAGNÓSTICO ESPECIALIZADO LTDA. | D32: 01-USAQUEN | E32: 0 | F32: 0 | G32: 0 | H32: 0 | I32: 0 | J32: 0 | K32: 0 | S32: 0 | T32: 0.0% | U32: 0
A33: PARTICULAR | B33: PARTICULAR | C33: PROTEGER HEALHT CARE | D33: 01-USAQUEN | E33: 0 | F33: 0 | G33: 1 | H33: 0 | I33: 2 | J33: 9 | K33: 3 | S33: 15 | T33: 0.0%
A34: PARTICULAR | B34: PARTICULAR | C34: FUNDACION SANTA FE DE BOGOTA | D34: 01-USAQUEN | E34: 0 | F34: 0 | G34: 0 | H34: 0 | I34: 0 | J34: 0 | K34: 0 | S34: 0 | T34: 0.0% | U34: 0
A35: PARTICULAR | B35: PARTICULAR | C35: IPS CRUZ ROJA SEDE UNICENTRO | D35: 01-USAQUEN | E35: 0 | F35: 0 | G35: 0 | H35: 0 | I35: 0 | J35: 0 | K35: 0 | S35: 0 | T35: 0.0% | U35: 0
A36: PARTICULAR | B36: PARTICULAR | C36: IPS CRUZ ROJA SAMU CALLE 145 | D36: 01-USAQUEN | E36: 0 | F36: 0 | G36: 0 | H36: 0 | I36: 0 | J36: 0 | K36: 0 | S36: 0 | T36: 0.0% | U36: 0
A37: PEDIATRAS | B37: PEDIATRAS | C37: DR. ALEJANDRO LÓPEZ | D37: 01-USAQUEN | E37: 0 | F37: 0 | G37: 2 | H37: 0 | I37: 0 | J37: 0 | K37: 0 | S37: 2 | T37: 0.0%
A38: PEDIATRAS | B38: PEDIATRAS | C38: DR. CARLOS NEFTALI TORRES | D38: 01-USAQUEN | E38: 0 | F38: 0 | G38: 8 | H38: 9 | I38: 3 | J38: 3 | K38: 5 | S38: 28 | T38: 0.0%
A39: PEDIATRAS | B39: PEDIATRAS | C39: DR. FRANCISCO NUÑEZ | D39: 01-USAQUEN | E39: 0 | F39: 0 | G39: 2 | H39: 1 | I39: 1 | J39: 0 | K39: 0 | S39: 4 | T39: 0.0%
A40: PEDIATRAS | B40: PEDIATRAS | C40: DR. FERNANDO GOMEZ | D40: 01-USAQUEN | E40: 0 | F40: 0 | G40: 0 | H40: 0 | I40: 0 | J40: 0 | K40: 0 | S40: 0 | T40: 0.0% | U40: 0
A41: PEDIATRAS | B41: PEDIATRAS | C41: DR. FERNANDO ZARATE MORENO | D41: 01-USAQUEN | E41: 0 | F41: 0 | G41: 0 | H41: 2 | I41: 1 | J41: 1 | K41: 0 | S41: 4 | T41: 0.0%
A42: PEDIATRAS | B42: PEDIATRAS | C42: DR. GONZALO GARCIA | D42: 01-USAQUEN | E42: 0 | F42: 0 | G42: 0 | H42: 0 | I42: 1 | J42: 0 | K42: 1 | S42: 2 | T42: 0.0%
A43: PEDIATRAS | B43: PEDIATRAS | C43: DR. GUSTAVO MORALES | D43: 01-USAQUEN | E43: 0 | F43: 0 | G43: 2 | H43: 4 | I43: 1 | J43: 2 | K43: 3 | S43: 12 | T43: 0.0%
A44: PEDIATRAS | B44: PEDIATRAS | C44: DR. JAIME OSPINA | D44: 01-USAQUEN | E44: 0 | F44: 0 | G44: 0 | H44: 0 | I44: 5 | J44: 1 | K44: 0 | S44: 6 | T44: 0.0%
A45: PEDIATRAS | B45: PEDIATRAS | C45: DR. JORGE URIBE | D45: 01-USAQUEN | E45: 0 | F45: 0 | G45: 0 | H45: 0 | I45: 0 | J45: 0 | K45: 1 | S45: 1 | T45: 0.0%
A46: PEDIATRAS | B46: PEDIATRAS | C46: DR. JUAN LUIS FIGUEROA | D46: 01-USAQUEN | E46: 0 | F46: 0 | G46: 1 | H46: 2 | I46: 0 | J46: 0 | K46: 2 | S46: 5 | T46: 0.0%
A47: PEDIATRAS | B47: PEDIATRAS | C47: DR. LUIS AUGUSTO PERNA | D47: 01-USAQUEN | E47: 0 | F47: 0 | G47: 4 | H47: 5 | I47: 5 | J47: 3 | K47: 5 | S47: 22 | T47: 0.0%
A48: PEDIATRAS | B48: PEDIATRAS | C48: DR. LIBARDO ELI TRIANA | D48: 01-USAQUEN | E48: 0 | F48: 0 | G48: 0 | H48: 1 | I48: 0 | J48: 1 | K48: 2 | S48: 4 | T48: 0.0%
A49: PEDIATRAS | B49: PEDIATRAS | C49: DR. OSWALDO MERCADO HOYOS | D49: 01-USAQUEN | E49: 0 | F49: 0 | G49: 2 | H49: 3 | I49: 0 | J49: 3 | K49: 0 | S49: 8 | T49: 0.0%
A50: PEDIATRAS | B50: PEDIATRAS | C50: DR. ROBERTO BENIRO | D50: 01-USAQUEN | E50: 0 | F50: 0 | G50: 0 | H50: 0 | I50: 0 | J50: 0 | K50: 1 | S50: 1 | T50: 0.0%
A51: PEDIATRAS | B51: PEDIATRAS | C51: DR. SERGIO ISAZA | D51: 01-USAQUEN | E51: 0 | F51: 0 | G51: 0 | H51: 1 | I51: 0 | J51: 0 | K51: 0 | S51: 1 | T51: 0.0%
A52: PEDIATRAS | B52: PEDIATRAS | C52: DR. SANTIAGO UCROS | D52: 01-USAQUEN | E52: 0 | F52: 0 | G52: 0 | H52: 0 | I52: 0 | J52: 0 | K52: 0 | S52: 0 | T52: 0.0% | U52: 0
A53: PEDIATRAS | B53: PEDIATRAS | C53: DR. GERMAN SILVA | D53: 01-USAQUEN | E53: 0 | F53: 0 | G53: 0 | H53: 0 | I53: 0 | J53: 0 | K53: 0 | S53: 0 | T53: 0.0% | U53: 0
A54: PEDIATRAS | B54: PEDIATRAS | C54: DR. DANIEL ABRIL | D54: 01-USAQUEN | E54: 0 | F54: 0 | G54: 0 | H54: 0 | I54: 0 | J54: 0 | K54: 0 | S54: 0 | T54: 0.0% | U54: 0
A55: PEDIATRAS | B55: PEDIATRAS | C55: DR. CARLOS EDUARDO OLMOS | D55: 01-USAQUEN | E55: 0 | F55: 0 | G55: 0 | H55: 0 | I55: 0 | J55: 0 | K55: 0 | S55: 0 | T55: 0.0% | U55: 0
A56: PEDIATRAS | B56: PEDIATRAS | C56: DR. EDGARDO CHATMAN | D56: 01-USAQUEN | E56: 0 | F56: 0 | G56: 0 | H56: 0 | I56: 0 | J56: 0 | K56: 0 | S56: 0 | T56: 0.0% | U56: 0
A57: PEDIATRAS | B57: PEDIATRAS | C57: DR. JORGE FLOREZ OTERO | D57: 01-USAQUEN | E57: 0 | F57: 0 | G57: 0 | H57: 0 | I57: 0 | J57: 0 | K57: 0 | S57: 0 | T57: 0.0% | U57: 0
A58: PEDIATRAS | B58: PEDIATRAS | C58: DRA. ALEJANDRA MARIA VALENCIA | D58: 01-USAQUEN | E58: 0 | F58: 0 | G58: 0 | H58: 0 | I58: 0 | J58: 0 | K58: 0 | S58: 0 | T58: 0.0% | U58: 0
A59: PEDIATRAS | B59: PEDIATRAS | C59: DRA. ANA MARIA GOYENECHE | D59: 01-USAQUEN | E59: 0 | F59: 0 | G59: 0 | H59: 0 | I59: 0 | J59: 0 | K59: 0 | S59: 0 | T59: 0.0% | U59: 0
A60: PEDIATRAS | B60: PEDIATRAS | C60: DRA. JIMENA VARELA | D60: 01-USAQUEN | E60: 0 | F60: 0 | G60: 0 | H60: 1 | I60: 0 | J60: 0 | K60: 0 | S60: 1 | T60: 0.0%
A61: PEDIATRAS | B61: PEDIATRAS | C61: DRA. LIA SAN MIGUEL | D61: 01-USAQUEN | E61: 0 | F61: 0 | G61: 0 | H61: 0 | I61: 0 | J61: 2 | K61: 0 | S61: 2 | T61: 0.0%
A62: PEDIATRAS | B62: PEDIATRAS | C62: DRA. LIBIA SEGURA | D62: 01-USAQUEN | E62: 0 | F62: 0 | G62: 0 | H62: 1 | I62: 0 | J62: 0 | K62: 0 | S62: 1 | T62: 0.0%
A63: PEDIATRAS | B63: PEDIATRAS | C63: DRA. MARÍA JOSÉ PEDRAZA | D63: 01-USAQUEN | E63: 0 | F63: 0 | G63: 0 | H63: 0 | I63: 0 | J63: 0 | K63: 0 | S63: 0 | T63: 0.0% | U63: 0
A64: PEDIATRAS | B64: PEDIATRAS | C64: DRA. MARTHA LUCIA SANCHEZ | D64: 01-USAQUEN | E64: 0 | F64: 0 | G64: 0 | H64: 0 | I64: 0 | J64: 0 | K64: 0 | S64: 0 | T64: 0.0% | U64: 0
A65: PEDIATRAS | B65: PEDIATRAS | C65: DRA. OLGA LUCÍA SÁNCHEZ | D65: 01-USAQUEN | E65: 0 | F65: 0 | G65: 0 | H65: 0 | I65: 0 | J65: 0 | K65: 0 | S65: 0 | T65: 0.0% | U65: 0
A66: PEDIATRAS | B66: PEDIATRAS | C66: DRA. SANDRA BELTRAN | D66: 01-USAQUEN | E66: 0 | F66: 0 | G66: 1 | H66: 0 | I66: 0 | J66: 0 | K66: 0 | S66: 1 | T66: =IF(E66=0,0,+S66/E66) -> 0.0% | U66: =IF(COUNT(G66:R66)*(E66/12)-S66<0,"",COUNT(G66:R66)*(E66/12)-S66) -> 
A67: PEDIATRAS | B67: PEDIATRAS | C67: DRA. IVANA CABRERA | D67: 01-USAQUEN | E67: 0 | F67: =+E67/12 -> 0 | G67: 0 | H67: 0 | I67: 0 | J67: 0 | K67: 0 | S67: =SUM(G67:R67) -> 0 | T67: 0.0% | U67: 0
A68: PEDIATRAS | B68: PEDIATRAS | C68: DRA. NAYITA ALARCON | D68: 01-USAQUEN | E68: 0 | F68: 0 | G68: 0 | H68: 0 | I68: 0 | J68: 0 | K68: 0 | S68: 0 | T68: 0.0% | U68: 0
A69: PEDIATRAS | B69: PEDIATRAS | C69: DRA. ELIZABETH GARCIA | D69: 01-USAQUEN | E69: 0 | F69: 0 | G69: 0 | H69: 0 | I69: 0 | J69: 0 | K69: 0 | S69: 0 | T69: 0.0% | U69: 0
A70: PEDIATRAS | B70: PEDIATRAS | C70: DRA. BERTHA CALDERON DE RAMOS | D70: 01-USAQUEN | E70: 0 | F70: 0 | G70: 0 | H70: 0 | I70: 0 | J70: 0 | K70: 0 | S70: 0 | T70: 0.0% | U70: 0
A71: PEDIATRAS | B71: PEDIATRAS | C71: DRA. MIRYAM CORREA | D71: 01-USAQUEN | E71: 0 | F71: 0 | G71: 0 | H71: 1 | I71: 0 | J71: 0 | K71: 0 | S71: 1 | T71: 0.0%
A72: 01-USAQUEN | B72: UNICAJAS | C72: UPA SAN CRISTOBAL | D72: 01-USAQUEN | E72: 6 | F72: 1 | G72: 1 | H72: 0 | I72: 0 | J72: 0 | K72: 0 | S72: 1 | T72: 16.7% | U72: 2
A73: UNICAJAS | B73: UNICAJAS | C73: UPA USAQUEN | D73: 01-USAQUEN | E73: 9 | F73: 1 | H73: 0 | I73: 0 | J73: 0 | K73: 0 | S73: 0 | T73: 0.0% | U73: 3
A74: UNICAJAS | B74: UNICAJAS | C74: UPA ORQUIDEAS | D74: 01-USAQUEN | E74: 6 | F74: 1 | G74: 0 | H74: 0 | I74: 0 | J74: 0 | K74: 0 | S74: 0 | T74: 0.0% | U74: 3
A75: UNICAJAS | B75: UNICAJAS | C75: UPA CODITO | D75: 01-USAQUEN | E75: 5 | F75: 0 | G75: 1 | H75: 0 | I75: 0 | J75: 1 | K75: 0 | S75: 2 | T75: 40.0% | U75: 0
A76: UNICAJAS | B76: UNICAJAS | C76: CAMI VERBENAL | D76: 01-USAQUEN | E76: 6 | F76: 1 | G76: 2 | H76: 0 | I76: 0 | J76: 0 | K76: 1 | S76: 3 | T76: 50.0%
A77: 01-USAQUEN | B77: UNICAJAS | C77: HOSPITAL SIMON BOLIVAR | D77: 01-USAQUEN | E77: 6 | F77: 1 | G77: 1 | H77: 1 | I77: 0 | J77: 0 | K77: 0 | S77: 2 | T77: 33.3% | U77: 1
A78: 01-USAQUEN | B78: OTROS | C78: UPA SAN CRISTOBAL | D78: 01-USAQUEN | E78: 300 | F78: 25 | G78: 10 | H78: 2 | I78: 2 | J78: 1 | K78: 0 | S78: 15 | T78: 5.0% | U78: 110
A79: 01-USAQUEN | B79: OTROS | C79: UPA USAQUEN | D79: 01-USAQUEN | E79: 100 | F79: 8 | H79: 0 | I79: 0 | J79: 0 | K79: 0 | S79: 0 | T79: 0.0% | U79: 33
A80: 01-USAQUEN | B80: OTROS | C80: UPA ORQUIDEAS | D80: 01-USAQUEN | E80: 120 | F80: 10 | G80: 4 | H80: 0 | I80: 1 | J80: 1 | K80: 0 | S80: 6 | T80: 5.0% | U80: 44
A81: 01-USAQUEN | B81: OTROS | C81: UPA CODITO | D81: 01-USAQUEN | E81: 218 | F81: 18 | G81: 4 | H81: 2 | I81: 0 | J81: 2 | K81: 0 | S81: 8 | T81: 3.7% | U81: 83
A82: 01-USAQUEN | B82: OTROS | C82: CAMI VERBENAL | D82: 01-USAQUEN | E82: 309 | F82: 26 | G82: 5 | H82: 2 | I82: 0 | J82: 2 | K82: 4 | S82: 13 | T82: 4.2% | U82: 116
A83: 01-USAQUEN | B83: OTROS | C83: HOSPITAL SIMON BOLIVAR | D83: 01-USAQUEN | E83: 480 | F83: 40 | G83: 12 | H83: 12 | I83: 5 | J83: 3 | K83: 1 | S83: 33 | T83: 6.9% | U83: 167
A84: 01-USAQUEN | B84: DEMAS EAPB | C84: UPA SAN CRISTOBAL | D84: 01-USAQUEN | F84: 0 | G84: 15 | H84: 7 | I84: 12 | J84: 17 | K84: 17 | S84: 68 | T84: 0.0%
A85: 01-USAQUEN | B85: DEMAS EAPB | C85: UPA USAQUEN | D85: 01-USAQUEN | F85: 0 | G85: 1 | H85: 1 | I85: 4 | J85: 0 | K85: 0 | S85: 6 | T85: 0.0%
A86: 01-USAQUEN | B86: DEMAS EAPB | C86: UPA ORQUIDEAS | D86: 01-USAQUEN | F86: 0 | G86: 1 | H86: 0 | I86: 6 | J86: 3 | K86: 3 | S86: 13 | T86: 0.0%
A87: 01-USAQUEN | B87: DEMAS EAPB | C87: UPA CODITO | D87: 01-USAQUEN | F87: 0 | G87: 12 | H87: 16 | I87: 7 | J87: 20 | K87: 7 | S87: 62 | T87: 0.0%
A88: 01-USAQUEN | B88: DEMAS EAPB | C88: CAMI VERBENAL | D88: 01-USAQUEN | F88: 0 | G88: 16 | H88: 7 | I88: 11 | J88: 17 | K88: 9 | S88: 60 | T88: 0.0%
A89: 01-USAQUEN | B89: DEMAS EAPB | C89: HOSPITAL SIMON BOLIVAR | D89: 01-USAQUEN | F89: 0 | G89: 21 | H89: 16 | I89: 19 | J89: 8 | K89: 4 | S89: 68 | T89: 0.0%
A90: MEDIMAS | B90: MEDIMAS | C90: Corvesalud S.A.S - I P S Chico | D90: 01-USAQUEN | E90: 320 | F90: 27 | G90: 2 | H90: 2 | I90: 5 | S90: 9 | T90: 2.8% | U90: 71
A91: FAMISANAR | B91: COLSUBSIDIO | C91: Sura PAC Santa Bárbara | D91: 01-USAQUEN | F91: 0 | S91: 0 | T91: 0.0% | U91: 0
A92: CAPITAL SALUD | B92: CAPITAL SALUD | C92: UPA SAN LUIS | D92: 02-CHAPINERO | E92: 12 | F92: 1 | G92: 6 | H92: 2 | I92: 2 | J92: 2 | K92: 1 | S92: 13 | T92: 108.3%
A93: 02-CHAPINERO | B93: 02-CHAPINERO | C93: EXTRAMURAL CHAPINERO | D93: 02-CHAPINERO | E93: 0 | F93: 0 | G93: 5 | H93: 4 | I93: 4 | J93: 25 | K93: 33 | S93: 71 | T93: 0.0%
A94: COMPENSAR | B94: COMPENSAR | C94: USS CALLE 42 | D94: 02-CHAPINERO | E94: 612 | F94: 51 | G94: 37 | H94: 37 | I94: 19 | J94: 27 | K94: 23 | S94: 143 | T94: 23.4% | U94: 112
A95: COMPENSAR | B95: COMPENSAR | C95: USS CALLE 67 | D95: 02-CHAPINERO | E95: 0 | F95: 0 | G95: 0 | H95: 0 | I95: 0 | J95: 0 | K95: 0 | S95: 0 | T95: 0.0% | U95: 0
A96: COMPENSAR | B96: COMPENSAR | C96: USS CALLE 94 | D96: 02-CHAPINERO | E96: 369 | F96: 31 | G96: 44 | H96: 52 | I96: 40 | J96: 46 | K96: 48 | S96: 230 | T96: 62.3%
A97: COMPENSAR | B97: COMPENSAR | C97: VIVA 1A IPS CHAPINERO | D97: 02-CHAPINERO | E97: 73 | F97: 6 | G97: 4 | H97: 0 | I97: 2 | J97: 5 | K97: 3 | S97: 14 | T97: 19.2% | U97: 16
A98: COOMEVA | B98: COOMEVA | C98: SINERGIA UNIDAD BASICA LOURDES | D98: 02-CHAPINERO | E98: 217 | F98: 18 | G98: 7 | H98: 5 | I98: 8 | J98: 1 | K98: 0 | S98: 21 | T98: 9.7% | U98: 69
A99: FAMISANAR | B99: FAMI- CAFAM | C99: CENTRO DE ATENCION EN SALUD CAFAM CALLE 48 | D99: 02-CHAPINERO | E99: 1050 | F99: 88 | G99: 31 | H99: 23 | I99: 27 | J99: 12 | K99: 15 | S99: 108 | T99: 10.3% | U99: 330
A100: FAMISANAR | B100: FAMI- CAFAM | C100: CENTRO DE ATENCION EN SALUD CAFAM CALLE 90 | D100: 02-CHAPINERO | E100: 200 | F100: 17 | G100: 12 | H100: 8 | I100: 15 | J100: 7 | K100: 22 | S100: 64 | T100: 32.0% | U100: 19
A101: FAMISANAR | B101: FAMI- COLSB | C101: CLINICA COLSUBSIDIO EL LAGO | D101: 02-CHAPINERO | E101: 392 | F101: 33 | G101: 11 | H101: 7 | I101: 13 | J101: 6 | K101: 4 | S101: 41 | T101: 10.5% | U101: 122
A102: MILITAR | B102: MILITAR | C102: HOSPITAL MILITAR CENTRAL | D102: 02-CHAPINERO | E102: 70 | F102: 6 | G102: 15 | H102: 2 | I102: 6 | J102: 7 | K102: 4 | S102: 34 | T102: 48.6%
A103: POLICIA | B103: POLICIA | C103: POLICIA NACIONAL ESPAM CHAPINERO | D103: 02-CHAPINERO | E103: 117 | F103: 10 | G103: 5 | H103: 0 | I103: 9 | J103: 25 | K103: 19 | S103: 58 | T103: 49.6%
A104: NUEVA EPS | B104: NUEVA EPS | C104: IPS VIVA 1A SEDE MARLY | D104: 02-CHAPINERO | E104: 131 | F104: 11 | G104: 10 | H104: 6 | I104: 7 | J104: 1 | K104: 0 | S104: 24 | T104: 18.3% | U104: 31
A105: SANITAS | B105: SANITAS | C105: EPS SANITAS CENTRO MEDICO TEUSAQUILLO | D105: 02-CHAPINERO | E105: 579 | F105: 48 | G105: 30 | H105: 22 | I105: 24 | J105: 12 | K105: 10 | S105: 98 | T105: 16.9% | U105: 143
A106: SALUD TOTAL | B106: SALUD TOTAL | C106: VIRREY SOLIS CHAPINERO | D106: 02-CHAPINERO | E106: 337 | F106: 28 | G106: 19 | H106: 12 | I106: 8 | J106: 7 | K106: 5 | S106: 51 | T106: 15.1% | U106: 89
A107: SURA | B107: SURA | C107: PUNTO DE SALUD CHAPINERO | D107: 02-CHAPINERO | E107: 237 | F107: 20 | G107: 16 | H107: 10 | I107: 17 | J107: 7 | K107: 8 | S107: 58 | T107: 24.5% | U107: 41
A108: SURA | B108: SURA | C108: SALUD SURA | D108: 02-CHAPINERO | E108: 454 | F108: 38 | G108: 50 | H108: 51 | I108: 42 | J108: 25 | K108: 31 | S108: 199 | T108: 43.8%
A109: PARTICULAR | B109: PARTICULAR | C109: CENTRO MEDICO COLSANITAS CALLE 96 | D109: 02-CHAPINERO | E109: 24 | F109: 2 | G109: 0 | H109: 3 | I109: 2 | J109: 15 | K109: 10 | S109: 30 | T109: 125.0%
A110: PARTICULAR | B110: PARTICULAR | C110: CENTRO DE ESPECIALISTAS MEDICOS AXA COLPATRIA | D110: 02-CHAPINERO | E110: 0 | F110: 0 | G110: 2 | H110: 4 | I110: 6 | J110: 5 | K110: 5 | S110: 22 | T110: 0.0%
A111: PARTICULAR | B111: PARTICULAR | C111: CLINICA DE LA MUJER | D111: 02-CHAPINERO | E111: 0 | F111: 0 | G111: 62 | H111: 36 | I111: 41 | J111: 27 | K111: 37 | S111: 203 | T111: 0.0%
A112: PARTICULAR | B112: PARTICULAR | C112: VACUNARTE IPS | D112: 02-CHAPINERO | E112: 0 | F112: 0 | G112: 5 | H112: 2 | I112: 0 | J112: 0 | K112: 1 | S112: 8 | T112: 0.0%
A113: PARTICULAR | B113: PARTICULAR | C113: UNIMARLY | D113: 02-CHAPINERO | E113: 0 | F113: 0 | G113: 0 | H113: 0 | I113: 0 | J113: 0 | K113: 0 | S113: 0 | T113: 0.0% | U113: 0
A114: PARTICULAR | B114: PARTICULAR | C114: HOSPITAL SAN IGNACIO | D114: 02-CHAPINERO | E114: 0 | F114: 0 | G114: 2 | H114: 10 | I114: 4 | J114: 2 | K114: 0 | S114: 18 | T114: 0.0%
A115: PARTICULAR | B115: PARTICULAR | C115: PROGRAMA MADRE CANGURO HOSPITAL SAN IGNACIO | D115: 02-CHAPINERO | E115: 0 | F115: 0 | G115: 91 | H115: 104 | I115: 85 | J115: 82 | K115: 68 | S115: 430 | T115: 0.0%
A116: PARTICULAR | B116: PARTICULAR | C116: IPS AVENIR | D116: 02-CHAPINERO | E116: 0 | F116: 0 | G116: 0 | H116: 0 | I116: 0 | J116: 0 | K116: 0 | S116: 0 | T116: 0.0% | U116: 0
A117: PARTICULAR | B117: PARTICULAR | C117: IPS INMUNOLOGIA Y DIAGNOSTICO ESPECIALIZADO | D117: 02-CHAPINERO | E117: 0 | F117: 0 | G117: 0 | H117: 0 | I117: 1 | J117: 0 | K117: 0 | S117: 1 | T117: 0.0%
A118: PARTICULAR | B118: PARTICULAR | C118: ASOCIACION PEDIATRICA DE LOS ANDES | D118: 02-CHAPINERO | E118: 0 | F118: 0 | G118: 0 | H118: 0 | I118: 0 | J118: 0 | K118: 0 | S118: 0 | T118: 0.0% | U118: 0
A119: PARTICULAR | B119: PARTICULAR | C119: CRUZ ROJA SEDE ANDINO | D119: 02-CHAPINERO | E119: 0 | F119: 0 | G119: 0 | H119: 0 | I119: 0 | J119: 0 | K119: 0 | S119: 0 | T119: 0.0% | U119: 0
A120: PARTICULAR | B120: PARTICULAR | C120: CENTRO MEDICO SANTA MONICA | D120: 02-CHAPINERO | E120: 0 | F120: 0 | H120: 0 | I120: 0 | J120: 11 | K120: 7 | S120: 18 | T120: 0.0%
A121: PEDIATRAS | B121: PEDIATRAS | C121: DR. JUAN OSCAR TAMAYO | D121: 02-CHAPINERO | E121: 0 | F121: 0 | G121: 2 | H121: 0 | I121: 0 | J121: 0 | K121: 0 | S121: 2 | T121: 0.0%
A122: PEDIATRAS | B122: PEDIATRAS | C122: DR. ROBERTO SUAREZ | D122: 02-CHAPINERO | E122: 0 | F122: 0 | G122: 0 | H122: 0 | I122: 0 | J122: 0 | K122: 0 | S122: 0 | T122: 0.0% | U122: 0
A123: PEDIATRAS | B123: PEDIATRAS | C123: DR. WILLIAM RICARDO CABRA | D123: 02-CHAPINERO | E123: 0 | F123: 0 | G123: 2 | H123: 5 | I123: 1 | J123: 2 | K123: 2 | S123: 12 | T123: 0.0%
A124: PEDIATRAS | B124: PEDIATRAS | C124: DR. EDGAR CASTRO | D124: 02-CHAPINERO | E124: 0 | F124: 0 | G124: 2 | H124: 2 | I124: 0 | J124: 6 | K124: 1 | S124: 11 | T124: 0.0%
A125: PEDIATRAS | B125: PEDIATRAS | C125: DR. PABLO KRAUSS | D125: 02-CHAPINERO | E125: 0 | F125: 0 | G125: 3 | H125: 3 | I125: 1 | J125: 0 | K125: 0 | S125: 7 | T125: 0.0%
A126: PEDIATRAS | B126: PEDIATRAS | C126: DR. HERNAN ROBLES | D126: 02-CHAPINERO | E126: 0 | F126: 0 | G126: 4 | H126: 4 | I126: 2 | J126: 3 | K126: 9 | S126: 22 | T126: 0.0%
A127: PEDIATRAS | B127: PEDIATRAS | C127: DR. RAFAEL GAMBOA CASABLANCA | D127: 02-CHAPINERO | E127: 0 | F127: 0 | G127: 12 | H127: 6 | I127: 2 | J127: 3 | K127: 8 | S127: 31 | T127: 0.0%
A128: PEDIATRAS | B128: PEDIATRAS | C128: DR. JAVIER MEJIA | D128: 02-CHAPINERO | E128: 0 | F128: 0 | G128: 2 | H128: 1 | I128: 2 | J128: 3 | K128: 3 | S128: 11 | T128: 0.0%
A129: PEDIATRAS | B129: PEDIATRAS | C129: DR. CARLOS CORTAZAR | D129: 02-CHAPINERO | E129: 0 | F129: 0 | G129: 0 | H129: 0 | I129: 0 | J129: 0 | K129: 0 | S129: 0 | T129: 0.0% | U129: 0
A130: PEDIATRAS | B130: PEDIATRAS | C130: DR. NELSON PARDO | D130: 02-CHAPINERO | E130: 0 | F130: 0 | G130: 2 | H130: 0 | I130: 1 | J130: 0 | K130: 0 | S130: 3 | T130: =IF(E130=0,0,+S130/E130) -> 0.0% | U130: =IF(COUNT(G130:R130)*(E130/12)-S130<0,"",COUNT(G130:R130)*(E130/12)-S130) -> 
A131: PEDIATRAS | B131: PEDIATRAS | C131: DR. ALVARO JACOME | D131: 02-CHAPINERO | E131: 0 | F131: =+E131/12 -> 0 | G131: 1 | H131: 1 | I131: 3 | J131: 5 | K131: 0 | S131: =SUM(G131:R131) -> 10 | T131: 0.0%
A132: PEDIATRAS | B132: PEDIATRAS | C132: DR. SILVIO COPO | D132: 02-CHAPINERO | E132: 0 | F132: 0 | G132: 0 | H132: 0 | I132: 0 | J132: 0 | K132: 0 | S132: 0 | T132: 0.0% | U132: 0
A133: PEDIATRAS | B133: PEDIATRAS | C133: DR. HECTOR FERNANDO MENDOZA | D133: 02-CHAPINERO | E133: 0 | F133: 0 | G133: 1 | H133: 0 | I133: 0 | J133: 0 | K133: 0 | S133: 1 | T133: 0.0%
A134: PEDIATRAS | B134: PEDIATRAS | C134: DR. DIMITRIOS | D134: 02-CHAPINERO | E134: 0 | F134: 0 | G134: 1 | H134: 1 | I134: 0 | J134: 0 | K134: 1 | S134: 3 | T134: 0.0%
A135: PEDIATRAS | B135: PEDIATRAS | C135: DR. ALVARO MARIÑO | D135: 02-CHAPINERO | E135: 0 | F135: 0 | G135: 0 | H135: 0 | I135: 0 | J135: 0 | K135: 0 | S135: 0 | T135: 0.0% | U135: 0
A136: PEDIATRAS | B136: PEDIATRAS | C136: DR. ANDRES VARGAS | D136: 02-CHAPINERO | E136: 0 | F136: 0 | G136: 1 | H136: 1 | I136: 2 | J136: 2 | K136: 1 | S136: 7 | T136: 0.0%
A137: PEDIATRAS | B137: PEDIATRAS | C137: DR. JORGE CAMILO LUNA | D137: 02-CHAPINERO | E137: 0 | F137: 0 | G137: 0 | H137: 13 | I137: 0 | J137: 11 | K137: 3 | S137: 27 | T137: 0.0%
A138: PEDIATRAS | B138: PEDIATRAS | C138: DR. BERNARDO HUERTAS | D138: 02-CHAPINERO | E138: 0 | F138: 0 | G138: 13 | H138: 11 | I138: 4 | J138: 5 | K138: 14 | S138: 47 | T138: 0.0%
A139: PEDIATRAS | B139: PEDIATRAS | C139: DR. CARLOS M CASTILLO | D139: 02-CHAPINERO | E139: 0 | F139: 0 | G139: 0 | H139: 0 | I139: 0 | J139: 0 | K139: 0 | S139: 0 | T139: 0.0% | U139: 0
A140: PEDIATRAS | B140: PEDIATRAS | C140: DR. HEINZ OTTO PFALZGRAF | D140: 02-CHAPINERO | E140: 0 | F140: 0 | G140: 0 | H140: 0 | I140: 0 | J140: 0 | K140: 0 | S140: 0 | T140: 0.0% | U140: 0
A141: PEDIATRAS | B141: PEDIATRAS | C141: DR. GONZALEZ BALLESTEROS | D141: 02-CHAPINERO | E141: 0 | F141: 0 | G141: 0 | H141: 0 | I141: 0 | J141: 0 | K141: 0 | S141: 0 | T141: 0.0% | U141: 0
A142: PEDIATRAS | B142: PEDIATRAS | C142: DR. NORBERTO SALAMANCA | D142: 02-CHAPINERO | E142: 0 | F142: 0 | G142: 0 | H142: 0 | I142: 0 | J142: 0 | K142: 0 | S142: 0 | T142: 0.0% | U142: 0
A143: PEDIATRAS | B143: PEDIATRAS | C143: DR. CAMILO ENRIQUE SOTOMAYOR | D143: 02-CHAPINERO | E143: 0 | F143: 0 | G143: 2 | H143: 1 | I143: 2 | J143: 2 | K143: 0 | S143: 7 | T143: 0.0%
A144: PEDIATRAS | B144: PEDIATRAS | C144: DR. SANTIAGO RUEDA SAIZ | D144: 02-CHAPINERO | E144: 0 | F144: 0 | G144: 1 | H144: 0 | I144: 0 | J144: 0 | K144: 2 | S144: 3 | T144: 0.0%
A145: PEDIATRAS | B145: PEDIATRAS | C145: DR. HENRY HERNANDO SANCHEZ ESCOBAR | D145: 02-CHAPINERO | E145: 0 | F145: 0 | G145: 0 | H145: 1 | I145: 0 | J145: 1 | K145: 0 | S145: 2 | T145: 0.0%
A146: PEDIATRAS | B146: PEDIATRAS | C146: DR. RUBEN DARIO TAMAYO | D146: 02-CHAPINERO | E146: 0 | F146: 0 | G146: 1 | H146: 2 | I146: 0 | J146: 0 | K146: 4 | S146: 7 | T146: 0.0%
A147: PEDIATRAS | B147: PEDIATRAS | C147: DR. JAIME MAURICIO MATALLANA | D147: 02-CHAPINERO | E147: 0 | F147: 0 | G147: 2 | H147: 3 | I147: 3 | J147: 4 | K147: 8 | S147: 20 | T147: 0.0%
A148: PEDIATRAS | B148: PEDIATRAS | C148: DR. RODRIGO GARCIA | D148: 02-CHAPINERO | E148: 0 | F148: 0 | G148: 0 | H148: 0 | I148: 0 | J148: 0 | K148: 0 | S148: 0 | T148: 0.0% | U148: 0
A149: PEDIATRAS | B149: PEDIATRAS | C149: DR. FELIPE ROBAYO | D149: 02-CHAPINERO | E149: 0 | F149: 0 | G149: 0 | H149: 0 | I149: 0 | J149: 0 | K149: 0 | S149: 0 | T149: 0.0% | U149: 0
A150: PEDIATRAS | B150: PEDIATRAS | C150: DR. RUBEN FRANCO | D150: 02-CHAPINERO | E150: 0 | F150: 0 | G150: 0 | H150: 0 | I150: 3 | J150: 4 | K150: 0 | S150: 7 | T150: 0.0%
A151: PEDIATRAS | B151: PEDIATRAS | C151: DR. ORLANDO RODRIGUEZ RAMIREZ | D151: 02-CHAPINERO | E151: 0 | F151: 0 | G151: 0 | H151: 1 | I151: 1 | J151: 1 | K151: 0 | S151: 3 | T151: 0.0%
A152: PEDIATRAS | B152: PEDIATRAS | C152: DR. ARTURO MORENO | D152: 02-CHAPINERO | E152: 0 | F152: 0 | G152: 0 | H152: 0 | I152: 0 | J152: 0 | K152: 0 | S152: 0 | T152: 0.0% | U152: 0
A153: PEDIATRAS | B153: PEDIATRAS | C153: DR. FRANCISCO LEAL QUEVEDO | D153: 02-CHAPINERO | E153: 0 | F153: 0 | G153: 0 | H153: 0 | I153: 0 | J153: 0 | K153: 0 | S153: 0 | T153: 0.0% | U153: 0
A154: PEDIATRAS | B154: PEDIATRAS | C154: DR. CARLOS DIAZ PUENTES | D154: 02-CHAPINERO | E154: 0 | F154: 0 | G154: 0 | H154: 0 | I154: 0 | J154: 0 | K154: 0 | S154: 0 | T154: 0.0% | U154: 0
A155: PEDIATRAS | B155: PEDIATRAS | C155: DR. PEDRO ERASMO MENDOZA | D155: 02-CHAPINERO | E155: 0 | F155: 0 | G155: 0 | H155: 0 | I155: 0 | J155: 0 | K155: 0 | S155: 0 | T155: 0.0% | U155: 0
A156: PEDIATRAS | B156: PEDIATRAS | C156: DR. DIMAS ROSAS | D156: 02-CHAPINERO | E156: 0 | F156: 0 | G156: 0 | H156: 0 | I156: 0 | J156: 0 | K156: 0 | S156: 0 | T156: 0.0% | U156: 0
A157: PEDIATRAS | B157: PEDIATRAS | C157: DR. JAVIER BRITO MORENO | D157: 02-CHAPINERO | E157: 0 | F157: 0 | G157: 0 | H157: 0 | I157: 0 | J157: 0 | K157: 0 | S157: 0 | T157: 0.0% | U157: 0
A158: PEDIATRAS | B158: PEDIATRAS | C158: DR. GUSTAVO CORTÉS | D158: 02-CHAPINERO | E158: 0 | F158: 0 | G158: 0 | H158: 0 | I158: 0 | J158: 0 | K158: 0 | S158: 0 | T158: 0.0% | U158: 0
A159: PEDIATRAS | B159: PEDIATRAS | C159: DR. CARLOS VELASQUEZ | D159: 02-CHAPINERO | E159: 0 | F159: 0 | G159: 0 | H159: 0 | I159: 0 | J159: 0 | K159: 0 | S159: 0 | T159: 0.0% | U159: 0
A160: PEDIATRAS | B160: PEDIATRAS | C160: DR. RICARDO GOMEZ | D160: 02-CHAPINERO | E160: 0 | F160: 0 | G160: 0 | H160: 0 | I160: 0 | J160: 0 | K160: 0 | S160: 0 | T160: 0.0% | U160: 0
A161: PEDIATRAS | B161: PEDIATRAS | C161: DR. SARA BERNAL | D161: 02-CHAPINERO | E161: 0 | F161: 0 | G161: 2 | H161: 1 | I161: 0 | J161: 0 | K161: 0 | S161: 3 | T161: 0.0%
A162: PEDIATRAS | B162: PEDIATRAS | C162: DRA. MARIA PATRICIA AGUALIMPIA | D162: 02-CHAPINERO | E162: 0 | F162: 0 | G162: 0 | H162: 0 | I162: 0 | J162: 0 | K162: 0 | S162: 0 | T162: 0.0% | U162: 0
A163: PEDIATRAS | B163: PEDIATRAS | C163: DRA. LUISA FERNANDA FORERO ACOSTA | D163: 02-CHAPINERO | E163: 0 | F163: 0 | G163: 0 | H163: 0 | I163: 0 | J163: 0 | K163: 0 | S163: 0 | T163: 0.0% | U163: 0
A164: PEDIATRAS | B164: PEDIATRAS | C164: DRA. MARIA CLARA CASAS PARDO | D164: 02-CHAPINERO | E164: 0 | F164: 0 | G164: 0 | H164: 0 | I164: 0 | J164: 0 | K164: 0 | S164: 0 | T164: 0.0% | U164: 0
A165: PEDIATRAS | B165: PEDIATRAS | C165: DRA. MARTHA EUGENIA RONDEROS DE FORERO | D165: 02-CHAPINERO | E165: 0 | F165: 0 | G165: 0 | H165: 0 | I165: 0 | J165: 0 | K165: 0 | S165: 0 | T165: 0.0% | U165: 0
A166: PEDIATRAS | B166: PEDIATRAS | C166: DRA. MARIA ISABEL USCHER | D166: 02-CHAPINERO | E166: 0 | F166: 0 | G166: 1 | H166: 2 | I166: 4 | J166: 0 | K166: 7 | S166: 14 | T166: 0.0%
A167: PEDIATRAS | B167: PEDIATRAS | C167: DRA. MARIA DE LOS ANGELES MUÑOZ | D167: 02-CHAPINERO | E167: 0 | F167: 0 | G167: 1 | H167: 0 | I167: 1 | J167: 0 | K167: 2 | S167: 4 | T167: 0.0%
A168: PEDIATRAS | B168: PEDIATRAS | C168: DRA. CLARA ABELLO REYES | D168: 02-CHAPINERO | E168: 0 | F168: 0 | G168: 0 | H168: 0 | I168: 1 | J168: 0 | K168: 0 | S168: 1 | T168: 0.0%
A169: PEDIATRAS | B169: PEDIATRAS | C169: DRA. PATRICIA CONTRERAS | D169: 02-CHAPINERO | E169: 0 | F169: 0 | G169: 1 | H169: 1 | I169: 0 | J169: 0 | K169: 3 | S169: 5 | T169: 0.0%
A170: PEDIATRAS | B170: PEDIATRAS | C170: DRA. CLAUDIA ZOPPI | D170: 02-CHAPINERO | E170: 0 | F170: 0 | G170: 0 | H170: 0 | I170: 0 | J170: 0 | K170: 0 | S170: 0 | T170: 0.0% | U170: 0
A171: PEDIATRAS | B171: PEDIATRAS | C171: DRA. MARIA DE LOS ANGELES FERNANDEZ LUQUE | D171: 02-CHAPINERO | E171: 0 | F171: 0 | G171: 0 | H171: 0 | I171: 0 | J171: 0 | K171: 0 | S171: 0 | T171: 0.0% | U171: 0
A172: PEDIATRAS | B172: PEDIATRAS | C172: DRA. RUTH CORDOBA CORDOBA | D172: 02-CHAPINERO | E172: 0 | F172: 0 | G172: 0 | H172: 0 | I172: 0 | J172: 0 | K172: 0 | S172: 0 | T172: 0.0% | U172: 0
A173: PEDIATRAS | B173: PEDIATRAS | C173: DRA. LUZ ESTELA CORTES | D173: 02-CHAPINERO | E173: 0 | F173: 0 | G173: 0 | H173: 1 | I173: 0 | J173: 0 | K173: 0 | S173: 1 | T173: 0.0%
A174: UNICAJAS | B174: UNICAJAS | C174: UPA SAN LUIS | D174: 02-CHAPINERO | E174: 18 | F174: 2 | G174: 1 | H174: 0 | I174: 1 | J174: 0 | K174: 0 | S174: 2 | T174: 11.1% | U174: 6
A175: 02-CHAPINERO | B175: OTROS | C175: UPA SAN LUIS | D175: 02-CHAPINERO | E175: 325 | F175: 27 | G175: 0 | H175: 2 | I175: 0 | J175: 1 | K175: 0 | S175: 3 | T175: 0.9% | U175: 132
A176: 02-CHAPINERO | B176: DEMAS EAPB | C176: UPA SAN LUIS | D176: 02-CHAPINERO | F176: 0 | G176: 6 | H176: 2 | I176: 5 | J176: 5 | K176: 5 | S176: 23 | T176: 0.0%
A177: UNICAJAS | B177: UNICAJAS | C177: COMFASALUD SEDE CENTRO | D177: 03-SANTA FE | E177: 50 | F177: 4 | G177: 4 | H177: 2 | I177: 4 | J177: 1 | K177: 1 | S177: 12 | T177: 24.0% | U177: 9
A178: MEDIMAS | B178: MEDIMAS | C178: CORVESALUD TEUSAQUILLO | D178: 03-SANTA FE | E178: 193 | F178: 16 | G178: 6 | H178: 4 | I178: 2 | J178: 0 | K178: 0 | S178: 12 | T178: 6.2% | U178: 68
A179: 03-SANTA FE | B179: CAPITAL SALUD | C179: EXTRAMURAL SANTA FE | D179: 03-SANTA FE | E179: 0 | F179: 0 | G179: 2 | H179: 5 | I179: 18 | J179: 32 | K179: 19 | S179: 76 | T179: 0.0%
A180: 03-SANTA FE | B180: DEMAS EAPB | C180: EXTRAMURAL SANTA FE | D180: 03-SANTA FE | E180: 0 | F180: 0 | G180: 6 | H180: 4 | I180: 17 | J180: 36 | K180: 22 | S180: 85 | T180: 0.0%
A181: 03-SANTA FE | B181: OTROS | C181: EXTRAMURAL SANTA FE | D181: 03-SANTA FE | E181: 0 | F181: 0 | G181: 15 | H181: 9 | I181: 11 | J181: 10 | K181: 8 | S181: 53 | T181: 0.0%
A182: 03-SANTA FE | B182: UNICAJAS | C182: EXTRAMURAL SANTA FE | D182: 03-SANTA FE | E182: 0 | F182: 0 | G182: 0 | H182: 0 | I182: 1 | J182: 1 | K182: 3 | S182: 5 | T182: 0.0%
A183: 03-SANTA FE | B183: CAPITAL SALUD | C183: USS LACHES | D183: 03-SANTA FE | E183: 54 | F183: 5 | G183: 9 | H183: 3 | I183: 4 | J183: 6 | K183: 4 | S183: 26 | T183: 48.1%
A184: 03-SANTA FE | B184: DEMAS EAPB | C184: USS LACHES | D184: 03-SANTA FE | E184: 0 | F184: 0 | G184: 12 | H184: 2 | I184: 11 | J184: 1 | K184: 6 | S184: 32 | T184: 0.0%
A185: 03-SANTA FE | B185: OTROS | C185: USS LACHES | D185: 03-SANTA FE | E185: 260 | F185: 22 | G185: 7 | H185: 0 | I185: 4 | J185: 1 | K185: 1 | S185: 13 | T185: 5.0% | U185: 95
A186: 03-SANTA FE | B186: UNICAJAS | C186: USS LACHES | D186: 03-SANTA FE | E186: 17 | F186: 1 | G186: 0 | H186: 2 | I186: 1 | J186: 0 | K186: 0 | S186: 3 | T186: 17.6% | U186: 4
A187: 03-SANTA FE | B187: CAPITAL SALUD | C187: USS LAS CRUCES | D187: 03-SANTA FE | E187: 44 | F187: 4 | G187: 7 | H187: 5 | I187: 6 | J187: 3 | K187: 2 | S187: 23 | T187: 52.3%
A188: 03-SANTA FE | B188: DEMAS EAPB | C188: USS LAS CRUCES | D188: 03-SANTA FE | E188: 0 | F188: 0 | G188: 6 | H188: 1 | I188: 4 | J188: 5 | K188: 3 | S188: 19 | T188: 0.0%
A189: 03-SANTA FE | B189: OTROS | C189: USS LAS CRUCES | D189: 03-SANTA FE | E189: 211 | F189: 18 | G189: 4 | H189: 3 | I189: 4 | J189: 2 | K189: 2 | S189: 15 | T189: 7.1% | U189: 73
A190: 03-SANTA FE | B190: UNICAJAS | C190: USS LAS CRUCES | D190: 03-SANTA FE | E190: 14 | F190: 1 | G190: 7 | H190: 0 | I190: 1 | J190: 0 | K190: 1 | S190: 9 | T190: 64.3%
A191: 03-SANTA FE | B191: CAPITAL SALUD | C191: USS PERSEVERANCIA | D191: 03-SANTA FE | E191: 6 | F191: 1 | G191: 2 | H191: 0 | I191: 3 | J191: 0 | K191: 0 | S191: 5 | T191: 83.3%
A192: 03-SANTA FE | B192: DEMAS EAPB | C192: USS PERSEVERANCIA | D192: 03-SANTA FE | E192: 0 | F192: 0 | G192: 0 | H192: 0 | I192: 1 | J192: 0 | K192: 0 | S192: 1 | T192: 0.0%
A193: 03-SANTA FE | B193: OTROS | C193: USS PERSEVERANCIA | D193: 03-SANTA FE | E193: 30 | F193: 3 | G193: 2 | H193: 0 | I193: 0 | J193: 0 | K193: 2 | S193: 4 | T193: 13.3% | U193: 9
A194: 03-SANTA FE | B194: UNICAJAS | C194: USS PERSEVERANCIA | D194: 03-SANTA FE | E194: 2 | F194: 0 | G194: 0 | H194: 0 | I194: 0 | J194: 0 | K194: 0 | S194: 0 | T194: =IF(E194=0,0,+S194/E194) -> 0.0% | U194: =IF(COUNT(G194:R194)*(E194/12)-S194<0,"",COUNT(G194:R194)*(E194/12)-S194) -> 1
A195: PARTICULAR | B195: PARTICULAR | C195: CLINICA SAN RAFAEL | D195: 04-SAN CRISTOBAL | E195: 375 | F195: =+E195/12 -> 31 | G195: 36 | H195: 26 | I195: 24 | J195: 17 | K195: 25 | S195: =SUM(G195:R195) -> 128 | T195: 34.1% | U195: 28
A196: FAMISANAR | B196: FAMI- COLSB | C196: CENTRO MEDICO COLSUBSIDIO 20 DE JULIO | D196: 04-SAN CRISTOBAL | F196: 0 | S196: 0 | T196: 0.0% | U196: 0
A197: 04-SAN CRISTOBAL | B197: CAPITAL SALUD | C197: EXTRAMURAL SAN CRISTOBAL | D197: 04-SAN CRISTOBAL | E197: 0 | F197: 0 | G197: 27 | H197: 29 | I197: 66 | J197: 43 | K197: 71 | S197: 236 | T197: 0.0%
A198: 04-SAN CRISTOBAL | B198: DEMAS EAPB | C198: EXTRAMURAL SAN CRISTOBAL | D198: 04-SAN CRISTOBAL | E198: 0 | F198: 0 | G198: 37 | H198: 26 | I198: 105 | J198: 118 | K198: 107 | S198: 393 | T198: 0.0%
A199: 04-SAN CRISTOBAL | B199: OTROS | C199: EXTRAMURAL SAN CRISTOBAL | D199: 04-SAN CRISTOBAL | E199: 0 | F199: 0 | G199: 12 | H199: 8 | I199: 23 | J199: 23 | K199: 30 | S199: 96 | T199: 0.0%
A200: 04-SAN CRISTOBAL | B200: UNICAJAS | C200: EXTRAMURAL SAN CRISTOBAL | D200: 04-SAN CRISTOBAL | E200: 0 | F200: 0 | G200: 0 | H200: 2 | I200: 14 | J200: 6 | K200: 11 | S200: 33 | T200: 0.0%
... 620 more rows

Sheet TRIPLEVIRAL
A1: EAPB | B1: EPS O ESE | C1: IPS | D1: Localidad | E1: Meta Anual de 1 Año | F1: Meta Mensual | G1: Enero | H1: Febrero | I1: Marzo | J1: Abril | K1: Mayo | L1: Junio | M1: Julio | N1: Agosto | O1: Septiembre | P1: Octubre | Q1: Noviembre | R1: Diciembre | S1: Total | T1: % Cobertura | U1: Deficit
A2: CAPITAL SALUD | B2: CAPITAL SALUD | C2: UPA SAN CRISTOBAL | D2: 01-USAQUEN | E2: 100 | F2: =E2/12 -> 8 | G2: 4 | H2: 4 | I2: 5 | J2: 2 | K2: 4 | S2: =SUM(G2:R2) -> 19 | T2: =IF(E2=0,0,+S2/E2) -> 19.0% | U2: =IF(COUNT(G2:R2)*(E2/12)-S2<0,"",COUNT(G2:R2)*(E2/12)-S2) -> 23
A3: CAPITAL SALUD | B3: CAPITAL SALUD | C3: UPA USAQUEN | D3: 01-USAQUEN | E3: 14 | F3: 1 | G3: 0 | H3: 1 | I3: 1 | J3: 0 | K3: 0 | S3: =SUM(G3:R3) -> 2 | T3: 14.3% | U3: 4
A4: CAPITAL SALUD | B4: CAPITAL SALUD | C4: UPA ORQUIDEAS | D4: 01-USAQUEN | E4: 6 | F4: 1 | G4: 5 | H4: 1 | I4: 0 | J4: 0 | K4: 0 | S4: 6 | T4: 100.0%
A5: CAPITAL SALUD | B5: CAPITAL SALUD | C5: UPA CODITO | D5: 01-USAQUEN | E5: 115 | F5: 10 | G5: 3 | H5: 6 | I5: 1 | J5: 5 | K5: 4 | S5: 19 | T5: 16.5% | U5: 29
A6: CAPITAL SALUD | B6: CAPITAL SALUD | C6: CAMI VERBENAL | D6: 01-USAQUEN | E6: 106 | F6: 9 | G6: 7 | H6: 5 | I6: 3 | J6: 1 | K6: 6 | S6: 22 | T6: 20.8% | U6: 22
A7: CAPITAL SALUD | B7: CAPITAL SALUD | C7: HOSPITAL SIMON BOLIVAR | D7: 01-USAQUEN | E7: 15 | F7: 1 | G7: 12 | H7: 5 | I7: 5 | J7: 1 | K7: 1 | S7: 24 | T7: 160.0%
A8: 01-USAQUEN | B8: 01-USAQUEN | C8: EXTRAMURAL USAQUEN | D8: 01-USAQUEN | F8: 0 | G8: 44 | H8: 44 | I8: 71 | J8: 178 | K8: 123 | S8: 460 | T8: 0.0%
A9: ALIANSALUD | B9: ALIANSALUD | C9: CENTRO MEDICO COLMEDICA SANTA BARBARA | D9: 01-USAQUEN | E9: 794 | F9: 66 | G9: 58 | H9: 53 | I9: 33 | J9: 27 | K9: 60 | S9: 231 | T9: 29.1% | U9: 100
A10: COMPENSAR | B10: COMPENSAR | C10: USS CALLE 134 | D10: 01-USAQUEN | E10: 328 | F10: 27 | G10: 15 | H10: 10 | I10: 9 | J10: 8 | K10: 13 | S10: 55 | T10: 16.8% | U10: 82
A11: COMPENSAR | B11: COMPENSAR | C11: USS CALLE 145 | D11: 01-USAQUEN | E11: 252 | F11: 21 | G11: 36 | H11: 26 | I11: 13 | J11: 14 | K11: 16 | S11: 105 | T11: 41.7% | U11: 0
A12: COMPENSAR | B12: COMPENSAR | C12: JAVESALUD TOBERIN | D12: 01-USAQUEN | E12: 396 | F12: 33 | G12: 3 | H12: 5 | I12: 0 | J12: 6 | K12: 7 | S12: 21 | T12: 5.3% | U12: 144
A13: COOMEVA | B13: COOMEVA | C13: SINERGIA UNIDAD INTEGRAL EN SALUD | D13: 01-USAQUEN | E13: 63 | F13: 5 | G13: 13 | H13: 13 | I13: 1 | J13: 5 | K13: 3 | S13: 35 | T13: 55.6%
A14: FAMISANAR | B14: FAMI- COLSB | C14: CENTRO MEDICO COLSUBSIDIO USAQUEN | D14: 01-USAQUEN | E14: 315 | F14: 26 | G14: 28 | H14: 22 | I14: 15 | J14: 7 | K14: 20 | S14: 92 | T14: 29.2% | U14: 39
A15: MILITAR | B15: MILITAR | C15: DISPENSARIO MEDICO CANTON NORTE | D15: 01-USAQUEN | E15: 287 | F15: 24 | G15: 10 | H15: 8 | I15: 6 | J15: 7 | K15: 9 | S15: 40 | T15: 13.9% | U15: 80
A16: NUEVA EPS | B16: NUEVA EPS | C16: IPS VIVA 1A SEDE TOBERIN | D16: 01-USAQUEN | E16: 130 | F16: 11 | G16: 13 | H16: 7 | I16: 7 | J16: 0 | K16: 5 | S16: 32 | T16: 24.6% | U16: 22
A17: NUEVA EPS | B17: NUEVA EPS | C17: CAFAM GRANADA HILLS | D17: 01-USAQUEN | E17: 58 | F17: 5 | G17: 6 | H17: 3 | I17: 2 | J17: 4 | K17: 3 | S17: 18 | T17: 31.0% | U17: 6
A18: SANITAS | B18: SANITAS | C18: UAP SANITAS TOBERIN | D18: 01-USAQUEN | E18: 629 | F18: 52 | G18: 31 | H18: 37 | I18: 28 | J18: 20 | K18: 23 | S18: 139 | T18: 22.1% | U18: 123
A19: SANITAS | B19: SANITAS | C19: MEDIKA IPS SANITAS UAP USAQUEN | D19: 01-USAQUEN | E19: 183 | F19: 15 | G19: 1 | H19: 2 | I19: 0 | J19: 1 | K19: 0 | S19: 4 | T19: 2.2% | U19: 72
A20: SANITAS | B20: SANITAS | C20: UAP SANTA BARBARA | D20: 01-USAQUEN | E20: 884 | F20: 74 | G20: 75 | H20: 81 | I20: 51 | J20: 38 | K20: 45 | S20: 290 | T20: 32.8% | U20: 78
A21: SANITAS | B21: SANITAS | C21: SANITAS BANCO DE LA REPUBLICA | D21: 01-USAQUEN | E21: 0 | F21: 0 | G21: 1 | H21: 0 | I21: 3 | J21: 2 | K21: 0 | S21: 6 | T21: 0.0%
A22: SALUD TOTAL | B22: SALUD TOTAL | C22: VIRREY SOLIS TOBERÍN | D22: 01-USAQUEN | E22: 418 | F22: 35 | G22: 19 | H22: 19 | I22: 17 | J22: 11 | K22: 11 | S22: 77 | T22: 18.4% | U22: 97
A23: SURA | B23: SURA | C23: IPS JAVESALUD SANTA BEATRIZ | D23: 01-USAQUEN | E23: 366 | F23: 31 | G23: 15 | H23: 10 | I23: 17 | J23: 4 | K23: 13 | S23: 59 | T23: 16.1% | U23: 94
A24: ECOPETROL | B24: ECOPETROL | C24: IPS CLINICOS PALATINO | D24: 01-USAQUEN | E24: 93 | F24: 8 | G24: 5 | H24: 10 | I24: 6 | J24: 15 | K24: 4 | S24: 40 | T24: 43.0%
A25: PARTICULAR | B25: PARTICULAR | C25: CLINICA PEDIATRICA COLSANITAS | D25: 01-USAQUEN | E25: 675 | F25: 56 | G25: 84 | H25: 62 | I25: 56 | J25: 36 | K25: 43 | S25: 281 | T25: 41.6% | U25: 0
A26: PARTICULAR | B26: PARTICULAR | C26: CENTRO MEDICO COLSANITAS LA CALLEJA | D26: 01-USAQUEN | E26: 130 | F26: 11 | G26: 18 | H26: 9 | I26: 13 | J26: 4 | K26: 5 | S26: 49 | T26: 37.7% | U26: 5
A27: PARTICULAR | B27: PARTICULAR | C27: CENTRO MEDICO COLSANITAS 108 | D27: 01-USAQUEN | E27: 26 | F27: 2 | G27: 5 | H27: 1 | I27: 2 | J27: 0 | K27: 0 | S27: 8 | T27: 30.8% | U27: 3
A28: PARTICULAR | B28: PARTICULAR | C28: CENTRO MEDICO COLSANITAS SANTA ANA | D28: 01-USAQUEN | E28: 4 | F28: 0 | G28: 0 | H28: 1 | I28: 0 | J28: 0 | K28: 0 | S28: 1 | T28: 25.0% | U28: 1
A29: PARTICULAR | B29: PARTICULAR | C29: FUNDACIÓN CARDIO INFANTIL | D29: 01-USAQUEN | E29: 0 | F29: 0 | G29: 17 | H29: 11 | I29: 7 | J29: 2 | K29: 6 | S29: 43 | T29: 0.0%
A30: PARTICULAR | B30: PARTICULAR | C30: ENFASO USAQUEN | D30: 01-USAQUEN | E30: 0 | F30: 0 | G30: 5 | H30: 9 | I30: 4 | J30: 2 | K30: 12 | S30: 32 | T30: 0.0%
A31: PARTICULAR | B31: PARTICULAR | C31: UNIDAD DE VACUNACIÓN INTERNACIONAL | D31: 01-USAQUEN | E31: 0 | F31: 0 | G31: 5 | H31: 2 | I31: 7 | J31: 3 | K31: 6 | S31: 23 | T31: 0.0%
A32: PARTICULAR | B32: PARTICULAR | C32: INMUNOLOGÍA Y DIAGNÓSTICO ESPECIALIZADO LTDA. | D32: 01-USAQUEN | E32: 0 | F32: 0 | G32: 1 | H32: 0 | I32: 0 | J32: 0 | K32: 0 | S32: 1 | T32: 0.0%
A33: PARTICULAR | B33: PARTICULAR | C33: PROTEGER HEALHT CARE | D33: 01-USAQUEN | E33: 0 | F33: 0 | G33: 0 | H33: 1 | I33: 1 | J33: 6 | K33: 7 | S33: 15 | T33: 0.0%
A34: PARTICULAR | B34: PARTICULAR | C34: FUNDACION SANTA FE DE BOGOTA | D34: 01-USAQUEN | E34: 0 | F34: 0 | G34: 0 | H34: 0 | I34: 0 | J34: 0 | K34: 0 | S34: 0 | T34: 0.0% | U34: 0
A35: PARTICULAR | B35: PARTICULAR | C35: IPS CRUZ ROJA SEDE UNICENTRO | D35: 01-USAQUEN | E35: 0 | F35: 0 | G35: 0 | H35: 0 | I35: 0 | J35: 0 | K35: 0 | S35: 0 | T35: 0.0% | U35: 0
A36: PARTICULAR | B36: PARTICULAR | C36: IPS CRUZ ROJA SAMU CALLE 145 | D36: 01-USAQUEN | E36: 0 | F36: 0 | G36: 0 | H36: 0 | I36: 0 | J36: 0 | K36: 0 | S36: 0 | T36: 0.0% | U36: 0
A37: PEDIATRAS | B37: PEDIATRAS | C37: DR. ALEJANDRO LÓPEZ | D37: 01-USAQUEN | E37: 0 | F37: 0 | G37: 0 | H37: 0 | I37: 1 | J37: 0 | K37: 0 | S37: 1 | T37: 0.0%
A38: PEDIATRAS | B38: PEDIATRAS | C38: DR. CARLOS NEFTALI TORRES | D38: 01-USAQUEN | E38: 0 | F38: 0 | G38: 3 | H38: 7 | I38: 1 | J38: 3 | K38: 1 | S38: 15 | T38: 0.0%
A39: PEDIATRAS | B39: PEDIATRAS | C39: DR. FRANCISCO NUÑEZ | D39: 01-USAQUEN | E39: 0 | F39: 0 | G39: 0 | H39: 1 | I39: 1 | J39: 0 | K39: 2 | S39: 4 | T39: 0.0%
A40: PEDIATRAS | B40: PEDIATRAS | C40: DR. FERNANDO GOMEZ | D40: 01-USAQUEN | E40: 0 | F40: 0 | G40: 0 | H40: 0 | I40: 0 | J40: 0 | K40: 0 | S40: 0 | T40: 0.0% | U40: 0
A41: PEDIATRAS | B41: PEDIATRAS | C41: DR. FERNANDO ZARATE MORENO | D41: 01-USAQUEN | E41: 0 | F41: 0 | G41: 1 | H41: 1 | I41: 1 | J41: 2 | K41: 1 | S41: 6 | T41: 0.0%
A42: PEDIATRAS | B42: PEDIATRAS | C42: DR. GONZALO GARCIA | D42: 01-USAQUEN | E42: 0 | F42: 0 | G42: 3 | H42: 0 | I42: 0 | J42: 1 | K42: 2 | S42: 6 | T42: 0.0%
